Workbook

Sheet ControlPanel
B1: Control Panel
B2: Customer Class | C2: Residential
B3: Option | C3: DLC Water Heating
B4: Potential | C4: Market Potential
B5: State | C5: ID
B7: Customer Class | C7: Residential | D7: General Service | E7: Large General Service | F7: Extra Large General Service
B8: DLC Smart Thermostats - Cooling | C8: x | D8: x
B9: DLC Smart Thermostats - Heating | C9: x | D9: x
B10: DLC Central AC | C10: x | D10: x | I10: Key:
B11: DLC Water Heating | C11: x | D11: x | I11: Input Tabs
B12: CTA-2045 WH | C12: x | D12: x | I12: Calculation Tabs
B13: DLC Electric Vehicle Charging | C13: x | I13: Results Tabs
B14: Ancillary Cooling | C14: x | D14: x | I14: Red text is user input
B15: Ancillary Heating | C15: x | D15: x
B16: Ancillary DLC WH | C16: x | D16: x
B17: Ancillary WH | C17: x | D17: x
B18: Ancillary EV | C18: x
B19: Ancillary Third Party | D19: x | E19: x | F19: x
B20: Ancillary Battery Storage | C20: x | D20: x | E20: x | F20: x
B21: DLC Smart Appliances | C21: x | D21: x
B22: Third Party Contracts | D22: x | E22: x | F22: x
B23: Time-of-Use Opt-in | C23: x | D23: x | E23: x | F23: x
B24: Time-of-Use Opt-out
B25: Variable Peak Pricing Rates | C25: x | D25: x | E25: x | F25: x
B26: Real Time Pricing
B27: Behavioral | C27: x
B28: Thermal Energy Storage | D28: x | E28: x | F28: x
B29: Battery Energy Storage | C29: x | D29: x | E29: x | F29: x

Sheet Variables
B1: Data Element | C1: Value | D1: Description
B2: Discount Rate | C2: 0.0521 | D2: The discount rate for future cash flows.
B3: Inflation Rate | C3: 0.021 | D3: The inflation rate.
B4: Base Year | C4: 2022 | D4: The base year for the forecast.
B5: Forecast End | C5: 2045 | D5: The forecast's end year.
B6: Hierarchy Enabled? | C6: TRUE | D6: Toggle Hierarchy
B7: Include Avoided Cost Savings? | C7: FALSE | D7: Set to True if you would like to run the model with Avoided Cost Savings
B8: Select First CE Program? | C8: FALSE | D8: Set to True if you would like to record only the first year in which a program is cost effective.
B9: Minimum BC Ratio | C9: 1 | D9: The minimum required BC Ratio in order to pass the economic screen.
B10: Max Shift Years | C10: 0 | D10: Maximum number of start year shifts to forecast
B11: Years Shifted | C11: 0 | D11: Model automatically calculates impacts and cost-effectiveness for years following the start year.
B12: State | C12: WA | D12: Territory residing in Washington
B13: State | C13: ID | D13: Territory residing in Idaho
B14: Potential | C14: Market Potential | D14: The Market Potential or Opt-In case.

Sheet ClassValues
A1: Key | B1: State | C1: Customer Class | D1: Data Element | E1: Unit | F1: =YearBase -> 2022 | G1: =F1+1 -> 2023 | H1: =G1+1 -> 2024 | I1: 2025 | J1: 2026 | K1: 2027 | L1: 2028 | M1: 2029 | N1: 2030 | O1: 2031 | P1: 2032 | Q1: 2033 | R1: 2034 | S1: 2035 | T1: 2036 | U1: 2037 | V1: 2038 | W1: 2039 | X1: 2040 | Y1: 2041 | Z1: 2042 | AA1: 2043 | AB1: 2044 | AC1: 2045 | AD1: 2046 | AE1: 2047 | AF1: 2048 | AG1: 2049 | AH1: 2050 | AI1: 2051 | AJ1: 2052 | AK1: 2053 | AL1: 2054 | AM1: 2055 | AN1: 2056 | AO1: 2057 | AP1: 2058 | AQ1: 2059 | AR1: 2060 | AS1: 2061 | AT1: 2062 | AU1: 2063 | AV1: 2064 | AW1: 2065 | AX1: 2066 | AY1: Growth Rate | AZ1: Notes | BE1: Annual Average | BG1: State | BH1: Customer Class | BI1: Data Element | BJ1: Unit | BK1: 2021 | BL1: 2022 | BM1: 2023 | BN1: 2024 | BO1: 2025 | BP1: =YearBase -> 2022 | BQ1: =BP1+1 -> 2023 | BR1: =BQ1+1 -> 2024 | BS1: 2025 | BT1: 2026 | BU1: Change | BV1: Change | BW1: Change | BX1: Change | BY1: Change | BZ1: Average Change
A2: =B2&C2&D2 -> WAAllSummer Peak Load | B2: WA | C2: All | D2: Summer Peak Load | E2: MW @meter | F2: 851.6778188 | G2: 855.3843629 | H2: 859.2851639 | I2: 863.0492036 | J2: 866.576076 | K2: 869.2570822 | L2: 871.962991 | M2: 874.6936513 | N2: 877.4489219 | O2: 880.2286703 | P2: 883.0327732 | Q2: 885.8611157 | R2: 888.7135914 | S2: 891.5901021 | T2: 894.4905576 | U2: 897.4148753 | V2: 900.3629802 | W2: 903.3348046 | X2: 906.3302881 | Y2: 909.3493772 | Z2: 912.3920249 | AA2: 915.4581912 | AB2: 918.5478424 | AC2: 921.660951 | AD2: 924.7974956 | AE2: 927.9574609 | AF2: 931.1408373 | AG2: 934.3476211 | AH2: 937.5778139 | AI2: 940.8314227 | AJ2: 944.1084601 | AK2: 947.4089436 | AL2: 950.7328958 | AM2: 954.0803442 | AN2: 957.4513214 | AO2: 960.8458642 | AP2: 964.2640146 | AQ2: 967.7058188 | AR2: 0 | AS2: 0 | AT2: 0 | AU2: 0 | BG2: WA | BH2: All | BI2: Summer Peak Load | BJ2: MW @meter | BK2: 837.5028486 | BL2: 851.6778188 | BM2: 855.3843629 | BN2: 859.2851639 | BO2: 863.0492036 | BP2: 845.4124166 | BQ2: 849.0521135 | BR2: 852.6700562 | BS2: 856.1586325 | BT2: 859.4444363 | BU2: =(BK2-BP2)/BP2 -> -0.009355869257 | BV2: =(BL2-BQ2)/BQ2 -> 0.003092513767 | BW2: 0.003183302537 | BX2: 0.00365181324 | BY2: 0.004194299472 | BZ2: =AVERAGE(BU2:BY2) -> 0.0009532119517
A3: =B3&C3&D3 -> WAAllWinter Peak Load | B3: WA | C3: All | D3: Winter Peak Load | E3: MW @meter | F3: 822.8223795 | G3: 826.3267388 | H3: 829.9980664 | I3: 833.5348527 | J3: 836.8524856 | K3: 839.3855961 | L3: 841.9429358 | M3: 844.5243525 | N3: 847.1297032 | O3: 849.7588543 | P3: 852.4116807 | Q3: 855.0880659 | R3: 857.787902 | S3: 860.5110891 | T3: 863.257535 | U3: 866.0271555 | V3: 868.8198738 | W3: 871.6356202 | X3: 874.4743324 | Y3: 877.3359547 | Z3: 880.2204384 | AA3: 883.1277413 | AB3: 886.0578274 | AC3: 889.0106671 | AD3: 891.986237 | AE3: 894.9845194 | AF3: 898.0055025 | AG3: 901.0491801 | AH3: 904.1155516 | AI3: 907.2046215 | AJ3: 910.3164 | AK3: 913.4509021 | AL3: 916.6081479 | AM3: 919.7881625 | AN3: 922.9909755 | AO3: 926.2166216 | AP3: 929.4651399 | AQ3: 932.7365738 | AR3: 0 | AS3: 0 | AT3: 0 | AU3: 0 | BG3: WA | BH3: All | BI3: Winter Peak Load | BJ3: MW @meter | BK3: 809.0423273 | BL3: 822.8223795 | BM3: 826.3267388 | BN3: 829.9980664 | BO3: 833.5348527 | BP3: 888.4572762 | BQ3: 892.1846161 | BR3: 895.8885582 | BS3: 899.4622731 | BT3: 902.8314548 | BU3: =(BK3-BP3)/BP3 -> -0.08938521978 | BV3: =(BL3-BQ3)/BQ3 -> -0.07774426427 | BW3: =(BM3-BR3)/BR3 -> -0.07764561654 | BX3: =(BN3-BS3)/BS3 -> -0.07722859402 | BY3: =(BO3-BT3)/BT3 -> -0.07675474945 | BZ3: =AVERAGE(BU3:BY3) -> -0.07975168881
A4: WAAllSummer Peak Load @ Gen | B4: WA | C4: All | D4: Summer Peak Load @ Gen | E4: MW @generator | F4: 904.1411725 | G4: 908.0760397 | H4: 912.21713 | I4: 916.2130346 | J4: 919.9571623 | K4: 922.8033185 | L4: 925.6759112 | M4: 928.5747803 | N4: 931.4997755 | O4: 934.4507564 | P4: 937.427592 | Q4: 940.4301604 | R4: 943.4583486 | S4: 946.5120524 | T4: 949.5911759 | U4: 952.6956316 | V4: 955.8253397 | W4: 958.9802286 | X4: 962.1602339 | Y4: 965.3652988 | Z4: 968.5953737 | AA4: 971.8504158 | AB4: 975.1303895 | AC4: 978.4352655 | AD4: 981.7650213 | AE4: 985.1196405 | AF4: 988.4991129 | AG4: 991.9034346 | AH4: 995.3326072 | AI4: 998.7866384 | AJ4: 1002.265541 | AK4: 1005.769335 | AL4: 1009.298042 | AM4: 1012.851693 | AN4: 1016.430323 | AO4: 1020.033969 | AP4: 1023.662678 | AQ4: 1027.316497 | AR4: 0 | AS4: 0 | AT4: 0 | AU4: 0 | BG4: WA | BH4: All | BI4: Summer Peak Load @ Gen | BJ4: MW @generator | BK4: 889.0930241 | BL4: 904.1411725 | BM4: 908.0760397 | BN4: 912.21713 | BO4: 916.2130346 | BP4: 904.1844028 | BQ4: 908.0771267 | BR4: 911.9465841 | BS4: 915.6776818 | BT4: 919.1919105 | BU4: -0.0166905984 | BV4: -0.004334383205 | BW4: -0.004244266635 | BX4: -0.003779224785 | BY4: -0.003240755121 | BZ4: -0.00645784563
A5: WAAllWinter Peak Load @ Gen | B5: WA | C5: All | D5: Winter Peak Load @ Gen | E5: MW @generator | F5: 873.5082381 | G5: 877.2284659 | H5: 881.1259473 | I5: 884.8805996 | J5: 888.4025987 | K5: 891.0917488 | L5: 893.8066206 | M5: 896.5470526 | N5: 899.312893 | O5: 902.1039997 | P5: 904.9202402 | Q5: 907.7614908 | R5: 910.6276368 | S5: 913.5185722 | T5: 916.4341992 | U5: 919.3744283 | V5: 922.339178 | W5: 925.3283744 | X5: 928.3419512 | Y5: 931.3798495 | Z5: 934.4420174 | AA5: 937.5284101 | AB5: 940.6389895 | AC5: 943.7737242 | AD5: 946.9325892 | AE5: 950.1155658 | AF5: 953.3226415 | AG5: 956.5538096 | AH5: 959.8090695 | AI5: 963.0884262 | AJ5: 966.3918903 | AK5: 969.7194777 | AL5: 973.0712099 | AM5: 976.4471133 | AN5: 979.8472196 | AO5: 983.2715655 | AP5: 986.7201925 | AQ5: 990.1931467 | AR5: 0 | AS5: 0 | AT5: 0 | AU5: 0 | BG5: WA | BH5: All | BI5: Winter Peak Load @ Gen | BJ5: MW @generator | BK5: 858.8793347 | BL5: 873.5082381 | BM5: 877.2284659 | BN5: 881.1259473 | BO5: 884.8805996 | BP5: 950.2216858 | BQ5: 954.2081455 | BR5: 958.169581 | BS5: 961.9917359 | BT5: 965.5951389 | BU5: -0.09612741162 | BV5: -0.08457264574 | BW5: -0.0844747284 | BX5: -0.08406079351 | BY5: -0.08359045728 | BZ5: -0.08656520731
A6: WAResidentialSummer Peak Load | B6: WA | C6: Residential | D6: Summer Peak Load | E6: MW @meter | F6: 508.9404854 | G6: 511.9339061 | H6: 515.1993481 | I6: 518.3917253 | J6: 521.3298989 | K6: 523.4053733 | L6: 525.4891104 | M6: 527.5811431 | N6: 529.6815045 | O6: 531.7902276 | P6: 533.9073458 | Q6: 536.0328924 | R6: 538.1669011 | S6: 540.3094056 | T6: 542.4604396 | U6: 544.6200371 | V6: 546.7882322 | W6: 548.9650592 | X6: 551.1505524 | Y6: 553.3447462 | Z6: 555.5476754 | AA6: 557.7593747 | AB6: 559.9798791 | AC6: 562.2092235 | AD6: 564.4474432 | AE6: 566.6945735 | AF6: 568.9506499 | AG6: 571.215708 | AH6: 573.4897836 | AI6: 575.7729125 | AJ6: 578.0651308 | AK6: 580.3664747 | AL6: 582.6769805 | AM6: 584.9966847 | AN6: 587.325624 | AO6: 589.663835 | AP6: 592.0113546 | AQ6: 594.3682201 | AR6: 596.7344684 | AS6: 599.1101371 | AT6: 0 | AU6: 0 | BG6: WA | BH6: Residential | BI6: Summer Peak Load | BJ6: MW @meter | BK6: 498.8797018 | BL6: 508.9404854 | BM6: 511.9339061 | BN6: 515.1993481 | BO6: 518.3917253 | BP6: 525.2169751 | BQ6: 528.0625045 | BR6: 530.9052832 | BS6: 533.6091204 | BT6: 536.100513 | BU6: -0.05014551053 | BV6: -0.03621165851 | BW6: -0.03573401439 | BX6: -0.03450048282 | BY6: -0.03303258859 | BZ6: -0.03792485097
A7: WAResidentialWinter Peak Load | B7: WA | C7: Residential | D7: Winter Peak Load | E7: MW @meter | F7: 472.7006562 | G7: 475.4809261 | H7: 478.5138476 | I7: 481.4789071 | J7: 484.2078639 | K7: 486.1355512 | L7: 488.0709129 | M7: 490.0139794 | N7: 491.9647815 | O7: 493.92335 | P7: 495.8897158 | Q7: 497.8639099 | R7: 499.8459635 | S7: 501.8359079 | T7: 503.8337745 | U7: 505.8395948 | V7: 507.8534005 | W7: 509.8752234 | X7: 511.9050954 | Y7: 513.9430486 | Z7: 515.9891151 | AA7: 518.0433272 | AB7: 520.1057174 | AC7: 522.1763182 | AD7: 524.2551623 | AE7: 526.3422825 | AF7: 528.4377118 | AG7: 530.5414832 | AH7: 532.65363 | AI7: 534.7741855 | AJ7: 536.9031832 | AK7: 539.0406566 | AL7: 541.1866396 | AM7: 543.3411659 | AN7: 545.5042697 | AO7: 547.6759851 | AP7: 549.8563463 | AQ7: 552.0453878 | AR7: 554.2431441 | AS7: 556.4496499 | AT7: 0 | AU7: 0 | BG7: WA | BH7: Residential | BI7: Winter Peak Load | BJ7: MW @meter | BK7: 463.3562649 | BL7: 472.7006562 | BM7: 475.4809261 | BN7: 478.5138476 | BO7: 481.4789071 | BP7: 531.703761 | BQ7: 534.5844346 | BR7: 537.4623235 | BS7: 540.1995549 | BT7: 542.7217179 | BU7: -0.1285443157 | BV7: -0.1157605318 | BW7: -0.1153223113 | BX7: -0.1141905926 | BY7: -0.112843855 | BZ7: -0.1173323213
A8: WAResidentialCustomer Population | B8: WA | C8: Residential | D8: Customer Population | E8: # | F8: 234948.2173 | G8: 237104.1537 | H8: 239413.1705 | I8: 241597.5205 | J8: 243801.8 | K8: 246026.1908 | L8: 248270.8764 | M8: 250536.0421 | N8: 252821.8745 | O8: 255128.5624 | P8: 257456.2959 | Q8: 259805.2672 | R8: 262175.6699 | S8: 264567.6996 | T8: 266981.5537 | U8: 269417.4311 | V8: 271875.533 | W8: 274356.062 | X8: 276859.2228 | Y8: 279385.2218 | Z8: 281934.2675 | AA8: 284506.57 | AB8: 287102.3417 | AC8: 289721.7965 | AD8: 292365.1507 | AE8: 295032.6222 | AF8: 297724.4311 | AG8: 300440.7994 | AH8: 303181.9512 | AI8: 305948.1127 | AJ8: 308739.512 | AK8: 311556.3793 | AL8: 314398.9471 | AM8: 317267.4499 | AN8: 320162.1242 | AO8: 323083.2088 | AP8: 326030.9447 | AQ8: 329005.575 | AR8: 332007.3452 | AS8: 335036.5029 | AT8: 0 | AU8: 0 | BG8: WA | BH8: Residential | BI8: Customer Population | BJ8: # | BK8: 233036.2726 | BL8: 234948.2173 | BM8: 237104.1537 | BN8: 239413.1705 | BO8: 241597.5205 | BP8: 231769.0089 | BQ8: 233824.2795 | BR8: 235803.3001 | BS8: 237679.4873 | BT8: 239570.6026 | BU8: 0.005467787299 | BV8: 0.004806762543 | BW8: 0.005516689451 | BX8: 0.007294206367 | BY8: 0.008460628779 | BZ8: 0.006309214888
A9: WAResidentialPer Customer Summer Peak (kW) | B9: WA | C9: Residential | D9: Per Customer Summer Peak (kW) | E9: kW @meter | F9: 2.166181515 | G9: 2.159109818 | H9: 2.151925673 | I9: 2.145683135 | J9: 2.138334905 | K9: 2.127437618 | L9: 2.116595865 | M9: 2.105809363 | N9: 2.095077831 | O9: 2.084400988 | P9: 2.073778557 | Q9: 2.063210258 | R9: 2.052695818 | S9: 2.042234961 | T9: 2.031827413 | U9: 2.021472905 | V9: 2.011171164 | W9: 2.000921923 | X9: 1.990724914 | Y9: 1.98057987 | Z9: 1.970486527 | AA9: 1.960444621 | AB9: 1.95045389 | AC9: 1.940514073 | AD9: 1.930624912 | AE9: 1.920786147 | AF9: 1.910997522 | AG9: 1.901258781 | AH9: 1.891569671 | AI9: 1.881929937 | AJ9: 1.872339329 | AK9: 1.862797597 | AL9: 1.85330449 | AM9: 1.843859762 | AN9: 1.834463166 | AO9: 1.825114456 | AP9: 1.815813389 | AQ9: 1.806559722 | AR9: 0 | AS9: 0 | AT9: 0 | AU9: 0 | BG9: WA | BH9: Residential | BI9: Per Customer Summer Peak (kW) | BJ9: kW @meter | BK9: 2.140781331 | BL9: 2.166181515 | BM9: 2.159109818 | BN9: 2.151925673 | BO9: 2.145683135 | BP9: 2.26612254 | BQ9: 2.258373278 | BR9: 2.251475204 | BS9: 2.245078557 | BT9: 2.237755831 | BU9: -0.05531086975 | BV9: -0.04082219844 | BW9: -0.04102438505 | BX9: -0.0414920377 | BY9: -0.04114510392 | BZ9: -0.04395891897
A10: WAResidentialPer Customer Winter Peak (kW) | B10: WA | C10: Residential | D10: Per Customer Winter Peak (kW) | E10: kW @meter | F10: 2.011935488 | G10: 2.005367341 | H10: 1.998694752 | I10: 1.992896724 | J10: 1.986071735 | K10: 1.975950404 | L10: 1.965880654 | M10: 1.95586222 | N10: 1.945894842 | O10: 1.935978259 | P10: 1.926112213 | Q10: 1.916296445 | R10: 1.9065307 | S10: 1.896814723 | T10: 1.88714826 | U10: 1.877531059 | V10: 1.867962869 | W10: 1.858443439 | X10: 1.848972522 | Y10: 1.839549871 | Z10: 1.830175238 | AA10: 1.82084838 | AB10: 1.811569054 | AC10: 1.802337016 | AD10: 1.793152026 | AE10: 1.784013844 | AF10: 1.774922232 | AG10: 1.765876952 | AH10: 1.756877769 | AI10: 1.747924446 | AJ10: 1.739016751 | AK10: 1.730154451 | AL10: 1.721337315 | AM10: 1.712565112 | AN10: 1.703837614 | AO10: 1.695154593 | AP10: 1.686515821 | AQ10: 1.677921074 | AR10: 0 | AS10: 0 | AT10: 0 | AU10: 0 | BG10: WA | BH10: Residential | BI10: Per Customer Winter Peak (kW) | BJ10: kW @meter | BK10: 1.988343959 | BL10: 2.011935488 | BM10: 2.005367341 | BN10: 1.998694752 | BO10: 1.992896724 | BP10: 2.29411069 | BQ10: 2.286265719 | BR10: 2.27928245 | BS10: 2.2728068 | BT10: 2.265393634 | BU10: -0.133283338 | BV10: -0.1199905283 | BW10: -0.1201760269 | BX10: -0.1206050806 | BY10: -0.1202867819 | BZ10: -0.1228683512
A11: WAResidentialSaturation Central AC | B11: WA | C11: Residential | D11: Saturation Central AC | E11: % | F11: 0.3283796216 | G11: 0.3472418143 | H11: 0.3671874552 | I11: 0.3882787777 | J11: 0.4105815902 | K11: 0.4341654808 | L11: 0.4591040348 | M11: 0.4854750645 | N11: 0.5133608516 | O11: 0.542848404 | P11: 0.5740297274 | Q11: 0.6070021124 | R11: 0.641868438 | S11: 0.6787374924 | T11: 0.7177243129 | U11: 0.7589505443 | V11: 0.8025448189 | W11: 0.8486431575 | X11: 0.8973893942 | Y11: 0.9489356247 | Z11: 1 | AA11: 1 | AB11: 1 | AC11: 1 | AD11: 1 | AE11: 1 | AF11: 1 | AG11: 1 | AH11: 1 | AI11: 1 | AJ11: 1 | AK11: 1 | AL11: 1 | AM11: 1 | AN11: 1 | AO11: 1 | AP11: 1 | AQ11: 1 | BG11: WA | BH11: Residential | BI11: Saturation Central AC | BJ11: % | BK11: 0.3105420242 | BL11: 0.3283796216 | BM11: 0.3472418143 | BN11: 0.3671874552 | BO11: 0.3882787777 | BP11: 0.3671546025 | BQ11: 0.368917061 | BR11: 0.3706879797 | BS11: 0.3724673995 | BT11: 0.374255361 | BU11: =BK11-BP11 -> -0.05661257835 | BV11: =BL11-BQ11 -> -0.04053743933 | BW11: -0.02344616543 | BX11: -0.005279944291 | BY11: 0.01402341676 | BZ11: -0.02237054213
A12: WAResidentialSaturation Elec Space Heat | B12: WA | C12: Residential | D12: Saturation Elec Space Heat | E12: % | F12: 0.408 | G12: 0.408 | H12: 0.408 | I12: 0.408 | J12: 0.408 | K12: 0.408 | L12: 0.408 | M12: 0.408 | N12: 0.408 | O12: 0.408 | P12: 0.408 | Q12: 0.408 | R12: 0.408 | S12: 0.408 | T12: 0.408 | U12: 0.408 | V12: 0.408 | W12: 0.408 | X12: 0.408 | Y12: 0.408 | Z12: 0.408 | AA12: 0.408 | AB12: 0.408 | AC12: 0.408 | AD12: 0.408 | AE12: 0.408 | AF12: 0.408 | AG12: 0.408 | AH12: 0.408 | AI12: 0.408 | AJ12: 0.408 | AK12: 0.408 | AL12: 0.408 | AM12: 0.408 | AN12: 0.408 | AO12: 0.408 | AP12: 0.408 | AQ12: 0.408 | BG12: WA | BH12: Residential | BI12: Saturation Elec Space Heat | BJ12: % | BK12: 0.408 | BL12: 0.408 | BM12: 0.408 | BN12: 0.408 | BO12: 0.408 | BP12: 0.1834748891 | BQ12: 0.1844113316 | BR12: 0.1853579529 | BS12: 0.186314854 | BT12: 0.187282137 | BU12: =BK12-BP12 -> 0.2245251109 | BV12: =BL12-BQ12 -> 0.2235886684 | BW12: =BM12-BR12 -> 0.2226420471 | BX12: =BN12-BS12 -> 0.221685146 | BY12: =BO12-BT12 -> 0.220717863 | BZ12: 0.2226317671
A13: WAResidentialSaturation Elec Water Heat | B13: WA | C13: Residential | D13: Saturation Elec Water Heat | E13: % | F13: 0.5012086266 | G13: 0.4944145962 | H13: 0.4877126608 | I13: 0.4811015722 | J13: 0.4745800988 | K13: 0.4681470259 | L13: 0.4618011552 | M13: 0.4555413046 | N13: 0.4493663082 | O13: 0.4432750157 | P13: 0.4372662924 | Q13: 0.4313390191 | R13: 0.4254920918 | S13: 0.4197244212 | T13: 0.4140349332 | U13: 0.4084225678 | V13: 0.4028862797 | W13: 0.3974250376 | X13: 0.3920378243 | Y13: 0.3867236362 | Z13: 0.3814814835 | AA13: 0.3763103898 | AB13: 0.3712093917 | AC13: 0.3661775391 | AD13: 0 | AE13: 0 | AF13: 0 | AG13: 0 | AH13: 0 | AI13: 0 | AJ13: 0 | AK13: 0 | AL13: 0 | AM13: 0 | AN13: 0 | AO13: 0 | AP13: 0 | AQ13: 0 | BG13: WA | BH13: Residential | BI13: Saturation Elec Water Heat | BJ13: % | BK13: 0.5080960177 | BL13: 0.5012086266 | BM13: 0.4944145962 | BN13: 0.4877126608 | BO13: 0.4811015722 | BP13: 0.4346281084 | BQ13: 0.4178227445 | BR13: 0.4010206642 | BS13: 0.3842218766 | BT13: 0.3674263907 | BU13: 0.07346790932 | BV13: 0.08338588216 | BW13: 0.09339393199 | BX13: 0.1034907843 | BY13: 0.1136751815 | BZ13: 0.09348273785
A14: =B14&C14&D14 -> WAResidentialSaturation CTA-2045 Water Heat | B14: WA | C14: Residential | D14: Saturation CTA-2045 Water Heat | E14: % | F14: 0.018 | G14: 0.036 | H14: 0.054 | I14: 0.072 | J14: 0.09 | K14: 0.114610342 | L14: 0.1392206839 | M14: 0.1638310259 | N14: 0.1884413679 | O14: 0.2130517099 | P14: 0.2376620518 | Q14: 0.2622723938 | R14: 0.2868827358 | S14: 0.3114930778 | T14: 0.3361034197 | U14: 0.3607137617 | V14: 0.3853241037 | W14: 0.4099344456 | X14: 0.4345447876 | Y14: 0.4591551296 | Z14: 0.4741551296 | AA14: 0.4891551296 | AB14: 0.5041551296 | AC14: 0.5191551296 | AD14: 0.5341551296 | AE14: 0.5491551296 | AF14: 0.5641551296 | AG14: 0.5791551296 | AH14: 0.5941551296 | AI14: 0.6091551296 | AJ14: 0.6241551296 | AK14: 0.6391551296 | AL14: 0.6541551296 | AM14: 0.6691551296 | AN14: 0.6841551296 | AO14: 0.6991551296 | AP14: 0.7141551296 | AQ14: 0.7291551296 | BG14: WA | BH14: Residential | BI14: Saturation CTA-2045 Water Heat | BJ14: % | BK14: 0 | BL14: 0.018 | BM14: 0.036 | BN14: 0.054 | BO14: 0.072 | BP14: 0 | BQ14: 0.018 | BR14: 0.036 | BS14: 0.054 | BT14: 0.072 | BU14: 0 | BV14: 0 | BW14: 0 | BX14: 0 | BY14: 0 | BZ14: 0
A15: WAResidentialSaturation Elec Vehicles | B15: WA | C15: Residential | D15: Saturation Elec Vehicles | E15: % | F15: 0.01333097937 | G15: 0.01561924185 | H15: 0.01830028456 | I15: 0.02144152823 | J15: 0.02512196634 | K15: 0.02943415163 | L15: 0.03448652347 | M15: 0.04040613489 | N15: 0.04734184756 | O15: 0.05546807524 | P15: 0.06498916983 | Q15: 0.0761445602 | R15: 0.08921477323 | S15: 0.1045284882 | T15: 0.1224708022 | U15: 0.1434929142 | V15: 0.1681234716 | W15: 0.1969818639 | X15: 0.2307937989 | Y15: 0.2704095523 | Z15: 0.3168253493 | AA15: 0.3712084175 | AB15: 0.4349263388 | AC15: 0.5095814407 | AD15: 0.5095814407 | AE15: 0.5095814407 | AF15: 0.5095814407 | AG15: 0.5095814407 | AH15: 0.5095814407 | AI15: 0.5095814407 | AJ15: 0.5095814407 | AK15: 0.5095814407 | AL15: 0.5095814407 | AM15: 0.5095814407 | AN15: 0.5095814407 | AO15: 0.5095814407 | AP15: 0.5095814407 | AQ15: 0.5095814407 | AR15: 0.5095814407 | BG15: WA | BH15: Residential | BI15: Saturation Elec Vehicles | BJ15: % | BK15: 0.01137795372 | BL15: 0.01333097937 | BM15: 0.01561924185 | BN15: 0.01830028456 | BO15: 0.02144152823 | BP15: 0.004182781407 | BQ15: 0.005081675857 | BR15: 0.006116668791 | BS15: 0.007296606354 | BT15: 0.008693968405 | BU15: 0.007195172313 | BV15: 0.00824930351 | BW15: 0.009502573056 | BX15: 0.01100367821 | BY15: 0.01274755982 | BZ15: 0.009739657382
A16: WAResidentialSaturation Appliances | B16: WA | C16: Residential | D16: Saturation Appliances | E16: % | F16: 1 | G16: 1 | H16: 1 | I16: 1 | J16: 1 | K16: 1 | L16: 1 | M16: 1 | N16: 1 | O16: 1 | P16: 1 | Q16: 1 | R16: 1 | S16: 1 | T16: 1 | U16: 1 | V16: 1 | W16: 1 | X16: 1 | Y16: 1 | Z16: 1 | AA16: 1 | AB16: 1 | AC16: 1 | AD16: 1 | AE16: 1 | AF16: 1 | AG16: 1 | AH16: 1 | AI16: 1 | AJ16: 1 | AK16: 1 | AL16: 1 | AM16: 1 | AN16: 1 | AO16: 1 | AP16: 1 | AQ16: 1 | BG16: WA | BH16: Residential | BI16: Saturation Appliances | BJ16: % | BK16: 1 | BL16: 1 | BM16: 1 | BN16: 1 | BO16: 1 | BP16: 1 | BQ16: 1 | BR16: 1 | BS16: 1 | BT16: 1 | BU16: 0 | BV16: 0 | BW16: 0 | BX16: 0 | BY16: 0 | BZ16: 0
A17: WAResidentialSaturation AMI | B17: WA | C17: Residential | D17: Saturation AMI | E17: % | F17: 1 | G17: 1 | H17: 1 | I17: 1 | J17: 1 | K17: 1 | L17: 1 | M17: 1 | N17: 1 | O17: 1 | P17: 1 | Q17: 1 | R17: 1 | S17: 1 | T17: 1 | U17: 1 | V17: 1 | W17: 1 | X17: 1 | Y17: 1 | Z17: 1 | AA17: 1 | AB17: 1 | AC17: 1 | AD17: 1 | AE17: 1 | AF17: 1 | AG17: 1 | AH17: 1 | AI17: 1 | AJ17: 1 | AK17: 1 | AL17: 1 | AM17: 1 | AN17: 1 | AO17: 1 | AP17: 1 | AQ17: 1 | BG17: WA | BH17: Residential | BI17: Saturation AMI | BJ17: % | BK17: 1 | BL17: 1 | BM17: 1 | BN17: 1 | BO17: 1 | BP17: 1 | BQ17: 1 | BR17: 1 | BS17: 1 | BT17: 1 | BU17: 0 | BV17: 0 | BW17: 0 | BX17: 0 | BY17: 0 | BZ17: 0
A18: WAGeneral ServiceSummer Peak Load | B18: WA | C18: General Service | D18: Summer Peak Load | E18: MW @meter | F18: 82.55324374 | G18: 83.42117033 | H18: 84.29212509 | I18: 85.11777032 | J18: 85.95154444 | K18: 86.79352753 | L18: 87.64380051 | M18: 88.50244507 | N18: 89.3695437 | O18: 90.24517972 | P18: 91.12943725 | Q18: 92.02240127 | R18: 92.92415756 | S18: 93.83479278 | T18: 94.75439442 | U18: 95.68305085 | V18: 96.62085129 | W18: 97.56788586 | X18: 98.52424555 | Y18: 99.49002227 | Z18: 100.4653088 | AA18: 101.4501989 | AB18: 102.4447872 | AC18: 103.4491692 | AD18: 104.4634415 | AE18: 105.4877016 | AF18: 106.5220478 | AG18: 107.5665796 | AH18: 108.6213973 | AI18: 109.6866023 | AJ18: 110.762297 | AK18: 111.8485848 | AL18: 112.94557 | AM18: 114.0533581 | AN18: 115.1720555 | AO18: 116.3017697 | AP18: 117.4426094 | AQ18: 118.5946841 | AR18: 119.7581045 | AS18: 120.9329826 | AT18: 0 | AU18: 0 | BG18: WA | BH18: General Service | BI18: Summer Peak Load | BJ18: MW @meter | BK18: 81.64247395 | BL18: 82.55324374 | BM18: 83.42117033 | BN18: 84.29212509 | BO18: 85.11777032 | BP18: 76.21041397 | BQ18: 77.05898151 | BR18: 77.8884864 | BS18: 78.7269493 | BT18: 79.57446706 | BU18: 0.07127713533 | BV18: 0.07129944004 | BW18: 0.07103339902 | BX18: 0.07068959038 | BY18: 0.06966183336 | BZ18: 0.07079227963
A19: WAGeneral ServiceWinter Peak Load | B19: WA | C19: General Service | D19: Winter Peak Load | E19: MW @meter | F19: 82.11884244 | G19: 82.98220194 | H19: 83.84857367 | I19: 84.66987429 | J19: 85.49926102 | K19: 86.33681354 | L19: 87.18261232 | M19: 88.03673863 | N19: 88.89927452 | O19: 89.77030288 | P19: 90.64990738 | Q19: 91.53817256 | R19: 92.43518374 | S19: 93.34102713 | T19: 94.25578976 | U19: 95.17955952 | V19: 96.11242519 | W19: 97.05447639 | X19: 98.00580365 | Y19: 98.96649838 | Z19: 99.9366529 | AA19: 100.9163604 | AB19: 101.9057151 | AC19: 102.904812 | AD19: 103.9137471 | AE19: 104.9326175 | AF19: 105.9615209 | AG19: 107.0005562 | AH19: 108.0498234 | AI19: 109.1094233 | AJ19: 110.1794576 | AK19: 111.2600292 | AL19: 112.351242 | AM19: 113.4532008 | AN19: 114.5660116 | AO19: 115.6897812 | AP19: 116.8246176 | AQ19: 117.97063 | AR19: 119.1279285 | AS19: 120.2966242 | AT19: 0 | AU19: 0 | BG19: WA | BH19: General Service | BI19: Winter Peak Load | BJ19: MW @meter | BK19: 81.21286519 | BL19: 82.11884244 | BM19: 82.98220194 | BN19: 83.84857367 | BO19: 84.66987429 | BP19: 82.6397896 | BQ19: 83.55994525 | BR19: 84.45943006 | BS19: 85.3686286 | BT19: 86.28764591 | BU19: -0.0172667962 | BV19: -0.01724633503 | BW19: -0.01749038704 | BX19: -0.01780577898 | BY19: -0.01874858912 | BZ19: -0.01771157728
A20: WAGeneral ServiceCustomer Population | B20: WA | C20: General Service | D20: Customer Population | E20: # | F20: 23328.45969 | G20: 23557.51012 | H20: 23798.08966 | I20: 24029.33966 | J20: 24262.84878 | K20: 24498.6391 | L20: 24736.7329 | M20: 24977.15269 | N20: 25219.92118 | O20: 25465.06133 | P20: 25712.59631 | Q20: 25962.5495 | R20: 26214.94453 | S20: 26469.80527 | T20: 26727.15579 | U20: 26987.02042 | V20: 27249.42371 | W20: 27514.39048 | X20: 27781.94576 | Y20: 28052.11485 | Z20: 28324.92326 | AA20: 28600.3968 | AB20: 28878.5615 | AC20: 29159.44364 | AD20: 29443.06978 | AE20: 29729.46671 | AF20: 30018.66152 | AG20: 30310.68153 | AH20: 30605.55434 | AI20: 30903.30782 | AJ20: 31203.97012 | AK20: 31507.56964 | AL20: 31814.13509 | AM20: 32123.69544 | AN20: 32436.27995 | AO20: 32751.91816 | AP20: 33070.6399 | AQ20: 33392.47529 | AR20: 33717.45477 | AS20: 34045.60903 | AT20: 0 | AU20: 0 | BG20: WA | BH20: General Service | BI20: Customer Population | BJ20: # | BK20: 23118.11833 | BL20: 23328.45969 | BM20: 23557.51012 | BN20: 23798.08966 | BO20: 24029.33966 | BP20: 23462.97439 | BQ20: 23718.39103 | BR20: 23969.72436 | BS20: 24223.73501 | BT20: 24480.4515 | BU20: -0.01469788328 | BV20: -0.01644004146 | BW20: -0.01719728763 | BX20: -0.01757141693 | BY20: -0.01842743162 | BZ20: -0.01686681219
A21: WAGeneral ServicePer Customer Summer Peak (kW) | B21: WA | C21: General Service | D21: Per Customer Summer Peak (kW) | E21: kW @meter | F21: 3.538735297 | G21: 3.541170944 | H21: 3.541970229 | I21: 3.542243421 | J21: 3.542516595 | K21: 3.542789752 | L21: 3.543062897 | M21: 3.543336031 | N21: 3.54360916 | O21: 3.543882284 | P21: 3.544155408 | Q21: 3.544428534 | R21: 3.544701666 | S21: 3.544974805 | T21: 3.545247956 | U21: 3.54552112 | V21: 3.5457943 | W21: 3.5460675 | X21: 3.54634072 | Y21: 3.546613965 | Z21: 3.546887237 | AA21: 3.547160538 | AB21: 3.54743387 | AC21: 3.547707237 | AD21: 3.547980639 | AE21: 3.54825408 | AF21: 3.548527563 | AG21: 3.548801088 | AH21: 3.549074658 | AI21: 3.549348276 | AJ21: 3.549621944 | AK21: 3.549895663 | AL21: 3.550169435 | AM21: 3.550443264 | AN21: 3.55071715 | AO21: 3.550991095 | AP21: 3.551265102 | AQ21: 3.551539172 | AR21: 0 | AS21: 0 | AT21: 0 | AU21: 0 | BG21: WA | BH21: General Service | BI21: Per Customer Summer Peak (kW) | BJ21: kW @meter | BK21: 3.531536295 | BL21: 3.538735297 | BM21: 3.541170944 | BN21: 3.541970229 | BO21: 3.542243421 | BP21: 3.248113931 | BQ21: 3.248912686 | BR21: 3.249452736 | BS21: 3.249992177 | BT21: 3.250531023 | BU21: 0.08725751944 | BV21: 0.08920603237 | BW21: 0.08977456569 | BX21: 0.08983961667 | BY21: 0.08974299794 | BZ21: 0.08916414642
A22: WAGeneral ServicePer Customer Winter Peak (kW) | B22: WA | C22: General Service | D22: Per Customer Winter Peak (kW) | E22: kW @meter | F22: 3.520114209 | G22: 3.522537039 | H22: 3.523332118 | I22: 3.523603873 | J22: 3.523875609 | K22: 3.524147329 | L22: 3.524419036 | M22: 3.524690734 | N22: 3.524962425 | O22: 3.525234112 | P22: 3.525505799 | Q22: 3.525777488 | R22: 3.526049182 | S22: 3.526320885 | T22: 3.526592598 | U22: 3.526864324 | V22: 3.527136067 | W22: 3.527407829 | X22: 3.527679612 | Y22: 3.527951419 | Z22: 3.528223253 | AA22: 3.528495116 | AB22: 3.52876701 | AC22: 3.529038938 | AD22: 3.529310901 | AE22: 3.529582904 | AF22: 3.529854947 | AG22: 3.530127033 | AH22: 3.530399164 | AI22: 3.530671342 | AJ22: 3.530943569 | AK22: 3.531215848 | AL22: 3.53148818 | AM22: 3.531760567 | AN22: 3.532033012 | AO22: 3.532305516 | AP22: 3.532578081 | AQ22: 3.532850709 | AR22: 0 | AS22: 0 | AT22: 0 | AU22: 0 | BG22: WA | BH22: General Service | BI22: Per Customer Winter Peak (kW) | BJ22: kW @meter | BK22: 3.512953089 | BL22: 3.520114209 | BM22: 3.522537039 | BN22: 3.523332118 | BO22: 3.523603873 | BP22: 3.522136121 | BQ22: 3.523002262 | BR22: 3.523587872 | BS22: 3.524172823 | BT22: 3.524757127 | BU22: -0.002607233737 | BV22: -0.0008197706365 | BW22: -0.0002982281242 | BX22: -0.0002385537756 | BY22: -0.0003271867094 | BZ22: -0.0008581945965
A23: WAGeneral ServiceSaturation Central AC | B23: WA | C23: General Service | D23: Saturation Central AC | E23: % | F23: 0.3283796216 | G23: 0.3472418143 | H23: 0.3671874552 | I23: 0.3882787777 | J23: 0.4105815902 | K23: 0.4341654808 | L23: 0.4591040348 | M23: 0.4854750645 | N23: 0.5133608516 | O23: 0.542848404 | P23: 0.5740297274 | Q23: 0.6070021124 | R23: 0.641868438 | S23: 0.6787374924 | T23: 0.7177243129 | U23: 0.7589505443 | V23: 0.8025448189 | W23: 0.8486431575 | X23: 0.8973893942 | Y23: 0.9489356247 | Z23: 1 | AA23: 1 | AB23: 1 | AC23: 1 | AD23: 1 | AE23: 1 | AF23: 1 | AG23: 1 | AH23: 1 | AI23: 1 | AJ23: 1 | AK23: 1 | AL23: 1 | AM23: 1 | AN23: 1 | AO23: 1 | AP23: 1 | AQ23: 1 | BG23: WA | BH23: General Service | BI23: Saturation Central AC | BJ23: % | BK23: 0.3105420242 | BL23: 0.3283796216 | BM23: 0.3472418143 | BN23: 0.3671874552 | BO23: 0.3882787777 | BP23: 0.3671546025 | BQ23: 0.368917061 | BR23: 0.3706879797 | BS23: 0.3724673995 | BT23: 0.374255361 | BU23: =BK23-BP23 -> -0.05661257835 | BV23: =BL23-BQ23 -> -0.04053743933 | BW23: =BM23-BR23 -> -0.02344616543 | BX23: =BN23-BS23 -> -0.005279944291 | BY23: =BO23-BT23 -> 0.01402341676 | BZ23: -0.02237054213
A24: WAGeneral ServiceSaturation Elec Water Heat | B24: WA | C24: General Service | D24: Saturation Elec Water Heat | E24: % | F24: 0.6008966881 | G24: 0.6008966881 | H24: 0.6008966881 | I24: 0.6008966881 | J24: 0.6008966881 | K24: 0.6008966881 | L24: 0.6008966881 | M24: 0.6008966881 | N24: 0.6008966881 | O24: 0.6008966881 | P24: 0.6008966881 | Q24: 0.6008966881 | R24: 0.6008966881 | S24: 0.6008966881 | T24: 0.6008966881 | U24: 0.6008966881 | V24: 0.6008966881 | W24: 0.6008966881 | X24: 0.6008966881 | Y24: 0.6008966881 | Z24: 0.6008966881 | AA24: 0.6008966881 | AB24: 0.6008966881 | AC24: 0.6008966881 | AD24: 0.6008966881 | AE24: 0.6008966881 | AF24: 0.6008966881 | AG24: 0.6008966881 | AH24: 0.6008966881 | AI24: 0.6008966881 | AJ24: 0.6008966881 | AK24: 0.6008966881 | AL24: 0.6008966881 | AM24: 0.6008966881 | AN24: 0.6008966881 | AO24: 0.6008966881 | AP24: 0.6008966881 | AQ24: 0.6008966881 | BG24: WA | BH24: General Service | BI24: Saturation Elec Water Heat | BJ24: % | BK24: 0.6008966881 | BL24: 0.6008966881 | BM24: 0.6008966881 | BN24: 0.6008966881 | BO24: 0.6008966881 | BP24: 0.452 | BQ24: 0.434 | BR24: 0.416 | BS24: 0.398 | BT24: 0.38 | BU24: 0.1488966881 | BV24: 0.1668966881 | BW24: 0.1848966881 | BX24: 0.2028966881 | BY24: 0.2208966881 | BZ24: 0.1848966881
A25: WAGeneral ServiceSaturation CTA-2045 Water Heat | B25: WA | C25: General Service | D25: Saturation CTA-2045 Water Heat | E25: % | F25: 0.018 | G25: 0.036 | H25: 0.054 | I25: 0.072 | J25: 0.09 | K25: 0.1141333333 | L25: 0.1382666667 | M25: 0.1624 | N25: 0.1865333333 | O25: 0.2106666667 | P25: 0.2348 | Q25: 0.2589333333 | R25: 0.2830666667 | S25: 0.3072 | T25: 0.3313333333 | U25: 0.3554666667 | V25: 0.3796 | W25: 0.4037333333 | X25: 0.4278666667 | Y25: 0.452 | Z25: 0.477 | AA25: 0.502 | AB25: 0.527 | AC25: 0.552 | AD25: 0.577 | AE25: 0.602 | AF25: 0.627 | AG25: 0.652 | AH25: 0.677 | AI25: 0.702 | AJ25: 0.727 | AK25: 0.752 | AL25: 0.777 | AM25: 0.802 | AN25: 0.827 | AO25: 0.852 | AP25: 0.877 | AQ25: 0.902 | BG25: WA | BH25: General Service | BI25: Saturation CTA-2045 Water Heat | BJ25: % | BK25: 0 | BL25: 0.018 | BM25: 0.036 | BN25: 0.054 | BO25: 0.072 | BP25: 0 | BQ25: 0.018 | BR25: 0.036 | BS25: 0.054 | BT25: 0.072 | BU25: 0 | BV25: 0 | BW25: 0 | BX25: 0 | BY25: 0 | BZ25: 0
A26: WAGeneral ServiceSaturation Elec Space Heat | B26: WA | C26: General Service | D26: Saturation Elec Space Heat | E26: % | F26: 0.142 | G26: 0.142 | H26: 0.142 | I26: 0.142 | J26: 0.142 | K26: 0.142 | L26: 0.142 | M26: 0.142 | N26: 0.142 | O26: 0.142 | P26: 0.142 | Q26: 0.142 | R26: 0.142 | S26: 0.142 | T26: 0.142 | U26: 0.142 | V26: 0.142 | W26: 0.142 | X26: 0.142 | Y26: 0.142 | Z26: 0.142 | AA26: 0.142 | AB26: 0.142 | AC26: 0.142 | AD26: 0.142 | AE26: 0.142 | AF26: 0.142 | AG26: 0.142 | AH26: 0.142 | AI26: 0.142 | AJ26: 0.142 | AK26: 0.142 | AL26: 0.142 | AM26: 0.142 | AN26: 0.142 | AO26: 0.142 | AP26: 0.142 | AQ26: 0.142 | BG26: WA | BH26: General Service | BI26: Saturation Elec Space Heat | BJ26: % | BK26: 0.142 | BL26: 0.142 | BM26: 0.142 | BN26: 0.142 | BO26: 0.142 | BP26: 0.142 | BQ26: 0.142 | BR26: 0.142 | BS26: 0.142 | BT26: 0.142 | BU26: 0 | BV26: 0 | BW26: 0 | BX26: 0 | BY26: 0 | BZ26: 0
A27: WAGeneral ServiceSaturation AMI | B27: WA | C27: General Service | D27: Saturation AMI | E27: % | F27: 1 | G27: 1 | H27: 1 | I27: 1 | J27: 1 | K27: 1 | L27: 1 | M27: 1 | N27: 1 | O27: 1 | P27: 1 | Q27: 1 | R27: 1 | S27: 1 | T27: 1 | U27: 1 | V27: 1 | W27: 1 | X27: 1 | Y27: 1 | Z27: 1 | AA27: 1 | AB27: 1 | AC27: 1 | AD27: 1 | AE27: 1 | AF27: 1 | AG27: 1 | AH27: 1 | AI27: 1 | AJ27: 1 | AK27: 1 | AL27: 1 | AM27: 1 | AN27: 1 | AO27: 1 | AP27: 1 | AQ27: 1 | BG27: WA | BH27: General Service | BI27: Saturation AMI | BJ27: % | BK27: 0.6666 | BL27: 1 | BM27: 1 | BN27: 1 | BO27: 1 | BP27: 0.6666 | BQ27: 1 | BR27: 1 | BS27: 1 | BT27: 1 | BU27: 0 | BV27: 0 | BW27: 0 | BX27: 0 | BY27: 0 | BZ27: 0
A28: WALarge General ServiceSummer Peak Load | B28: WA | C28: Large General Service | D28: Summer Peak Load | E28: MW @meter | F28: 186.035501 | G28: 185.7619163 | H28: 185.4747488 | I28: 185.1959705 | J28: 184.9260783 | K28: 184.6647891 | L28: 184.4118287 | M28: 184.1669314 | N28: 183.9298405 | O28: 183.700307 | P28: 183.4780901 | Q28: 183.2629566 | R28: 183.0546807 | S28: 182.8530438 | T28: 182.6578344 | U28: 182.4688476 | V28: 182.285885 | W28: 182.1087547 | X28: 181.9372707 | Y28: 181.7712531 | Z28: 181.6105276 | AA28: 181.4549257 | AB28: 181.3042839 | AC28: 181.1584442 | AD28: 181.0172535 | AE28: 180.8805637 | AF28: 180.7482312 | AG28: 180.6201173 | AH28: 180.4960875 | AI28: 180.3760115 | AJ28: 180.2597635 | AK28: 180.1472212 | AL28: 180.0382668 | AM28: 179.9327857 | AN28: 179.8306673 | AO28: 179.7318044 | AP28: 179.6360933 | AQ28: 179.5434334 | AR28: 179.4537276 | AS28: 179.3668817 | AT28: 0 | AU28: 0 | BG28: WA | BH28: Large General Service | BI28: Summer Peak Load | BJ28: MW @meter | BK28: 185.6011746 | BL28: 186.035501 | BM28: 185.7619163 | BN28: 185.4747488 | BO28: 185.1959705 | BP28: 173.2793133 | BQ28: 173.3323199 | BR28: 173.3854332 | BS28: 173.4388129 | BT28: 173.4924603 | BU28: 0.07110982346 | BV28: 0.07328801178 | BW28: 0.07138133129 | BX28: 0.06939586177 | BY28: 0.0674583216 | BZ28: 0.07052666998
A29: WALarge General ServiceWinter Peak Load | B29: WA | C29: Large General Service | D29: Winter Peak Load | E29: MW @meter | F29: 185.0565684 | G29: 184.7844233 | H29: 184.4987669 | I29: 184.2214555 | J29: 183.9529836 | K29: 183.6930693 | L29: 183.4414399 | M29: 183.1978314 | N29: 182.961988 | O29: 182.7336624 | P29: 182.5126148 | Q29: 182.2986133 | R29: 182.0914334 | S29: 181.8908575 | T29: 181.6966753 | U29: 181.508683 | V29: 181.3266831 | W29: 181.1504849 | X29: 180.9799032 | Y29: 180.8147592 | Z29: 180.6548795 | AA29: 180.5000964 | AB29: 180.3502473 | AC29: 180.205175 | AD29: 180.0647273 | AE29: 179.9287567 | AF29: 179.7971206 | AG29: 179.6696809 | AH29: 179.5463037 | AI29: 179.4268596 | AJ29: 179.3112232 | AK29: 179.1992732 | AL29: 179.090892 | AM29: 178.985966 | AN29: 178.884385 | AO29: 178.7860423 | AP29: 178.6908348 | AQ29: 178.5986625 | AR29: 178.5094288 | AS29: 178.4230399 | AT29: 0 | AU29: 0 | BG29: WA | BH29: Large General Service | BI29: Winter Peak Load | BJ29: MW @meter | BK29: 184.6245275 | BL29: 185.0565684 | BM29: 184.7844233 | BN29: 184.4987669 | BO29: 184.2214555 | BP29: 187.8977589 | BQ29: 187.9552374 | BR29: 188.0128315 | BS29: 188.0707145 | BT29: 188.1288878 | BU29: -0.01742027929 | BV29: -0.01542212408 | BW29: -0.01717121231 | BX29: -0.01899257745 | BY29: -0.02076997472 | BZ29: -0.01795523357
A30: WALarge General ServiceCustomer Population | B30: WA | C30: Large General Service | D30: Customer Population | E30: # | F30: 1846.963444 | G30: 1844.679051 | H30: 1842.415517 | I30: 1840.164687 | J30: 1837.991988 | K30: 1835.894707 | L30: 1833.870227 | M30: 1831.916022 | N30: 1830.029651 | O30: 1828.208761 | P30: 1826.451079 | Q30: 1824.75441 | R30: 1823.116637 | S30: 1821.535716 | T30: 1820.009673 | U30: 1818.536604 | V30: 1817.11467 | W30: 1815.742095 | X30: 1814.417168 | Y30: 1813.138233 | Z30: 1811.903695 | AA30: 1810.712012 | AB30: 1809.561697 | AC30: 1808.451315 | AD30: 1807.379478 | AE30: 1806.34485 | AF30: 1805.346138 | AG30: 1804.382097 | AH30: 1803.451522 | AI30: 1802.553252 | AJ30: 1801.686166 | AK30: 1800.849181 | AL30: 1800.041253 | AM30: 1799.261372 | AN30: 1798.508567 | AO30: 1797.781896 | AP30: 1797.080452 | AQ30: 1796.40336 | AR30: 1795.749776 | AS30: 1795.118881 | AT30: 0 | AU30: 0 | BG30: WA | BH30: Large General Service | BI30: Customer Population | BJ30: # | BK30: 1849.053097 | BL30: 1846.963444 | BM30: 1844.679051 | BN30: 1842.415517 | BO30: 1840.164687 | BP30: 1844.087434 | BQ30: 1844.089492 | BR30: 1844.089746 | BS30: 1844.09 | BT30: 1844.090255 | BU30: 0.002692748026 | BV30: 0.001558467004 | BW30: 0.0003195644229 | BX30: -0.0009080266604 | BY30: -0.002128728555 | BZ30: 0.0003068048474
A31: WALarge General ServicePer Customer Summer Peak (kW) | B31: WA | C31: Large General Service | D31: Per Customer Summer Peak (kW) | E31: kW @meter | F31: 100.7250585 | G31: 100.7014831 | H31: 100.6693371 | I31: 100.6409762 | J31: 100.6131036 | K31: 100.585719 | L31: 100.5588214 | M31: 100.5324094 | N31: 100.5064811 | O31: 100.4810342 | P31: 100.456066 | Q31: 100.4315735 | R31: 100.4075532 | S31: 100.3840014 | T31: 100.3609141 | U31: 100.3382869 | V31: 100.3161155 | W31: 100.2943949 | X31: 100.2731202 | Y31: 100.2522862 | Z31: 100.2318877 | AA31: 100.2119191 | AB31: 100.1923748 | AC31: 100.1732492 | AD31: 100.1545363 | AE31: 100.1362302 | AF31: 100.1183249 | AG31: 100.1008144 | AH31: 100.0836925 | AI31: 100.066953 | AJ31: 100.0505898 | AK31: 100.0345965 | AL31: 100.0189671 | AM31: 100.0036951 | AN31: 99.98877438 | AO31: 99.97419868 | AP31: 99.95996177 | AQ31: 99.94605743 | AR31: 0 | AS31: 0 | AT31: 0 | AU31: 0 | BG31: WA | BH31: Large General Service | BI31: Per Customer Summer Peak (kW) | BJ31: kW @meter | BK31: 100.3763358 | BL31: 100.7250585 | BM31: 100.7014831 | BN31: 100.6693371 | BO31: 100.6409762 | BP31: 93.96480344 | BQ31: 93.99344268 | BR31: 94.02223161 | BS31: 94.05116499 | BT31: 94.08024355 | BU31: 0.06823334024 | BV31: 0.0716179306 | BW31: 0.07103906531 | BX31: 0.07036778425 | BY31: 0.0697354981 | BZ31: 0.0701987237
A32: WALarge General ServicePer Customer Winter Peak (kW) | B32: WA | C32: Large General Service | D32: Per Customer Winter Peak (kW) | E32: kW @meter | F32: 100.1950358 | G32: 100.1715844 | H32: 100.1396075 | I32: 100.1113959 | J32: 100.08367 | K32: 100.0564295 | L32: 100.0296734 | M32: 100.0034004 | N32: 99.9776085 | O32: 99.95229551 | P32: 99.92745872 | Q32: 99.90309508 | R32: 99.87920118 | S32: 99.85577332 | T32: 99.83280749 | U32: 99.81029943 | V32: 99.78824461 | W32: 99.7666383 | X32: 99.74547555 | Y32: 99.72475123 | Z32: 99.70446004 | AA32: 99.68459653 | AB32: 99.66515511 | AC32: 99.64613009 | AD32: 99.62751565 | AE32: 99.60930589 | AF32: 99.59149484 | AG32: 99.57407646 | AH32: 99.55704464 | AI32: 99.54039326 | AJ32: 99.52411612 | AK32: 99.50820705 | AL32: 99.49265982 | AM32: 99.47746821 | AN32: 99.46262602 | AO32: 99.44812702 | AP32: 99.43396502 | AQ32: 99.42013385 | AR32: 0 | AS32: 0 | AT32: 0 | AU32: 0 | BG32: WA | BH32: Large General Service | BI32: Per Customer Winter Peak (kW) | BJ32: kW @meter | BK32: 99.84814811 | BL32: 100.1950358 | BM32: 100.1715844 | BN32: 100.1396075 | BO32: 100.1113959 | BP32: 101.8920011 | BQ32: 101.9230565 | BR32: 101.9542741 | BS32: 101.9856484 | BT32: 102.0171802 | BU32: -0.02005901345 | BV32: -0.01695416857 | BW32: -0.01748518909 | BX32: -0.01810098697 | BY32: -0.01868101297 | BZ32: -0.01825607421
A33: WALarge General ServiceSaturation AMI | B33: WA | C33: Large General Service | D33: Saturation AMI | E33: % | F33: 1 | G33: 1 | H33: 1 | I33: 1 | J33: 1 | K33: 1 | L33: 1 | M33: 1 | N33: 1 | O33: 1 | P33: 1 | Q33: 1 | R33: 1 | S33: 1 | T33: 1 | U33: 1 | V33: 1 | W33: 1 | X33: 1 | Y33: 1 | Z33: 1 | AA33: 1 | AB33: 1 | AC33: 1 | AD33: 1 | AE33: 1 | AF33: 1 | AG33: 1 | AH33: 1 | AI33: 1 | AJ33: 1 | AK33: 1 | AL33: 1 | AM33: 1 | AN33: 1 | AO33: 1 | AP33: 1 | AQ33: 1 | BG33: WA | BH33: Large General Service | BI33: Saturation AMI | BJ33: % | BK33: 0.6666 | BL33: 1 | BM33: 1 | BN33: 1 | BO33: 1 | BP33: 0.6666 | BQ33: 1 | BR33: 1 | BS33: 1 | BT33: 1 | BU33: =BK33-BP33 -> 0 | BV33: =BL33-BQ33 -> 0 | BW33: =BM33-BR33 -> 0 | BX33: =BN33-BS33 -> 0 | BY33: =BO33-BT33 -> 0 | BZ33: 0
A34: WAExtra Large General ServiceSummer Peak Load | B34: WA | C34: Extra Large General Service | D34: Summer Peak Load | E34: MW @meter | F34: 74.14858865 | G34: 74.26737021 | H34: 74.31894196 | I34: 74.34373755 | J34: 74.3685543 | K34: 74.39339223 | L34: 74.41825135 | M34: 74.44313168 | N34: 74.46803323 | O34: 74.49295603 | P34: 74.51790008 | Q34: 74.5428654 | R34: 74.567852 | S34: 74.59285991 | T34: 74.61788914 | U34: 74.6429397 | V34: 74.66801161 | W34: 74.69310488 | X34: 74.71821953 | Y34: 74.74335559 | Z34: 74.76851305 | AA34: 74.79369194 | AB34: 74.81889227 | AC34: 74.84411407 | AD34: 74.86935733 | AE34: 74.89462209 | AF34: 74.91990836 | AG34: 74.94521615 | AH34: 74.97054547 | AI34: 74.99589635 | AJ34: 75.0212688 | AK34: 75.04666284 | AL34: 75.07207848 | AM34: 75.09751573 | AN34: 75.12297462 | AO34: 75.14845516 | AP34: 75.17395736 | AQ34: 75.19948124 | AR34: 75.22502683 | AS34: 75.25059412 | AT34: 0 | AU34: 0 | BG34: WA | BH34: Extra Large General Service | BI34: Summer Peak Load | BJ34: MW @meter | BK34: 71.37949825 | BL34: 74.14858865 | BM34: 74.26737021 | BN34: 74.31894196 | BO34: 74.34373755 | BP34: 70.7057143 | BQ34: 70.59830755 | BR34: 70.49085341 | BS34: 70.38374993 | BT34: 70.27699596 | BU34: 0.009529412967 | BV34: 0.05028847319 | BW34: 0.05357456483 | BX34: 0.05591051968 | BY34: 0.05786732248 | BZ34: 0.04543405863
A35: WAExtra Large General ServiceWinter Peak Load | B35: WA | C35: Extra Large General Service | D35: Winter Peak Load | E35: MW @meter | F35: 82.9463125 | G35: 83.07918747 | H35: 83.13687822 | I35: 83.1646158 | J35: 83.19237705 | K35: 83.220162 | L35: 83.24797065 | M35: 83.27580303 | N35: 83.30365915 | O35: 83.33153903 | P35: 83.35944269 | Q35: 83.38737015 | R35: 83.41532141 | S35: 83.44329651 | T35: 83.47129545 | U35: 83.49931825 | V35: 83.52736494 | W35: 83.55543553 | X35: 83.58353004 | Y35: 83.61164848 | Z35: 83.63979087 | AA35: 83.66795724 | AB35: 83.69614759 | AC35: 83.72436195 | AD35: 83.75260033 | AE35: 83.78086275 | AF35: 83.80914923 | AG35: 83.83745978 | AH35: 83.86579443 | AI35: 83.89415319 | AJ35: 83.92253608 | AK35: 83.95094312 | AL35: 83.97937432 | AM35: 84.0078297 | AN35: 84.03630928 | AO35: 84.06481308 | AP35: 84.09334112 | AQ35: 84.12189341 | AR35: 84.15046997 | AS35: 84.17907082 | AT35: 0 | AU35: 0 | BG35: WA | BH35: Extra Large General Service | BI35: Winter Peak Load | BJ35: MW @meter | BK35: 79.84866975 | BL35: 82.9463125 | BM35: 83.07918747 | BN35: 83.13687822 | BO35: 83.1646158 | BP35: 86.21596671 | BQ35: 86.08499884 | BR35: 85.95397319 | BS35: 85.82337511 | BT35: 85.69320322 | BU35: -0.07385287436 | BV35: -0.03646031701 | BW35: -0.03344564078 | BX35: -0.03130262459 | BY35: -0.02950744432 | BZ35: -0.04091378021
A36: WAExtra Large General ServiceCustomer Population | B36: WA | C36: Extra Large General Service | D36: Customer Population | E36: # | F36: 22 | G36: 22 | H36: 22 | I36: 22 | J36: 22 | K36: 22 | L36: 22 | M36: 22 | N36: 22 | O36: 22 | P36: 22 | Q36: 22 | R36: 22 | S36: 22 | T36: 22 | U36: 22 | V36: 22 | W36: 22 | X36: 22 | Y36: 22 | Z36: 22 | AA36: 22 | AB36: 22 | AC36: 22 | AD36: 22 | AE36: 22 | AF36: 22 | AG36: 22 | AH36: 22 | AI36: 22 | AJ36: 22 | AK36: 22 | AL36: 22 | AM36: 22 | AN36: 22 | AO36: 22 | AP36: 22 | AQ36: 22 | AR36: 22 | AS36: 22 | AT36: 0 | AU36: 0 | BG36: WA | BH36: Extra Large General Service | BI36: Customer Population | BJ36: # | BK36: 22 | BL36: 22 | BM36: 22 | BN36: 22 | BO36: 22 | BP36: 19.97436029 | BQ36: 19.97435925 | BR36: 19.97435925 | BS36: 19.97435925 | BT36: 19.97435925 | BU36: 0.1014119944 | BV36: 0.1014120518 | BW36: 0.1014120518 | BX36: 0.1014120518 | BY36: 0.1014120518 | BZ36: 0.1014120403
A37: WAExtra Large General ServicePer Customer Summer Peak (kW) | B37: WA | C37: Extra Large General Service | D37: Per Customer Summer Peak (kW) | E37: kW @meter | F37: 3370.390393 | G37: 3375.789555 | H37: 3378.133726 | I37: 3379.260798 | J37: 3380.388832 | K37: 3381.517829 | L37: 3382.647789 | M37: 3383.778713 | N37: 3384.910601 | O37: 3386.043456 | P37: 3387.177276 | Q37: 3388.312063 | R37: 3389.447818 | S37: 3390.584541 | T37: 3391.722233 | U37: 3392.860895 | V37: 3394.000528 | W37: 3395.141131 | X37: 3396.282706 | Y37: 3397.425254 | Z37: 3398.568775 | AA37: 3399.71327 | AB37: 3400.85874 | AC37: 3402.005185 | AD37: 3403.152606 | AE37: 3404.301004 | AF37: 3405.45038 | AG37: 3406.600734 | AH37: 3407.752067 | AI37: 3408.90438 | AJ37: 3410.057673 | AK37: 3411.211947 | AL37: 3412.367204 | AM37: 3413.523442 | AN37: 3414.680665 | AO37: 3415.838871 | AP37: 3416.998062 | AQ37: 3418.158238 | AR37: 0 | AS37: 0 | AT37: 0 | AU37: 0 | BG37: WA | BH37: Extra Large General Service | BI37: Per Customer Summer Peak (kW) | BJ37: kW @meter | BK37: 3244.522648 | BL37: 3370.390393 | BM37: 3375.789555 | BN37: 3378.133726 | BO37: 3379.260798 | BP37: 3539.823718 | BQ37: 3534.446672 | BR37: 3529.067068 | BS37: 3523.705019 | BT37: 3518.360469 | BU37: -0.08342253575 | BV37: -0.04641639661 | BW37: -0.04343287048 | BX37: -0.04131199769 | BY37: -0.03953536668 | BZ37: -0.05082383344
A38: WAExtra Large General ServicePer Customer Winter Peak (kW) | B38: WA | C38: Extra Large General Service | D38: Per Customer Winter Peak (kW) | E38: kW @meter | F38: 3770.286932 | G38: 3776.326703 | H38: 3778.94901 | I38: 3780.209809 | J38: 3781.471684 | K38: 3782.734636 | L38: 3783.998666 | M38: 3785.263774 | N38: 3786.529962 | O38: 3787.797229 | P38: 3789.065577 | Q38: 3790.335007 | R38: 3791.605519 | S38: 3792.877114 | T38: 3794.149793 | U38: 3795.423557 | V38: 3796.698407 | W38: 3797.974342 | X38: 3799.251365 | Y38: 3800.529476 | Z38: 3801.808676 | AA38: 3803.088965 | AB38: 3804.370345 | AC38: 3805.652816 | AD38: 3806.936378 | AE38: 3808.221034 | AF38: 3809.506783 | AG38: 3810.793626 | AH38: 3812.081565 | AI38: 3813.3706 | AJ38: 3814.660731 | AK38: 3815.95196 | AL38: 3817.244287 | AM38: 3818.537714 | AN38: 3819.83224 | AO38: 3821.127867 | AP38: 3822.424596 | AQ38: 3823.722428 | AR38: 0 | AS38: 0 | AT38: 0 | AU38: 0 | BG38: WA | BH38: Extra Large General Service | BI38: Per Customer Winter Peak (kW) | BJ38: kW @meter | BK38: 3629.484989 | BL38: 3770.286932 | BM38: 3776.326703 | BN38: 3778.94901 | BO38: 3780.209809 | BP38: 4316.331811 | BQ38: 4309.775237 | BR38: 4303.215544 | BS38: 4296.677258 | BT38: 4290.160308 | BU38: -0.159127438 | BV38: -0.1251778284 | BW38: -0.1224407272 | BX38: -0.1204950284 | BY38: -0.1188651385 | BZ38: -0.1292212321
A39: WAExtra Large General ServiceSaturation AMI | B39: WA | C39: Extra Large General Service | D39: Saturation AMI | E39: % | F39: 1 | G39: 1 | H39: 1 | I39: 1 | J39: 1 | K39: 1 | L39: 1 | M39: 1 | N39: 1 | O39: 1 | P39: 1 | Q39: 1 | R39: 1 | S39: 1 | T39: 1 | U39: 1 | V39: 1 | W39: 1 | X39: 1 | Y39: 1 | Z39: 1 | AA39: 1 | AB39: 1 | AC39: 1 | AD39: 1 | AE39: 1 | AF39: 1 | AG39: 1 | AH39: 1 | AI39: 1 | AJ39: 1 | AK39: 1 | AL39: 1 | AM39: 1 | AN39: 1 | AO39: 1 | AP39: 1 | AQ39: 1 | BG39: WA | BH39: Extra Large General Service | BI39: Saturation AMI | BJ39: % | BK39: 1 | BL39: 1 | BM39: 1 | BN39: 1 | BO39: 1 | BP39: 1 | BQ39: 1 | BR39: 1 | BS39: 1 | BT39: 1 | BU39: =BK39-BP39 -> 0 | BV39: =BL39-BQ39 -> 0 | BW39: =BM39-BR39 -> 0 | BX39: =BN39-BS39 -> 0 | BY39: =BO39-BT39 -> 0 | BZ39: 0
A40: =B40&C40&D40 -> IDAllSummer Peak Load | B40: ID | C40: All | D40: Summer Peak Load | E40: MW @meter | F40: 438.2154932 | G40: 440.3931353 | H40: 442.8485357 | I40: 445.3673666 | J40: 447.7932406 | K40: 450.1036939 | L40: 452.4560927 | M40: 454.8501879 | N40: 457.2857482 | O40: 459.7625604 | P40: 462.2804288 | Q40: 464.8391743 | R40: 467.4386346 | S40: 470.0786634 | T40: 472.7591298 | U40: 475.4799186 | V40: 478.2409294 | W40: 481.0420763 | X40: 483.8832876 | Y40: 486.7645057 | Z40: 489.6856862 | AA40: 492.6467983 | AB40: 495.6478241 | AC40: 498.6887581 | AD40: 501.7696075 | AE40: 504.8903915 | AF40: 508.0511412 | AG40: 511.2518991 | AH40: 514.4927194 | AI40: 517.7736671 | AJ40: 521.0948184 | AK40: 524.4562601 | AL40: 527.8580894 | AM40: 531.300414 | AN40: 534.7833514 | AO40: 538.3070293 | AP40: 541.8715851 | AQ40: 545.4771657 | AR40: 0 | AS40: 0 | AT40: 0 | AU40: 0 | BG40: ID | BH40: All | BI40: Summer Peak Load | BJ40: MW @meter | BK40: 410.5598214 | BL40: 418.6462473 | BM40: 420.6629462 | BN40: 422.9329736 | BO40: 425.2633876 | BP40: 438.9544593 | BQ40: 441.6514738 | BR40: 444.4682686 | BS40: 447.2354481 | BT40: 450.0126005 | BU40: -0.06468697907 | BV40: -0.05208909707 | BW40: -0.05355910439 | BX40: -0.05433932994 | BY40: -0.05499671088 | BZ40: -0.05593424427
A41: =B41&C41&D41 -> IDAllWinter Peak Load | B41: ID | C41: All | D41: Winter Peak Load | E41: MW @meter | F41: 430.6246079 | G41: 432.7103546 | H41: 435.0596749 | I41: 437.4711971 | J41: 439.7956615 | K41: 442.0116034 | L41: 444.2691583 | M41: 446.5680615 | N41: 448.9080669 | O41: 451.2889466 | P41: 453.7104901 | Q41: 456.1725042 | R41: 458.6748126 | S41: 461.2172552 | T41: 463.7996876 | U41: 466.4219814 | V41: 469.0840228 | W41: 471.7857132 | X41: 474.5269682 | Y41: 477.3077176 | Z41: 480.1279048 | AA41: 482.9874867 | AB41: 485.8864333 | AC41: 488.8247276 | AD41: 491.8023649 | AE41: 494.8193529 | AF41: 497.8757112 | AG41: 500.9714712 | AH41: 504.1066758 | AI41: 507.2813792 | AJ41: 510.4956466 | AK41: 513.7495539 | AL41: 517.0431878 | AM41: 520.3766453 | AN41: 523.7500335 | AO41: 527.1634698 | AP41: 530.617081 | AQ41: 534.1110041 | AR41: 0 | AS41: 0 | AT41: 0 | AU41: 0 | BG41: ID | BH41: All | BI41: Winter Peak Load | BJ41: MW @meter | BK41: 422.2564469 | BL41: 430.6246079 | BM41: 432.7103546 | BN41: 435.0596749 | BO41: 437.4711971 | BP41: 469.8418644 | BQ41: 472.6724249 | BR41: 475.6284524 | BS41: 478.5337466 | BT41: 481.4502845 | BU41: -0.1012796455 | BV41: -0.08895762638 | BW41: -0.09023450464 | BX41: -0.09084849715 | BY41: -0.09134710029 | BZ41: -0.0925334748
A42: IDAllSummer Peak Load @ Gen | B42: ID | C42: All | D42: Summer Peak Load @ Gen | E42: MW @generator | F42: 465.2095676 | G42: 467.5213525 | H42: 470.1280055 | I42: 472.8019964 | J42: 475.3773042 | K42: 477.8300814 | L42: 480.3273881 | M42: 482.8689594 | N42: 485.4545502 | O42: 488.0839341 | P42: 490.7569032 | Q42: 493.4732675 | R42: 496.2328545 | S42: 499.035509 | T42: 501.8810922 | U42: 504.7694816 | V42: 507.7005707 | W42: 510.6742682 | X42: 513.6904982 | Y42: 516.7491992 | Z42: 519.8503245 | AA42: 522.9938411 | AB42: 526.17973 | AC42: 529.4079856 | AD42: 532.6786154 | AE42: 535.9916397 | AF42: 539.3470915 | AG42: 542.7450161 | AH42: 546.1854709 | AI42: 549.668525 | AJ42: 553.1942592 | AK42: 556.7627657 | AL42: 560.3741477 | AM42: 564.0285195 | AN42: 567.7260059 | AO42: 571.4667424 | AP42: 575.2508748 | AQ42: 579.0785591 | AR42: 0 | AS42: 0 | AT42: 0 | AU42: 0 | BG42: ID | BH42: All | BI42: Summer Peak Load @ Gen | BJ42: MW @generator | BK42: 435.8503064 | BL42: 444.4348562 | BM42: 446.5757837 | BN42: 448.9856447 | BO42: 451.4596123 | BP42: 469.4700099 | BQ42: 472.3545175 | BR42: 475.3671322 | BS42: 478.3266825 | BT42: 481.2968989 | BU42: -0.07161203668 | BV42: -0.05910742939 | BW42: -0.06056655278 | BX42: -0.06134100154 | BY42: -0.06199351523 | BZ42: -0.06292410712
A43: IDAllWinter Peak Load @ Gen | B43: ID | C43: All | D43: Winter Peak Load @ Gen | E43: MW @generator | F43: 457.1510837 | G43: 459.3653125 | H43: 461.8593509 | I43: 464.4194228 | J43: 466.8870742 | K43: 469.2395181 | L43: 471.6361384 | M43: 474.0766541 | N43: 476.5608039 | O43: 479.0883457 | P43: 481.6590563 | Q43: 484.2727305 | R43: 486.9291811 | S43: 489.6282381 | T43: 492.3697484 | U43: 495.1535754 | V43: 497.9795986 | W43: 500.8477131 | X43: 503.7578295 | Y43: 506.709873 | Z43: 509.7037837 | AA43: 512.7395159 | AB43: 515.8170376 | AC43: 518.9363309 | AD43: 522.0973906 | AE43: 525.300225 | AF43: 528.544855 | AG43: 531.8313138 | AH43: 535.159647 | AI43: 538.5299122 | AJ43: 541.9421784 | AK43: 545.3965264 | AL43: 548.8930482 | AM43: 552.4318466 | AN43: 556.0130356 | AO43: 559.6367395 | AP43: 563.3030932 | AQ43: 567.0122419 | AR43: 0 | AS43: 0 | AT43: 0 | AU43: 0 | BG43: ID | BH43: All | BI43: Winter Peak Load @ Gen | BJ43: MW @generator | BK43: 448.267444 | BL43: 457.1510837 | BM43: 459.3653125 | BN43: 461.8593509 | BO43: 464.4194228 | BP43: 502.5046678 | BQ43: 505.5320052 | BR43: 508.693532 | BS43: 511.8007985 | BT43: 514.9200904 | BU43: -0.107933771 | BV43: -0.09570298411 | BW43: -0.09697040837 | BX43: -0.09757985487 | BY43: -0.09807476636 | BZ43: -0.09925235695
A44: IDResidentialSummer Peak Load | B44: ID | C44: Residential | D44: Summer Peak Load | E44: MW @meter | F44: 236.9015453 | G44: 238.8498935 | H44: 241.0939837 | I44: 243.3749218 | J44: 245.5367613 | K44: 247.5574604 | L44: 249.5947892 | M44: 251.6488847 | N44: 253.7198849 | O44: 255.8079287 | P44: 257.9131566 | Q44: 260.03571 | R44: 262.1757314 | S44: 264.3333645 | T44: 266.5087544 | U44: 268.7020471 | V44: 270.91339 | W44: 273.1429316 | X44: 275.3908218 | Y44: 277.6572114 | Z44: 279.9422528 | AA44: 282.2460995 | AB44: 284.5689062 | AC44: 286.9108289 | AD44: 289.272025 | AE44: 291.6526531 | AF44: 294.0528731 | AG44: 296.4728462 | AH44: 298.912735 | AI44: 301.3727035 | AJ44: 303.8529167 | AK44: 306.3535415 | AL44: 308.8747457 | AM44: 311.4166987 | AN44: 313.9795713 | AO44: 316.5635356 | AP44: 319.1687652 | AQ44: 321.7954351 | AR44: 324.4437218 | AS44: 327.1138031 | AT44: 0 | AU44: 0 | BG44: ID | BH44: Residential | BI44: Summer Peak Load | BJ44: MW @meter | BK44: 212.7089776 | BL44: 217.3322994 | BM44: 219.1197044 | BN44: 221.1784216 | BO44: 223.2709429 | BP44: 243.4778851 | BQ44: 245.684019 | BR44: 247.9975385 | BS44: 250.2490663 | BT44: 252.498205 | BU44: -0.1263724938 | BV44: -0.1153991202 | BW44: -0.1164440354 | BX44: -0.1161668459 | BY44: -0.1157523561 | BZ44: -0.1180269703
A45: IDResidentialWinter Peak Load | B45: ID | C45: Residential | D45: Winter Peak Load | E45: MW @meter | F45: 226.0581437 | G45: 227.9173127 | H45: 230.0586869 | I45: 232.2352225 | J45: 234.2981107 | K45: 236.2263188 | L45: 238.1703955 | M45: 240.1304715 | N45: 242.1066783 | O45: 244.0991487 | P45: 246.1080166 | Q45: 248.1334169 | R45: 250.1754858 | S45: 252.2343602 | T45: 254.3101787 | U45: 256.4030805 | V45: 258.5132063 | W45: 260.6406979 | X45: 262.7856982 | Y45: 264.9483512 | Z45: 267.1288022 | AA45: 269.3271977 | AB45: 271.5436855 | AC45: 273.7784143 | AD45: 276.0315342 | AE45: 278.3031968 | AF45: 280.5935545 | AG45: 282.9027612 | AH45: 285.230972 | AI45: 287.5783433 | AJ45: 289.9450329 | AK45: 292.3311996 | AL45: 294.7370039 | AM45: 297.1626072 | AN45: 299.6081726 | AO45: 302.0738643 | AP45: 304.5598479 | AQ45: 307.0662905 | AR45: 309.5933604 | AS45: 312.1412275 | AT45: 0 | AU45: 0 | BG45: ID | BH45: Residential | BI45: Winter Peak Load | BJ45: MW @meter | BK45: 221.2491965 | BL45: 226.0581437 | BM45: 227.9173127 | BN45: 230.0586869 | BO45: 232.2352225 | BP45: 253.253469 | BQ45: 255.5481787 | BR45: 257.9545855 | BS45: 260.2965116 | BT45: 262.6359528 | BU45: -0.1263724938 | BV45: -0.1153991202 | BW45: -0.1164440354 | BX45: -0.1161668459 | BY45: -0.1157523561 | BZ45: -0.1180269703
A46: IDResidentialCustomer Population | B46: ID | C46: Residential | D46: Customer Population | E46: # | F46: 120796.6866 | G46: 122376.5093 | H46: 123964.5898 | I46: 125479.1231 | J46: 127012.16 | K46: 128563.9268 | L46: 130134.6523 | M46: 131724.568 | N46: 133333.9085 | O46: 134962.9111 | P46: 136611.8159 | Q46: 138280.8662 | R46: 139970.308 | S46: 141680.3906 | T46: 143411.366 | U46: 145163.4895 | V46: 146937.0196 | W46: 148732.2177 | X46: 150549.3485 | Y46: 152388.6802 | Z46: 154250.4837 | AA46: 156135.0338 | AB46: 158042.6084 | AC46: 159973.4886 | AD46: 161927.9594 | AE46: 163906.3088 | AF46: 165908.8286 | AG46: 167935.8141 | AH46: 169987.5643 | AI46: 172064.3817 | AJ46: 174166.5725 | AK46: 176294.4467 | AL46: 178448.3182 | AM46: 180628.5045 | AN46: 182835.3272 | AO46: 185069.1117 | AP46: 187330.1873 | AQ46: 189618.8876 | AR46: 191935.55 | AS46: 194280.5161 | AT46: 0 | AU46: 0 | BG46: ID | BH46: Residential | BI46: Customer Population | BJ46: # | BK46: 119412.3539 | BL46: 120796.6866 | BM46: 122376.5093 | BN46: 123964.5898 | BO46: 125479.1231 | BP46: 117743.3855 | BQ46: 119119.6669 | BR46: 120496.7802 | BS46: 121856.7265 | BT46: 123232.0214 | BU46: 0.01417462555 | BV46: 0.01407844514 | BW46: 0.01559982796 | BX46: 0.01729788251 | BY46: 0.01823472241 | BZ46: 0.01587710071
A47: IDResidentialPer Customer Summer Peak (kW) | B47: ID | C47: Residential | D47: Per Customer Summer Peak (kW) | E47: kW @meter | F47: 1.961159299 | G47: 1.951762597 | H47: 1.944861706 | I47: 1.939565052 | J47: 1.933175227 | K47: 1.925559264 | L47: 1.917973306 | M47: 1.910417233 | N47: 1.902890928 | O47: 1.895394273 | P47: 1.887927153 | Q47: 1.88048945 | R47: 1.873081049 | S47: 1.865701834 | T47: 1.85835169 | U47: 1.851030503 | V47: 1.843738159 | W47: 1.836474544 | X47: 1.829239544 | Y47: 1.822033048 | Z47: 1.814854943 | AA47: 1.807705116 | AB47: 1.800583457 | AC47: 1.793489855 | AD47: 1.786424198 | AE47: 1.779386378 | AF47: 1.772376284 | AG47: 1.765393807 | AH47: 1.758438838 | AI47: 1.751511269 | AJ47: 1.744610992 | AK47: 1.737737899 | AL47: 1.730891884 | AM47: 1.72407284 | AN47: 1.717280659 | AO47: 1.710515238 | AP47: 1.703776469 | AQ47: 1.697064249 | AR47: 0 | AS47: 0 | AT47: 0 | AU47: 0 | BG47: ID | BH47: Residential | BI47: Per Customer Summer Peak (kW) | BJ47: kW @meter | BK47: 1.781297919 | BL47: 1.799157787 | BM47: 1.790537299 | BN47: 1.784206456 | BO47: 1.779347332 | BP47: 2.0678689 | BQ47: 2.062497532 | BR47: 2.058125853 | BS47: 2.053633586 | BT47: 2.048965863 | BU47: -0.1385827606 | BV47: -0.127680029 | BW47: -0.1300156417 | BX47: -0.1311953271 | BY47: -0.1315876149 | BZ47: -0.1318122747
A48: IDResidentialPer Customer Winter Peak (kW) | B48: ID | C48: Residential | D48: Per Customer Winter Peak (kW) | E48: kW @meter | F48: 1.87139358 | G48: 1.862426981 | H48: 1.855841956 | I48: 1.850787739 | J48: 1.844690388 | K48: 1.837423021 | L48: 1.830184285 | M48: 1.822974067 | N48: 1.815792254 | O48: 1.808638735 | P48: 1.801513398 | Q48: 1.794416132 | R48: 1.787346826 | S48: 1.780305371 | T48: 1.773291656 | U48: 1.766305573 | V48: 1.759347012 | W48: 1.752415865 | X48: 1.745512025 | Y48: 1.738635382 | Z48: 1.731785831 | AA48: 1.724963265 | AB48: 1.718167577 | AC48: 1.711398661 | AD48: 1.704656412 | AE48: 1.697940725 | AF48: 1.691251495 | AG48: 1.684588619 | AH48: 1.677951991 | AI48: 1.671341509 | AJ48: 1.66475707 | AK48: 1.658198571 | AL48: 1.65166591 | AM48: 1.645158985 | AN48: 1.638677695 | AO48: 1.632221939 | AP48: 1.625791616 | AQ48: 1.619386625 | AR48: 0 | AS48: 0 | AT48: 0 | AU48: 0 | BG48: ID | BH48: Residential | BI48: Per Customer Winter Peak (kW) | BJ48: kW @meter | BK48: 1.852816642 | BL48: 1.87139358 | BM48: 1.862426981 | BN48: 1.855841956 | BO48: 1.850787739 | BP48: 2.150893385 | BQ48: 2.145306358 | BR48: 2.140759156 | BS48: 2.136086526 | BT48: 2.131231395 | BU48: -0.1385827606 | BV48: -0.127680029 | BW48: -0.1300156417 | BX48: -0.1311953271 | BY48: -0.1315876149 | BZ48: -0.1318122747
A49: IDResidentialSaturation Central AC | B49: ID | C49: Residential | D49: Saturation Central AC | E49: % | F49: 0.3283796216 | G49: 0.3472418143 | H49: 0.3671874552 | I49: 0.3882787777 | J49: 0.4105815902 | K49: 0.4341654808 | L49: 0.4591040348 | M49: 0.4854750645 | N49: 0.5133608516 | O49: 0.542848404 | P49: 0.5740297274 | Q49: 0.6070021124 | R49: 0.641868438 | S49: 0.6787374924 | T49: 0.7177243129 | U49: 0.7589505443 | V49: 0.8025448189 | W49: 0.8486431575 | X49: 0.8973893942 | Y49: 0.9489356247 | Z49: 1 | AA49: 1 | AB49: 1 | AC49: 1 | AD49: 1 | AE49: 1 | AF49: 1 | AG49: 1 | AH49: 1 | AI49: 1 | AJ49: 1 | AK49: 1 | AL49: 1 | AM49: 1 | AN49: 1 | AO49: 1 | AP49: 1 | AQ49: 1 | AR49: 0 | BG49: ID | BH49: Residential | BI49: Saturation Central AC | BJ49: % | BK49: 0.3105420242 | BL49: 0.3283796216 | BM49: 0.3472418143 | BN49: 0.3671874552 | BO49: 0.3882787777 | BP49: 0.3671546025 | BQ49: 0.368917061 | BR49: 0.3706879797 | BS49: 0.3724673995 | BT49: 0.374255361 | BU49: =BK49-BP49 -> -0.05661257835 | BV49: =BL49-BQ49 -> -0.04053743933 | BW49: =BM49-BR49 -> -0.02344616543 | BX49: =BN49-BS49 -> -0.005279944291 | BY49: =BO49-BT49 -> 0.01402341676 | BZ49: -0.02237054213
A50: IDResidentialSaturation Elec Space Heat | B50: ID | C50: Residential | D50: Saturation Elec Space Heat | E50: % | F50: 0.408 | G50: 0.408 | H50: 0.408 | I50: 0.408 | J50: 0.408 | K50: 0.408 | L50: 0.408 | M50: 0.408 | N50: 0.408 | O50: 0.408 | P50: 0.408 | Q50: 0.408 | R50: 0.408 | S50: 0.408 | T50: 0.408 | U50: 0.408 | V50: 0.408 | W50: 0.408 | X50: 0.408 | Y50: 0.408 | Z50: 0.408 | AA50: 0.408 | AB50: 0.408 | AC50: 0.408 | AD50: 0.408 | AE50: 0.408 | AF50: 0.408 | AG50: 0.408 | AH50: 0.408 | AI50: 0.408 | AJ50: 0.408 | AK50: 0.408 | AL50: 0.408 | AM50: 0.408 | AN50: 0.408 | AO50: 0.408 | AP50: 0.408 | AQ50: 0.408 | AR50: 0 | BG50: ID | BH50: Residential | BI50: Saturation Elec Space Heat | BJ50: % | BK50: 0.408 | BL50: 0.408 | BM50: 0.408 | BN50: 0.408 | BO50: 0.408 | BP50: 0.1834748891 | BQ50: 0.1844113316 | BR50: 0.1853579529 | BS50: 0.186314854 | BT50: 0.187282137 | BU50: =BK50-BP50 -> 0.2245251109 | BV50: 0.2235886684 | BW50: 0.2226420471 | BX50: 0.221685146 | BY50: 0.220717863 | BZ50: 0.2226317671
A51: IDResidentialSaturation Elec Water Heat | B51: ID | C51: Residential | D51: Saturation Elec Water Heat | E51: % | F51: 0.5012086266 | G51: 0.4944145962 | H51: 0.4877126608 | I51: 0.4811015722 | J51: 0.4745800988 | K51: 0.4681470259 | L51: 0.4618011552 | M51: 0.4555413046 | N51: 0.4493663082 | O51: 0.4432750157 | P51: 0.4372662924 | Q51: 0.4313390191 | R51: 0.4254920918 | S51: 0.4197244212 | T51: 0.4140349332 | U51: 0.4084225678 | V51: 0.4028862797 | W51: 0.3974250376 | X51: 0.3920378243 | Y51: 0.3867236362 | Z51: 0.3814814835 | AA51: 0.3763103898 | AB51: 0.3712093917 | AC51: 0.3661775391 | AD51: 0 | AE51: 0 | AF51: 0 | AG51: 0 | AH51: 0 | AI51: 0 | AJ51: 0 | AK51: 0 | AL51: 0 | AM51: 0 | AN51: 0 | AO51: 0 | AP51: 0 | AQ51: 0 | AR51: 0 | BG51: ID | BH51: Residential | BI51: Saturation Elec Water Heat | BJ51: % | BK51: 0.5080960177 | BL51: 0.5012086266 | BM51: 0.4944145962 | BN51: 0.4877126608 | BO51: 0.4811015722 | BP51: 0.4346281084 | BQ51: 0.4178227445 | BR51: 0.4010206642 | BS51: 0.3842218766 | BT51: 0.3674263907 | BU51: 0.07346790932 | BV51: 0.08338588216 | BW51: 0.09339393199 | BX51: 0.1034907843 | BY51: 0.1136751815 | BZ51: 0.09348273785
A52: =B52&C52&D52 -> IDResidentialSaturation CTA-2045 Water Heat | B52: ID | C52: Residential | D52: Saturation CTA-2045 Water Heat | E52: % | F52: 0.018 | G52: 0.036 | H52: 0.054 | I52: 0.072 | J52: 0.09 | K52: 0.114610342 | L52: 0.1392206839 | M52: 0.1638310259 | N52: 0.1884413679 | O52: 0.2130517099 | P52: 0.2376620518 | Q52: 0.2622723938 | R52: 0.2868827358 | S52: 0.3114930778 | T52: 0.3361034197 | U52: 0.3607137617 | V52: 0.3853241037 | W52: 0.4099344456 | X52: 0.4345447876 | Y52: 0.4591551296 | Z52: 0.4741551296 | AA52: 0.4891551296 | AB52: 0.5041551296 | AC52: 0.5191551296 | AD52: 0.5341551296 | AE52: 0.5491551296 | AF52: 0.5641551296 | AG52: 0.5791551296 | AH52: 0.5941551296 | AI52: 0.6091551296 | AJ52: 0.6241551296 | AK52: 0.6391551296 | AL52: 0.6541551296 | AM52: 0.6691551296 | AN52: 0.6841551296 | AO52: 0.6991551296 | AP52: 0.7141551296 | AQ52: 0.7291551296 | AR52: 0 | BG52: ID | BH52: Residential | BI52: Saturation CTA-2045 Water Heat | BJ52: % | BK52: 0 | BL52: 0.018 | BM52: 0.036 | BN52: 0.054 | BO52: 0.072 | BP52: 0 | BQ52: 0.018 | BR52: 0.036 | BS52: 0.054 | BT52: 0.072 | BU52: 0 | BV52: 0 | BW52: 0 | BX52: 0 | BY52: 0 | BZ52: 0
A53: IDResidentialSaturation Elec Vehicles | B53: ID | C53: Residential | D53: Saturation Elec Vehicles | E53: % | F53: 0.01333097937 | G53: 0.01561924185 | H53: 0.01830028456 | I53: 0.02144152823 | J53: 0.02512196634 | K53: 0.02943415163 | L53: 0.03448652347 | M53: 0.04040613489 | N53: 0.04734184756 | O53: 0.05546807524 | P53: 0.06498916983 | Q53: 0.0761445602 | R53: 0.08921477323 | S53: 0.1045284882 | T53: 0.1224708022 | U53: 0.1434929142 | V53: 0.1681234716 | W53: 0.1969818639 | X53: 0.2307937989 | Y53: 0.2704095523 | Z53: 0.3168253493 | AA53: 0.3712084175 | AB53: 0.4349263388 | AC53: 0.5095814407 | AD53: 0.5095814407 | AE53: 0.5095814407 | AF53: 0.5095814407 | AG53: 0.5095814407 | AH53: 0.5095814407 | AI53: 0.5095814407 | AJ53: 0.5095814407 | AK53: 0.5095814407 | AL53: 0.5095814407 | AM53: 0.5095814407 | AN53: 0.5095814407 | AO53: 0.5095814407 | AP53: 0.5095814407 | AQ53: 0.5095814407 | AR53: 0.5095814407 | BG53: ID | BH53: Residential | BI53: Saturation Elec Vehicles | BJ53: % | BK53: 0.01137795372 | BL53: 0.01333097937 | BM53: 0.01561924185 | BN53: 0.01830028456 | BO53: 0.02144152823 | BP53: 0.004087237354 | BQ53: 0.004965599051 | BR53: 0.005976950439 | BS53: 0.007129935598 | BT53: 0.008495378784 | BU53: 0.007290716365 | BV53: 0.008365380316 | BW53: 0.009642291408 | BX53: 0.01117034896 | BY53: 0.01294614945 | BZ53: 0.009882977299
A54: IDResidentialSaturation Appliances | B54: ID | C54: Residential | D54: Saturation Appliances | E54: % | F54: 1 | G54: 1 | H54: 1 | I54: 1 | J54: 1 | K54: 1 | L54: 1 | M54: 1 | N54: 1 | O54: 1 | P54: 1 | Q54: 1 | R54: 1 | S54: 1 | T54: 1 | U54: 1 | V54: 1 | W54: 1 | X54: 1 | Y54: 1 | Z54: 1 | AA54: 1 | AB54: 1 | AC54: 1 | AD54: 1 | AE54: 1 | AF54: 1 | AG54: 1 | AH54: 1 | AI54: 1 | AJ54: 1 | AK54: 1 | AL54: 1 | AM54: 1 | AN54: 1 | AO54: 1 | AP54: 1 | AQ54: 1 | BG54: ID | BH54: Residential | BI54: Saturation Appliances | BJ54: % | BK54: 1 | BL54: 1 | BM54: 1 | BN54: 1 | BO54: 1 | BP54: 1 | BQ54: 1 | BR54: 1 | BS54: 1 | BT54: 1 | BU54: 0 | BV54: 0 | BW54: 0 | BX54: 0 | BY54: 0 | BZ54: 0
A55: IDResidentialSaturation AMI | B55: ID | C55: Residential | D55: Saturation AMI | E55: % | F55: 0.33 | G55: 0.66 | H55: 1 | I55: 1 | J55: 1 | K55: 1 | L55: 1 | M55: 1 | N55: 1 | O55: 1 | P55: 1 | Q55: 1 | R55: 1 | S55: 1 | T55: 1 | U55: 1 | V55: 1 | W55: 1 | X55: 1 | Y55: 1 | Z55: 1 | AA55: 1 | AB55: 1 | AC55: 1 | AD55: 1 | AE55: 1 | AF55: 1 | AG55: 1 | AH55: 1 | AI55: 1 | AJ55: 1 | AK55: 1 | AL55: 1 | AM55: 1 | AN55: 1 | AO55: 1 | AP55: 1 | AQ55: 1 | BG55: ID | BH55: Residential | BI55: Saturation AMI | BJ55: % | BK55: 1 | BL55: 1 | BM55: 1 | BN55: 1 | BO55: 1 | BP55: 1 | BQ55: 1 | BR55: 1 | BS55: 1 | BT55: 1 | BU55: 0 | BV55: 0 | BW55: 0 | BX55: 0 | BY55: 0 | BZ55: 0
A56: IDGeneral ServiceSummer Peak Load | B56: ID | C56: General Service | D56: Summer Peak Load | E56: MW @meter | F56: 64.06273136 | G56: 64.83329208 | H56: 65.60113514 | I56: 66.37815292 | J56: 67.1644552 | K56: 67.96015304 | L56: 68.76535888 | M56: 69.58018645 | N56: 70.40475089 | O56: 71.23916868 | P56: 72.08355772 | Q56: 72.93803731 | R56: 73.80272818 | S56: 74.6777525 | T56: 75.5632339 | U56: 76.45929751 | V56: 77.36606992 | W56: 78.28367928 | X56: 79.21225524 | Y56: 80.15192901 | Z56: 81.10283337 | AA56: 82.0651027 | AB56: 83.03887297 | AC56: 84.0242818 | AD56: 85.02146843 | AE56: 86.03057378 | AF56: 87.05174046 | AG56: 88.08511278 | AH56: 89.13083678 | AI56: 90.18906025 | AJ56: 91.25993275 | AK56: 92.34360561 | AL56: 93.44023199 | AM56: 94.54996689 | AN56: 95.67296714 | AO56: 96.80939147 | AP56: 97.9594005 | AQ56: 99.12315676 | AR56: 100.3008248 | AS56: 101.4925709 | AT56: 0 | AU56: 0 | BG56: ID | BH56: General Service | BI56: Summer Peak Load | BJ56: MW @meter | BK56: 63.44101534 | BL56: 64.06273136 | BM56: 64.83329208 | BN56: 65.60113514 | BO56: 66.37815292 | BP56: 57.9960597 | BQ56: 58.65529946 | BR56: 59.32207495 | BS56: 59.99647247 | BT56: 60.67857934 | BU56: 0.09388492372 | BV56: 0.09218999727 | BW56: 0.09290331025 | BX56: 0.09341653666 | BY56: 0.09393057064 | BZ56: 0.09326506771
A57: IDGeneral ServiceWinter Peak Load | B57: ID | C57: General Service | D57: Winter Peak Load | E57: MW @meter | F57: 64.74796479 | G57: 65.52676765 | H57: 66.30282379 | I57: 67.08815277 | J57: 67.88286556 | K57: 68.68707442 | L57: 69.50089297 | M57: 70.32443618 | N57: 71.15782039 | O57: 72.00116336 | P57: 72.85458423 | Q57: 73.71820358 | R57: 74.59214343 | S57: 75.47652726 | T57: 76.37148002 | U57: 77.27712818 | V57: 78.1935997 | W57: 79.12102407 | X57: 80.05953234 | Y57: 81.00925713 | Z57: 81.97033264 | AA57: 82.94289468 | AB57: 83.92708068 | AC57: 84.92302973 | AD57: 85.93088255 | AE57: 86.95078158 | AF57: 87.98287096 | AG57: 89.02729653 | AH57: 90.0842059 | AI57: 91.15374843 | AJ57: 92.23607528 | AK57: 93.33133942 | AL57: 94.43969564 | AM57: 95.56130058 | AN57: 96.69631277 | AO57: 97.84489262 | AP57: 99.00720247 | AQ57: 100.1834066 | AR57: 101.3736713 | AS57: 102.5781647 | AT57: 0 | AU57: 0 | BG57: ID | BH57: General Service | BI57: Winter Peak Load | BJ57: MW @meter | BK57: 64.11959872 | BL57: 64.74796479 | BM57: 65.52676765 | BN57: 66.30282379 | BO57: 67.08815277 | BP57: 63.8934226 | BQ57: 64.61969754 | BR57: 65.35427448 | BS57: 66.09724851 | BT57: 66.84871581 | BU57: 0.003539896684 | BV57: 0.001984955872 | BW57: 0.002639355632 | BX57: 0.003110194167 | BY57: 0.003581773575 | BZ57: 0.002971235186
A58: IDGeneral ServiceCustomer Population | B58: ID | C58: General Service | D58: Customer Population | E58: # | F58: 16897.11287 | G58: 17097.86037 | H58: 17300.10783 | I58: 17504.79321 | J58: 17711.94553 | K58: 17921.59415 | L58: 18133.7688 | M58: 18348.49955 | N58: 18565.81686 | O58: 18785.75151 | P58: 19008.33469 | Q58: 19233.59795 | R58: 19461.57321 | S58: 19692.29279 | T58: 19925.78938 | U58: 20162.09607 | V58: 20401.24635 | W58: 20643.27412 | X58: 20888.21366 | Y58: 21136.09968 | Z58: 21386.96731 | AA58: 21640.85208 | AB58: 21897.78998 | AC58: 22157.81741 | AD58: 22420.97119 | AE58: 22687.28862 | AF58: 22956.80742 | AG58: 23229.56576 | AH58: 23505.60229 | AI58: 23784.95611 | AJ58: 24067.66678 | AK58: 24353.77435 | AL58: 24643.31935 | AM58: 24936.34277 | AN58: 25232.88613 | AO58: 25532.99142 | AP58: 25836.70114 | AQ58: 26144.05831 | AR58: 26455.10644 | AS58: 26769.88959 | AT58: 0 | AU58: 0 | BG58: ID | BH58: General Service | BI58: Customer Population | BJ58: # | BK58: 16714.92823 | BL58: 16897.11287 | BM58: 17097.86037 | BN58: 17300.10783 | BO58: 17504.79321 | BP58: 16755.45877 | BQ58: 16953.60949 | BR58: 17154.11865 | BS58: 17357.01433 | BT58: 17562.32496 | BU58: -0.002418945504 | BV58: -0.003332424089 | BW58: -0.003279578572 | BX58: -0.003278587755 | BY58: -0.003275861529 | BZ58: -0.00311707949
A59: IDGeneral ServicePer Customer Summer Peak (kW) | B59: ID | C59: General Service | D59: Per Customer Summer Peak (kW) | E59: kW @meter | F59: 3.79134186 | G59: 3.791895049 | H59: 3.791949494 | I59: 3.791998689 | J59: 3.792042782 | K59: 3.792081914 | L59: 3.792116225 | M59: 3.792145851 | N59: 3.792170925 | O59: 3.792191579 | P59: 3.792207939 | Q59: 3.79222013 | R59: 3.792228274 | S59: 3.792232489 | T59: 3.792232894 | U59: 3.7922296 | V59: 3.79222272 | W59: 3.792212361 | X59: 3.792198631 | Y59: 3.792181634 | Z59: 3.79216147 | AA59: 3.792138238 | AB59: 3.792112036 | AC59: 3.792082959 | AD59: 3.792051098 | AE59: 3.792016544 | AF59: 3.791979385 | AG59: 3.791939707 | AH59: 3.791897595 | AI59: 3.79185313 | AJ59: 3.791806392 | AK59: 3.791757461 | AL59: 3.791706413 | AM59: 3.791653321 | AN59: 3.79159826 | AO59: 3.7915413 | AP59: 3.79148251 | AQ59: 3.791421959 | AR59: 0 | AS59: 0 | AT59: 0 | AU59: 0 | BG59: ID | BH59: General Service | BI59: Per Customer Summer Peak (kW) | BJ59: kW @meter | BK59: 3.795470399 | BL59: 3.79134186 | BM59: 3.791895049 | BN59: 3.791949494 | BO59: 3.791998689 | BP59: 3.46132329 | BQ59: 3.459752892 | BR59: 3.458182619 | BS59: 3.456612487 | BT59: 3.455042512 | BU59: 0.09653738791 | BV59: 0.09584180691 | BW59: 0.09649936608 | BX59: 0.09701319067 | BY59: 0.09752591355 | BZ59: 0.09668353302
A60: IDGeneral ServicePer Customer Winter Peak (kW) | B60: ID | C60: General Service | D60: Per Customer Winter Peak (kW) | E60: kW @meter | F60: 3.831895145 | G60: 3.832454251 | H60: 3.832509278 | I60: 3.832559 | J60: 3.832603564 | K60: 3.832643115 | L60: 3.832677792 | M60: 3.832707735 | N60: 3.832733078 | O60: 3.832753953 | P60: 3.832770488 | Q60: 3.832782809 | R60: 3.83279104 | S60: 3.832795301 | T60: 3.832795709 | U60: 3.83279238 | V60: 3.832785426 | W60: 3.832774957 | X60: 3.832761081 | Y60: 3.832743901 | Z60: 3.832723521 | AA60: 3.832700042 | AB60: 3.832673559 | AC60: 3.832644171 | AD60: 3.832611969 | AE60: 3.832577045 | AF60: 3.832539489 | AG60: 3.832499387 | AH60: 3.832456824 | AI60: 3.832411883 | AJ60: 3.832364646 | AK60: 3.832315192 | AL60: 3.832263597 | AM60: 3.832209938 | AN60: 3.832154287 | AO60: 3.832096718 | AP60: 3.8320373 | AQ60: 3.831976101 | AR60: 0 | AS60: 0 | AT60: 0 | AU60: 0 | BG60: ID | BH60: General Service | BI60: Per Customer Winter Peak (kW) | BJ60: kW @meter | BK60: 3.836067845 | BL60: 3.831895145 | BM60: 3.832454251 | BN60: 3.832509278 | BO60: 3.832559 | BP60: 3.813289953 | BQ60: 3.811559867 | BR60: 3.809829921 | BS60: 3.808100129 | BT60: 3.80637051 | BU60: 0.005973291254 | BV60: 0.005335158973 | BW60: 0.005938409685 | BX60: 0.006409797004 | BY60: 0.006880173601 | BZ60: 0.006107366103
A61: IDGeneral ServiceSaturation Central AC | B61: ID | C61: General Service | D61: Saturation Central AC | E61: % | F61: 0.3283796216 | G61: 0.3472418143 | H61: 0.3671874552 | I61: 0.3882787777 | J61: 0.4105815902 | K61: 0.4341654808 | L61: 0.4591040348 | M61: 0.4854750645 | N61: 0.5133608516 | O61: 0.542848404 | P61: 0.5740297274 | Q61: 0.6070021124 | R61: 0.641868438 | S61: 0.6787374924 | T61: 0.7177243129 | U61: 0.7589505443 | V61: 0.8025448189 | W61: 0.8486431575 | X61: 0.8973893942 | Y61: 0.9489356247 | Z61: 1 | AA61: 1 | AB61: 1 | AC61: 1 | AD61: 1 | AE61: 1 | AF61: 1 | AG61: 1 | AH61: 1 | AI61: 1 | AJ61: 1 | AK61: 1 | AL61: 1 | AM61: 1 | AN61: 1 | AO61: 1 | AP61: 1 | AQ61: 1 | BG61: ID | BH61: General Service | BI61: Saturation Central AC | BJ61: % | BK61: 0.3105420242 | BL61: 0.3283796216 | BM61: 0.3472418143 | BN61: 0.3671874552 | BO61: 0.3882787777 | BP61: 0.3671546025 | BQ61: 0.368917061 | BR61: 0.3706879797 | BS61: 0.3724673995 | BT61: 0.374255361 | BU61: =BK61-BP61 -> -0.05661257835 | BV61: =BL61-BQ61 -> -0.04053743933 | BW61: =BM61-BR61 -> -0.02344616543 | BX61: =BN61-BS61 -> -0.005279944291 | BY61: =BO61-BT61 -> 0.01402341676 | BZ61: -0.02237054213
A62: IDGeneral ServiceSaturation Elec Water Heat | B62: ID | C62: General Service | D62: Saturation Elec Water Heat | E62: % | F62: 0.6008966881 | G62: 0.6008966881 | H62: 0.6008966881 | I62: 0.6008966881 | J62: 0.6008966881 | K62: 0.6008966881 | L62: 0.6008966881 | M62: 0.6008966881 | N62: 0.6008966881 | O62: 0.6008966881 | P62: 0.6008966881 | Q62: 0.6008966881 | R62: 0.6008966881 | S62: 0.6008966881 | T62: 0.6008966881 | U62: 0.6008966881 | V62: 0.6008966881 | W62: 0.6008966881 | X62: 0.6008966881 | Y62: 0.6008966881 | Z62: 0.6008966881 | AA62: 0.6008966881 | AB62: 0.6008966881 | AC62: 0.6008966881 | AD62: 0.6008966881 | AE62: 0.6008966881 | AF62: 0.6008966881 | AG62: 0.6008966881 | AH62: 0.6008966881 | AI62: 0.6008966881 | AJ62: 0.6008966881 | AK62: 0.6008966881 | AL62: 0.6008966881 | AM62: 0.6008966881 | AN62: 0.6008966881 | AO62: 0.6008966881 | AP62: 0.6008966881 | AQ62: 0.6008966881 | BG62: ID | BH62: General Service | BI62: Saturation Elec Water Heat | BJ62: % | BK62: 0.6008966881 | BL62: 0.6008966881 | BM62: 0.6008966881 | BN62: 0.6008966881 | BO62: 0.6008966881 | BP62: 0.452 | BQ62: 0.434 | BR62: 0.416 | BS62: 0.398 | BT62: 0.38 | BU62: 0.1488966881 | BV62: 0.1668966881 | BW62: 0.1848966881 | BX62: 0.2028966881 | BY62: 0.2208966881 | BZ62: 0.1848966881
A63: =B63&C63&D63 -> IDGeneral ServiceSaturation CTA-2045 Water Heat | B63: ID | C63: General Service | D63: Saturation CTA-2045 Water Heat | E63: % | F63: 0.018 | G63: 0.036 | H63: 0.054 | I63: 0.072 | J63: 0.09 | K63: 0.1141333333 | L63: 0.1382666667 | M63: 0.1624 | N63: 0.1865333333 | O63: 0.2106666667 | P63: 0.2348 | Q63: 0.2589333333 | R63: 0.2830666667 | S63: 0.3072 | T63: 0.3313333333 | U63: 0.3554666667 | V63: 0.3796 | W63: 0.4037333333 | X63: 0.4278666667 | Y63: 0.452 | Z63: 0.477 | AA63: 0.502 | AB63: 0.527 | AC63: 0.552 | AD63: 0.577 | AE63: 0.602 | AF63: 0.627 | AG63: 0.652 | AH63: 0.677 | AI63: 0.702 | AJ63: 0.727 | AK63: 0.752 | AL63: 0.777 | AM63: 0.802 | AN63: 0.827 | AO63: 0.852 | AP63: 0.877 | AQ63: 0.902 | BG63: ID | BH63: General Service | BI63: Saturation CTA-2045 Water Heat | BJ63: % | BK63: 0 | BL63: 0.018 | BM63: 0.036 | BN63: 0.054 | BO63: 0.072 | BP63: 0 | BQ63: 0.018 | BR63: 0.036 | BS63: 0.054 | BT63: 0.072 | BU63: 0 | BV63: 0 | BW63: 0 | BX63: 0 | BY63: 0 | BZ63: 0
A64: IDGeneral ServiceSaturation Elec Space Heat | B64: ID | C64: General Service | D64: Saturation Elec Space Heat | E64: % | F64: 0.142 | G64: 0.142 | H64: 0.142 | I64: 0.142 | J64: 0.142 | K64: 0.142 | L64: 0.142 | M64: 0.142 | N64: 0.142 | O64: 0.142 | P64: 0.142 | Q64: 0.142 | R64: 0.142 | S64: 0.142 | T64: 0.142 | U64: 0.142 | V64: 0.142 | W64: 0.142 | X64: 0.142 | Y64: 0.142 | Z64: 0.142 | AA64: 0.142 | AB64: 0.142 | AC64: 0.142 | AD64: 0.142 | AE64: 0.142 | AF64: 0.142 | AG64: 0.142 | AH64: 0.142 | AI64: 0.142 | AJ64: 0.142 | AK64: 0.142 | AL64: 0.142 | AM64: 0.142 | AN64: 0.142 | AO64: 0.142 | AP64: 0.142 | AQ64: 0.142 | BG64: ID | BH64: General Service | BI64: Saturation Elec Space Heat | BJ64: % | BK64: 0.142 | BL64: 0.142 | BM64: 0.142 | BN64: 0.142 | BO64: 0.142 | BP64: 0.142 | BQ64: 0.142 | BR64: 0.142 | BS64: 0.142 | BT64: 0.142 | BU64: 0 | BV64: 0 | BW64: 0 | BX64: 0 | BY64: 0 | BZ64: 0
A65: IDGeneral ServiceSaturation AMI | B65: ID | C65: General Service | D65: Saturation AMI | E65: % | F65: 0.33 | G65: 0.66 | H65: 1 | I65: 1 | J65: 1 | K65: 1 | L65: 1 | M65: 1 | N65: 1 | O65: 1 | P65: 1 | Q65: 1 | R65: 1 | S65: 1 | T65: 1 | U65: 1 | V65: 1 | W65: 1 | X65: 1 | Y65: 1 | Z65: 1 | AA65: 1 | AB65: 1 | AC65: 1 | AD65: 1 | AE65: 1 | AF65: 1 | AG65: 1 | AH65: 1 | AI65: 1 | AJ65: 1 | AK65: 1 | AL65: 1 | AM65: 1 | AN65: 1 | AO65: 1 | AP65: 1 | AQ65: 1 | BG65: ID | BH65: General Service | BI65: Saturation AMI | BJ65: % | BK65: 0 | BL65: 0.3333 | BM65: 0.6666 | BN65: 1 | BO65: 1 | BP65: 0 | BQ65: 0.3333 | BR65: 0.6666 | BS65: 1 | BT65: 1 | BU65: 0 | BV65: 0 | BW65: 0 | BX65: 0 | BY65: 0 | BZ65: 0
A66: IDLarge General ServiceSummer Peak Load | B66: ID | C66: Large General Service | D66: Summer Peak Load | E66: MW @meter | F66: 89.56540081 | G66: 89.24836075 | H66: 88.93582388 | I66: 88.63316403 | J66: 88.3400664 | K66: 88.0562262 | L66: 87.78134839 | M66: 87.51514731 | N66: 87.25734641 | O66: 87.00767796 | P66: 86.76588275 | Q66: 86.53170985 | R66: 86.30491632 | S66: 86.08526695 | T66: 85.87253405 | U66: 85.66649717 | V66: 85.46694289 | W66: 85.2736646 | X66: 85.08646227 | Y66: 84.90514224 | Z66: 84.72951703 | AA66: 84.55940513 | AB66: 84.39463083 | AC66: 84.23502399 | AD66: 84.08041993 | AE66: 83.93065919 | AF66: 83.7855874 | AG66: 83.64505512 | AH66: 83.50891767 | AI66: 83.37703496 | AJ66: 83.2492714 | AK66: 83.12549569 | AL66: 83.00558075 | AM66: 82.88940351 | AN66: 82.77684484 | AO66: 82.66778942 | AP66: 82.5621256 | AQ66: 82.45974526 | AR66: 82.36054377 | AS66: 82.26441981 | AT66: 0 | AU66: 0 | BG66: ID | BH66: Large General Service | BI66: Summer Peak Load | BJ66: MW @meter | BK66: 89.28647761 | BL66: 89.56540081 | BM66: 89.24836075 | BN66: 88.93582388 | BO66: 88.63316403 | BP66: 88.48937657 | BQ66: 88.51724584 | BR66: 88.54541125 | BS66: 88.57387422 | BT66: 88.60263619 | BU66: 0.009007872737 | BV66: 0.01184125152 | BW66: 0.007938858555 | BX66: 0.004086415586 | BY66: 0.0003445478257 | BZ66: 0.006643789244
A67: IDLarge General ServiceWinter Peak Load | B67: ID | C67: Large General Service | D67: Winter Peak Load | E67: MW @meter | F67: 90.52341815 | G67: 90.20298693 | H67: 89.88710708 | I67: 89.5812099 | J67: 89.2849772 | K67: 88.99810097 | L67: 88.72028299 | M67: 88.45123454 | N67: 88.19067613 | O67: 87.93833715 | P67: 87.69395563 | Q67: 87.45727795 | R67: 87.22805857 | S67: 87.00605977 | T67: 86.79105141 | U67: 86.5828107 | V67: 86.38112194 | W67: 86.18577629 | X67: 85.99657159 | Y67: 85.8133121 | Z67: 85.63580836 | AA67: 85.46387689 | AB67: 85.29734012 | AC67: 85.13602608 | AD67: 84.97976833 | AE67: 84.8284057 | AF67: 84.68178219 | AG67: 84.53974673 | AH67: 84.40215311 | AI67: 84.26885975 | AJ67: 84.13972959 | AK67: 84.01462995 | AL67: 83.89343236 | AM67: 83.77601245 | AN67: 83.66224982 | AO67: 83.55202792 | AP67: 83.44523388 | AQ67: 83.34175846 | AR67: 83.24149588 | AS67: 83.14434375 | AT67: 0 | AU67: 0 | BG67: ID | BH67: Large General Service | BI67: Winter Peak Load | BJ67: MW @meter | BK67: 90.2415115 | BL67: 90.52341815 | BM67: 90.20298693 | BN67: 89.88710708 | BO67: 89.5812099 | BP67: 97.48747005 | BQ67: 97.51817323 | BR67: 97.54920266 | BS67: 97.5805599 | BT67: 97.61224654 | BU67: =(BK67-BP67)/BP67 -> -0.07432707554 | BV67: =(BL67-BQ67)/BQ67 -> -0.07172770829 | BW67: =(BM67-BR67)/BR67 -> -0.0753077988 | BX67: =(BN67-BS67)/BS67 -> -0.07884206473 | BY67: =(BO67-BT67)/BT67 -> -0.08227488797 | BZ67: =AVERAGE(BU67:BY67) -> -0.07649590707
A68: IDLarge General ServiceCustomer Population | B68: ID | C68: Large General Service | D68: Customer Population | E68: # | F68: 1012.145373 | G68: 1010.414081 | H68: 1008.629856 | I68: 1006.902643 | J68: 1005.230625 | K68: 1003.612041 | L68: 1002.045188 | M68: 1000.528416 | N68: 999.0601277 | O68: 997.6387776 | P68: 996.2628688 | Q68: 994.9309524 | R68: 993.6416254 | S68: 992.39353 | T68: 991.1853513 | U68: 990.0158164 | V68: 988.8836933 | W68: 987.7877888 | X68: 986.7269481 | Y68: 985.7000531 | Z68: 984.7060214 | AA68: 983.7438051 | AB68: 982.8123896 | AC68: 981.9107929 | AD68: 981.038064 | AE68: 980.1932825 | AF68: 979.3755572 | AG68: 978.5840253 | AH68: 977.8178517 | AI68: 977.0762277 | AJ68: 976.3583706 | AK68: 975.6635223 | AL68: 974.9909494 | AM68: 974.3399414 | AN68: 973.7098107 | AO68: 973.0998916 | AP68: 972.5095397 | AQ68: 971.9381309 | AR68: 971.3850613 | AS68: 970.8497461 | AT68: 0 | AU68: 0 | BG68: ID | BH68: Large General Service | BI68: Customer Population | BJ68: # | BK68: 1012.866146 | BL68: 1012.145373 | BM68: 1010.414081 | BN68: 1008.629856 | BO68: 1006.902643 | BP68: 1114.551315 | BQ68: 1114.551268 | BR68: 1114.551221 | BS68: 1114.551175 | BT68: 1114.551128 | BU68: -0.09123417473 | BV68: -0.09188082991 | BW68: -0.09343414542 | BX68: -0.09503495348 | BY68: -0.09658460892 | BZ68: -0.09363374249
A69: IDLarge General ServicePer Customer Summer Peak (kW) | B69: ID | C69: Large General Service | D69: Per Customer Summer Peak (kW) | E69: kW @meter | F69: 88.4906489 | G69: 88.32850063 | H69: 88.17488733 | I69: 88.02555504 | J69: 87.880397 | K69: 87.7393082 | L69: 87.60218545 | M69: 87.46892734 | N69: 87.33943432 | O69: 87.21360868 | P69: 87.09135457 | Q69: 86.97257799 | R69: 86.85718684 | S69: 86.74509088 | T69: 86.63620173 | U69: 86.53043289 | V69: 86.42769971 | W69: 86.32791939 | X69: 86.23101095 | Y69: 86.13689526 | Z69: 86.04549498 | AA69: 85.95673456 | AB69: 85.87054021 | AC69: 85.78683991 | AD69: 85.70556334 | AE69: 85.62664189 | AF69: 85.55000866 | AG69: 85.47559837 | AH69: 85.40334738 | AI69: 85.33319366 | AJ69: 85.26507675 | AK69: 85.19893774 | AL69: 85.13471925 | AM69: 85.07236539 | AN69: 85.01182173 | AO69: 84.95303528 | AP69: 84.89595446 | AQ69: 84.84052908 | AR69: 0 | AS69: 0 | AT69: 0 | AU69: 0 | BG69: ID | BH69: Large General Service | BI69: Per Customer Summer Peak (kW) | BJ69: kW @meter | BK69: 88.15229733 | BL69: 88.4906489 | BM69: 88.32850063 | BN69: 88.17488733 | BO69: 88.02555504 | BP69: 79.39461861 | BQ69: 79.41962687 | BR69: 79.44490082 | BS69: 79.47044176 | BT69: 79.49625097 | BU69: 0.1103056967 | BV69: 0.1142163769 | BW69: 0.1118208936 | BX69: 0.109530605 | BY69: 0.1072919033 | BZ69: 0.1106330951
A70: IDLarge General ServicePer Customer Winter Peak (kW) | B70: ID | C70: Large General Service | D70: Per Customer Winter Peak (kW) | E70: kW @meter | F70: 89.43717038 | G70: 89.27328772 | H70: 89.11803133 | I70: 88.96710174 | J70: 88.82039104 | K70: 88.67779312 | L70: 88.53920366 | M70: 88.40452019 | N70: 88.27364208 | O70: 88.14647057 | P70: 88.02290879 | Q70: 87.90286175 | R70: 87.78623634 | S70: 87.67294137 | T70: 87.56288751 | U70: 87.45598734 | V70: 87.35215529 | W70: 87.25130769 | X70: 87.15336269 | Y70: 87.05824032 | Z70: 86.96586239 | AA70: 86.87615256 | AB70: 86.78903626 | AC70: 86.70444067 | AD70: 86.62229474 | AE70: 86.54252913 | AF70: 86.4650762 | AG70: 86.38987 | AH70: 86.31684619 | AI70: 86.24594209 | AJ70: 86.17709658 | AK70: 86.11025013 | AL70: 86.04534474 | AM70: 85.98232392 | AN70: 85.92113267 | AO70: 85.86171742 | AP70: 85.80402605 | AQ70: 85.74800783 | AR70: 0 | AS70: 0 | AT70: 0 | AU70: 0 | BG70: ID | BH70: Large General Service | BI70: Per Customer Winter Peak (kW) | BJ70: kW @meter | BK70: 89.0951997 | BL70: 89.43717038 | BM70: 89.27328772 | BN70: 89.11803133 | BO70: 88.96710174 | BP70: 87.46790637 | BQ70: 87.4954576 | BR70: 87.52330156 | BS70: 87.55143964 | BT70: 87.57987327 | BU70: 0.01860446191 | BV70: 0.02219215527 | BW70: 0.01999451726 | BX70: 0.01789338584 | BY70: 0.01583958065 | BZ70: 0.01890482019
A71: IDLarge General ServiceSaturation AMI | B71: ID | C71: Large General Service | D71: Saturation AMI | E71: % | F71: 0.33 | G71: 0.66 | H71: 1 | I71: 1 | J71: 1 | K71: 1 | L71: 1 | M71: 1 | N71: 1 | O71: 1 | P71: 1 | Q71: 1 | R71: 1 | S71: 1 | T71: 1 | U71: 1 | V71: 1 | W71: 1 | X71: 1 | Y71: 1 | Z71: 1 | AA71: 1 | AB71: 1 | AC71: 1 | AD71: 1 | AE71: 1 | AF71: 1 | AG71: 1 | AH71: 1 | AI71: 1 | AJ71: 1 | AK71: 1 | AL71: 1 | AM71: 1 | AN71: 1 | AO71: 1 | AP71: 1 | AQ71: 1 | BG71: ID | BH71: Large General Service | BI71: Saturation AMI | BJ71: % | BK71: 0 | BL71: 0.3333 | BM71: 0.6666 | BN71: 1 | BO71: 1 | BP71: 0 | BQ71: 0.3333 | BR71: 0.6666 | BS71: 1 | BT71: 1 | BU71: =BK71-BP71 -> 0 | BV71: =BL71-BQ71 -> 0 | BW71: =BM71-BR71 -> 0 | BX71: =BN71-BS71 -> 0 | BY71: =BO71-BT71 -> 0 | BZ71: 0
A72: IDExtra Large General ServiceSummer Peak Load | B72: ID | C72: Extra Large General Service | D72: Summer Peak Load | E72: MW @meter | F72: 47.68581577 | G72: 47.46158898 | H72: 47.21759296 | I72: 46.98112778 | J72: 46.75195768 | K72: 46.52985425 | L72: 46.31459625 | M72: 46.10596937 | N72: 45.903766 | O72: 45.70778504 | P72: 45.51783167 | Q72: 45.33371719 | R72: 45.1552588 | S72: 44.98227941 | T72: 44.8146075 | U72: 44.65207689 | V72: 44.49452664 | W72: 44.34180081 | X72: 44.19374837 | Y72: 44.050223 | Z72: 43.91108298 | AA72: 43.77619102 | AB72: 43.64541412 | AC72: 43.51862345 | AD72: 43.39569421 | AE72: 43.27650552 | AF72: 43.16094026 | AG72: 43.04888502 | AH72: 42.94022989 | AI72: 42.83486843 | AJ72: 42.73269753 | AK72: 42.6336173 | AL72: 42.53753099 | AM72: 42.44434487 | AN72: 42.35396815 | AO72: 42.26631287 | AP72: 42.18129384 | AQ72: 42.09882853 | AR72: 42.018837 | AS72: 41.94124179 | AT72: 0 | AU72: 0 | BG72: ID | BH72: Extra Large General Service | BI72: Summer Peak Load | BJ72: MW @meter | BK72: 45.12335085 | BL72: 47.68581577 | BM72: 47.46158898 | BN72: 47.21759296 | BO72: 46.98112778 | BP72: 48.99113794 | BQ72: 48.79490949 | BR72: 48.60324385 | BS72: 48.41603515 | BT72: 48.23317995 | BU72: -0.07894870889 | BV72: -0.02272970131 | BW72: -0.02348927317 | BX72: -0.02475300145 | BY72: -0.02595831676 | BZ72: -0.03517580032
A73: IDExtra Large General ServiceWinter Peak Load | B73: ID | C73: Extra Large General Service | D73: Winter Peak Load | E73: MW @meter | F73: 49.29508121 | G73: 49.06328738 | H73: 48.81105716 | I73: 48.56661194 | J73: 48.32970797 | K73: 48.10010916 | L73: 47.87758679 | M73: 47.66191933 | N73: 47.45289215 | O73: 47.25029737 | P73: 47.0539336 | Q73: 46.86360576 | R73: 46.67912488 | S73: 46.50030792 | T73: 46.32697754 | U73: 46.15896197 | V73: 45.99609482 | W73: 45.83821492 | X73: 45.68516611 | Y73: 45.53679716 | Z73: 45.39296155 | AA73: 45.25351735 | AB73: 45.11832709 | AC73: 44.98725758 | AD73: 44.86017982 | AE73: 44.73696883 | AF73: 44.61750357 | AG73: 44.50166676 | AH73: 44.38934482 | AI73: 44.2804277 | AJ73: 44.17480881 | AK73: 44.0723849 | AL73: 43.97305594 | AM73: 43.87672505 | AN73: 43.78329836 | AO73: 43.69268496 | AP73: 43.60479677 | AQ73: 43.51954848 | AR73: 43.43685745 | AS73: 43.35664362 | AT73: 0 | AU73: 0 | BG73: ID | BH73: Extra Large General Service | BI73: Winter Peak Load | BJ73: MW @meter | BK73: 46.64614013 | BL73: 49.29508121 | BM73: 49.06328738 | BN73: 48.81105716 | BO73: 48.56661194 | BP73: 55.20750275 | BQ73: 54.98637535 | BR73: 54.77038974 | BS73: 54.55942658 | BT73: 54.35336934 | BU73: -0.155076071 | BV73: -0.1035037154 | BW73: -0.1042005066 | BX73: -0.1053597843 | BY73: -0.1064654771 | BZ73: -0.1149211109
A74: IDExtra Large General ServiceCustomer Population | B74: ID | C74: Extra Large General Service | D74: Customer Population | E74: # | F74: 11 | G74: 11 | H74: 11 | I74: 11 | J74: 11 | K74: 11 | L74: 11 | M74: 11 | N74: 11 | O74: 11 | P74: 11 | Q74: 11 | R74: 11 | S74: 11 | T74: 11 | U74: 11 | V74: 11 | W74: 11 | X74: 11 | Y74: 11 | Z74: 11 | AA74: 11 | AB74: 11 | AC74: 11 | AD74: 11 | AE74: 11 | AF74: 11 | AG74: 11 | AH74: 11 | AI74: 11 | AJ74: 11 | AK74: 11 | AL74: 11 | AM74: 11 | AN74: 11 | AO74: 11 | AP74: 11 | AQ74: 11 | AR74: 11 | AS74: 11 | AT74: 0 | AU74: 0 | BG74: ID | BH74: Extra Large General Service | BI74: Customer Population | BJ74: # | BK74: 11.08333333 | BL74: 11 | BM74: 11 | BN74: 11 | BO74: 11 | BP74: 11 | BQ74: 11 | BR74: 11 | BS74: 11 | BT74: 11 | BU74: 0.007575757576 | BV74: 0 | BW74: 0 | BX74: 0 | BY74: 0 | BZ74: 0.001515151515
A75: IDExtra Large General ServicePer Customer Summer Peak (kW) | B75: ID | C75: Extra Large General Service | D75: Per Customer Summer Peak (kW) | E75: kW @meter | F75: 4335.074161 | G75: 4314.689908 | H75: 4292.508451 | I75: 4271.011617 | J75: 4250.177971 | K75: 4229.98675 | L75: 4210.417841 | M75: 4191.451761 | N75: 4173.069636 | O75: 4155.253185 | P75: 4137.984697 | Q75: 4121.247018 | R75: 4105.023527 | S75: 4089.298128 | T75: 4074.055227 | U75: 4059.279718 | V75: 4044.956967 | W75: 4031.072801 | X75: 4017.613488 | Y75: 4004.565728 | Z75: 3991.916635 | AA75: 3979.653729 | AB75: 3967.76492 | AC75: 3956.238495 | AD75: 3945.06311 | AE75: 3934.227774 | AF75: 3923.721842 | AG75: 3913.535001 | AH75: 3903.657262 | AI75: 3894.078948 | AJ75: 3884.790684 | AK75: 3875.783391 | AL75: 3867.048272 | AM75: 3858.576807 | AN75: 3850.360741 | AO75: 3842.392079 | AP75: 3834.663077 | AQ75: 3827.16623 | AR75: 0 | AS75: 0 | AT75: 0 | AU75: 0 | BG75: ID | BH75: Extra Large General Service | BI75: Per Customer Summer Peak (kW) | BJ75: kW @meter | BK75: 4071.279776 | BL75: 4335.074161 | BM75: 4314.689908 | BN75: 4292.508451 | BO75: 4271.011617 | BP75: 4453.739812 | BQ75: 4435.900863 | BR75: 4418.476714 | BS75: 4401.457741 | BT75: 4384.834541 | BU75: -0.08587390656 | BV75: -0.02272970131 | BW75: -0.02348927317 | BX75: -0.02475300145 | BY75: -0.02595831676 | BZ75: -0.03656083985
A76: IDExtra Large General ServicePer Customer Winter Peak (kW) | B76: ID | C76: Extra Large General Service | D76: Per Customer Winter Peak (kW) | E76: kW @meter | F76: 4481.371019 | G76: 4460.298853 | H76: 4437.368833 | I76: 4415.14654 | J76: 4393.609815 | K76: 4372.737196 | L76: 4352.50789 | M76: 4332.901757 | N76: 4313.899286 | O76: 4295.481579 | P76: 4277.630327 | Q76: 4260.327796 | R76: 4243.556808 | S76: 4227.30072 | T76: 4211.543412 | U76: 4196.26927 | V76: 4181.463166 | W76: 4167.110447 | X76: 4153.196919 | Y76: 4139.708833 | Z76: 4126.632868 | AA76: 4113.956123 | AB76: 4101.666099 | AC76: 4089.750689 | AD76: 4078.198165 | AE76: 4066.997166 | AF76: 4056.136688 | AG76: 4045.60607 | AH76: 4035.394984 | AI76: 4025.493427 | AJ76: 4015.89171 | AK76: 4006.580446 | AL76: 3997.55054 | AM76: 3988.793186 | AN76: 3980.299851 | AO76: 3972.062269 | AP76: 3964.072434 | AQ76: 3956.322589 | AR76: 0 | AS76: 0 | AT76: 0 | AU76: 0 | BG76: ID | BH76: Extra Large General Service | BI76: Per Customer Winter Peak (kW) | BJ76: kW @meter | BK76: 4208.674297 | BL76: 4481.371019 | BM76: 4460.298853 | BN76: 4437.368833 | BO76: 4415.14654 | BP76: 5018.863886 | BQ76: 4998.761396 | BR76: 4979.12634 | BS76: 4959.947871 | BT76: 4941.215394 | BU76: -0.1614288825 | BV76: -0.1035037154 | BW76: -0.1042005066 | BX76: -0.1053597843 | BY76: -0.1064654771 | BZ76: -0.1161916732
A77: IDExtra Large General ServiceSaturation AMI | B77: ID | C77: Extra Large General Service | D77: Saturation AMI | E77: % | F77: 1 | G77: 1 | H77: 1 | I77: 1 | J77: 1 | K77: 1 | L77: 1 | M77: 1 | N77: 1 | O77: 1 | P77: 1 | Q77: 1 | R77: 1 | S77: 1 | T77: 1 | U77: 1 | V77: 1 | W77: 1 | X77: 1 | Y77: 1 | Z77: 1 | AA77: 1 | AB77: 1 | AC77: 1 | AD77: 1 | AE77: 1 | AF77: 1 | AG77: 1 | AH77: 1 | AI77: 1 | AJ77: 1 | AK77: 1 | AL77: 1 | AM77: 1 | AN77: 1 | AO77: 1 | AP77: 1 | AQ77: 1 | BG77: ID | BH77: Extra Large General Service | BI77: Saturation AMI | BJ77: % | BK77: 1 | BL77: 1 | BM77: 1 | BN77: 1 | BO77: 1 | BP77: 1 | BQ77: 1 | BR77: 1 | BS77: 1 | BT77: 1 | BU77: =BK77-BP77 -> 0 | BV77: =BL77-BQ77 -> 0 | BW77: =BM77-BR77 -> 0 | BX77: =BN77-BS77 -> 0 | BY77: =BO77-BT77 -> 0 | BZ77: 0

Sheet EnergyCosts
A1: Key | B1: State | C1: Customer Class | D1: Data Element | E1: Unit | F1: =YearBase -> 2022 | G1: =F1+1 -> 2023 | H1: 2024 | I1: 2025 | J1: 2026 | K1: 2027 | L1: 2028 | M1: 2029 | N1: 2030 | O1: 2031 | P1: 2032 | Q1: 2033 | R1: 2034 | S1: 2035 | T1: 2036 | U1: 2037 | V1: 2038 | W1: 2039 | X1: 2040 | Y1: 2041 | Z1: 2042 | AA1: 2043 | AB1: 2044 | AC1: 2045 | AD1: 2046 | AE1: 2047 | AF1: 2048 | AG1: 2049 | AH1: 2050 | AI1: 2051 | AJ1: 2052 | AK1: 2053 | AL1: 2054 | AM1: 2055 | AN1: 2056 | AO1: 2057 | AP1: 2058 | AQ1: 2059 | AR1: 2060 | AS1: 2061 | AT1: 2062 | AU1: 2063 | AV1: 2064 | AW1: 2065 | AX1: 2066
A2: =B2&C2&D2 -> WAAllAvoided Capacity Costs | B2: WA | C2: All | D2: Avoided Capacity Costs | E2: $/kW @gen | F2: 0 | G2: 0 | H2: 0 | I2: 0 | J2: 0 | K2: 0 | L2: 0 | M2: 0 | N2: 0 | O2: 0 | P2: 0 | Q2: 0 | R2: 0 | S2: 0 | T2: 0 | U2: 0 | V2: 0 | W2: 0 | X2: 0 | Y2: 0 | Z2: 0 | AA2: 0 | AB2: 0 | AC2: 0 | AD2: 0 | AE2: 0 | AF2: 0 | AG2: 0 | AH2: 0 | AI2: 0 | AJ2: 0 | AK2: 0 | AL2: 0 | AM2: 0 | AN2: 0 | AO2: 0 | AP2: 0 | AQ2: 0 | AR2: 0 | AS2: 0 | AT2: 0 | AU2: 0 | AV2: 0 | AW2: 0 | AX2: 0
A3: WAAllAvoided Summer Energy Costs | B3: WA | C3: All | D3: Avoided Summer Energy Costs | E3: $/MWh @gen | F3: 0 | G3: 0 | H3: 0 | I3: 0 | J3: 0 | K3: 0 | L3: 0 | M3: 0 | N3: 0 | O3: 0 | P3: 0 | Q3: 0 | R3: 0 | S3: 0 | T3: 0 | U3: 0 | V3: 0 | W3: 0 | X3: 0 | Y3: 0 | Z3: 0 | AA3: 0 | AB3: 0 | AC3: 0 | AD3: 0 | AE3: 0 | AF3: 0 | AG3: 0 | AH3: 0 | AI3: 0 | AJ3: 0 | AK3: 0 | AL3: 0 | AM3: 0 | AN3: 0 | AO3: 0 | AP3: 0 | AQ3: 0 | AR3: 0 | AS3: 0 | AT3: 0 | AU3: 0 | AV3: 0 | AW3: 0 | AX3: 0
A4: WAAllAvoided Winter Energy Costs | B4: WA | C4: All | D4: Avoided Winter Energy Costs | E4: $/MWh @gen | F4: 0 | G4: 0 | H4: 0 | I4: 0 | J4: 0 | K4: 0 | L4: 0 | M4: 0 | N4: 0 | O4: 0 | P4: 0 | Q4: 0 | R4: 0 | S4: 0 | T4: 0 | U4: 0 | V4: 0 | W4: 0 | X4: 0 | Y4: 0 | Z4: 0 | AA4: 0 | AB4: 0 | AC4: 0 | AD4: 0 | AE4: 0 | AF4: 0 | AG4: 0 | AH4: 0 | AI4: 0 | AJ4: 0 | AK4: 0 | AL4: 0 | AM4: 0 | AN4: 0 | AO4: 0 | AP4: 0 | AQ4: 0 | AR4: 0 | AS4: 0 | AT4: 0 | AU4: 0 | AV4: 0 | AW4: 0 | AX4: 0
A5: WAResidentialLine Loss | B5: WA | C5: Residential | D5: Line Loss | E5: T&D Loss % | F5: 0.0616 | G5: 0.0616 | H5: 0.0616 | I5: 0.0616 | J5: 0.0616 | K5: 0.0616 | L5: 0.0616 | M5: 0.0616 | N5: 0.0616 | O5: 0.0616 | P5: 0.0616 | Q5: 0.0616 | R5: 0.0616 | S5: 0.0616 | T5: 0.0616 | U5: 0.0616 | V5: 0.0616 | W5: 0.0616 | X5: 0.0616 | Y5: 0.0616 | Z5: 0.0616 | AA5: 0.0616 | AB5: 0.0616 | AC5: 0.0616 | AD5: 0.0616 | AE5: 0.0616 | AF5: 0.0616 | AG5: 0.0616 | AH5: 0.0616 | AI5: 0.0616 | AJ5: 0.0616 | AK5: 0.0616 | AL5: 0.0616 | AM5: 0.0616 | AN5: 0.0616 | AO5: 0.0616 | AP5: 0.0616 | AQ5: 0.0616 | AR5: 0.0616 | AS5: 0.0616 | AT5: 0.0616 | AU5: 0.0616 | AV5: 0.0616 | AW5: 0.0616 | AX5: 0.0616
A6: WAGeneral ServiceLine Loss | B6: WA | C6: General Service | D6: Line Loss | E6: T&D Loss % | F6: 0.0616 | G6: 0.0616 | H6: 0.0616 | I6: 0.0616 | J6: 0.0616 | K6: 0.0616 | L6: 0.0616 | M6: 0.0616 | N6: 0.0616 | O6: 0.0616 | P6: 0.0616 | Q6: 0.0616 | R6: 0.0616 | S6: 0.0616 | T6: 0.0616 | U6: 0.0616 | V6: 0.0616 | W6: 0.0616 | X6: 0.0616 | Y6: 0.0616 | Z6: 0.0616 | AA6: 0.0616 | AB6: 0.0616 | AC6: 0.0616 | AD6: 0.0616 | AE6: 0.0616 | AF6: 0.0616 | AG6: 0.0616 | AH6: 0.0616 | AI6: 0.0616 | AJ6: 0.0616 | AK6: 0.0616 | AL6: 0.0616 | AM6: 0.0616 | AN6: 0.0616 | AO6: 0.0616 | AP6: 0.0616 | AQ6: 0.0616 | AR6: 0.0616 | AS6: 0.0616 | AT6: 0.0616 | AU6: 0.0616 | AV6: 0.0616 | AW6: 0.0616 | AX6: 0.0616
A7: WALarge General ServiceLine Loss | B7: WA | C7: Large General Service | D7: Line Loss | E7: T&D Loss % | F7: 0.0616 | G7: 0.0616 | H7: 0.0616 | I7: 0.0616 | J7: 0.0616 | K7: 0.0616 | L7: 0.0616 | M7: 0.0616 | N7: 0.0616 | O7: 0.0616 | P7: 0.0616 | Q7: 0.0616 | R7: 0.0616 | S7: 0.0616 | T7: 0.0616 | U7: 0.0616 | V7: 0.0616 | W7: 0.0616 | X7: 0.0616 | Y7: 0.0616 | Z7: 0.0616 | AA7: 0.0616 | AB7: 0.0616 | AC7: 0.0616 | AD7: 0.0616 | AE7: 0.0616 | AF7: 0.0616 | AG7: 0.0616 | AH7: 0.0616 | AI7: 0.0616 | AJ7: 0.0616 | AK7: 0.0616 | AL7: 0.0616 | AM7: 0.0616 | AN7: 0.0616 | AO7: 0.0616 | AP7: 0.0616 | AQ7: 0.0616 | AR7: 0.0616 | AS7: 0.0616 | AT7: 0.0616 | AU7: 0.0616 | AV7: 0.0616 | AW7: 0.0616 | AX7: 0.0616
A8: WAExtra Large General ServiceLine Loss | B8: WA | C8: Extra Large General Service | D8: Line Loss | E8: T&D Loss % | F8: 0.0616 | G8: 0.0616 | H8: 0.0616 | I8: 0.0616 | J8: 0.0616 | K8: 0.0616 | L8: 0.0616 | M8: 0.0616 | N8: 0.0616 | O8: 0.0616 | P8: 0.0616 | Q8: 0.0616 | R8: 0.0616 | S8: 0.0616 | T8: 0.0616 | U8: 0.0616 | V8: 0.0616 | W8: 0.0616 | X8: 0.0616 | Y8: 0.0616 | Z8: 0.0616 | AA8: 0.0616 | AB8: 0.0616 | AC8: 0.0616 | AD8: 0.0616 | AE8: 0.0616 | AF8: 0.0616 | AG8: 0.0616 | AH8: 0.0616 | AI8: 0.0616 | AJ8: 0.0616 | AK8: 0.0616 | AL8: 0.0616 | AM8: 0.0616 | AN8: 0.0616 | AO8: 0.0616 | AP8: 0.0616 | AQ8: 0.0616 | AR8: 0.0616 | AS8: 0.0616 | AT8: 0.0616 | AU8: 0.0616 | AV8: 0.0616 | AW8: 0.0616 | AX8: 0.0616
A9: IDAllAvoided Capacity Costs | B9: ID | C9: All | D9: Avoided Capacity Costs | E9: $/kW @gen | F9: 0 | G9: 0 | H9: 0 | I9: 0 | J9: 0 | K9: 0 | L9: 0 | M9: 0 | N9: 0 | O9: 0 | P9: 0 | Q9: 0 | R9: 0 | S9: 0 | T9: 0 | U9: 0 | V9: 0 | W9: 0 | X9: 0 | Y9: 0 | Z9: 0 | AA9: 0 | AB9: 0 | AC9: 0 | AD9: 0 | AE9: 0 | AF9: 0 | AG9: 0 | AH9: 0 | AI9: 0 | AJ9: 0 | AK9: 0 | AL9: 0 | AM9: 0 | AN9: 0 | AO9: 0 | AP9: 0 | AQ9: 0 | AR9: 0 | AS9: 0 | AT9: 0 | AU9: 0 | AV9: 0 | AW9: 0 | AX9: 0
A10: IDAllAvoided Summer Energy Costs | B10: ID | C10: All | D10: Avoided Summer Energy Costs | E10: $/MWh @gen | F10: 0 | G10: 0 | H10: 0 | I10: 0 | J10: 0 | K10: 0 | L10: 0 | M10: 0 | N10: 0 | O10: 0 | P10: 0 | Q10: 0 | R10: 0 | S10: 0 | T10: 0 | U10: 0 | V10: 0 | W10: 0 | X10: 0 | Y10: 0 | Z10: 0 | AA10: 0 | AB10: 0 | AC10: 0 | AD10: 0 | AE10: 0 | AF10: 0 | AG10: 0 | AH10: 0 | AI10: 0 | AJ10: 0 | AK10: 0 | AL10: 0 | AM10: 0 | AN10: 0 | AO10: 0 | AP10: 0 | AQ10: 0 | AR10: 0 | AS10: 0 | AT10: 0 | AU10: 0 | AV10: 0 | AW10: 0 | AX10: 0
A11: IDAllAvoided Winter Energy Costs | B11: ID | C11: All | D11: Avoided Winter Energy Costs | E11: $/MWh @gen | F11: 0 | G11: 0 | H11: 0 | I11: 0 | J11: 0 | K11: 0 | L11: 0 | M11: 0 | N11: 0 | O11: 0 | P11: 0 | Q11: 0 | R11: 0 | S11: 0 | T11: 0 | U11: 0 | V11: 0 | W11: 0 | X11: 0 | Y11: 0 | Z11: 0 | AA11: 0 | AB11: 0 | AC11: 0 | AD11: 0 | AE11: 0 | AF11: 0 | AG11: 0 | AH11: 0 | AI11: 0 | AJ11: 0 | AK11: 0 | AL11: 0 | AM11: 0 | AN11: 0 | AO11: 0 | AP11: 0 | AQ11: 0 | AR11: 0 | AS11: 0 | AT11: 0 | AU11: 0 | AV11: 0 | AW11: 0 | AX11: 0
A12: IDResidentialLine Loss | B12: ID | C12: Residential | D12: Line Loss | E12: T&D Loss % | F12: 0.0616 | G12: 0.0616 | H12: 0.0616 | I12: 0.0616 | J12: 0.0616 | K12: 0.0616 | L12: 0.0616 | M12: 0.0616 | N12: 0.0616 | O12: 0.0616 | P12: 0.0616 | Q12: 0.0616 | R12: 0.0616 | S12: 0.0616 | T12: 0.0616 | U12: 0.0616 | V12: 0.0616 | W12: 0.0616 | X12: 0.0616 | Y12: 0.0616 | Z12: 0.0616 | AA12: 0.0616 | AB12: 0.0616 | AC12: 0.0616 | AD12: 0.0616 | AE12: 0.0616 | AF12: 0.0616 | AG12: 0.0616 | AH12: 0.0616 | AI12: 0.0616 | AJ12: 0.0616 | AK12: 0.0616 | AL12: 0.0616 | AM12: 0.0616 | AN12: 0.0616 | AO12: 0.0616 | AP12: 0.0616 | AQ12: 0.0616 | AR12: 0.0616 | AS12: 0.0616 | AT12: 0.0616 | AU12: 0.0616 | AV12: 0.0616 | AW12: 0.0616 | AX12: 0.0616
A13: IDGeneral ServiceLine Loss | B13: ID | C13: General Service | D13: Line Loss | E13: T&D Loss % | F13: 0.0616 | G13: 0.0616 | H13: 0.0616 | I13: 0.0616 | J13: 0.0616 | K13: 0.0616 | L13: 0.0616 | M13: 0.0616 | N13: 0.0616 | O13: 0.0616 | P13: 0.0616 | Q13: 0.0616 | R13: 0.0616 | S13: 0.0616 | T13: 0.0616 | U13: 0.0616 | V13: 0.0616 | W13: 0.0616 | X13: 0.0616 | Y13: 0.0616 | Z13: 0.0616 | AA13: 0.0616 | AB13: 0.0616 | AC13: 0.0616 | AD13: 0.0616 | AE13: 0.0616 | AF13: 0.0616 | AG13: 0.0616 | AH13: 0.0616 | AI13: 0.0616 | AJ13: 0.0616 | AK13: 0.0616 | AL13: 0.0616 | AM13: 0.0616 | AN13: 0.0616 | AO13: 0.0616 | AP13: 0.0616 | AQ13: 0.0616 | AR13: 0.0616 | AS13: 0.0616 | AT13: 0.0616 | AU13: 0.0616 | AV13: 0.0616 | AW13: 0.0616 | AX13: 0.0616
A14: IDLarge General ServiceLine Loss | B14: ID | C14: Large General Service | D14: Line Loss | E14: T&D Loss % | F14: 0.0616 | G14: 0.0616 | H14: 0.0616 | I14: 0.0616 | J14: 0.0616 | K14: 0.0616 | L14: 0.0616 | M14: 0.0616 | N14: 0.0616 | O14: 0.0616 | P14: 0.0616 | Q14: 0.0616 | R14: 0.0616 | S14: 0.0616 | T14: 0.0616 | U14: 0.0616 | V14: 0.0616 | W14: 0.0616 | X14: 0.0616 | Y14: 0.0616 | Z14: 0.0616 | AA14: 0.0616 | AB14: 0.0616 | AC14: 0.0616 | AD14: 0.0616 | AE14: 0.0616 | AF14: 0.0616 | AG14: 0.0616 | AH14: 0.0616 | AI14: 0.0616 | AJ14: 0.0616 | AK14: 0.0616 | AL14: 0.0616 | AM14: 0.0616 | AN14: 0.0616 | AO14: 0.0616 | AP14: 0.0616 | AQ14: 0.0616 | AR14: 0.0616 | AS14: 0.0616 | AT14: 0.0616 | AU14: 0.0616 | AV14: 0.0616 | AW14: 0.0616 | AX14: 0.0616
A15: IDExtra Large General ServiceLine Loss | B15: ID | C15: Extra Large General Service | D15: Line Loss | E15: T&D Loss % | F15: 0.0616 | G15: 0.0616 | H15: 0.0616 | I15: 0.0616 | J15: 0.0616 | K15: 0.0616 | L15: 0.0616 | M15: 0.0616 | N15: 0.0616 | O15: 0.0616 | P15: 0.0616 | Q15: 0.0616 | R15: 0.0616 | S15: 0.0616 | T15: 0.0616 | U15: 0.0616 | V15: 0.0616 | W15: 0.0616 | X15: 0.0616 | Y15: 0.0616 | Z15: 0.0616 | AA15: 0.0616 | AB15: 0.0616 | AC15: 0.0616 | AD15: 0.0616 | AE15: 0.0616 | AF15: 0.0616 | AG15: 0.0616 | AH15: 0.0616 | AI15: 0.0616 | AJ15: 0.0616 | AK15: 0.0616 | AL15: 0.0616 | AM15: 0.0616 | AN15: 0.0616 | AO15: 0.0616 | AP15: 0.0616 | AQ15: 0.0616 | AR15: 0.0616 | AS15: 0.0616 | AT15: 0.0616 | AU15: 0.0616 | AV15: 0.0616 | AW15: 0.0616 | AX15: 0.0616

Sheet ParticipationRate
A1: Key | B1: State | C1: Customer Class | D1: Option | E1: Data Element | F1: Unit | G1: Year 1 | H1: Year 2 | I1: Year 3 | J1: Year 4 | K1: Year 5 | L1: Year 6 | M1: Year 7 | N1: Year 8 | O1: Year 9 | P1: Year 10 | Q1: Year 11 | R1: Year 12 | S1: Year 13 | T1: Year 14 | U1: Year 15 | V1: Year 16 | W1: Year 17 | X1: Year 18 | Y1: Year 19 | Z1: Year 20 | AA1: Year 21 | AB1: Year 22 | AC1: Year 23 | AD1: Year 24 | AE1: Year 25 | AF1: Comments from Input Generator
A2: =B2&C2&D2&E2 -> WAResidentialBehavioralMarket Potential | B2: WA | C2: Residential | D2: Behavioral | E2: Market Potential | F2: % of Eligible Customers | G2: 0.05 | H2: 0.1 | I2: 0.17 | J2: 0.2 | K2: 0.2 | L2: 0.2 | M2: 0.2 | N2: 0.2 | O2: 0.2 | P2: 0.2 | Q2: 0.2 | R2: 0.2 | S2: 0.2 | T2: 0.2 | U2: 0.2 | V2: 0.2 | W2: 0.2 | X2: 0.2 | Y2: 0.2 | Z2: 0.2 | AA2: 0.2 | AB2: 0.2 | AC2: 0.2 | AD2: 0.2 | AE2: 0.2 | AF2: high rate based on PG&E rollout with six waves http://www.calmac.org/publications/DNVGL_PGE_HERs_2015_final_to_calmac.pdf --> PC study has high case at 0% --> shif to 25%? | AG2: 1
A3: WAResidentialBehavioralProgram Dropout Rate (Attrition) | B3: WA | C3: Residential | D3: Behavioral | E3: Program Dropout Rate (Attrition) | F3: % | G3: 0.02 | H3: 0.02 | I3: 0.02 | J3: 0.02 | K3: 0.02 | L3: 0.02 | M3: 0.02 | N3: 0.02 | O3: 0.02 | P3: 0.02 | Q3: 0.02 | R3: 0.02 | S3: 0.02 | T3: 0.02 | U3: 0.02 | V3: 0.02 | W3: 0.02 | X3: 0.02 | Y3: 0.02 | Z3: 0.02 | AA3: 0.02 | AB3: 0.02 | AC3: 0.02 | AD3: 0.02 | AE3: 0.02 | AF3: high rate based on PG&E rollout with six waves http://www.calmac.org/publications/DNVGL_PGE_HERs_2015_final_to_calmac.pdf --> PC study has high case at 0% --> shif to 25%? | AG3: 1
A4: WAResidentialDLC Electric Vehicle ChargingMarket Potential | B4: WA | C4: Residential | D4: DLC Electric Vehicle Charging | E4: Market Potential | F4: % of Eligible Customers | G4: 0.025 | H4: 0.075 | I4: 0.175 | J4: 0.225 | K4: 0.25 | L4: 0.25 | M4: 0.25 | N4: 0.25 | O4: 0.25 | P4: 0.25 | Q4: 0.25 | R4: 0.25 | S4: 0.25 | T4: 0.25 | U4: 0.25 | V4: 0.25 | W4: 0.25 | X4: 0.25 | Y4: 0.25 | Z4: 0.25 | AA4: 0.25 | AB4: 0.25 | AC4: 0.25 | AD4: 0.25 | AE4: 0.25 | AF4: Prelim Assumption: One Third of TOU Demand Rate w EV. This participation rate will be throttled / scaled using the equipment saturation for EVs, which will be quite low. | AG4: 1
A5: WAResidentialDLC Electric Vehicle ChargingProgram Dropout Rate (Attrition) | B5: WA | C5: Residential | D5: DLC Electric Vehicle Charging | E5: Program Dropout Rate (Attrition) | F5: % | G5: 0.01 | H5: 0.01 | I5: 0.01 | J5: 0.01 | K5: 0.01 | L5: 0.01 | M5: 0.01 | N5: 0.01 | O5: 0.01 | P5: 0.01 | Q5: 0.01 | R5: 0.01 | S5: 0.01 | T5: 0.01 | U5: 0.01 | V5: 0.01 | W5: 0.01 | X5: 0.01 | Y5: 0.01 | Z5: 0.01 | AA5: 0.01 | AB5: 0.01 | AC5: 0.01 | AD5: 0.01 | AE5: 0.01 | AF5: Prelim Assumption: One Third of TOU Demand Rate w EV. This participation rate will be throttled / scaled using the equipment saturation for EVs, which will be quite low. | AG5: 1
A6: WAResidentialDLC Central ACMarket Potential | B6: WA | C6: Residential | D6: DLC Central AC | E6: Market Potential | F6: % of Eligible Customers | G6: 0.01 | H6: 0.03 | I6: 0.07 | J6: 0.09 | K6: 0.1 | L6: 0.1 | M6: 0.1 | N6: 0.1 | O6: 0.1 | P6: 0.1 | Q6: 0.1 | R6: 0.1 | S6: 0.1 | T6: 0.1 | U6: 0.1 | V6: 0.1 | W6: 0.1 | X6: 0.1 | Y6: 0.1 | Z6: 0.1 | AA6: 0.1 | AB6: 0.1 | AC6: 0.1 | AD6: 0.1 | AE6: 0.1 | AF6: NWPC DLC Switch cooling assumption- 5 yr ramp rate | AG6: 1
A7: WAResidentialDLC Central ACProgram Dropout Rate (Attrition) | B7: WA | C7: Residential | D7: DLC Central AC | E7: Program Dropout Rate (Attrition) | F7: % | G7: 0.01 | H7: 0.01 | I7: 0.01 | J7: 0.01 | K7: 0.01 | L7: 0.01 | M7: 0.01 | N7: 0.01 | O7: 0.01 | P7: 0.01 | Q7: 0.01 | R7: 0.01 | S7: 0.01 | T7: 0.01 | U7: 0.01 | V7: 0.01 | W7: 0.01 | X7: 0.01 | Y7: 0.01 | Z7: 0.01 | AA7: 0.01 | AB7: 0.01 | AC7: 0.01 | AD7: 0.01 | AE7: 0.01 | AF7: NWPC DLC Switch cooling assumption- 5 yr ramp rate | AG7: 1
A8: WAGeneral ServiceDLC Central ACMarket Potential | B8: WA | C8: General Service | D8: DLC Central AC | E8: Market Potential | F8: % of Eligible Customers | G8: 0.01 | H8: 0.03 | I8: 0.07 | J8: 0.09 | K8: 0.1 | L8: 0.1 | M8: 0.1 | N8: 0.1 | O8: 0.1 | P8: 0.1 | Q8: 0.1 | R8: 0.1 | S8: 0.1 | T8: 0.1 | U8: 0.1 | V8: 0.1 | W8: 0.1 | X8: 0.1 | Y8: 0.1 | Z8: 0.1 | AA8: 0.1 | AB8: 0.1 | AC8: 0.1 | AD8: 0.1 | AE8: 0.1 | AF8: NWPC DLC Switch cooling assumption- 5 yr ramp rate | AG8: 1
A9: WAGeneral ServiceDLC Central ACProgram Dropout Rate (Attrition) | B9: WA | C9: General Service | D9: DLC Central AC | E9: Program Dropout Rate (Attrition) | F9: % | G9: 0.01 | H9: 0.01 | I9: 0.01 | J9: 0.01 | K9: 0.01 | L9: 0.01 | M9: 0.01 | N9: 0.01 | O9: 0.01 | P9: 0.01 | Q9: 0.01 | R9: 0.01 | S9: 0.01 | T9: 0.01 | U9: 0.01 | V9: 0.01 | W9: 0.01 | X9: 0.01 | Y9: 0.01 | Z9: 0.01 | AA9: 0.01 | AB9: 0.01 | AC9: 0.01 | AD9: 0.01 | AE9: 0.01 | AF9: NWPC DLC Switch cooling assumption- 5 yr ramp rate | AG9: 1
A10: WAResidentialDLC Water HeatingMarket Potential | B10: WA | C10: Residential | D10: DLC Water Heating | E10: Market Potential | F10: % of Eligible Customers | G10: 0 | H10: 0 | I10: 0 | J10: 0 | K10: 0 | L10: 0 | M10: 0 | N10: 0 | O10: 0 | P10: 0 | Q10: 0 | R10: 0 | S10: 0 | T10: 0 | U10: 0 | V10: 0 | W10: 0 | X10: 0 | Y10: 0 | Z10: 0 | AA10: 0 | AB10: 0 | AC10: 0 | AD10: 0 | AE10: 0 | AF10: Ensure population applies to the subset of customers participating in AC or Space Heating DLC | AG10: 1
A11: WAResidentialDLC Water HeatingProgram Dropout Rate (Attrition) | B11: WA | C11: Residential | D11: DLC Water Heating | E11: Program Dropout Rate (Attrition) | F11: % | G11: 0 | H11: 0 | I11: 0 | J11: 0 | K11: 0 | L11: 0 | M11: 0 | N11: 0 | O11: 0 | P11: 0 | Q11: 0 | R11: 0 | S11: 0 | T11: 0 | U11: 0 | V11: 0 | W11: 0 | X11: 0 | Y11: 0 | Z11: 0 | AA11: 0 | AB11: 0 | AC11: 0 | AD11: 0 | AE11: 0 | AF11: Ensure population applies to the subset of customers participating in AC or Space Heating DLC | AG11: 1
A12: WAGeneral ServiceDLC Water HeatingMarket Potential | B12: WA | C12: General Service | D12: DLC Water Heating | E12: Market Potential | F12: % of Eligible Customers | G12: 0 | H12: 0 | I12: 0 | J12: 0 | K12: 0 | L12: 0 | M12: 0 | N12: 0 | O12: 0 | P12: 0 | Q12: 0 | R12: 0 | S12: 0 | T12: 0 | U12: 0 | V12: 0 | W12: 0 | X12: 0 | Y12: 0 | Z12: 0 | AA12: 0 | AB12: 0 | AC12: 0 | AD12: 0 | AE12: 0 | AF12: * Changed from 3% to reflect a Brattle Study to the left that estimates 5-10% | AG12: 1
A13: WAGeneral ServiceDLC Water HeatingProgram Dropout Rate (Attrition) | B13: WA | C13: General Service | D13: DLC Water Heating | E13: Program Dropout Rate (Attrition) | F13: % | G13: 0 | H13: 0 | I13: 0 | J13: 0 | K13: 0 | L13: 0 | M13: 0 | N13: 0 | O13: 0 | P13: 0 | Q13: 0 | R13: 0 | S13: 0 | T13: 0 | U13: 0 | V13: 0 | W13: 0 | X13: 0 | Y13: 0 | Z13: 0 | AA13: 0 | AB13: 0 | AC13: 0 | AD13: 0 | AE13: 0 | AF13: * Changed from 3% to reflect a Brattle Study to the left that estimates 5-10% | AG13: 1
A14: WAResidentialCTA-2045 WHMarket Potential | B14: WA | C14: Residential | D14: CTA-2045 WH | E14: Market Potential | F14: % of Eligible Customers | G14: 0.02 | H14: 0.06 | I14: 0.1 | J14: 0.15 | K14: 0.2 | L14: 0.25 | M14: 0.325 | N14: 0.4 | O14: 0.475 | P14: 0.5 | Q14: 0.5 | R14: 0.5 | S14: 0.5 | T14: 0.5 | U14: 0.5 | V14: 0.5 | W14: 0.5 | X14: 0.5 | Y14: 0.5 | Z14: 0.5 | AA14: 0.5 | AB14: 0.5 | AC14: 0.5 | AD14: 0.5 | AE14: 0.5 | AF14: NWPC Electric Resistance Grid-Ready Summer/Winter Participation- 10 yr ramp rate | AG14: 1
A15: WAResidentialCTA-2045 WHProgram Dropout Rate (Attrition) | B15: WA | C15: Residential | D15: CTA-2045 WH | E15: Program Dropout Rate (Attrition) | F15: % | G15: 0.01 | H15: 0.01 | I15: 0.01 | J15: 0.01 | K15: 0.01 | L15: 0.01 | M15: 0.01 | N15: 0.01 | O15: 0.01 | P15: 0.01 | Q15: 0.01 | R15: 0.01 | S15: 0.01 | T15: 0.01 | U15: 0.01 | V15: 0.01 | W15: 0.01 | X15: 0.01 | Y15: 0.01 | Z15: 0.01 | AA15: 0.01 | AB15: 0.01 | AC15: 0.01 | AD15: 0.01 | AE15: 0.01 | AF15: NWPC Electric Resistance Grid-Ready Summer/Winter Participation- 10 yr ramp rate | AG15: 1
A16: WAGeneral ServiceCTA-2045 WHMarket Potential | B16: WA | C16: General Service | D16: CTA-2045 WH | E16: Market Potential | F16: % of Eligible Customers | G16: 0.02 | H16: 0.06 | I16: 0.1 | J16: 0.15 | K16: 0.2 | L16: 0.25 | M16: 0.325 | N16: 0.4 | O16: 0.475 | P16: 0.5 | Q16: 0.5 | R16: 0.5 | S16: 0.5 | T16: 0.5 | U16: 0.5 | V16: 0.5 | W16: 0.5 | X16: 0.5 | Y16: 0.5 | Z16: 0.5 | AA16: 0.5 | AB16: 0.5 | AC16: 0.5 | AD16: 0.5 | AE16: 0.5 | AF16: NWPC Electric Resistance Grid-Ready Summer/Winter Participation- 10 yr ramp rate | AG16: 1
A17: WAGeneral ServiceCTA-2045 WHProgram Dropout Rate (Attrition) | B17: WA | C17: General Service | D17: CTA-2045 WH | E17: Program Dropout Rate (Attrition) | F17: % | G17: 0.01 | H17: 0.01 | I17: 0.01 | J17: 0.01 | K17: 0.01 | L17: 0.01 | M17: 0.01 | N17: 0.01 | O17: 0.01 | P17: 0.01 | Q17: 0.01 | R17: 0.01 | S17: 0.01 | T17: 0.01 | U17: 0.01 | V17: 0.01 | W17: 0.01 | X17: 0.01 | Y17: 0.01 | Z17: 0.01 | AA17: 0.01 | AB17: 0.01 | AC17: 0.01 | AD17: 0.01 | AE17: 0.01 | AF17: NWPC Electric Resistance Grid-Ready Summer/Winter Participation- 10 yr ramp rate | AG17: 1
A18: WAResidentialDLC Smart Thermostats - CoolingMarket Potential | B18: WA | C18: Residential | D18: DLC Smart Thermostats - Cooling | E18: Market Potential | F18: % of Eligible Customers | G18: 0.02 | H18: 0.06 | I18: 0.14 | J18: 0.18 | K18: 0.2 | L18: 0.2 | M18: 0.2 | N18: 0.2 | O18: 0.2 | P18: 0.2 | Q18: 0.2 | R18: 0.2 | S18: 0.2 | T18: 0.2 | U18: 0.2 | V18: 0.2 | W18: 0.2 | X18: 0.2 | Y18: 0.2 | Z18: 0.2 | AA18: 0.2 | AB18: 0.2 | AC18: 0.2 | AD18: 0.2 | AE18: 0.2 | AF18: NWPC Smart Thermostat cooling assumption- 5 yr ramp rate | AG18: 1
A19: WAResidentialDLC Smart Thermostats - CoolingProgram Dropout Rate (Attrition) | B19: WA | C19: Residential | D19: DLC Smart Thermostats - Cooling | E19: Program Dropout Rate (Attrition) | F19: % | G19: 0.01 | H19: 0.01 | I19: 0.01 | J19: 0.01 | K19: 0.01 | L19: 0.01 | M19: 0.01 | N19: 0.01 | O19: 0.01 | P19: 0.01 | Q19: 0.01 | R19: 0.01 | S19: 0.01 | T19: 0.01 | U19: 0.01 | V19: 0.01 | W19: 0.01 | X19: 0.01 | Y19: 0.01 | Z19: 0.01 | AA19: 0.01 | AB19: 0.01 | AC19: 0.01 | AD19: 0.01 | AE19: 0.01 | AF19: NWPC Smart Thermostat cooling assumption- 5 yr ramp rate | AG19: 1
A20: WAGeneral ServiceDLC Smart Thermostats - CoolingMarket Potential | B20: WA | C20: General Service | D20: DLC Smart Thermostats - Cooling | E20: Market Potential | F20: % of Eligible Customers | G20: 0.02 | H20: 0.06 | I20: 0.14 | J20: 0.18 | K20: 0.2 | L20: 0.2 | M20: 0.2 | N20: 0.2 | O20: 0.2 | P20: 0.2 | Q20: 0.2 | R20: 0.2 | S20: 0.2 | T20: 0.2 | U20: 0.2 | V20: 0.2 | W20: 0.2 | X20: 0.2 | Y20: 0.2 | Z20: 0.2 | AA20: 0.2 | AB20: 0.2 | AC20: 0.2 | AD20: 0.2 | AE20: 0.2 | AF20: NWPC Smart Thermostat cooling assumption- 5 yr ramp rate | AG20: 1
A21: WAGeneral ServiceDLC Smart Thermostats - CoolingProgram Dropout Rate (Attrition) | B21: WA | C21: General Service | D21: DLC Smart Thermostats - Cooling | E21: Program Dropout Rate (Attrition) | F21: % | G21: 0.01 | H21: 0.01 | I21: 0.01 | J21: 0.01 | K21: 0.01 | L21: 0.01 | M21: 0.01 | N21: 0.01 | O21: 0.01 | P21: 0.01 | Q21: 0.01 | R21: 0.01 | S21: 0.01 | T21: 0.01 | U21: 0.01 | V21: 0.01 | W21: 0.01 | X21: 0.01 | Y21: 0.01 | Z21: 0.01 | AA21: 0.01 | AB21: 0.01 | AC21: 0.01 | AD21: 0.01 | AE21: 0.01 | AF21: NWPC Smart Thermostat cooling assumption- 5 yr ramp rate | AG21: 1
A22: WAResidentialDLC Smart Thermostats - HeatingMarket Potential | B22: WA | C22: Residential | D22: DLC Smart Thermostats - Heating | E22: Market Potential | F22: % of Eligible Customers | G22: 0.005 | H22: 0.015 | I22: 0.035 | J22: 0.045 | K22: 0.05 | L22: 0.05 | M22: 0.05 | N22: 0.05 | O22: 0.05 | P22: 0.05 | Q22: 0.05 | R22: 0.05 | S22: 0.05 | T22: 0.05 | U22: 0.05 | V22: 0.05 | W22: 0.05 | X22: 0.05 | Y22: 0.05 | Z22: 0.05 | AA22: 0.05 | AB22: 0.05 | AC22: 0.05 | AD22: 0.05 | AE22: 0.05 | AF22: Assuming maximum participation for combined DLC Cooling and Smart Therm is 25%, reduced from 30% to account for those program participants who may have intended to participate but were unable to correctly install their thermostat | AG22: 1
A23: WAResidentialDLC Smart Thermostats - HeatingProgram Dropout Rate (Attrition) | B23: WA | C23: Residential | D23: DLC Smart Thermostats - Heating | E23: Program Dropout Rate (Attrition) | F23: % | G23: 0.01 | H23: 0.01 | I23: 0.01 | J23: 0.01 | K23: 0.01 | L23: 0.01 | M23: 0.01 | N23: 0.01 | O23: 0.01 | P23: 0.01 | Q23: 0.01 | R23: 0.01 | S23: 0.01 | T23: 0.01 | U23: 0.01 | V23: 0.01 | W23: 0.01 | X23: 0.01 | Y23: 0.01 | Z23: 0.01 | AA23: 0.01 | AB23: 0.01 | AC23: 0.01 | AD23: 0.01 | AE23: 0.01 | AF23: Assuming maximum participation for combined DLC Cooling and Smart Therm is 25%, reduced from 30% to account for those program participants who may have intended to participate but were unable to correctly install their thermostat | AG23: 1
A24: WAGeneral ServiceDLC Smart Thermostats - HeatingMarket Potential | B24: WA | C24: General Service | D24: DLC Smart Thermostats - Heating | E24: Market Potential | F24: % of Eligible Customers | G24: 0.003 | H24: 0.009 | I24: 0.021 | J24: 0.027 | K24: 0.03 | L24: 0.03 | M24: 0.03 | N24: 0.03 | O24: 0.03 | P24: 0.03 | Q24: 0.03 | R24: 0.03 | S24: 0.03 | T24: 0.03 | U24: 0.03 | V24: 0.03 | W24: 0.03 | X24: 0.03 | Y24: 0.03 | Z24: 0.03 | AA24: 0.03 | AB24: 0.03 | AC24: 0.03 | AD24: 0.03 | AE24: 0.03 | AF24: Dropping to 3% to compensate for higher space heating saturations | AG24: 1
A25: WAGeneral ServiceDLC Smart Thermostats - HeatingProgram Dropout Rate (Attrition) | B25: WA | C25: General Service | D25: DLC Smart Thermostats - Heating | E25: Program Dropout Rate (Attrition) | F25: % | G25: 0.01 | H25: 0.01 | I25: 0.01 | J25: 0.01 | K25: 0.01 | L25: 0.01 | M25: 0.01 | N25: 0.01 | O25: 0.01 | P25: 0.01 | Q25: 0.01 | R25: 0.01 | S25: 0.01 | T25: 0.01 | U25: 0.01 | V25: 0.01 | W25: 0.01 | X25: 0.01 | Y25: 0.01 | Z25: 0.01 | AA25: 0.01 | AB25: 0.01 | AC25: 0.01 | AD25: 0.01 | AE25: 0.01 | AF25: Dropping to 3% to compensate for higher space heating saturations | AG25: 1
A26: WAResidentialDLC Smart AppliancesMarket Potential | B26: WA | C26: Residential | D26: DLC Smart Appliances | E26: Market Potential | F26: % of Eligible Customers | G26: 0.005 | H26: 0.015 | I26: 0.035 | J26: 0.045 | K26: 0.05 | L26: 0.05 | M26: 0.05 | N26: 0.05 | O26: 0.05 | P26: 0.05 | Q26: 0.05 | R26: 0.05 | S26: 0.05 | T26: 0.05 | U26: 0.05 | V26: 0.05 | W26: 0.05 | X26: 0.05 | Y26: 0.05 | Z26: 0.05 | AA26: 0.05 | AB26: 0.05 | AC26: 0.05 | AD26: 0.05 | AE26: 0.05 | AF26: 2015 ISACA IT Risk Reward Barometer - US Consumer Results. October 2015. http://www.isaca.org/SiteCollectionDocuments/2015-risk-reward-survey/2015-isaca-risk-reward-consumer-summary-us_res_eng_1015.pdf | AG26: 1
A27: WAResidentialDLC Smart AppliancesProgram Dropout Rate (Attrition) | B27: WA | C27: Residential | D27: DLC Smart Appliances | E27: Program Dropout Rate (Attrition) | F27: % | G27: 0.01 | H27: 0.01 | I27: 0.01 | J27: 0.01 | K27: 0.01 | L27: 0.01 | M27: 0.01 | N27: 0.01 | O27: 0.01 | P27: 0.01 | Q27: 0.01 | R27: 0.01 | S27: 0.01 | T27: 0.01 | U27: 0.01 | V27: 0.01 | W27: 0.01 | X27: 0.01 | Y27: 0.01 | Z27: 0.01 | AA27: 0.01 | AB27: 0.01 | AC27: 0.01 | AD27: 0.01 | AE27: 0.01 | AF27: 2015 ISACA IT Risk Reward Barometer - US Consumer Results. October 2015. http://www.isaca.org/SiteCollectionDocuments/2015-risk-reward-survey/2015-isaca-risk-reward-consumer-summary-us_res_eng_1015.pdf | AG27: 1
A28: WAGeneral ServiceDLC Smart AppliancesMarket Potential | B28: WA | C28: General Service | D28: DLC Smart Appliances | E28: Market Potential | F28: % of Eligible Customers | G28: 0.005 | H28: 0.015 | I28: 0.035 | J28: 0.045 | K28: 0.05 | L28: 0.05 | M28: 0.05 | N28: 0.05 | O28: 0.05 | P28: 0.05 | Q28: 0.05 | R28: 0.05 | S28: 0.05 | T28: 0.05 | U28: 0.05 | V28: 0.05 | W28: 0.05 | X28: 0.05 | Y28: 0.05 | Z28: 0.05 | AA28: 0.05 | AB28: 0.05 | AC28: 0.05 | AD28: 0.05 | AE28: 0.05 | AF28: 2015 ISACA IT Risk Reward Barometer - US Consumer Results. October 2015. http://www.isaca.org/SiteCollectionDocuments/2015-risk-reward-survey/2015-isaca-risk-reward-consumer-summary-us_res_eng_1015.pdf | AG28: 1
A29: WAGeneral ServiceDLC Smart AppliancesProgram Dropout Rate (Attrition) | B29: WA | C29: General Service | D29: DLC Smart Appliances | E29: Program Dropout Rate (Attrition) | F29: % | G29: 0.01 | H29: 0.01 | I29: 0.01 | J29: 0.01 | K29: 0.01 | L29: 0.01 | M29: 0.01 | N29: 0.01 | O29: 0.01 | P29: 0.01 | Q29: 0.01 | R29: 0.01 | S29: 0.01 | T29: 0.01 | U29: 0.01 | V29: 0.01 | W29: 0.01 | X29: 0.01 | Y29: 0.01 | Z29: 0.01 | AA29: 0.01 | AB29: 0.01 | AC29: 0.01 | AD29: 0.01 | AE29: 0.01 | AF29: 2015 ISACA IT Risk Reward Barometer - US Consumer Results. October 2015. http://www.isaca.org/SiteCollectionDocuments/2015-risk-reward-survey/2015-isaca-risk-reward-consumer-summary-us_res_eng_1015.pdf | AG29: 1
A30: WAGeneral ServiceThird Party ContractsMarket Potential | B30: WA | C30: General Service | D30: Third Party Contracts | E30: Market Potential | F30: % of Eligible Customers | G30: 0.0375 | H30: 0.075 | I30: 0.1275 | J30: 0.15 | K30: 0.15 | L30: 0.15 | M30: 0.15 | N30: 0.15 | O30: 0.15 | P30: 0.15 | Q30: 0.15 | R30: 0.15 | S30: 0.15 | T30: 0.15 | U30: 0.15 | V30: 0.15 | W30: 0.15 | X30: 0.15 | Y30: 0.15 | Z30: 0.15 | AA30: 0.15 | AB30: 0.15 | AC30: 0.15 | AD30: 0.15 | AE30: 0.15 | AF30: MPSC Demand Response Market Assessment | AG30: 1
A31: WAGeneral ServiceThird Party ContractsProgram Dropout Rate (Attrition) | B31: WA | C31: General Service | D31: Third Party Contracts | E31: Program Dropout Rate (Attrition) | F31: % | G31: 0.02 | H31: 0.02 | I31: 0.02 | J31: 0.02 | K31: 0.02 | L31: 0.02 | M31: 0.02 | N31: 0.02 | O31: 0.02 | P31: 0.02 | Q31: 0.02 | R31: 0.02 | S31: 0.02 | T31: 0.02 | U31: 0.02 | V31: 0.02 | W31: 0.02 | X31: 0.02 | Y31: 0.02 | Z31: 0.02 | AA31: 0.02 | AB31: 0.02 | AC31: 0.02 | AD31: 0.02 | AE31: 0.02 | AF31: MPSC Demand Response Market Assessment | AG31: 1
A32: WALarge General ServiceThird Party ContractsMarket Potential | B32: WA | C32: Large General Service | D32: Third Party Contracts | E32: Market Potential | F32: % of Eligible Customers | G32: 0.05525 | H32: 0.1105 | I32: 0.18785 | J32: 0.221 | K32: 0.221 | L32: 0.221 | M32: 0.221 | N32: 0.221 | O32: 0.221 | P32: 0.221 | Q32: 0.221 | R32: 0.221 | S32: 0.221 | T32: 0.221 | U32: 0.221 | V32: 0.221 | W32: 0.221 | X32: 0.221 | Y32: 0.221 | Z32: 0.221 | AA32: 0.221 | AB32: 0.221 | AC32: 0.221 | AD32: 0.221 | AE32: 0.221 | AF32: 0 | AG32: 1
A33: WALarge General ServiceThird Party ContractsProgram Dropout Rate (Attrition) | B33: WA | C33: Large General Service | D33: Third Party Contracts | E33: Program Dropout Rate (Attrition) | F33: % | G33: 0.01 | H33: 0.01 | I33: 0.01 | J33: 0.01 | K33: 0.01 | L33: 0.01 | M33: 0.01 | N33: 0.01 | O33: 0.01 | P33: 0.01 | Q33: 0.01 | R33: 0.01 | S33: 0.01 | T33: 0.01 | U33: 0.01 | V33: 0.01 | W33: 0.01 | X33: 0.01 | Y33: 0.01 | Z33: 0.01 | AA33: 0.01 | AB33: 0.01 | AC33: 0.01 | AD33: 0.01 | AE33: 0.01 | AF33: 0 | AG33: 1
A34: WAExtra Large General ServiceThird Party ContractsMarket Potential | B34: WA | C34: Extra Large General Service | D34: Third Party Contracts | E34: Market Potential | F34: % of Eligible Customers | G34: 0.05225 | H34: 0.1045 | I34: 0.17765 | J34: 0.209 | K34: 0.209 | L34: 0.209 | M34: 0.209 | N34: 0.209 | O34: 0.209 | P34: 0.209 | Q34: 0.209 | R34: 0.209 | S34: 0.209 | T34: 0.209 | U34: 0.209 | V34: 0.209 | W34: 0.209 | X34: 0.209 | Y34: 0.209 | Z34: 0.209 | AA34: 0.209 | AB34: 0.209 | AC34: 0.209 | AD34: 0.209 | AE34: 0.209 | AF34: 0 | AG34: 1
A35: WAExtra Large General ServiceThird Party ContractsProgram Dropout Rate (Attrition) | B35: WA | C35: Extra Large General Service | D35: Third Party Contracts | E35: Program Dropout Rate (Attrition) | F35: % | G35: 0.01 | H35: 0.01 | I35: 0.01 | J35: 0.01 | K35: 0.01 | L35: 0.01 | M35: 0.01 | N35: 0.01 | O35: 0.01 | P35: 0.01 | Q35: 0.01 | R35: 0.01 | S35: 0.01 | T35: 0.01 | U35: 0.01 | V35: 0.01 | W35: 0.01 | X35: 0.01 | Y35: 0.01 | Z35: 0.01 | AA35: 0.01 | AB35: 0.01 | AC35: 0.01 | AD35: 0.01 | AE35: 0.01 | AF35: 0 | AG35: 1
A36: WAResidentialTime-of-Use Opt-inMarket Potential | B36: WA | C36: Residential | D36: Time-of-Use Opt-in | E36: Market Potential | F36: % of Eligible Customers | G36: 0.013 | H36: 0.039 | I36: 0.078 | J36: 0.117 | K36: 0.13 | L36: 0.13 | M36: 0.13 | N36: 0.13 | O36: 0.13 | P36: 0.13 | Q36: 0.13 | R36: 0.13 | S36: 0.13 | T36: 0.13 | U36: 0.13 | V36: 0.13 | W36: 0.13 | X36: 0.13 | Y36: 0.13 | Z36: 0.13 | AA36: 0.13 | AB36: 0.13 | AC36: 0.13 | AD36: 0.13 | AE36: 0.13 | AF36: Brattle Analysis and Estimate | AG36: 1
A37: WAResidentialTime-of-Use Opt-inProgram Dropout Rate (Attrition) | B37: WA | C37: Residential | D37: Time-of-Use Opt-in | E37: Program Dropout Rate (Attrition) | F37: % | G37: 0.01 | H37: 0.01 | I37: 0.01 | J37: 0.01 | K37: 0.01 | L37: 0.01 | M37: 0.01 | N37: 0.01 | O37: 0.01 | P37: 0.01 | Q37: 0.01 | R37: 0.01 | S37: 0.01 | T37: 0.01 | U37: 0.01 | V37: 0.01 | W37: 0.01 | X37: 0.01 | Y37: 0.01 | Z37: 0.01 | AA37: 0.01 | AB37: 0.01 | AC37: 0.01 | AD37: 0.01 | AE37: 0.01 | AF37: Brattle Analysis and Estimate | AG37: 1
A38: WAGeneral ServiceTime-of-Use Opt-inMarket Potential | B38: WA | C38: General Service | D38: Time-of-Use Opt-in | E38: Market Potential | F38: % of Eligible Customers | G38: 0.013 | H38: 0.039 | I38: 0.078 | J38: 0.117 | K38: 0.13 | L38: 0.13 | M38: 0.13 | N38: 0.13 | O38: 0.13 | P38: 0.13 | Q38: 0.13 | R38: 0.13 | S38: 0.13 | T38: 0.13 | U38: 0.13 | V38: 0.13 | W38: 0.13 | X38: 0.13 | Y38: 0.13 | Z38: 0.13 | AA38: 0.13 | AB38: 0.13 | AC38: 0.13 | AD38: 0.13 | AE38: 0.13 | AF38: Brattle opt-in case as high, 75% of high as low case- Using low case -9.8% | AG38: 1
A39: WAGeneral ServiceTime-of-Use Opt-inProgram Dropout Rate (Attrition) | B39: WA | C39: General Service | D39: Time-of-Use Opt-in | E39: Program Dropout Rate (Attrition) | F39: % | G39: 0.01 | H39: 0.01 | I39: 0.01 | J39: 0.01 | K39: 0.01 | L39: 0.01 | M39: 0.01 | N39: 0.01 | O39: 0.01 | P39: 0.01 | Q39: 0.01 | R39: 0.01 | S39: 0.01 | T39: 0.01 | U39: 0.01 | V39: 0.01 | W39: 0.01 | X39: 0.01 | Y39: 0.01 | Z39: 0.01 | AA39: 0.01 | AB39: 0.01 | AC39: 0.01 | AD39: 0.01 | AE39: 0.01 | AF39: Brattle opt-in case as high, 75% of high as low case- Using low case -9.8% | AG39: 1
A40: WALarge General ServiceTime-of-Use Opt-inMarket Potential | B40: WA | C40: Large General Service | D40: Time-of-Use Opt-in | E40: Market Potential | F40: % of Eligible Customers | G40: 0.013 | H40: 0.039 | I40: 0.078 | J40: 0.117 | K40: 0.13 | L40: 0.13 | M40: 0.13 | N40: 0.13 | O40: 0.13 | P40: 0.13 | Q40: 0.13 | R40: 0.13 | S40: 0.13 | T40: 0.13 | U40: 0.13 | V40: 0.13 | W40: 0.13 | X40: 0.13 | Y40: 0.13 | Z40: 0.13 | AA40: 0.13 | AB40: 0.13 | AC40: 0.13 | AD40: 0.13 | AE40: 0.13 | AF40: Brattle opt-in case as high, 75% of high as low case- Using low case -9.8% | AG40: 1
A41: WALarge General ServiceTime-of-Use Opt-inProgram Dropout Rate (Attrition) | B41: WA | C41: Large General Service | D41: Time-of-Use Opt-in | E41: Program Dropout Rate (Attrition) | F41: % | G41: 0.01 | H41: 0.01 | I41: 0.01 | J41: 0.01 | K41: 0.01 | L41: 0.01 | M41: 0.01 | N41: 0.01 | O41: 0.01 | P41: 0.01 | Q41: 0.01 | R41: 0.01 | S41: 0.01 | T41: 0.01 | U41: 0.01 | V41: 0.01 | W41: 0.01 | X41: 0.01 | Y41: 0.01 | Z41: 0.01 | AA41: 0.01 | AB41: 0.01 | AC41: 0.01 | AD41: 0.01 | AE41: 0.01 | AF41: Brattle opt-in case as high, 75% of high as low case- Using low case -9.8% | AG41: 1
A42: WAExtra Large General ServiceTime-of-Use Opt-inMarket Potential | B42: WA | C42: Extra Large General Service | D42: Time-of-Use Opt-in | E42: Market Potential | F42: % of Eligible Customers | G42: 0.013 | H42: 0.039 | I42: 0.078 | J42: 0.117 | K42: 0.13 | L42: 0.13 | M42: 0.13 | N42: 0.13 | O42: 0.13 | P42: 0.13 | Q42: 0.13 | R42: 0.13 | S42: 0.13 | T42: 0.13 | U42: 0.13 | V42: 0.13 | W42: 0.13 | X42: 0.13 | Y42: 0.13 | Z42: 0.13 | AA42: 0.13 | AB42: 0.13 | AC42: 0.13 | AD42: 0.13 | AE42: 0.13 | AF42: Brattle opt-in case as high, 75% of high as low case- Using low case -9.8% | AG42: 1
A43: WAExtra Large General ServiceTime-of-Use Opt-inProgram Dropout Rate (Attrition) | B43: WA | C43: Extra Large General Service | D43: Time-of-Use Opt-in | E43: Program Dropout Rate (Attrition) | F43: % | G43: 0.01 | H43: 0.01 | I43: 0.01 | J43: 0.01 | K43: 0.01 | L43: 0.01 | M43: 0.01 | N43: 0.01 | O43: 0.01 | P43: 0.01 | Q43: 0.01 | R43: 0.01 | S43: 0.01 | T43: 0.01 | U43: 0.01 | V43: 0.01 | W43: 0.01 | X43: 0.01 | Y43: 0.01 | Z43: 0.01 | AA43: 0.01 | AB43: 0.01 | AC43: 0.01 | AD43: 0.01 | AE43: 0.01 | AF43: Brattle opt-in case as high, 75% of high as low case- Using low case -9.8% | AG43: 1
A44: WAResidentialTime-of-Use Opt-outMarket Potential | B44: WA | C44: Residential | D44: Time-of-Use Opt-out | E44: Market Potential | F44: % of Eligible Customers | G44: 1 | H44: 0.854 | I44: 0.789 | J44: 0.756 | K44: 0.74 | L44: 0.74 | M44: 0.74 | N44: 0.74 | O44: 0.74 | P44: 0.74 | Q44: 0.74 | R44: 0.74 | S44: 0.74 | T44: 0.74 | U44: 0.74 | V44: 0.74 | W44: 0.74 | X44: 0.74 | Y44: 0.74 | Z44: 0.74 | AA44: 0.74 | AB44: 0.74 | AC44: 0.74 | AD44: 0.74 | AE44: 0.74 | AF44: Brattle opt-out case | AG44: 1
A45: WAResidentialTime-of-Use Opt-outProgram Dropout Rate (Attrition) | B45: WA | C45: Residential | D45: Time-of-Use Opt-out | E45: Program Dropout Rate (Attrition) | F45: % | G45: 0.01 | H45: 0.01 | I45: 0.01 | J45: 0.01 | K45: 0.01 | L45: 0.01 | M45: 0.01 | N45: 0.01 | O45: 0.01 | P45: 0.01 | Q45: 0.01 | R45: 0.01 | S45: 0.01 | T45: 0.01 | U45: 0.01 | V45: 0.01 | W45: 0.01 | X45: 0.01 | Y45: 0.01 | Z45: 0.01 | AA45: 0.01 | AB45: 0.01 | AC45: 0.01 | AD45: 0.01 | AE45: 0.01 | AF45: Brattle opt-out case | AG45: 1
A46: WAGeneral ServiceTime-of-Use Opt-outMarket Potential | B46: WA | C46: General Service | D46: Time-of-Use Opt-out | E46: Market Potential | F46: % of Eligible Customers | G46: 1 | H46: 0.854 | I46: 0.789 | J46: 0.756 | K46: 0.74 | L46: 0.74 | M46: 0.74 | N46: 0.74 | O46: 0.74 | P46: 0.74 | Q46: 0.74 | R46: 0.74 | S46: 0.74 | T46: 0.74 | U46: 0.74 | V46: 0.74 | W46: 0.74 | X46: 0.74 | Y46: 0.74 | Z46: 0.74 | AA46: 0.74 | AB46: 0.74 | AC46: 0.74 | AD46: 0.74 | AE46: 0.74 | AF46: Brattle opt-out case | AG46: 1
A47: WAGeneral ServiceTime-of-Use Opt-outProgram Dropout Rate (Attrition) | B47: WA | C47: General Service | D47: Time-of-Use Opt-out | E47: Program Dropout Rate (Attrition) | F47: % | G47: 0.01 | H47: 0.01 | I47: 0.01 | J47: 0.01 | K47: 0.01 | L47: 0.01 | M47: 0.01 | N47: 0.01 | O47: 0.01 | P47: 0.01 | Q47: 0.01 | R47: 0.01 | S47: 0.01 | T47: 0.01 | U47: 0.01 | V47: 0.01 | W47: 0.01 | X47: 0.01 | Y47: 0.01 | Z47: 0.01 | AA47: 0.01 | AB47: 0.01 | AC47: 0.01 | AD47: 0.01 | AE47: 0.01 | AF47: Brattle opt-out case | AG47: 1
A48: WALarge General ServiceTime-of-Use Opt-outMarket Potential | B48: WA | C48: Large General Service | D48: Time-of-Use Opt-out | E48: Market Potential | F48: % of Eligible Customers | G48: 1 | H48: 0.854 | I48: 0.789 | J48: 0.756 | K48: 0.74 | L48: 0.74 | M48: 0.74 | N48: 0.74 | O48: 0.74 | P48: 0.74 | Q48: 0.74 | R48: 0.74 | S48: 0.74 | T48: 0.74 | U48: 0.74 | V48: 0.74 | W48: 0.74 | X48: 0.74 | Y48: 0.74 | Z48: 0.74 | AA48: 0.74 | AB48: 0.74 | AC48: 0.74 | AD48: 0.74 | AE48: 0.74 | AF48: Brattle opt-out case | AG48: 1
A49: WALarge General ServiceTime-of-Use Opt-outProgram Dropout Rate (Attrition) | B49: WA | C49: Large General Service | D49: Time-of-Use Opt-out | E49: Program Dropout Rate (Attrition) | F49: % | G49: 0.01 | H49: 0.01 | I49: 0.01 | J49: 0.01 | K49: 0.01 | L49: 0.01 | M49: 0.01 | N49: 0.01 | O49: 0.01 | P49: 0.01 | Q49: 0.01 | R49: 0.01 | S49: 0.01 | T49: 0.01 | U49: 0.01 | V49: 0.01 | W49: 0.01 | X49: 0.01 | Y49: 0.01 | Z49: 0.01 | AA49: 0.01 | AB49: 0.01 | AC49: 0.01 | AD49: 0.01 | AE49: 0.01 | AF49: Brattle opt-out case | AG49: 1
A50: WAExtra Large General ServiceTime-of-Use Opt-outMarket Potential | B50: WA | C50: Extra Large General Service | D50: Time-of-Use Opt-out | E50: Market Potential | F50: % of Eligible Customers | G50: 1 | H50: 0.854 | I50: 0.789 | J50: 0.756 | K50: 0.74 | L50: 0.74 | M50: 0.74 | N50: 0.74 | O50: 0.74 | P50: 0.74 | Q50: 0.74 | R50: 0.74 | S50: 0.74 | T50: 0.74 | U50: 0.74 | V50: 0.74 | W50: 0.74 | X50: 0.74 | Y50: 0.74 | Z50: 0.74 | AA50: 0.74 | AB50: 0.74 | AC50: 0.74 | AD50: 0.74 | AE50: 0.74 | AF50: Brattle opt-out case | AG50: 1
A51: WAExtra Large General ServiceTime-of-Use Opt-outProgram Dropout Rate (Attrition) | B51: WA | C51: Extra Large General Service | D51: Time-of-Use Opt-out | E51: Program Dropout Rate (Attrition) | F51: % | G51: 0.01 | H51: 0.01 | I51: 0.01 | J51: 0.01 | K51: 0.01 | L51: 0.01 | M51: 0.01 | N51: 0.01 | O51: 0.01 | P51: 0.01 | Q51: 0.01 | R51: 0.01 | S51: 0.01 | T51: 0.01 | U51: 0.01 | V51: 0.01 | W51: 0.01 | X51: 0.01 | Y51: 0.01 | Z51: 0.01 | AA51: 0.01 | AB51: 0.01 | AC51: 0.01 | AD51: 0.01 | AE51: 0.01 | AF51: Brattle opt-out case | AG51: 1
A52: WAResidentialVariable Peak Pricing RatesMarket Potential | B52: WA | C52: Residential | D52: Variable Peak Pricing Rates | E52: Market Potential | F52: % of Eligible Customers | G52: 0.025 | H52: 0.075 | I52: 0.175 | J52: 0.225 | K52: 0.25 | L52: 0.25 | M52: 0.25 | N52: 0.25 | O52: 0.25 | P52: 0.25 | Q52: 0.25 | R52: 0.25 | S52: 0.25 | T52: 0.25 | U52: 0.25 | V52: 0.25 | W52: 0.25 | X52: 0.25 | Y52: 0.25 | Z52: 0.25 | AA52: 0.25 | AB52: 0.25 | AC52: 0.25 | AD52: 0.25 | AE52: 0.25 | AF52: High Case- OG&E's VPP Plus participation rate- should be 103000/400000 around 25% | AG52: 1
A53: WAResidentialVariable Peak Pricing RatesProgram Dropout Rate (Attrition) | B53: WA | C53: Residential | D53: Variable Peak Pricing Rates | E53: Program Dropout Rate (Attrition) | F53: % | G53: 0.02 | H53: 0.02 | I53: 0.02 | J53: 0.02 | K53: 0.02 | L53: 0.02 | M53: 0.02 | N53: 0.02 | O53: 0.02 | P53: 0.02 | Q53: 0.02 | R53: 0.02 | S53: 0.02 | T53: 0.02 | U53: 0.02 | V53: 0.02 | W53: 0.02 | X53: 0.02 | Y53: 0.02 | Z53: 0.02 | AA53: 0.02 | AB53: 0.02 | AC53: 0.02 | AD53: 0.02 | AE53: 0.02 | AF53: High Case- OG&E's VPP Plus participation rate- should be 103000/400000 around 25% | AG53: 1
A54: WAGeneral ServiceVariable Peak Pricing RatesMarket Potential | B54: WA | C54: General Service | D54: Variable Peak Pricing Rates | E54: Market Potential | F54: % of Eligible Customers | G54: 0.025 | H54: 0.075 | I54: 0.175 | J54: 0.225 | K54: 0.25 | L54: 0.25 | M54: 0.25 | N54: 0.25 | O54: 0.25 | P54: 0.25 | Q54: 0.25 | R54: 0.25 | S54: 0.25 | T54: 0.25 | U54: 0.25 | V54: 0.25 | W54: 0.25 | X54: 0.25 | Y54: 0.25 | Z54: 0.25 | AA54: 0.25 | AB54: 0.25 | AC54: 0.25 | AD54: 0.25 | AE54: 0.25 | AF54: Brattle | AG54: 1
A55: WAGeneral ServiceVariable Peak Pricing RatesProgram Dropout Rate (Attrition) | B55: WA | C55: General Service | D55: Variable Peak Pricing Rates | E55: Program Dropout Rate (Attrition) | F55: % | G55: 0.01 | H55: 0.01 | I55: 0.01 | J55: 0.01 | K55: 0.01 | L55: 0.01 | M55: 0.01 | N55: 0.01 | O55: 0.01 | P55: 0.01 | Q55: 0.01 | R55: 0.01 | S55: 0.01 | T55: 0.01 | U55: 0.01 | V55: 0.01 | W55: 0.01 | X55: 0.01 | Y55: 0.01 | Z55: 0.01 | AA55: 0.01 | AB55: 0.01 | AC55: 0.01 | AD55: 0.01 | AE55: 0.01 | AF55: Brattle | AG55: 1
A56: WALarge General ServiceVariable Peak Pricing RatesMarket Potential | B56: WA | C56: Large General Service | D56: Variable Peak Pricing Rates | E56: Market Potential | F56: % of Eligible Customers | G56: 0.025 | H56: 0.075 | I56: 0.175 | J56: 0.225 | K56: 0.25 | L56: 0.25 | M56: 0.25 | N56: 0.25 | O56: 0.25 | P56: 0.25 | Q56: 0.25 | R56: 0.25 | S56: 0.25 | T56: 0.25 | U56: 0.25 | V56: 0.25 | W56: 0.25 | X56: 0.25 | Y56: 0.25 | Z56: 0.25 | AA56: 0.25 | AB56: 0.25 | AC56: 0.25 | AD56: 0.25 | AE56: 0.25 | AF56: 0 | AG56: 1
A57: WALarge General ServiceVariable Peak Pricing RatesProgram Dropout Rate (Attrition) | B57: WA | C57: Large General Service | D57: Variable Peak Pricing Rates | E57: Program Dropout Rate (Attrition) | F57: % | G57: 0.01 | H57: 0.01 | I57: 0.01 | J57: 0.01 | K57: 0.01 | L57: 0.01 | M57: 0.01 | N57: 0.01 | O57: 0.01 | P57: 0.01 | Q57: 0.01 | R57: 0.01 | S57: 0.01 | T57: 0.01 | U57: 0.01 | V57: 0.01 | W57: 0.01 | X57: 0.01 | Y57: 0.01 | Z57: 0.01 | AA57: 0.01 | AB57: 0.01 | AC57: 0.01 | AD57: 0.01 | AE57: 0.01 | AF57: 0 | AG57: 1
A58: WAExtra Large General ServiceVariable Peak Pricing RatesMarket Potential | B58: WA | C58: Extra Large General Service | D58: Variable Peak Pricing Rates | E58: Market Potential | F58: % of Eligible Customers | G58: 0.025 | H58: 0.075 | I58: 0.175 | J58: 0.225 | K58: 0.25 | L58: 0.25 | M58: 0.25 | N58: 0.25 | O58: 0.25 | P58: 0.25 | Q58: 0.25 | R58: 0.25 | S58: 0.25 | T58: 0.25 | U58: 0.25 | V58: 0.25 | W58: 0.25 | X58: 0.25 | Y58: 0.25 | Z58: 0.25 | AA58: 0.25 | AB58: 0.25 | AC58: 0.25 | AD58: 0.25 | AE58: 0.25 | AF58: High Case- OG&E's VPP Plus participation rate | AG58: 1
A59: WAExtra Large General ServiceVariable Peak Pricing RatesProgram Dropout Rate (Attrition) | B59: WA | C59: Extra Large General Service | D59: Variable Peak Pricing Rates | E59: Program Dropout Rate (Attrition) | F59: % | G59: 0.02 | H59: 0.02 | I59: 0.02 | J59: 0.02 | K59: 0.02 | L59: 0.02 | M59: 0.02 | N59: 0.02 | O59: 0.02 | P59: 0.02 | Q59: 0.02 | R59: 0.02 | S59: 0.02 | T59: 0.02 | U59: 0.02 | V59: 0.02 | W59: 0.02 | X59: 0.02 | Y59: 0.02 | Z59: 0.02 | AA59: 0.02 | AB59: 0.02 | AC59: 0.02 | AD59: 0.02 | AE59: 0.02 | AF59: High Case- OG&E's VPP Plus participation rate | AG59: 1
A60: WALarge General ServiceReal Time PricingMarket Potential | B60: WA | C60: Large General Service | D60: Real Time Pricing | E60: Market Potential | F60: % of Eligible Customers | AG60: 1
A61: WALarge General ServiceReal Time PricingProgram Dropout Rate (Attrition) | B61: WA | C61: Large General Service | D61: Real Time Pricing | E61: Program Dropout Rate (Attrition) | F61: % | AG61: 1
A62: WAExtra Large General ServiceReal Time PricingMarket Potential | B62: WA | C62: Extra Large General Service | D62: Real Time Pricing | E62: Market Potential | F62: % of Eligible Customers | AG62: 1
A63: WAExtra Large General ServiceReal Time PricingProgram Dropout Rate (Attrition) | B63: WA | C63: Extra Large General Service | D63: Real Time Pricing | E63: Program Dropout Rate (Attrition) | F63: % | AG63: 1
A64: WAGeneral ServiceThermal Energy StorageMarket Potential | B64: WA | C64: General Service | D64: Thermal Energy Storage | E64: Market Potential | F64: % of Eligible Customers | G64: 0.0005 | H64: 0.0015 | I64: 0.0035 | J64: 0.0045 | K64: 0.005 | L64: 0.005 | M64: 0.005 | N64: 0.005 | O64: 0.005 | P64: 0.005 | Q64: 0.005 | R64: 0.005 | S64: 0.005 | T64: 0.005 | U64: 0.005 | V64: 0.005 | W64: 0.005 | X64: 0.005 | Y64: 0.005 | Z64: 0.005 | AA64: 0.005 | AB64: 0.005 | AC64: 0.005 | AD64: 0.005 | AE64: 0.005 | AF64: Don't expect much participation - 0.5% | AG64: 1
A65: WAGeneral ServiceThermal Energy StorageProgram Dropout Rate (Attrition) | B65: WA | C65: General Service | D65: Thermal Energy Storage | E65: Program Dropout Rate (Attrition) | F65: % | G65: 0.01 | H65: 0.01 | I65: 0.01 | J65: 0.01 | K65: 0.01 | L65: 0.01 | M65: 0.01 | N65: 0.01 | O65: 0.01 | P65: 0.01 | Q65: 0.01 | R65: 0.01 | S65: 0.01 | T65: 0.01 | U65: 0.01 | V65: 0.01 | W65: 0.01 | X65: 0.01 | Y65: 0.01 | Z65: 0.01 | AA65: 0.01 | AB65: 0.01 | AC65: 0.01 | AD65: 0.01 | AE65: 0.01 | AF65: Don't expect much participation - 0.5% | AG65: 1
A66: =B66&C66&D66&E66 -> WALarge General ServiceThermal Energy StorageMarket Potential | B66: WA | C66: Large General Service | D66: Thermal Energy Storage | E66: Market Potential | F66: % of Eligible Customers | G66: 0.0015 | H66: 0.0045 | I66: 0.0105 | J66: 0.0135 | K66: 0.015 | L66: 0.015 | M66: 0.015 | N66: 0.015 | O66: 0.015 | P66: 0.015 | Q66: 0.015 | R66: 0.015 | S66: 0.015 | T66: 0.015 | U66: 0.015 | V66: 0.015 | W66: 0.015 | X66: 0.015 | Y66: 0.015 | Z66: 0.015 | AA66: 0.015 | AB66: 0.015 | AC66: 0.015 | AD66: 0.015 | AE66: 0.015 | AF66: Low participation is 1/2 DLC CAC | AG66: 1
A67: WALarge General ServiceThermal Energy StorageProgram Dropout Rate (Attrition) | B67: WA | C67: Large General Service | D67: Thermal Energy Storage | E67: Program Dropout Rate (Attrition) | F67: % | G67: 0.01 | H67: 0.01 | I67: 0.01 | J67: 0.01 | K67: 0.01 | L67: 0.01 | M67: 0.01 | N67: 0.01 | O67: 0.01 | P67: 0.01 | Q67: 0.01 | R67: 0.01 | S67: 0.01 | T67: 0.01 | U67: 0.01 | V67: 0.01 | W67: 0.01 | X67: 0.01 | Y67: 0.01 | Z67: 0.01 | AA67: 0.01 | AB67: 0.01 | AC67: 0.01 | AD67: 0.01 | AE67: 0.01 | AF67: Low participation is 1/2 DLC CAC | AG67: 1
A68: WAExtra Large General ServiceThermal Energy StorageMarket Potential | B68: WA | C68: Extra Large General Service | D68: Thermal Energy Storage | E68: Market Potential | F68: % of Eligible Customers | G68: 0.0015 | H68: 0.0045 | I68: 0.0105 | J68: 0.0135 | K68: 0.015 | L68: 0.015 | M68: 0.015 | N68: 0.015 | O68: 0.015 | P68: 0.015 | Q68: 0.015 | R68: 0.015 | S68: 0.015 | T68: 0.015 | U68: 0.015 | V68: 0.015 | W68: 0.015 | X68: 0.015 | Y68: 0.015 | Z68: 0.015 | AA68: 0.015 | AB68: 0.015 | AC68: 0.015 | AD68: 0.015 | AE68: 0.015 | AF68: Low participation is 1/2 DLC CAC | AG68: 1
A69: WAExtra Large General ServiceThermal Energy StorageProgram Dropout Rate (Attrition) | B69: WA | C69: Extra Large General Service | D69: Thermal Energy Storage | E69: Program Dropout Rate (Attrition) | F69: % | G69: 0.01 | H69: 0.01 | I69: 0.01 | J69: 0.01 | K69: 0.01 | L69: 0.01 | M69: 0.01 | N69: 0.01 | O69: 0.01 | P69: 0.01 | Q69: 0.01 | R69: 0.01 | S69: 0.01 | T69: 0.01 | U69: 0.01 | V69: 0.01 | W69: 0.01 | X69: 0.01 | Y69: 0.01 | Z69: 0.01 | AA69: 0.01 | AB69: 0.01 | AC69: 0.01 | AD69: 0.01 | AE69: 0.01 | AF69: Low participation is 1/2 DLC CAC | AG69: 1
A70: WAResidentialBattery Energy StorageMarket Potential | B70: WA | C70: Residential | D70: Battery Energy Storage | E70: Market Potential | F70: % of Eligible Customers | G70: 0.0001 | H70: 0.0003 | I70: 0.0005 | J70: 0.0008 | K70: 0.0011 | L70: 0.0014 | M70: 0.0017 | N70: 0.0021 | O70: 0.0025 | P70: 0.0029 | Q70: 0.0034 | R70: 0.0039 | S70: 0.0044 | T70: 0.005 | U70: 0.005 | V70: 0.005 | W70: 0.005 | X70: 0.005 | Y70: 0.005 | Z70: 0.005 | AA70: 0.005 | AB70: 0.005 | AC70: 0.005 | AD70: 0.005 | AE70: 0.005 | AF70: 20% from MISO LRZ 7. Assuming half for high and half again for low. *halved again 9-14-17, as per discussion with Kelly - potential looked too high. Pacificorp study didn't consider this program | AG70: 1
A71: WAResidentialBattery Energy StorageProgram Dropout Rate (Attrition) | B71: WA | C71: Residential | D71: Battery Energy Storage | E71: Program Dropout Rate (Attrition) | F71: % | G71: 0 | H71: 0 | I71: 0 | J71: 0 | K71: 0 | L71: 0 | M71: 0 | N71: 0 | O71: 0 | P71: 0 | Q71: 0 | R71: 0 | S71: 0 | T71: 0 | U71: 0 | V71: 0 | W71: 0 | X71: 0 | Y71: 0 | Z71: 0 | AA71: 0 | AB71: 0 | AC71: 0 | AD71: 0 | AE71: 0 | AF71: 20% from MISO LRZ 7. Assuming half for high and half again for low. *halved again 9-14-17, as per discussion with Kelly - potential looked too high. Pacificorp study didn't consider this program | AG71: 1
A72: WAGeneral ServiceBattery Energy StorageMarket Potential | B72: WA | C72: General Service | D72: Battery Energy Storage | E72: Market Potential | F72: % of Eligible Customers | G72: 0.0001 | H72: 0.0003 | I72: 0.0005 | J72: 0.0008 | K72: 0.0011 | L72: 0.0014 | M72: 0.0017 | N72: 0.0021 | O72: 0.0025 | P72: 0.0029 | Q72: 0.0034 | R72: 0.0039 | S72: 0.0044 | T72: 0.005 | U72: 0.005 | V72: 0.005 | W72: 0.005 | X72: 0.005 | Y72: 0.005 | Z72: 0.005 | AA72: 0.005 | AB72: 0.005 | AC72: 0.005 | AD72: 0.005 | AE72: 0.005 | AF72: Same as Residential | AG72: 1
A73: WAGeneral ServiceBattery Energy StorageProgram Dropout Rate (Attrition) | B73: WA | C73: General Service | D73: Battery Energy Storage | E73: Program Dropout Rate (Attrition) | F73: % | G73: 0 | H73: 0 | I73: 0 | J73: 0 | K73: 0 | L73: 0 | M73: 0 | N73: 0 | O73: 0 | P73: 0 | Q73: 0 | R73: 0 | S73: 0 | T73: 0 | U73: 0 | V73: 0 | W73: 0 | X73: 0 | Y73: 0 | Z73: 0 | AA73: 0 | AB73: 0 | AC73: 0 | AD73: 0 | AE73: 0 | AF73: Same as Residential | AG73: 1
A74: WALarge General ServiceBattery Energy StorageMarket Potential | B74: WA | C74: Large General Service | D74: Battery Energy Storage | E74: Market Potential | F74: % of Eligible Customers | G74: 0.0001 | H74: 0.0003 | I74: 0.0005 | J74: 0.0008 | K74: 0.0011 | L74: 0.0014 | M74: 0.0017 | N74: 0.0021 | O74: 0.0025 | P74: 0.0029 | Q74: 0.0034 | R74: 0.0039 | S74: 0.0044 | T74: 0.005 | U74: 0.005 | V74: 0.005 | W74: 0.005 | X74: 0.005 | Y74: 0.005 | Z74: 0.005 | AA74: 0.005 | AB74: 0.005 | AC74: 0.005 | AD74: 0.005 | AE74: 0.005 | AF74: Same as Residential | AG74: 1
A75: WALarge General ServiceBattery Energy StorageProgram Dropout Rate (Attrition) | B75: WA | C75: Large General Service | D75: Battery Energy Storage | E75: Program Dropout Rate (Attrition) | F75: % | G75: 0 | H75: 0 | I75: 0 | J75: 0 | K75: 0 | L75: 0 | M75: 0 | N75: 0 | O75: 0 | P75: 0 | Q75: 0 | R75: 0 | S75: 0 | T75: 0 | U75: 0 | V75: 0 | W75: 0 | X75: 0 | Y75: 0 | Z75: 0 | AA75: 0 | AB75: 0 | AC75: 0 | AD75: 0 | AE75: 0 | AF75: Same as Residential | AG75: 1
A76: WAExtra Large General ServiceBattery Energy StorageMarket Potential | B76: WA | C76: Extra Large General Service | D76: Battery Energy Storage | E76: Market Potential | F76: % of Eligible Customers | G76: 0.0001 | H76: 0.0003 | I76: 0.0005 | J76: 0.0008 | K76: 0.0011 | L76: 0.0014 | M76: 0.0017 | N76: 0.0021 | O76: 0.0025 | P76: 0.0029 | Q76: 0.0034 | R76: 0.0039 | S76: 0.0044 | T76: 0.005 | U76: 0.005 | V76: 0.005 | W76: 0.005 | X76: 0.005 | Y76: 0.005 | Z76: 0.005 | AA76: 0.005 | AB76: 0.005 | AC76: 0.005 | AD76: 0.005 | AE76: 0.005 | AF76: Same as Residential | AG76: 1
A77: WAExtra Large General ServiceBattery Energy StorageProgram Dropout Rate (Attrition) | B77: WA | C77: Extra Large General Service | D77: Battery Energy Storage | E77: Program Dropout Rate (Attrition) | F77: % | G77: 0 | H77: 0 | I77: 0 | J77: 0 | K77: 0 | L77: 0 | M77: 0 | N77: 0 | O77: 0 | P77: 0 | Q77: 0 | R77: 0 | S77: 0 | T77: 0 | U77: 0 | V77: 0 | W77: 0 | X77: 0 | Y77: 0 | Z77: 0 | AA77: 0 | AB77: 0 | AC77: 0 | AD77: 0 | AE77: 0 | AF77: Same as Residential | AG77: 1
A78: WAResidentialAncillary ServicesMarket Potential | B78: WA | C78: Residential | D78: Ancillary Services | E78: Market Potential | F78: % of Eligible Customers | AG78: 1
A79: WAResidentialAncillary ServicesProgram Dropout Rate (Attrition) | B79: WA | C79: Residential | D79: Ancillary Services | E79: Program Dropout Rate (Attrition) | F79: % | AG79: 1
A80: WAGeneral ServiceAncillary ServicesMarket Potential | B80: WA | C80: General Service | D80: Ancillary Services | E80: Market Potential | F80: % of Eligible Customers | AG80: 1
A81: WAGeneral ServiceAncillary ServicesProgram Dropout Rate (Attrition) | B81: WA | C81: General Service | D81: Ancillary Services | E81: Program Dropout Rate (Attrition) | F81: % | AG81: 1
A82: WALarge General ServiceAncillary ServicesMarket Potential | B82: WA | C82: Large General Service | D82: Ancillary Services | E82: Market Potential | F82: % of Eligible Customers | AG82: 1
A83: WALarge General ServiceAncillary ServicesProgram Dropout Rate (Attrition) | B83: WA | C83: Large General Service | D83: Ancillary Services | E83: Program Dropout Rate (Attrition) | F83: % | AG83: 1
A84: WAExtra Large General ServiceAncillary ServicesMarket Potential | B84: WA | C84: Extra Large General Service | D84: Ancillary Services | E84: Market Potential | F84: % of Eligible Customers | AG84: 1
A85: WAExtra Large General ServiceAncillary ServicesProgram Dropout Rate (Attrition) | B85: WA | C85: Extra Large General Service | D85: Ancillary Services | E85: Program Dropout Rate (Attrition) | F85: % | AG85: 1
A86: IDResidentialBehavioralMarket Potential | B86: ID | C86: Residential | D86: Behavioral | E86: Market Potential | F86: % of Eligible Customers | G86: 0.05 | H86: 0.1 | I86: 0.17 | J86: 0.2 | K86: 0.2 | L86: 0.2 | M86: 0.2 | N86: 0.2 | O86: 0.2 | P86: 0.2 | Q86: 0.2 | R86: 0.2 | S86: 0.2 | T86: 0.2 | U86: 0.2 | V86: 0.2 | W86: 0.2 | X86: 0.2 | Y86: 0.2 | Z86: 0.2 | AA86: 0.2 | AB86: 0.2 | AC86: 0.2 | AD86: 0.2 | AE86: 0.2 | AF86: high rate based on PG&E rollout with six waves http://www.calmac.org/publications/DNVGL_PGE_HERs_2015_final_to_calmac.pdf --> PC study has high case at 0% --> shif to 25%? | AG86: 1
A87: IDResidentialBehavioralProgram Dropout Rate (Attrition) | B87: ID | C87: Residential | D87: Behavioral | E87: Program Dropout Rate (Attrition) | F87: % | G87: 0.02 | H87: 0.02 | I87: 0.02 | J87: 0.02 | K87: 0.02 | L87: 0.02 | M87: 0.02 | N87: 0.02 | O87: 0.02 | P87: 0.02 | Q87: 0.02 | R87: 0.02 | S87: 0.02 | T87: 0.02 | U87: 0.02 | V87: 0.02 | W87: 0.02 | X87: 0.02 | Y87: 0.02 | Z87: 0.02 | AA87: 0.02 | AB87: 0.02 | AC87: 0.02 | AD87: 0.02 | AE87: 0.02 | AF87: high rate based on PG&E rollout with six waves http://www.calmac.org/publications/DNVGL_PGE_HERs_2015_final_to_calmac.pdf --> PC study has high case at 0% --> shif to 25%? | AG87: 1
A88: IDResidentialDLC Electric Vehicle ChargingMarket Potential | B88: ID | C88: Residential | D88: DLC Electric Vehicle Charging | E88: Market Potential | F88: % of Eligible Customers | G88: 0.025 | H88: 0.075 | I88: 0.175 | J88: 0.225 | K88: 0.25 | L88: 0.25 | M88: 0.25 | N88: 0.25 | O88: 0.25 | P88: 0.25 | Q88: 0.25 | R88: 0.25 | S88: 0.25 | T88: 0.25 | U88: 0.25 | V88: 0.25 | W88: 0.25 | X88: 0.25 | Y88: 0.25 | Z88: 0.25 | AA88: 0.25 | AB88: 0.25 | AC88: 0.25 | AD88: 0.25 | AE88: 0.25 | AF88: Prelim Assumption: One Third of TOU Demand Rate w EV. This participation rate will be throttled / scaled using the equipment saturation for EVs, which will be quite low. | AG88: 1
A89: IDResidentialDLC Electric Vehicle ChargingProgram Dropout Rate (Attrition) | B89: ID | C89: Residential | D89: DLC Electric Vehicle Charging | E89: Program Dropout Rate (Attrition) | F89: % | G89: 0.01 | H89: 0.01 | I89: 0.01 | J89: 0.01 | K89: 0.01 | L89: 0.01 | M89: 0.01 | N89: 0.01 | O89: 0.01 | P89: 0.01 | Q89: 0.01 | R89: 0.01 | S89: 0.01 | T89: 0.01 | U89: 0.01 | V89: 0.01 | W89: 0.01 | X89: 0.01 | Y89: 0.01 | Z89: 0.01 | AA89: 0.01 | AB89: 0.01 | AC89: 0.01 | AD89: 0.01 | AE89: 0.01 | AF89: Prelim Assumption: One Third of TOU Demand Rate w EV. This participation rate will be throttled / scaled using the equipment saturation for EVs, which will be quite low. | AG89: 1
A90: IDResidentialDLC Central ACMarket Potential | B90: ID | C90: Residential | D90: DLC Central AC | E90: Market Potential | F90: % of Eligible Customers | G90: 0.01 | H90: 0.03 | I90: 0.07 | J90: 0.09 | K90: 0.1 | L90: 0.1 | M90: 0.1 | N90: 0.1 | O90: 0.1 | P90: 0.1 | Q90: 0.1 | R90: 0.1 | S90: 0.1 | T90: 0.1 | U90: 0.1 | V90: 0.1 | W90: 0.1 | X90: 0.1 | Y90: 0.1 | Z90: 0.1 | AA90: 0.1 | AB90: 0.1 | AC90: 0.1 | AD90: 0.1 | AE90: 0.1 | AF90: NWPC DLC Switch cooling assumption- 5 yr ramp rate | AG90: 1
A91: IDResidentialDLC Central ACProgram Dropout Rate (Attrition) | B91: ID | C91: Residential | D91: DLC Central AC | E91: Program Dropout Rate (Attrition) | F91: % | G91: 0.01 | H91: 0.01 | I91: 0.01 | J91: 0.01 | K91: 0.01 | L91: 0.01 | M91: 0.01 | N91: 0.01 | O91: 0.01 | P91: 0.01 | Q91: 0.01 | R91: 0.01 | S91: 0.01 | T91: 0.01 | U91: 0.01 | V91: 0.01 | W91: 0.01 | X91: 0.01 | Y91: 0.01 | Z91: 0.01 | AA91: 0.01 | AB91: 0.01 | AC91: 0.01 | AD91: 0.01 | AE91: 0.01 | AF91: NWPC DLC Switch cooling assumption- 5 yr ramp rate | AG91: 1
A92: IDGeneral ServiceDLC Central ACMarket Potential | B92: ID | C92: General Service | D92: DLC Central AC | E92: Market Potential | F92: % of Eligible Customers | G92: 0.01 | H92: 0.03 | I92: 0.07 | J92: 0.09 | K92: 0.1 | L92: 0.1 | M92: 0.1 | N92: 0.1 | O92: 0.1 | P92: 0.1 | Q92: 0.1 | R92: 0.1 | S92: 0.1 | T92: 0.1 | U92: 0.1 | V92: 0.1 | W92: 0.1 | X92: 0.1 | Y92: 0.1 | Z92: 0.1 | AA92: 0.1 | AB92: 0.1 | AC92: 0.1 | AD92: 0.1 | AE92: 0.1 | AF92: NWPC DLC Switch cooling assumption- 5 yr ramp rate | AG92: 1
A93: IDGeneral ServiceDLC Central ACProgram Dropout Rate (Attrition) | B93: ID | C93: General Service | D93: DLC Central AC | E93: Program Dropout Rate (Attrition) | F93: % | G93: 0.01 | H93: 0.01 | I93: 0.01 | J93: 0.01 | K93: 0.01 | L93: 0.01 | M93: 0.01 | N93: 0.01 | O93: 0.01 | P93: 0.01 | Q93: 0.01 | R93: 0.01 | S93: 0.01 | T93: 0.01 | U93: 0.01 | V93: 0.01 | W93: 0.01 | X93: 0.01 | Y93: 0.01 | Z93: 0.01 | AA93: 0.01 | AB93: 0.01 | AC93: 0.01 | AD93: 0.01 | AE93: 0.01 | AF93: NWPC DLC Switch cooling assumption- 5 yr ramp rate | AG93: 1
A94: IDResidentialDLC Water HeatingMarket Potential | B94: ID | C94: Residential | D94: DLC Water Heating | E94: Market Potential | F94: % of Eligible Customers | G94: 0.015 | H94: 0.045 | I94: 0.105 | J94: 0.135 | K94: 0.15 | L94: 0.15 | M94: 0.15 | N94: 0.15 | O94: 0.15 | P94: 0.15 | Q94: 0.15 | R94: 0.15 | S94: 0.15 | T94: 0.15 | U94: 0.15 | V94: 0.15 | W94: 0.15 | X94: 0.15 | Y94: 0.15 | Z94: 0.15 | AA94: 0.15 | AB94: 0.15 | AC94: 0.15 | AD94: 0.15 | AE94: 0.15 | AF94: Ensure population applies to the subset of customers participating in AC or Space Heating DLC | AG94: 1
A95: IDResidentialDLC Water HeatingProgram Dropout Rate (Attrition) | B95: ID | C95: Residential | D95: DLC Water Heating | E95: Program Dropout Rate (Attrition) | F95: % | G95: 0.01 | H95: 0.01 | I95: 0.01 | J95: 0.01 | K95: 0.01 | L95: 0.01 | M95: 0.01 | N95: 0.01 | O95: 0.01 | P95: 0.01 | Q95: 0.01 | R95: 0.01 | S95: 0.01 | T95: 0.01 | U95: 0.01 | V95: 0.01 | W95: 0.01 | X95: 0.01 | Y95: 0.01 | Z95: 0.01 | AA95: 0.01 | AB95: 0.01 | AC95: 0.01 | AD95: 0.01 | AE95: 0.01 | AF95: Ensure population applies to the subset of customers participating in AC or Space Heating DLC | AG95: 1
A96: IDGeneral ServiceDLC Water HeatingMarket Potential | B96: ID | C96: General Service | D96: DLC Water Heating | E96: Market Potential | F96: % of Eligible Customers | G96: 0.005 | H96: 0.015 | I96: 0.035 | J96: 0.045 | K96: 0.05 | L96: 0.05 | M96: 0.05 | N96: 0.05 | O96: 0.05 | P96: 0.05 | Q96: 0.05 | R96: 0.05 | S96: 0.05 | T96: 0.05 | U96: 0.05 | V96: 0.05 | W96: 0.05 | X96: 0.05 | Y96: 0.05 | Z96: 0.05 | AA96: 0.05 | AB96: 0.05 | AC96: 0.05 | AD96: 0.05 | AE96: 0.05 | AF96: * Changed from 3% to reflect a Brattle Study to the left that estimates 5-10% | AG96: 1
A97: IDGeneral ServiceDLC Water HeatingProgram Dropout Rate (Attrition) | B97: ID | C97: General Service | D97: DLC Water Heating | E97: Program Dropout Rate (Attrition) | F97: % | G97: 0.01 | H97: 0.01 | I97: 0.01 | J97: 0.01 | K97: 0.01 | L97: 0.01 | M97: 0.01 | N97: 0.01 | O97: 0.01 | P97: 0.01 | Q97: 0.01 | R97: 0.01 | S97: 0.01 | T97: 0.01 | U97: 0.01 | V97: 0.01 | W97: 0.01 | X97: 0.01 | Y97: 0.01 | Z97: 0.01 | AA97: 0.01 | AB97: 0.01 | AC97: 0.01 | AD97: 0.01 | AE97: 0.01 | AF97: * Changed from 3% to reflect a Brattle Study to the left that estimates 5-10% | AG97: 1
A98: IDResidentialCTA-2045 WHMarket Potential | B98: ID | C98: Residential | D98: CTA-2045 WH | E98: Market Potential | F98: % of Eligible Customers | G98: 0 | H98: 0 | I98: 0 | J98: 0 | K98: 0 | L98: 0 | M98: 0 | N98: 0 | O98: 0 | P98: 0 | Q98: 0 | R98: 0 | S98: 0 | T98: 0 | U98: 0 | V98: 0 | W98: 0 | X98: 0 | Y98: 0 | Z98: 0 | AA98: 0 | AB98: 0 | AC98: 0 | AD98: 0 | AE98: 0 | AF98: NWPC Electric Resistance Grid-Ready Summer/Winter Participation- 10 yr ramp rate | AG98: 1
A99: IDResidentialCTA-2045 WHProgram Dropout Rate (Attrition) | B99: ID | C99: Residential | D99: CTA-2045 WH | E99: Program Dropout Rate (Attrition) | F99: % | G99: 0 | H99: 0 | I99: 0 | J99: 0 | K99: 0 | L99: 0 | M99: 0 | N99: 0 | O99: 0 | P99: 0 | Q99: 0 | R99: 0 | S99: 0 | T99: 0 | U99: 0 | V99: 0 | W99: 0 | X99: 0 | Y99: 0 | Z99: 0 | AA99: 0 | AB99: 0 | AC99: 0 | AD99: 0 | AE99: 0 | AF99: NWPC Electric Resistance Grid-Ready Summer/Winter Participation- 10 yr ramp rate | AG99: 1
A100: IDGeneral ServiceCTA-2045 WHMarket Potential | B100: ID | C100: General Service | D100: CTA-2045 WH | E100: Market Potential | F100: % of Eligible Customers | G100: 0 | H100: 0 | I100: 0 | J100: 0 | K100: 0 | L100: 0 | M100: 0 | N100: 0 | O100: 0 | P100: 0 | Q100: 0 | R100: 0 | S100: 0 | T100: 0 | U100: 0 | V100: 0 | W100: 0 | X100: 0 | Y100: 0 | Z100: 0 | AA100: 0 | AB100: 0 | AC100: 0 | AD100: 0 | AE100: 0 | AF100: NWPC Electric Resistance Grid-Ready Summer/Winter Participation- 10 yr ramp rate | AG100: 1
A101: IDGeneral ServiceCTA-2045 WHProgram Dropout Rate (Attrition) | B101: ID | C101: General Service | D101: CTA-2045 WH | E101: Program Dropout Rate (Attrition) | F101: % | G101: 0 | H101: 0 | I101: 0 | J101: 0 | K101: 0 | L101: 0 | M101: 0 | N101: 0 | O101: 0 | P101: 0 | Q101: 0 | R101: 0 | S101: 0 | T101: 0 | U101: 0 | V101: 0 | W101: 0 | X101: 0 | Y101: 0 | Z101: 0 | AA101: 0 | AB101: 0 | AC101: 0 | AD101: 0 | AE101: 0 | AF101: NWPC Electric Resistance Grid-Ready Summer/Winter Participation- 10 yr ramp rate | AG101: 1
A102: IDResidentialDLC Smart Thermostats - CoolingMarket Potential | B102: ID | C102: Residential | D102: DLC Smart Thermostats - Cooling | E102: Market Potential | F102: % of Eligible Customers | G102: 0.02 | H102: 0.06 | I102: 0.14 | J102: 0.18 | K102: 0.2 | L102: 0.2 | M102: 0.2 | N102: 0.2 | O102: 0.2 | P102: 0.2 | Q102: 0.2 | R102: 0.2 | S102: 0.2 | T102: 0.2 | U102: 0.2 | V102: 0.2 | W102: 0.2 | X102: 0.2 | Y102: 0.2 | Z102: 0.2 | AA102: 0.2 | AB102: 0.2 | AC102: 0.2 | AD102: 0.2 | AE102: 0.2 | AF102: NWPC Smart Thermostat cooling assumption- 5 yr ramp rate | AG102: 1
A103: IDResidentialDLC Smart Thermostats - CoolingProgram Dropout Rate (Attrition) | B103: ID | C103: Residential | D103: DLC Smart Thermostats - Cooling | E103: Program Dropout Rate (Attrition) | F103: % | G103: 0.01 | H103: 0.01 | I103: 0.01 | J103: 0.01 | K103: 0.01 | L103: 0.01 | M103: 0.01 | N103: 0.01 | O103: 0.01 | P103: 0.01 | Q103: 0.01 | R103: 0.01 | S103: 0.01 | T103: 0.01 | U103: 0.01 | V103: 0.01 | W103: 0.01 | X103: 0.01 | Y103: 0.01 | Z103: 0.01 | AA103: 0.01 | AB103: 0.01 | AC103: 0.01 | AD103: 0.01 | AE103: 0.01 | AF103: NWPC Smart Thermostat cooling assumption- 5 yr ramp rate | AG103: 1
A104: IDGeneral ServiceDLC Smart Thermostats - CoolingMarket Potential | B104: ID | C104: General Service | D104: DLC Smart Thermostats - Cooling | E104: Market Potential | F104: % of Eligible Customers | G104: 0.02 | H104: 0.06 | I104: 0.14 | J104: 0.18 | K104: 0.2 | L104: 0.2 | M104: 0.2 | N104: 0.2 | O104: 0.2 | P104: 0.2 | Q104: 0.2 | R104: 0.2 | S104: 0.2 | T104: 0.2 | U104: 0.2 | V104: 0.2 | W104: 0.2 | X104: 0.2 | Y104: 0.2 | Z104: 0.2 | AA104: 0.2 | AB104: 0.2 | AC104: 0.2 | AD104: 0.2 | AE104: 0.2 | AF104: NWPC Smart Thermostat cooling assumption- 5 yr ramp rate | AG104: 1
A105: IDGeneral ServiceDLC Smart Thermostats - CoolingProgram Dropout Rate (Attrition) | B105: ID | C105: General Service | D105: DLC Smart Thermostats - Cooling | E105: Program Dropout Rate (Attrition) | F105: % | G105: 0.01 | H105: 0.01 | I105: 0.01 | J105: 0.01 | K105: 0.01 | L105: 0.01 | M105: 0.01 | N105: 0.01 | O105: 0.01 | P105: 0.01 | Q105: 0.01 | R105: 0.01 | S105: 0.01 | T105: 0.01 | U105: 0.01 | V105: 0.01 | W105: 0.01 | X105: 0.01 | Y105: 0.01 | Z105: 0.01 | AA105: 0.01 | AB105: 0.01 | AC105: 0.01 | AD105: 0.01 | AE105: 0.01 | AF105: NWPC Smart Thermostat cooling assumption- 5 yr ramp rate | AG105: 1
A106: IDResidentialDLC Smart Thermostats - HeatingMarket Potential | B106: ID | C106: Residential | D106: DLC Smart Thermostats - Heating | E106: Market Potential | F106: % of Eligible Customers | G106: 0.005 | H106: 0.015 | I106: 0.035 | J106: 0.045 | K106: 0.05 | L106: 0.05 | M106: 0.05 | N106: 0.05 | O106: 0.05 | P106: 0.05 | Q106: 0.05 | R106: 0.05 | S106: 0.05 | T106: 0.05 | U106: 0.05 | V106: 0.05 | W106: 0.05 | X106: 0.05 | Y106: 0.05 | Z106: 0.05 | AA106: 0.05 | AB106: 0.05 | AC106: 0.05 | AD106: 0.05 | AE106: 0.05 | AF106: Assuming maximum participation for combined DLC Cooling and Smart Therm is 25%, reduced from 30% to account for those program participants who may have intended to participate but were unable to correctly install their thermostat | AG106: 1
A107: IDResidentialDLC Smart Thermostats - HeatingProgram Dropout Rate (Attrition) | B107: ID | C107: Residential | D107: DLC Smart Thermostats - Heating | E107: Program Dropout Rate (Attrition) | F107: % | G107: 0.01 | H107: 0.01 | I107: 0.01 | J107: 0.01 | K107: 0.01 | L107: 0.01 | M107: 0.01 | N107: 0.01 | O107: 0.01 | P107: 0.01 | Q107: 0.01 | R107: 0.01 | S107: 0.01 | T107: 0.01 | U107: 0.01 | V107: 0.01 | W107: 0.01 | X107: 0.01 | Y107: 0.01 | Z107: 0.01 | AA107: 0.01 | AB107: 0.01 | AC107: 0.01 | AD107: 0.01 | AE107: 0.01 | AF107: Assuming maximum participation for combined DLC Cooling and Smart Therm is 25%, reduced from 30% to account for those program participants who may have intended to participate but were unable to correctly install their thermostat | AG107: 1
A108: IDGeneral ServiceDLC Smart Thermostats - HeatingMarket Potential | B108: ID | C108: General Service | D108: DLC Smart Thermostats - Heating | E108: Market Potential | F108: % of Eligible Customers | G108: 0.003 | H108: 0.009 | I108: 0.021 | J108: 0.027 | K108: 0.03 | L108: 0.03 | M108: 0.03 | N108: 0.03 | O108: 0.03 | P108: 0.03 | Q108: 0.03 | R108: 0.03 | S108: 0.03 | T108: 0.03 | U108: 0.03 | V108: 0.03 | W108: 0.03 | X108: 0.03 | Y108: 0.03 | Z108: 0.03 | AA108: 0.03 | AB108: 0.03 | AC108: 0.03 | AD108: 0.03 | AE108: 0.03 | AF108: Dropping to 3% to compensate for higher space heating saturations | AG108: 1
A109: IDGeneral ServiceDLC Smart Thermostats - HeatingProgram Dropout Rate (Attrition) | B109: ID | C109: General Service | D109: DLC Smart Thermostats - Heating | E109: Program Dropout Rate (Attrition) | F109: % | G109: 0.01 | H109: 0.01 | I109: 0.01 | J109: 0.01 | K109: 0.01 | L109: 0.01 | M109: 0.01 | N109: 0.01 | O109: 0.01 | P109: 0.01 | Q109: 0.01 | R109: 0.01 | S109: 0.01 | T109: 0.01 | U109: 0.01 | V109: 0.01 | W109: 0.01 | X109: 0.01 | Y109: 0.01 | Z109: 0.01 | AA109: 0.01 | AB109: 0.01 | AC109: 0.01 | AD109: 0.01 | AE109: 0.01 | AF109: Dropping to 3% to compensate for higher space heating saturations | AG109: 1
A110: IDResidentialDLC Smart AppliancesMarket Potential | B110: ID | C110: Residential | D110: DLC Smart Appliances | E110: Market Potential | F110: % of Eligible Customers | G110: 0.005 | H110: 0.015 | I110: 0.035 | J110: 0.045 | K110: 0.05 | L110: 0.05 | M110: 0.05 | N110: 0.05 | O110: 0.05 | P110: 0.05 | Q110: 0.05 | R110: 0.05 | S110: 0.05 | T110: 0.05 | U110: 0.05 | V110: 0.05 | W110: 0.05 | X110: 0.05 | Y110: 0.05 | Z110: 0.05 | AA110: 0.05 | AB110: 0.05 | AC110: 0.05 | AD110: 0.05 | AE110: 0.05 | AF110: 2015 ISACA IT Risk Reward Barometer - US Consumer Results. October 2015. http://www.isaca.org/SiteCollectionDocuments/2015-risk-reward-survey/2015-isaca-risk-reward-consumer-summary-us_res_eng_1015.pdf | AG110: 1
A111: IDResidentialDLC Smart AppliancesProgram Dropout Rate (Attrition) | B111: ID | C111: Residential | D111: DLC Smart Appliances | E111: Program Dropout Rate (Attrition) | F111: % | G111: 0.01 | H111: 0.01 | I111: 0.01 | J111: 0.01 | K111: 0.01 | L111: 0.01 | M111: 0.01 | N111: 0.01 | O111: 0.01 | P111: 0.01 | Q111: 0.01 | R111: 0.01 | S111: 0.01 | T111: 0.01 | U111: 0.01 | V111: 0.01 | W111: 0.01 | X111: 0.01 | Y111: 0.01 | Z111: 0.01 | AA111: 0.01 | AB111: 0.01 | AC111: 0.01 | AD111: 0.01 | AE111: 0.01 | AF111: 2015 ISACA IT Risk Reward Barometer - US Consumer Results. October 2015. http://www.isaca.org/SiteCollectionDocuments/2015-risk-reward-survey/2015-isaca-risk-reward-consumer-summary-us_res_eng_1015.pdf | AG111: 1
A112: IDGeneral ServiceDLC Smart AppliancesMarket Potential | B112: ID | C112: General Service | D112: DLC Smart Appliances | E112: Market Potential | F112: % of Eligible Customers | G112: 0.005 | H112: 0.015 | I112: 0.035 | J112: 0.045 | K112: 0.05 | L112: 0.05 | M112: 0.05 | N112: 0.05 | O112: 0.05 | P112: 0.05 | Q112: 0.05 | R112: 0.05 | S112: 0.05 | T112: 0.05 | U112: 0.05 | V112: 0.05 | W112: 0.05 | X112: 0.05 | Y112: 0.05 | Z112: 0.05 | AA112: 0.05 | AB112: 0.05 | AC112: 0.05 | AD112: 0.05 | AE112: 0.05 | AF112: 2015 ISACA IT Risk Reward Barometer - US Consumer Results. October 2015. http://www.isaca.org/SiteCollectionDocuments/2015-risk-reward-survey/2015-isaca-risk-reward-consumer-summary-us_res_eng_1015.pdf | AG112: 1
A113: IDGeneral ServiceDLC Smart AppliancesProgram Dropout Rate (Attrition) | B113: ID | C113: General Service | D113: DLC Smart Appliances | E113: Program Dropout Rate (Attrition) | F113: % | G113: 0.01 | H113: 0.01 | I113: 0.01 | J113: 0.01 | K113: 0.01 | L113: 0.01 | M113: 0.01 | N113: 0.01 | O113: 0.01 | P113: 0.01 | Q113: 0.01 | R113: 0.01 | S113: 0.01 | T113: 0.01 | U113: 0.01 | V113: 0.01 | W113: 0.01 | X113: 0.01 | Y113: 0.01 | Z113: 0.01 | AA113: 0.01 | AB113: 0.01 | AC113: 0.01 | AD113: 0.01 | AE113: 0.01 | AF113: 2015 ISACA IT Risk Reward Barometer - US Consumer Results. October 2015. http://www.isaca.org/SiteCollectionDocuments/2015-risk-reward-survey/2015-isaca-risk-reward-consumer-summary-us_res_eng_1015.pdf | AG113: 1
A114: IDGeneral ServiceThird Party ContractsMarket Potential | B114: ID | C114: General Service | D114: Third Party Contracts | E114: Market Potential | F114: % of Eligible Customers | G114: 0.0375 | H114: 0.075 | I114: 0.1275 | J114: 0.15 | K114: 0.15 | L114: 0.15 | M114: 0.15 | N114: 0.15 | O114: 0.15 | P114: 0.15 | Q114: 0.15 | R114: 0.15 | S114: 0.15 | T114: 0.15 | U114: 0.15 | V114: 0.15 | W114: 0.15 | X114: 0.15 | Y114: 0.15 | Z114: 0.15 | AA114: 0.15 | AB114: 0.15 | AC114: 0.15 | AD114: 0.15 | AE114: 0.15 | AF114: MPSC Demand Response Market Assessment | AG114: 1
A115: IDGeneral ServiceThird Party ContractsProgram Dropout Rate (Attrition) | B115: ID | C115: General Service | D115: Third Party Contracts | E115: Program Dropout Rate (Attrition) | F115: % | G115: 0.02 | H115: 0.02 | I115: 0.02 | J115: 0.02 | K115: 0.02 | L115: 0.02 | M115: 0.02 | N115: 0.02 | O115: 0.02 | P115: 0.02 | Q115: 0.02 | R115: 0.02 | S115: 0.02 | T115: 0.02 | U115: 0.02 | V115: 0.02 | W115: 0.02 | X115: 0.02 | Y115: 0.02 | Z115: 0.02 | AA115: 0.02 | AB115: 0.02 | AC115: 0.02 | AD115: 0.02 | AE115: 0.02 | AF115: MPSC Demand Response Market Assessment | AG115: 1
A116: IDLarge General ServiceThird Party ContractsMarket Potential | B116: ID | C116: Large General Service | D116: Third Party Contracts | E116: Market Potential | F116: % of Eligible Customers | G116: 0.05525 | H116: 0.1105 | I116: 0.18785 | J116: 0.221 | K116: 0.221 | L116: 0.221 | M116: 0.221 | N116: 0.221 | O116: 0.221 | P116: 0.221 | Q116: 0.221 | R116: 0.221 | S116: 0.221 | T116: 0.221 | U116: 0.221 | V116: 0.221 | W116: 0.221 | X116: 0.221 | Y116: 0.221 | Z116: 0.221 | AA116: 0.221 | AB116: 0.221 | AC116: 0.221 | AD116: 0.221 | AE116: 0.221 | AF116: 0 | AG116: 1
A117: IDLarge General ServiceThird Party ContractsProgram Dropout Rate (Attrition) | B117: ID | C117: Large General Service | D117: Third Party Contracts | E117: Program Dropout Rate (Attrition) | F117: % | G117: 0.01 | H117: 0.01 | I117: 0.01 | J117: 0.01 | K117: 0.01 | L117: 0.01 | M117: 0.01 | N117: 0.01 | O117: 0.01 | P117: 0.01 | Q117: 0.01 | R117: 0.01 | S117: 0.01 | T117: 0.01 | U117: 0.01 | V117: 0.01 | W117: 0.01 | X117: 0.01 | Y117: 0.01 | Z117: 0.01 | AA117: 0.01 | AB117: 0.01 | AC117: 0.01 | AD117: 0.01 | AE117: 0.01 | AF117: 0 | AG117: 1
A118: IDExtra Large General ServiceThird Party ContractsMarket Potential | B118: ID | C118: Extra Large General Service | D118: Third Party Contracts | E118: Market Potential | F118: % of Eligible Customers | G118: 0.05225 | H118: 0.1045 | I118: 0.17765 | J118: 0.209 | K118: 0.209 | L118: 0.209 | M118: 0.209 | N118: 0.209 | O118: 0.209 | P118: 0.209 | Q118: 0.209 | R118: 0.209 | S118: 0.209 | T118: 0.209 | U118: 0.209 | V118: 0.209 | W118: 0.209 | X118: 0.209 | Y118: 0.209 | Z118: 0.209 | AA118: 0.209 | AB118: 0.209 | AC118: 0.209 | AD118: 0.209 | AE118: 0.209 | AF118: 0 | AG118: 1
A119: IDExtra Large General ServiceThird Party ContractsProgram Dropout Rate (Attrition) | B119: ID | C119: Extra Large General Service | D119: Third Party Contracts | E119: Program Dropout Rate (Attrition) | F119: % | G119: 0.01 | H119: 0.01 | I119: 0.01 | J119: 0.01 | K119: 0.01 | L119: 0.01 | M119: 0.01 | N119: 0.01 | O119: 0.01 | P119: 0.01 | Q119: 0.01 | R119: 0.01 | S119: 0.01 | T119: 0.01 | U119: 0.01 | V119: 0.01 | W119: 0.01 | X119: 0.01 | Y119: 0.01 | Z119: 0.01 | AA119: 0.01 | AB119: 0.01 | AC119: 0.01 | AD119: 0.01 | AE119: 0.01 | AF119: 0 | AG119: 1
A120: IDResidentialTime-of-Use Opt-inMarket Potential | B120: ID | C120: Residential | D120: Time-of-Use Opt-in | E120: Market Potential | F120: % of Eligible Customers | G120: 0.013 | H120: 0.039 | I120: 0.078 | J120: 0.117 | K120: 0.13 | L120: 0.13 | M120: 0.13 | N120: 0.13 | O120: 0.13 | P120: 0.13 | Q120: 0.13 | R120: 0.13 | S120: 0.13 | T120: 0.13 | U120: 0.13 | V120: 0.13 | W120: 0.13 | X120: 0.13 | Y120: 0.13 | Z120: 0.13 | AA120: 0.13 | AB120: 0.13 | AC120: 0.13 | AD120: 0.13 | AE120: 0.13 | AF120: Brattle Analysis and Estimate | AG120: 1
A121: IDResidentialTime-of-Use Opt-inProgram Dropout Rate (Attrition) | B121: ID | C121: Residential | D121: Time-of-Use Opt-in | E121: Program Dropout Rate (Attrition) | F121: % | G121: 0.01 | H121: 0.01 | I121: 0.01 | J121: 0.01 | K121: 0.01 | L121: 0.01 | M121: 0.01 | N121: 0.01 | O121: 0.01 | P121: 0.01 | Q121: 0.01 | R121: 0.01 | S121: 0.01 | T121: 0.01 | U121: 0.01 | V121: 0.01 | W121: 0.01 | X121: 0.01 | Y121: 0.01 | Z121: 0.01 | AA121: 0.01 | AB121: 0.01 | AC121: 0.01 | AD121: 0.01 | AE121: 0.01 | AF121: Brattle Analysis and Estimate | AG121: 1
A122: IDGeneral ServiceTime-of-Use Opt-inMarket Potential | B122: ID | C122: General Service | D122: Time-of-Use Opt-in | E122: Market Potential | F122: % of Eligible Customers | G122: 0.013 | H122: 0.039 | I122: 0.078 | J122: 0.117 | K122: 0.13 | L122: 0.13 | M122: 0.13 | N122: 0.13 | O122: 0.13 | P122: 0.13 | Q122: 0.13 | R122: 0.13 | S122: 0.13 | T122: 0.13 | U122: 0.13 | V122: 0.13 | W122: 0.13 | X122: 0.13 | Y122: 0.13 | Z122: 0.13 | AA122: 0.13 | AB122: 0.13 | AC122: 0.13 | AD122: 0.13 | AE122: 0.13 | AF122: Brattle opt-in case as high, 75% of high as low case- Using low case -9.8% | AG122: 1
A123: IDGeneral ServiceTime-of-Use Opt-inProgram Dropout Rate (Attrition) | B123: ID | C123: General Service | D123: Time-of-Use Opt-in | E123: Program Dropout Rate (Attrition) | F123: % | G123: 0.01 | H123: 0.01 | I123: 0.01 | J123: 0.01 | K123: 0.01 | L123: 0.01 | M123: 0.01 | N123: 0.01 | O123: 0.01 | P123: 0.01 | Q123: 0.01 | R123: 0.01 | S123: 0.01 | T123: 0.01 | U123: 0.01 | V123: 0.01 | W123: 0.01 | X123: 0.01 | Y123: 0.01 | Z123: 0.01 | AA123: 0.01 | AB123: 0.01 | AC123: 0.01 | AD123: 0.01 | AE123: 0.01 | AF123: Brattle opt-in case as high, 75% of high as low case- Using low case -9.8% | AG123: 1
A124: IDLarge General ServiceTime-of-Use Opt-inMarket Potential | B124: ID | C124: Large General Service | D124: Time-of-Use Opt-in | E124: Market Potential | F124: % of Eligible Customers | G124: 0.013 | H124: 0.039 | I124: 0.078 | J124: 0.117 | K124: 0.13 | L124: 0.13 | M124: 0.13 | N124: 0.13 | O124: 0.13 | P124: 0.13 | Q124: 0.13 | R124: 0.13 | S124: 0.13 | T124: 0.13 | U124: 0.13 | V124: 0.13 | W124: 0.13 | X124: 0.13 | Y124: 0.13 | Z124: 0.13 | AA124: 0.13 | AB124: 0.13 | AC124: 0.13 | AD124: 0.13 | AE124: 0.13 | AF124: Brattle opt-in case as high, 75% of high as low case- Using low case -9.8% | AG124: 1
A125: IDLarge General ServiceTime-of-Use Opt-inProgram Dropout Rate (Attrition) | B125: ID | C125: Large General Service | D125: Time-of-Use Opt-in | E125: Program Dropout Rate (Attrition) | F125: % | G125: 0.01 | H125: 0.01 | I125: 0.01 | J125: 0.01 | K125: 0.01 | L125: 0.01 | M125: 0.01 | N125: 0.01 | O125: 0.01 | P125: 0.01 | Q125: 0.01 | R125: 0.01 | S125: 0.01 | T125: 0.01 | U125: 0.01 | V125: 0.01 | W125: 0.01 | X125: 0.01 | Y125: 0.01 | Z125: 0.01 | AA125: 0.01 | AB125: 0.01 | AC125: 0.01 | AD125: 0.01 | AE125: 0.01 | AF125: Brattle opt-in case as high, 75% of high as low case- Using low case -9.8% | AG125: 1
A126: IDExtra Large General ServiceTime-of-Use Opt-inMarket Potential | B126: ID | C126: Extra Large General Service | D126: Time-of-Use Opt-in | E126: Market Potential | F126: % of Eligible Customers | G126: 0.013 | H126: 0.039 | I126: 0.078 | J126: 0.117 | K126: 0.13 | L126: 0.13 | M126: 0.13 | N126: 0.13 | O126: 0.13 | P126: 0.13 | Q126: 0.13 | R126: 0.13 | S126: 0.13 | T126: 0.13 | U126: 0.13 | V126: 0.13 | W126: 0.13 | X126: 0.13 | Y126: 0.13 | Z126: 0.13 | AA126: 0.13 | AB126: 0.13 | AC126: 0.13 | AD126: 0.13 | AE126: 0.13 | AF126: Brattle opt-in case as high, 75% of high as low case- Using low case -9.8% | AG126: 1
A127: IDExtra Large General ServiceTime-of-Use Opt-inProgram Dropout Rate (Attrition) | B127: ID | C127: Extra Large General Service | D127: Time-of-Use Opt-in | E127: Program Dropout Rate (Attrition) | F127: % | G127: 0.01 | H127: 0.01 | I127: 0.01 | J127: 0.01 | K127: 0.01 | L127: 0.01 | M127: 0.01 | N127: 0.01 | O127: 0.01 | P127: 0.01 | Q127: 0.01 | R127: 0.01 | S127: 0.01 | T127: 0.01 | U127: 0.01 | V127: 0.01 | W127: 0.01 | X127: 0.01 | Y127: 0.01 | Z127: 0.01 | AA127: 0.01 | AB127: 0.01 | AC127: 0.01 | AD127: 0.01 | AE127: 0.01 | AF127: Brattle opt-in case as high, 75% of high as low case- Using low case -9.8% | AG127: 1
A128: IDResidentialTime-of-Use Opt-outMarket Potential | B128: ID | C128: Residential | D128: Time-of-Use Opt-out | E128: Market Potential | F128: % of Eligible Customers | G128: 1 | H128: 0.854 | I128: 0.789 | J128: 0.756 | K128: 0.74 | L128: 0.74 | M128: 0.74 | N128: 0.74 | O128: 0.74 | P128: 0.74 | Q128: 0.74 | R128: 0.74 | S128: 0.74 | T128: 0.74 | U128: 0.74 | V128: 0.74 | W128: 0.74 | X128: 0.74 | Y128: 0.74 | Z128: 0.74 | AA128: 0.74 | AB128: 0.74 | AC128: 0.74 | AD128: 0.74 | AE128: 0.74 | AF128: Brattle opt-out case | AG128: 1
A129: IDResidentialTime-of-Use Opt-outProgram Dropout Rate (Attrition) | B129: ID | C129: Residential | D129: Time-of-Use Opt-out | E129: Program Dropout Rate (Attrition) | F129: % | G129: 0.01 | H129: 0.01 | I129: 0.01 | J129: 0.01 | K129: 0.01 | L129: 0.01 | M129: 0.01 | N129: 0.01 | O129: 0.01 | P129: 0.01 | Q129: 0.01 | R129: 0.01 | S129: 0.01 | T129: 0.01 | U129: 0.01 | V129: 0.01 | W129: 0.01 | X129: 0.01 | Y129: 0.01 | Z129: 0.01 | AA129: 0.01 | AB129: 0.01 | AC129: 0.01 | AD129: 0.01 | AE129: 0.01 | AF129: Brattle opt-out case | AG129: 1
A130: =B130&C130&D130&E130 -> IDGeneral ServiceTime-of-Use Opt-outMarket Potential | B130: ID | C130: General Service | D130: Time-of-Use Opt-out | E130: Market Potential | F130: % of Eligible Customers | G130: 1 | H130: 0.854 | I130: 0.789 | J130: 0.756 | K130: 0.74 | L130: 0.74 | M130: 0.74 | N130: 0.74 | O130: 0.74 | P130: 0.74 | Q130: 0.74 | R130: 0.74 | S130: 0.74 | T130: 0.74 | U130: 0.74 | V130: 0.74 | W130: 0.74 | X130: 0.74 | Y130: 0.74 | Z130: 0.74 | AA130: 0.74 | AB130: 0.74 | AC130: 0.74 | AD130: 0.74 | AE130: 0.74 | AF130: Brattle opt-out case | AG130: 1
A131: IDGeneral ServiceTime-of-Use Opt-outProgram Dropout Rate (Attrition) | B131: ID | C131: General Service | D131: Time-of-Use Opt-out | E131: Program Dropout Rate (Attrition) | F131: % | G131: 0.01 | H131: 0.01 | I131: 0.01 | J131: 0.01 | K131: 0.01 | L131: 0.01 | M131: 0.01 | N131: 0.01 | O131: 0.01 | P131: 0.01 | Q131: 0.01 | R131: 0.01 | S131: 0.01 | T131: 0.01 | U131: 0.01 | V131: 0.01 | W131: 0.01 | X131: 0.01 | Y131: 0.01 | Z131: 0.01 | AA131: 0.01 | AB131: 0.01 | AC131: 0.01 | AD131: 0.01 | AE131: 0.01 | AF131: Brattle opt-out case | AG131: 1
A132: IDLarge General ServiceTime-of-Use Opt-outMarket Potential | B132: ID | C132: Large General Service | D132: Time-of-Use Opt-out | E132: Market Potential | F132: % of Eligible Customers | G132: 1 | H132: 0.854 | I132: 0.789 | J132: 0.756 | K132: 0.74 | L132: 0.74 | M132: 0.74 | N132: 0.74 | O132: 0.74 | P132: 0.74 | Q132: 0.74 | R132: 0.74 | S132: 0.74 | T132: 0.74 | U132: 0.74 | V132: 0.74 | W132: 0.74 | X132: 0.74 | Y132: 0.74 | Z132: 0.74 | AA132: 0.74 | AB132: 0.74 | AC132: 0.74 | AD132: 0.74 | AE132: 0.74 | AF132: Brattle opt-out case | AG132: 1
A133: IDLarge General ServiceTime-of-Use Opt-outProgram Dropout Rate (Attrition) | B133: ID | C133: Large General Service | D133: Time-of-Use Opt-out | E133: Program Dropout Rate (Attrition) | F133: % | G133: 0.01 | H133: 0.01 | I133: 0.01 | J133: 0.01 | K133: 0.01 | L133: 0.01 | M133: 0.01 | N133: 0.01 | O133: 0.01 | P133: 0.01 | Q133: 0.01 | R133: 0.01 | S133: 0.01 | T133: 0.01 | U133: 0.01 | V133: 0.01 | W133: 0.01 | X133: 0.01 | Y133: 0.01 | Z133: 0.01 | AA133: 0.01 | AB133: 0.01 | AC133: 0.01 | AD133: 0.01 | AE133: 0.01 | AF133: Brattle opt-out case | AG133: 1
A134: IDExtra Large General ServiceTime-of-Use Opt-outMarket Potential | B134: ID | C134: Extra Large General Service | D134: Time-of-Use Opt-out | E134: Market Potential | F134: % of Eligible Customers | G134: 1 | H134: 0.854 | I134: 0.789 | J134: 0.756 | K134: 0.74 | L134: 0.74 | M134: 0.74 | N134: 0.74 | O134: 0.74 | P134: 0.74 | Q134: 0.74 | R134: 0.74 | S134: 0.74 | T134: 0.74 | U134: 0.74 | V134: 0.74 | W134: 0.74 | X134: 0.74 | Y134: 0.74 | Z134: 0.74 | AA134: 0.74 | AB134: 0.74 | AC134: 0.74 | AD134: 0.74 | AE134: 0.74 | AF134: Brattle opt-out case | AG134: 1
A135: IDExtra Large General ServiceTime-of-Use Opt-outProgram Dropout Rate (Attrition) | B135: ID | C135: Extra Large General Service | D135: Time-of-Use Opt-out | E135: Program Dropout Rate (Attrition) | F135: % | G135: 0.01 | H135: 0.01 | I135: 0.01 | J135: 0.01 | K135: 0.01 | L135: 0.01 | M135: 0.01 | N135: 0.01 | O135: 0.01 | P135: 0.01 | Q135: 0.01 | R135: 0.01 | S135: 0.01 | T135: 0.01 | U135: 0.01 | V135: 0.01 | W135: 0.01 | X135: 0.01 | Y135: 0.01 | Z135: 0.01 | AA135: 0.01 | AB135: 0.01 | AC135: 0.01 | AD135: 0.01 | AE135: 0.01 | AF135: Brattle opt-out case | AG135: 1
A136: IDResidentialVariable Peak Pricing RatesMarket Potential | B136: ID | C136: Residential | D136: Variable Peak Pricing Rates | E136: Market Potential | F136: % of Eligible Customers | G136: 0.025 | H136: 0.075 | I136: 0.175 | J136: 0.225 | K136: 0.25 | L136: 0.25 | M136: 0.25 | N136: 0.25 | O136: 0.25 | P136: 0.25 | Q136: 0.25 | R136: 0.25 | S136: 0.25 | T136: 0.25 | U136: 0.25 | V136: 0.25 | W136: 0.25 | X136: 0.25 | Y136: 0.25 | Z136: 0.25 | AA136: 0.25 | AB136: 0.25 | AC136: 0.25 | AD136: 0.25 | AE136: 0.25 | AF136: High Case- OG&E's VPP Plus participation rate- should be 103000/400000 around 25% | AG136: 1
A137: IDResidentialVariable Peak Pricing RatesProgram Dropout Rate (Attrition) | B137: ID | C137: Residential | D137: Variable Peak Pricing Rates | E137: Program Dropout Rate (Attrition) | F137: % | G137: 0.02 | H137: 0.02 | I137: 0.02 | J137: 0.02 | K137: 0.02 | L137: 0.02 | M137: 0.02 | N137: 0.02 | O137: 0.02 | P137: 0.02 | Q137: 0.02 | R137: 0.02 | S137: 0.02 | T137: 0.02 | U137: 0.02 | V137: 0.02 | W137: 0.02 | X137: 0.02 | Y137: 0.02 | Z137: 0.02 | AA137: 0.02 | AB137: 0.02 | AC137: 0.02 | AD137: 0.02 | AE137: 0.02 | AF137: High Case- OG&E's VPP Plus participation rate- should be 103000/400000 around 25% | AG137: 1
A138: IDGeneral ServiceVariable Peak Pricing RatesMarket Potential | B138: ID | C138: General Service | D138: Variable Peak Pricing Rates | E138: Market Potential | F138: % of Eligible Customers | G138: 0.025 | H138: 0.075 | I138: 0.175 | J138: 0.225 | K138: 0.25 | L138: 0.25 | M138: 0.25 | N138: 0.25 | O138: 0.25 | P138: 0.25 | Q138: 0.25 | R138: 0.25 | S138: 0.25 | T138: 0.25 | U138: 0.25 | V138: 0.25 | W138: 0.25 | X138: 0.25 | Y138: 0.25 | Z138: 0.25 | AA138: 0.25 | AB138: 0.25 | AC138: 0.25 | AD138: 0.25 | AE138: 0.25 | AF138: Brattle | AG138: 1
A139: IDGeneral ServiceVariable Peak Pricing RatesProgram Dropout Rate (Attrition) | B139: ID | C139: General Service | D139: Variable Peak Pricing Rates | E139: Program Dropout Rate (Attrition) | F139: % | G139: 0.01 | H139: 0.01 | I139: 0.01 | J139: 0.01 | K139: 0.01 | L139: 0.01 | M139: 0.01 | N139: 0.01 | O139: 0.01 | P139: 0.01 | Q139: 0.01 | R139: 0.01 | S139: 0.01 | T139: 0.01 | U139: 0.01 | V139: 0.01 | W139: 0.01 | X139: 0.01 | Y139: 0.01 | Z139: 0.01 | AA139: 0.01 | AB139: 0.01 | AC139: 0.01 | AD139: 0.01 | AE139: 0.01 | AF139: Brattle | AG139: 1
A140: IDLarge General ServiceVariable Peak Pricing RatesMarket Potential | B140: ID | C140: Large General Service | D140: Variable Peak Pricing Rates | E140: Market Potential | F140: % of Eligible Customers | G140: 0.025 | H140: 0.075 | I140: 0.175 | J140: 0.225 | K140: 0.25 | L140: 0.25 | M140: 0.25 | N140: 0.25 | O140: 0.25 | P140: 0.25 | Q140: 0.25 | R140: 0.25 | S140: 0.25 | T140: 0.25 | U140: 0.25 | V140: 0.25 | W140: 0.25 | X140: 0.25 | Y140: 0.25 | Z140: 0.25 | AA140: 0.25 | AB140: 0.25 | AC140: 0.25 | AD140: 0.25 | AE140: 0.25 | AF140: 0 | AG140: 1
A141: IDLarge General ServiceVariable Peak Pricing RatesProgram Dropout Rate (Attrition) | B141: ID | C141: Large General Service | D141: Variable Peak Pricing Rates | E141: Program Dropout Rate (Attrition) | F141: % | G141: 0.01 | H141: 0.01 | I141: 0.01 | J141: 0.01 | K141: 0.01 | L141: 0.01 | M141: 0.01 | N141: 0.01 | O141: 0.01 | P141: 0.01 | Q141: 0.01 | R141: 0.01 | S141: 0.01 | T141: 0.01 | U141: 0.01 | V141: 0.01 | W141: 0.01 | X141: 0.01 | Y141: 0.01 | Z141: 0.01 | AA141: 0.01 | AB141: 0.01 | AC141: 0.01 | AD141: 0.01 | AE141: 0.01 | AF141: 0 | AG141: 1
A142: IDExtra Large General ServiceVariable Peak Pricing RatesMarket Potential | B142: ID | C142: Extra Large General Service | D142: Variable Peak Pricing Rates | E142: Market Potential | F142: % of Eligible Customers | G142: 0.025 | H142: 0.075 | I142: 0.175 | J142: 0.225 | K142: 0.25 | L142: 0.25 | M142: 0.25 | N142: 0.25 | O142: 0.25 | P142: 0.25 | Q142: 0.25 | R142: 0.25 | S142: 0.25 | T142: 0.25 | U142: 0.25 | V142: 0.25 | W142: 0.25 | X142: 0.25 | Y142: 0.25 | Z142: 0.25 | AA142: 0.25 | AB142: 0.25 | AC142: 0.25 | AD142: 0.25 | AE142: 0.25 | AF142: High Case- OG&E's VPP Plus participation rate | AG142: 1
A143: IDExtra Large General ServiceVariable Peak Pricing RatesProgram Dropout Rate (Attrition) | B143: ID | C143: Extra Large General Service | D143: Variable Peak Pricing Rates | E143: Program Dropout Rate (Attrition) | F143: % | G143: 0.02 | H143: 0.02 | I143: 0.02 | J143: 0.02 | K143: 0.02 | L143: 0.02 | M143: 0.02 | N143: 0.02 | O143: 0.02 | P143: 0.02 | Q143: 0.02 | R143: 0.02 | S143: 0.02 | T143: 0.02 | U143: 0.02 | V143: 0.02 | W143: 0.02 | X143: 0.02 | Y143: 0.02 | Z143: 0.02 | AA143: 0.02 | AB143: 0.02 | AC143: 0.02 | AD143: 0.02 | AE143: 0.02 | AF143: High Case- OG&E's VPP Plus participation rate | AG143: 1
A144: IDLarge General ServiceReal Time PricingMarket Potential | B144: ID | C144: Large General Service | D144: Real Time Pricing | E144: Market Potential | F144: % of Eligible Customers | AG144: 1
A145: IDLarge General ServiceReal Time PricingProgram Dropout Rate (Attrition) | B145: ID | C145: Large General Service | D145: Real Time Pricing | E145: Program Dropout Rate (Attrition) | F145: % | AG145: 1
A146: IDExtra Large General ServiceReal Time PricingMarket Potential | B146: ID | C146: Extra Large General Service | D146: Real Time Pricing | E146: Market Potential | F146: % of Eligible Customers | AG146: 1
A147: IDExtra Large General ServiceReal Time PricingProgram Dropout Rate (Attrition) | B147: ID | C147: Extra Large General Service | D147: Real Time Pricing | E147: Program Dropout Rate (Attrition) | F147: % | AG147: 1
A148: IDGeneral ServiceThermal Energy StorageMarket Potential | B148: ID | C148: General Service | D148: Thermal Energy Storage | E148: Market Potential | F148: % of Eligible Customers | G148: 0.0005 | H148: 0.0015 | I148: 0.0035 | J148: 0.0045 | K148: 0.005 | L148: 0.005 | M148: 0.005 | N148: 0.005 | O148: 0.005 | P148: 0.005 | Q148: 0.005 | R148: 0.005 | S148: 0.005 | T148: 0.005 | U148: 0.005 | V148: 0.005 | W148: 0.005 | X148: 0.005 | Y148: 0.005 | Z148: 0.005 | AA148: 0.005 | AB148: 0.005 | AC148: 0.005 | AD148: 0.005 | AE148: 0.005 | AF148: Don't expect much participation - 0.5% | AG148: 1
A149: IDGeneral ServiceThermal Energy StorageProgram Dropout Rate (Attrition) | B149: ID | C149: General Service | D149: Thermal Energy Storage | E149: Program Dropout Rate (Attrition) | F149: % | G149: 0.01 | H149: 0.01 | I149: 0.01 | J149: 0.01 | K149: 0.01 | L149: 0.01 | M149: 0.01 | N149: 0.01 | O149: 0.01 | P149: 0.01 | Q149: 0.01 | R149: 0.01 | S149: 0.01 | T149: 0.01 | U149: 0.01 | V149: 0.01 | W149: 0.01 | X149: 0.01 | Y149: 0.01 | Z149: 0.01 | AA149: 0.01 | AB149: 0.01 | AC149: 0.01 | AD149: 0.01 | AE149: 0.01 | AF149: Don't expect much participation - 0.5% | AG149: 1
A150: IDLarge General ServiceThermal Energy StorageMarket Potential | B150: ID | C150: Large General Service | D150: Thermal Energy Storage | E150: Market Potential | F150: % of Eligible Customers | G150: 0.0015 | H150: 0.0045 | I150: 0.0105 | J150: 0.0135 | K150: 0.015 | L150: 0.015 | M150: 0.015 | N150: 0.015 | O150: 0.015 | P150: 0.015 | Q150: 0.015 | R150: 0.015 | S150: 0.015 | T150: 0.015 | U150: 0.015 | V150: 0.015 | W150: 0.015 | X150: 0.015 | Y150: 0.015 | Z150: 0.015 | AA150: 0.015 | AB150: 0.015 | AC150: 0.015 | AD150: 0.015 | AE150: 0.015 | AF150: Low participation is 1/2 DLC CAC | AG150: 1
A151: IDLarge General ServiceThermal Energy StorageProgram Dropout Rate (Attrition) | B151: ID | C151: Large General Service | D151: Thermal Energy Storage | E151: Program Dropout Rate (Attrition) | F151: % | G151: 0.01 | H151: 0.01 | I151: 0.01 | J151: 0.01 | K151: 0.01 | L151: 0.01 | M151: 0.01 | N151: 0.01 | O151: 0.01 | P151: 0.01 | Q151: 0.01 | R151: 0.01 | S151: 0.01 | T151: 0.01 | U151: 0.01 | V151: 0.01 | W151: 0.01 | X151: 0.01 | Y151: 0.01 | Z151: 0.01 | AA151: 0.01 | AB151: 0.01 | AC151: 0.01 | AD151: 0.01 | AE151: 0.01 | AF151: Low participation is 1/2 DLC CAC | AG151: 1
A152: IDExtra Large General ServiceThermal Energy StorageMarket Potential | B152: ID | C152: Extra Large General Service | D152: Thermal Energy Storage | E152: Market Potential | F152: % of Eligible Customers | G152: 0.0015 | H152: 0.0045 | I152: 0.0105 | J152: 0.0135 | K152: 0.015 | L152: 0.015 | M152: 0.015 | N152: 0.015 | O152: 0.015 | P152: 0.015 | Q152: 0.015 | R152: 0.015 | S152: 0.015 | T152: 0.015 | U152: 0.015 | V152: 0.015 | W152: 0.015 | X152: 0.015 | Y152: 0.015 | Z152: 0.015 | AA152: 0.015 | AB152: 0.015 | AC152: 0.015 | AD152: 0.015 | AE152: 0.015 | AF152: Low participation is 1/2 DLC CAC | AG152: 1
A153: IDExtra Large General ServiceThermal Energy StorageProgram Dropout Rate (Attrition) | B153: ID | C153: Extra Large General Service | D153: Thermal Energy Storage | E153: Program Dropout Rate (Attrition) | F153: % | G153: 0.01 | H153: 0.01 | I153: 0.01 | J153: 0.01 | K153: 0.01 | L153: 0.01 | M153: 0.01 | N153: 0.01 | O153: 0.01 | P153: 0.01 | Q153: 0.01 | R153: 0.01 | S153: 0.01 | T153: 0.01 | U153: 0.01 | V153: 0.01 | W153: 0.01 | X153: 0.01 | Y153: 0.01 | Z153: 0.01 | AA153: 0.01 | AB153: 0.01 | AC153: 0.01 | AD153: 0.01 | AE153: 0.01 | AF153: Low participation is 1/2 DLC CAC | AG153: 1
A154: IDResidentialBattery Energy StorageMarket Potential | B154: ID | C154: Residential | D154: Battery Energy Storage | E154: Market Potential | F154: % of Eligible Customers | G154: 0.0001 | H154: 0.0003 | I154: 0.0005 | J154: 0.0008 | K154: 0.0011 | L154: 0.0014 | M154: 0.0017 | N154: 0.0021 | O154: 0.0025 | P154: 0.0029 | Q154: 0.0034 | R154: 0.0039 | S154: 0.0044 | T154: 0.005 | U154: 0.005 | V154: 0.005 | W154: 0.005 | X154: 0.005 | Y154: 0.005 | Z154: 0.005 | AA154: 0.005 | AB154: 0.005 | AC154: 0.005 | AD154: 0.005 | AE154: 0.005 | AF154: 20% from MISO LRZ 7. Assuming half for high and half again for low. *halved again 9-14-17, as per discussion with Kelly - potential looked too high. Pacificorp study didn't consider this program | AG154: 1
A155: IDResidentialBattery Energy StorageProgram Dropout Rate (Attrition) | B155: ID | C155: Residential | D155: Battery Energy Storage | E155: Program Dropout Rate (Attrition) | F155: % | G155: 0 | H155: 0 | I155: 0 | J155: 0 | K155: 0 | L155: 0 | M155: 0 | N155: 0 | O155: 0 | P155: 0 | Q155: 0 | R155: 0 | S155: 0 | T155: 0 | U155: 0 | V155: 0 | W155: 0 | X155: 0 | Y155: 0 | Z155: 0 | AA155: 0 | AB155: 0 | AC155: 0 | AD155: 0 | AE155: 0 | AF155: 20% from MISO LRZ 7. Assuming half for high and half again for low. *halved again 9-14-17, as per discussion with Kelly - potential looked too high. Pacificorp study didn't consider this program | AG155: 1
A156: IDGeneral ServiceBattery Energy StorageMarket Potential | B156: ID | C156: General Service | D156: Battery Energy Storage | E156: Market Potential | F156: % of Eligible Customers | G156: 0.0001 | H156: 0.0003 | I156: 0.0005 | J156: 0.0008 | K156: 0.0011 | L156: 0.0014 | M156: 0.0017 | N156: 0.0021 | O156: 0.0025 | P156: 0.0029 | Q156: 0.0034 | R156: 0.0039 | S156: 0.0044 | T156: 0.005 | U156: 0.005 | V156: 0.005 | W156: 0.005 | X156: 0.005 | Y156: 0.005 | Z156: 0.005 | AA156: 0.005 | AB156: 0.005 | AC156: 0.005 | AD156: 0.005 | AE156: 0.005 | AF156: Same as Residential | AG156: 1
A157: IDGeneral ServiceBattery Energy StorageProgram Dropout Rate (Attrition) | B157: ID | C157: General Service | D157: Battery Energy Storage | E157: Program Dropout Rate (Attrition) | F157: % | G157: 0 | H157: 0 | I157: 0 | J157: 0 | K157: 0 | L157: 0 | M157: 0 | N157: 0 | O157: 0 | P157: 0 | Q157: 0 | R157: 0 | S157: 0 | T157: 0 | U157: 0 | V157: 0 | W157: 0 | X157: 0 | Y157: 0 | Z157: 0 | AA157: 0 | AB157: 0 | AC157: 0 | AD157: 0 | AE157: 0 | AF157: Same as Residential | AG157: 1
A158: IDLarge General ServiceBattery Energy StorageMarket Potential | B158: ID | C158: Large General Service | D158: Battery Energy Storage | E158: Market Potential | F158: % of Eligible Customers | G158: 0.0001 | H158: 0.0003 | I158: 0.0005 | J158: 0.0008 | K158: 0.0011 | L158: 0.0014 | M158: 0.0017 | N158: 0.0021 | O158: 0.0025 | P158: 0.0029 | Q158: 0.0034 | R158: 0.0039 | S158: 0.0044 | T158: 0.005 | U158: 0.005 | V158: 0.005 | W158: 0.005 | X158: 0.005 | Y158: 0.005 | Z158: 0.005 | AA158: 0.005 | AB158: 0.005 | AC158: 0.005 | AD158: 0.005 | AE158: 0.005 | AF158: Same as Residential | AG158: 1
A159: IDLarge General ServiceBattery Energy StorageProgram Dropout Rate (Attrition) | B159: ID | C159: Large General Service | D159: Battery Energy Storage | E159: Program Dropout Rate (Attrition) | F159: % | G159: 0 | H159: 0 | I159: 0 | J159: 0 | K159: 0 | L159: 0 | M159: 0 | N159: 0 | O159: 0 | P159: 0 | Q159: 0 | R159: 0 | S159: 0 | T159: 0 | U159: 0 | V159: 0 | W159: 0 | X159: 0 | Y159: 0 | Z159: 0 | AA159: 0 | AB159: 0 | AC159: 0 | AD159: 0 | AE159: 0 | AF159: Same as Residential | AG159: 1
A160: IDExtra Large General ServiceBattery Energy StorageMarket Potential | B160: ID | C160: Extra Large General Service | D160: Battery Energy Storage | E160: Market Potential | F160: % of Eligible Customers | G160: 0.0001 | H160: 0.0003 | I160: 0.0005 | J160: 0.0008 | K160: 0.0011 | L160: 0.0014 | M160: 0.0017 | N160: 0.0021 | O160: 0.0025 | P160: 0.0029 | Q160: 0.0034 | R160: 0.0039 | S160: 0.0044 | T160: 0.005 | U160: 0.005 | V160: 0.005 | W160: 0.005 | X160: 0.005 | Y160: 0.005 | Z160: 0.005 | AA160: 0.005 | AB160: 0.005 | AC160: 0.005 | AD160: 0.005 | AE160: 0.005 | AF160: Same as Residential | AG160: 1
A161: IDExtra Large General ServiceBattery Energy StorageProgram Dropout Rate (Attrition) | B161: ID | C161: Extra Large General Service | D161: Battery Energy Storage | E161: Program Dropout Rate (Attrition) | F161: % | G161: 0 | H161: 0 | I161: 0 | J161: 0 | K161: 0 | L161: 0 | M161: 0 | N161: 0 | O161: 0 | P161: 0 | Q161: 0 | R161: 0 | S161: 0 | T161: 0 | U161: 0 | V161: 0 | W161: 0 | X161: 0 | Y161: 0 | Z161: 0 | AA161: 0 | AB161: 0 | AC161: 0 | AD161: 0 | AE161: 0 | AF161: Same as Residential | AG161: 1
A162: IDResidentialAncillary CoolingMarket Potential | B162: ID | C162: Residential | D162: Ancillary Cooling | E162: Market Potential | F162: % of Eligible Customers | G162: 0.01 | H162: 0.03 | I162: 0.07 | J162: 0.09 | K162: 0.1 | L162: 0.1 | M162: 0.1 | N162: 0.1 | O162: 0.1 | P162: 0.1 | Q162: 0.1 | R162: 0.1 | S162: 0.1 | T162: 0.1 | U162: 0.1 | V162: 0.1 | W162: 0.1 | X162: 0.1 | Y162: 0.1 | Z162: 0.1 | AA162: 0.1 | AB162: 0.1 | AC162: 0.1 | AD162: 0.1 | AE162: 0.1 | AF162: NWPC Smart Thermostat cooling assumption- 5 yr ramp rate | AG162: 1
A163: IDResidentialAncillary CoolingProgram Dropout Rate (Attrition) | B163: ID | C163: Residential | D163: Ancillary Cooling | E163: Program Dropout Rate (Attrition) | F163: % | G163: 0.01 | H163: 0.01 | I163: 0.01 | J163: 0.01 | K163: 0.01 | L163: 0.01 | M163: 0.01 | N163: 0.01 | O163: 0.01 | P163: 0.01 | Q163: 0.01 | R163: 0.01 | S163: 0.01 | T163: 0.01 | U163: 0.01 | V163: 0.01 | W163: 0.01 | X163: 0.01 | Y163: 0.01 | Z163: 0.01 | AA163: 0.01 | AB163: 0.01 | AC163: 0.01 | AD163: 0.01 | AE163: 0.01 | AF163: NWPC Smart Thermostat cooling assumption- 5 yr ramp rate | AG163: 1
A164: IDGeneral ServiceAncillary CoolingMarket Potential | B164: ID | C164: General Service | D164: Ancillary Cooling | E164: Market Potential | F164: % of Eligible Customers | G164: 0.01 | H164: 0.03 | I164: 0.07 | J164: 0.09 | K164: 0.1 | L164: 0.1 | M164: 0.1 | N164: 0.1 | O164: 0.1 | P164: 0.1 | Q164: 0.1 | R164: 0.1 | S164: 0.1 | T164: 0.1 | U164: 0.1 | V164: 0.1 | W164: 0.1 | X164: 0.1 | Y164: 0.1 | Z164: 0.1 | AA164: 0.1 | AB164: 0.1 | AC164: 0.1 | AD164: 0.1 | AE164: 0.1 | AF164: NWPC Smart Thermostat cooling assumption- 5 yr ramp rate | AG164: 1
A165: IDGeneral ServiceAncillary CoolingProgram Dropout Rate (Attrition) | B165: ID | C165: General Service | D165: Ancillary Cooling | E165: Program Dropout Rate (Attrition) | F165: % | G165: 0.01 | H165: 0.01 | I165: 0.01 | J165: 0.01 | K165: 0.01 | L165: 0.01 | M165: 0.01 | N165: 0.01 | O165: 0.01 | P165: 0.01 | Q165: 0.01 | R165: 0.01 | S165: 0.01 | T165: 0.01 | U165: 0.01 | V165: 0.01 | W165: 0.01 | X165: 0.01 | Y165: 0.01 | Z165: 0.01 | AA165: 0.01 | AB165: 0.01 | AC165: 0.01 | AD165: 0.01 | AE165: 0.01 | AF165: NWPC Smart Thermostat cooling assumption- 5 yr ramp rate | AG165: 1
A166: IDResidentialAncillary HeatingMarket Potential | B166: ID | C166: Residential | D166: Ancillary Heating | E166: Market Potential | F166: % of Eligible Customers | G166: 0.0025 | H166: 0.0075 | I166: 0.0175 | J166: 0.0225 | K166: 0.025 | L166: 0.025 | M166: 0.025 | N166: 0.025 | O166: 0.025 | P166: 0.025 | Q166: 0.025 | R166: 0.025 | S166: 0.025 | T166: 0.025 | U166: 0.025 | V166: 0.025 | W166: 0.025 | X166: 0.025 | Y166: 0.025 | Z166: 0.025 | AA166: 0.025 | AB166: 0.025 | AC166: 0.025 | AD166: 0.025 | AE166: 0.025 | AF166: Assuming maximum participation for combined DLC Cooling and Smart Therm is 25%, reduced from 30% to account for those program participants who may have intended to participate but were unable to correctly install their thermostat= half for ancillary | AG166: 1
A167: IDResidentialAncillary HeatingProgram Dropout Rate (Attrition) | B167: ID | C167: Residential | D167: Ancillary Heating | E167: Program Dropout Rate (Attrition) | F167: % | G167: 0.01 | H167: 0.01 | I167: 0.01 | J167: 0.01 | K167: 0.01 | L167: 0.01 | M167: 0.01 | N167: 0.01 | O167: 0.01 | P167: 0.01 | Q167: 0.01 | R167: 0.01 | S167: 0.01 | T167: 0.01 | U167: 0.01 | V167: 0.01 | W167: 0.01 | X167: 0.01 | Y167: 0.01 | Z167: 0.01 | AA167: 0.01 | AB167: 0.01 | AC167: 0.01 | AD167: 0.01 | AE167: 0.01 | AF167: Assuming maximum participation for combined DLC Cooling and Smart Therm is 25%, reduced from 30% to account for those program participants who may have intended to participate but were unable to correctly install their thermostat= half for ancillary | AG167: 1
A168: IDGeneral ServiceAncillary HeatingMarket Potential | B168: ID | C168: General Service | D168: Ancillary Heating | E168: Market Potential | F168: % of Eligible Customers | G168: 0.0015 | H168: 0.0045 | I168: 0.0105 | J168: 0.0135 | K168: 0.015 | L168: 0.015 | M168: 0.015 | N168: 0.015 | O168: 0.015 | P168: 0.015 | Q168: 0.015 | R168: 0.015 | S168: 0.015 | T168: 0.015 | U168: 0.015 | V168: 0.015 | W168: 0.015 | X168: 0.015 | Y168: 0.015 | Z168: 0.015 | AA168: 0.015 | AB168: 0.015 | AC168: 0.015 | AD168: 0.015 | AE168: 0.015 | AF168: Dropping to 3% to compensate for higher space heating saturations- half for ancillary | AG168: 1
A169: IDGeneral ServiceAncillary HeatingProgram Dropout Rate (Attrition) | B169: ID | C169: General Service | D169: Ancillary Heating | E169: Program Dropout Rate (Attrition) | F169: % | G169: 0.01 | H169: 0.01 | I169: 0.01 | J169: 0.01 | K169: 0.01 | L169: 0.01 | M169: 0.01 | N169: 0.01 | O169: 0.01 | P169: 0.01 | Q169: 0.01 | R169: 0.01 | S169: 0.01 | T169: 0.01 | U169: 0.01 | V169: 0.01 | W169: 0.01 | X169: 0.01 | Y169: 0.01 | Z169: 0.01 | AA169: 0.01 | AB169: 0.01 | AC169: 0.01 | AD169: 0.01 | AE169: 0.01 | AF169: Dropping to 3% to compensate for higher space heating saturations- half for ancillary | AG169: 1
A170: IDResidentialAncillary DLC WHMarket Potential | B170: ID | C170: Residential | D170: Ancillary DLC WH | E170: Market Potential | F170: % of Eligible Customers | G170: 0.015 | H170: 0.045 | I170: 0.105 | J170: 0.135 | K170: 0.15 | L170: 0.15 | M170: 0.15 | N170: 0.15 | O170: 0.15 | P170: 0.15 | Q170: 0.15 | R170: 0.15 | S170: 0.15 | T170: 0.15 | U170: 0.15 | V170: 0.15 | W170: 0.15 | X170: 0.15 | Y170: 0.15 | Z170: 0.15 | AA170: 0.15 | AB170: 0.15 | AC170: 0.15 | AD170: 0.15 | AE170: 0.15 | AF170: Ensure population applies to the subset of customers participating in AC or Space Heating DLC | AG170: 1
A171: IDResidentialAncillary DLC WHProgram Dropout Rate (Attrition) | B171: ID | C171: Residential | D171: Ancillary DLC WH | E171: Program Dropout Rate (Attrition) | F171: % | G171: 0.01 | H171: 0.01 | I171: 0.01 | J171: 0.01 | K171: 0.01 | L171: 0.01 | M171: 0.01 | N171: 0.01 | O171: 0.01 | P171: 0.01 | Q171: 0.01 | R171: 0.01 | S171: 0.01 | T171: 0.01 | U171: 0.01 | V171: 0.01 | W171: 0.01 | X171: 0.01 | Y171: 0.01 | Z171: 0.01 | AA171: 0.01 | AB171: 0.01 | AC171: 0.01 | AD171: 0.01 | AE171: 0.01 | AF171: Ensure population applies to the subset of customers participating in AC or Space Heating DLC | AG171: 1
A172: IDGeneral ServiceAncillary DLC WHMarket Potential | B172: ID | C172: General Service | D172: Ancillary DLC WH | E172: Market Potential | F172: % of Eligible Customers | G172: 0.005 | H172: 0.015 | I172: 0.035 | J172: 0.045 | K172: 0.05 | L172: 0.05 | M172: 0.05 | N172: 0.05 | O172: 0.05 | P172: 0.05 | Q172: 0.05 | R172: 0.05 | S172: 0.05 | T172: 0.05 | U172: 0.05 | V172: 0.05 | W172: 0.05 | X172: 0.05 | Y172: 0.05 | Z172: 0.05 | AA172: 0.05 | AB172: 0.05 | AC172: 0.05 | AD172: 0.05 | AE172: 0.05 | AF172: * Changed from 3% to reflect a Brattle Study to the left that estimates 5-10% | AG172: 1
A173: IDGeneral ServiceAncillary DLC WHProgram Dropout Rate (Attrition) | B173: ID | C173: General Service | D173: Ancillary DLC WH | E173: Program Dropout Rate (Attrition) | F173: % | G173: 0 | H173: 0 | I173: 0 | J173: 0 | K173: 0 | L173: 0 | M173: 0 | N173: 0 | O173: 0 | P173: 0 | Q173: 0 | R173: 0 | S173: 0 | T173: 0 | U173: 0 | V173: 0 | W173: 0 | X173: 0 | Y173: 0 | Z173: 0 | AA173: 0 | AB173: 0 | AC173: 0 | AD173: 0 | AE173: 0 | AF173: * Changed from 3% to reflect a Brattle Study to the left that estimates 5-10% | AG173: 1
A174: IDResidentialAncillary WHMarket Potential | B174: ID | C174: Residential | D174: Ancillary WH | E174: Market Potential | F174: % of Eligible Customers | G174: 0 | H174: 0 | I174: 0 | J174: 0 | K174: 0 | L174: 0 | M174: 0 | N174: 0 | O174: 0 | P174: 0 | Q174: 0 | R174: 0 | S174: 0 | T174: 0 | U174: 0 | V174: 0 | W174: 0 | X174: 0 | Y174: 0 | Z174: 0 | AA174: 0 | AB174: 0 | AC174: 0 | AD174: 0 | AE174: 0 | AF174: NWPC Electric Resistance Grid-Ready Summer/Winter Participation- 10 yr ramp rate | AG174: 1
A175: IDResidentialAncillary WHProgram Dropout Rate (Attrition) | B175: ID | C175: Residential | D175: Ancillary WH | E175: Program Dropout Rate (Attrition) | F175: % | G175: 0 | H175: 0 | I175: 0 | J175: 0 | K175: 0 | L175: 0 | M175: 0 | N175: 0 | O175: 0 | P175: 0 | Q175: 0 | R175: 0 | S175: 0 | T175: 0 | U175: 0 | V175: 0 | W175: 0 | X175: 0 | Y175: 0 | Z175: 0 | AA175: 0 | AB175: 0 | AC175: 0 | AD175: 0 | AE175: 0 | AF175: NWPC Electric Resistance Grid-Ready Summer/Winter Participation- 10 yr ramp rate | AG175: 1
A176: IDGeneral ServiceAncillary WHMarket Potential | B176: ID | C176: General Service | D176: Ancillary WH | E176: Market Potential | F176: % of Eligible Customers | G176: 0 | H176: 0 | I176: 0 | J176: 0 | K176: 0 | L176: 0 | M176: 0 | N176: 0 | O176: 0 | P176: 0 | Q176: 0 | R176: 0 | S176: 0 | T176: 0 | U176: 0 | V176: 0 | W176: 0 | X176: 0 | Y176: 0 | Z176: 0 | AA176: 0 | AB176: 0 | AC176: 0 | AD176: 0 | AE176: 0 | AF176: NWPC Electric Resistance Grid-Ready Summer/Winter Participation- 10 yr ramp rate | AG176: 1
A177: IDGeneral ServiceAncillary WHProgram Dropout Rate (Attrition) | B177: ID | C177: General Service | D177: Ancillary WH | E177: Program Dropout Rate (Attrition) | F177: % | G177: 0 | H177: 0 | I177: 0 | J177: 0 | K177: 0 | L177: 0 | M177: 0 | N177: 0 | O177: 0 | P177: 0 | Q177: 0 | R177: 0 | S177: 0 | T177: 0 | U177: 0 | V177: 0 | W177: 0 | X177: 0 | Y177: 0 | Z177: 0 | AA177: 0 | AB177: 0 | AC177: 0 | AD177: 0 | AE177: 0 | AF177: NWPC Electric Resistance Grid-Ready Summer/Winter Participation- 10 yr ramp rate | AG177: 1
A178: IDResidentialAncillary EVMarket Potential | B178: ID | C178: Residential | D178: Ancillary EV | E178: Market Potential | F178: % of Eligible Customers | G178: 0.025 | H178: 0.075 | I178: 0.175 | J178: 0.225 | K178: 0.25 | L178: 0.25 | M178: 0.25 | N178: 0.25 | O178: 0.25 | P178: 0.25 | Q178: 0.25 | R178: 0.25 | S178: 0.25 | T178: 0.25 | U178: 0.25 | V178: 0.25 | W178: 0.25 | X178: 0.25 | Y178: 0.25 | Z178: 0.25 | AA178: 0.25 | AB178: 0.25 | AC178: 0.25 | AD178: 0.25 | AE178: 0.25 | AF178: Prelim Assumption: One Third of TOU Demand Rate w EV. This participation rate will be throttled / scaled using the equipment saturation for EVs, which will be quite low. | AG178: 1
A179: IDResidentialAncillary EVProgram Dropout Rate (Attrition) | B179: ID | C179: Residential | D179: Ancillary EV | E179: Program Dropout Rate (Attrition) | F179: % | G179: 0.01 | H179: 0.01 | I179: 0.01 | J179: 0.01 | K179: 0.01 | L179: 0.01 | M179: 0.01 | N179: 0.01 | O179: 0.01 | P179: 0.01 | Q179: 0.01 | R179: 0.01 | S179: 0.01 | T179: 0.01 | U179: 0.01 | V179: 0.01 | W179: 0.01 | X179: 0.01 | Y179: 0.01 | Z179: 0.01 | AA179: 0.01 | AB179: 0.01 | AC179: 0.01 | AD179: 0.01 | AE179: 0.01 | AF179: Prelim Assumption: One Third of TOU Demand Rate w EV. This participation rate will be throttled / scaled using the equipment saturation for EVs, which will be quite low. | AG179: 1
A180: IDGeneral ServiceAncillary Third PartyMarket Potential | B180: ID | C180: General Service | D180: Ancillary Third Party | E180: Market Potential | F180: % of Eligible Customers | G180: 0.0075 | H180: 0.015 | I180: 0.0255 | J180: 0.03 | K180: 0.03 | L180: 0.03 | M180: 0.03 | N180: 0.03 | O180: 0.03 | P180: 0.03 | Q180: 0.03 | R180: 0.03 | S180: 0.03 | T180: 0.03 | U180: 0.03 | V180: 0.03 | W180: 0.03 | X180: 0.03 | Y180: 0.03 | Z180: 0.03 | AA180: 0.03 | AB180: 0.03 | AC180: 0.03 | AD180: 0.03 | AE180: 0.03 | AF180: Participation rate based on saturations of EMS systems within PAC commercial customers- if we have the breakout of their Market Profile then we can get closer to the correct number of eligible participants. | AG180: 1
A181: IDGeneral ServiceAncillary Third PartyProgram Dropout Rate (Attrition) | B181: ID | C181: General Service | D181: Ancillary Third Party | E181: Program Dropout Rate (Attrition) | F181: % | G181: 0.02 | H181: 0.02 | I181: 0.02 | J181: 0.02 | K181: 0.02 | L181: 0.02 | M181: 0.02 | N181: 0.02 | O181: 0.02 | P181: 0.02 | Q181: 0.02 | R181: 0.02 | S181: 0.02 | T181: 0.02 | U181: 0.02 | V181: 0.02 | W181: 0.02 | X181: 0.02 | Y181: 0.02 | Z181: 0.02 | AA181: 0.02 | AB181: 0.02 | AC181: 0.02 | AD181: 0.02 | AE181: 0.02 | AF181: Participation rate based on saturations of EMS systems within PAC commercial customers- if we have the breakout of their Market Profile then we can get closer to the correct number of eligible participants. | AG181: 1
A182: IDLarge General ServiceAncillary Third PartyMarket Potential | B182: ID | C182: Large General Service | D182: Ancillary Third Party | E182: Market Potential | F182: % of Eligible Customers | G182: 0.01105 | H182: 0.0221 | I182: 0.03757 | J182: 0.0442 | K182: 0.0442 | L182: 0.0442 | M182: 0.0442 | N182: 0.0442 | O182: 0.0442 | P182: 0.0442 | Q182: 0.0442 | R182: 0.0442 | S182: 0.0442 | T182: 0.0442 | U182: 0.0442 | V182: 0.0442 | W182: 0.0442 | X182: 0.0442 | Y182: 0.0442 | Z182: 0.0442 | AA182: 0.0442 | AB182: 0.0442 | AC182: 0.0442 | AD182: 0.0442 | AE182: 0.0442 | AF182: Participation rate based on saturations of EMS systems within PAC commercial customers- if we have the breakout of their Market Profile then we can get closer to the correct number of eligible participants. | AG182: 1
A183: IDLarge General ServiceAncillary Third PartyProgram Dropout Rate (Attrition) | B183: ID | C183: Large General Service | D183: Ancillary Third Party | E183: Program Dropout Rate (Attrition) | F183: % | G183: 0.01 | H183: 0.01 | I183: 0.01 | J183: 0.01 | K183: 0.01 | L183: 0.01 | M183: 0.01 | N183: 0.01 | O183: 0.01 | P183: 0.01 | Q183: 0.01 | R183: 0.01 | S183: 0.01 | T183: 0.01 | U183: 0.01 | V183: 0.01 | W183: 0.01 | X183: 0.01 | Y183: 0.01 | Z183: 0.01 | AA183: 0.01 | AB183: 0.01 | AC183: 0.01 | AD183: 0.01 | AE183: 0.01 | AF183: Participation rate based on saturations of EMS systems within PAC commercial customers- if we have the breakout of their Market Profile then we can get closer to the correct number of eligible participants. | AG183: 1
A184: IDExtra Large General ServiceAncillary Third PartyMarket Potential | B184: ID | C184: Extra Large General Service | D184: Ancillary Third Party | E184: Market Potential | F184: % of Eligible Customers | G184: 0.01045 | H184: 0.0209 | I184: 0.03553 | J184: 0.0418 | K184: 0.0418 | L184: 0.0418 | M184: 0.0418 | N184: 0.0418 | O184: 0.0418 | P184: 0.0418 | Q184: 0.0418 | R184: 0.0418 | S184: 0.0418 | T184: 0.0418 | U184: 0.0418 | V184: 0.0418 | W184: 0.0418 | X184: 0.0418 | Y184: 0.0418 | Z184: 0.0418 | AA184: 0.0418 | AB184: 0.0418 | AC184: 0.0418 | AD184: 0.0418 | AE184: 0.0418 | AF184: Participation rate based on saturations of EMS systems within PAC commercial customers- if we have the breakout of their Market Profile then we can get closer to the correct number of eligible participants. | AG184: 1
A185: IDExtra Large General ServiceAncillary Third PartyProgram Dropout Rate (Attrition) | B185: ID | C185: Extra Large General Service | D185: Ancillary Third Party | E185: Program Dropout Rate (Attrition) | F185: % | G185: 0.01 | H185: 0.01 | I185: 0.01 | J185: 0.01 | K185: 0.01 | L185: 0.01 | M185: 0.01 | N185: 0.01 | O185: 0.01 | P185: 0.01 | Q185: 0.01 | R185: 0.01 | S185: 0.01 | T185: 0.01 | U185: 0.01 | V185: 0.01 | W185: 0.01 | X185: 0.01 | Y185: 0.01 | Z185: 0.01 | AA185: 0.01 | AB185: 0.01 | AC185: 0.01 | AD185: 0.01 | AE185: 0.01 | AF185: Participation rate based on saturations of EMS systems within PAC commercial customers- if we have the breakout of their Market Profile then we can get closer to the correct number of eligible participants. | AG185: 1
A186: IDResidentialAncillary Battery StorageMarket Potential | B186: ID | C186: Residential | D186: Ancillary Battery Storage | E186: Market Potential | F186: % of Eligible Customers | G186: 0.0001 | H186: 0.0003 | I186: 0.0005 | J186: 0.0008 | K186: 0.0011 | L186: 0.0014 | M186: 0.0017 | N186: 0.0021 | O186: 0.0025 | P186: 0.0029 | Q186: 0.0034 | R186: 0.0039 | S186: 0.0044 | T186: 0.005 | U186: 0.005 | V186: 0.005 | W186: 0.005 | X186: 0.005 | Y186: 0.005 | Z186: 0.005 | AA186: 0.005 | AB186: 0.005 | AC186: 0.005 | AD186: 0.005 | AE186: 0.005 | AF186: 20% from MISO LRZ 7. Assuming half for high and half again for low. *halved again 9-14-17, as per discussion with Kelly - potential looked too high. Pacificorp study didn't consider this program | AG186: 1
A187: IDResidentialAncillary Battery StorageProgram Dropout Rate (Attrition) | B187: ID | C187: Residential | D187: Ancillary Battery Storage | E187: Program Dropout Rate (Attrition) | F187: % | G187: 0 | H187: 0 | I187: 0 | J187: 0 | K187: 0 | L187: 0 | M187: 0 | N187: 0 | O187: 0 | P187: 0 | Q187: 0 | R187: 0 | S187: 0 | T187: 0 | U187: 0 | V187: 0 | W187: 0 | X187: 0 | Y187: 0 | Z187: 0 | AA187: 0 | AB187: 0 | AC187: 0 | AD187: 0 | AE187: 0 | AF187: 20% from MISO LRZ 7. Assuming half for high and half again for low. *halved again 9-14-17, as per discussion with Kelly - potential looked too high. Pacificorp study didn't consider this program | AG187: 1
A188: IDGeneral ServiceAncillary Battery StorageMarket Potential | B188: ID | C188: General Service | D188: Ancillary Battery Storage | E188: Market Potential | F188: % of Eligible Customers | G188: 0.0001 | H188: 0.0003 | I188: 0.0005 | J188: 0.0008 | K188: 0.0011 | L188: 0.0014 | M188: 0.0017 | N188: 0.0021 | O188: 0.0025 | P188: 0.0029 | Q188: 0.0034 | R188: 0.0039 | S188: 0.0044 | T188: 0.005 | U188: 0.005 | V188: 0.005 | W188: 0.005 | X188: 0.005 | Y188: 0.005 | Z188: 0.005 | AA188: 0.005 | AB188: 0.005 | AC188: 0.005 | AD188: 0.005 | AE188: 0.005 | AF188: Same as Residential | AG188: 1
A189: IDGeneral ServiceAncillary Battery StorageProgram Dropout Rate (Attrition) | B189: ID | C189: General Service | D189: Ancillary Battery Storage | E189: Program Dropout Rate (Attrition) | F189: % | G189: 0 | H189: 0 | I189: 0 | J189: 0 | K189: 0 | L189: 0 | M189: 0 | N189: 0 | O189: 0 | P189: 0 | Q189: 0 | R189: 0 | S189: 0 | T189: 0 | U189: 0 | V189: 0 | W189: 0 | X189: 0 | Y189: 0 | Z189: 0 | AA189: 0 | AB189: 0 | AC189: 0 | AD189: 0 | AE189: 0 | AF189: Same as Residential | AG189: 1
A190: IDLarge General ServiceAncillary Battery StorageMarket Potential | B190: ID | C190: Large General Service | D190: Ancillary Battery Storage | E190: Market Potential | F190: % of Eligible Customers | G190: 0.0001 | H190: 0.0003 | I190: 0.0005 | J190: 0.0008 | K190: 0.0011 | L190: 0.0014 | M190: 0.0017 | N190: 0.0021 | O190: 0.0025 | P190: 0.0029 | Q190: 0.0034 | R190: 0.0039 | S190: 0.0044 | T190: 0.005 | U190: 0.005 | V190: 0.005 | W190: 0.005 | X190: 0.005 | Y190: 0.005 | Z190: 0.005 | AA190: 0.005 | AB190: 0.005 | AC190: 0.005 | AD190: 0.005 | AE190: 0.005 | AF190: Same as Residential | AG190: 1
A191: IDLarge General ServiceAncillary Battery StorageProgram Dropout Rate (Attrition) | B191: ID | C191: Large General Service | D191: Ancillary Battery Storage | E191: Program Dropout Rate (Attrition) | F191: % | G191: 0 | H191: 0 | I191: 0 | J191: 0 | K191: 0 | L191: 0 | M191: 0 | N191: 0 | O191: 0 | P191: 0 | Q191: 0 | R191: 0 | S191: 0 | T191: 0 | U191: 0 | V191: 0 | W191: 0 | X191: 0 | Y191: 0 | Z191: 0 | AA191: 0 | AB191: 0 | AC191: 0 | AD191: 0 | AE191: 0 | AF191: Same as Residential | AG191: 1
A192: IDExtra Large General ServiceAncillary Battery StorageMarket Potential | B192: ID | C192: Extra Large General Service | D192: Ancillary Battery Storage | E192: Market Potential | F192: % of Eligible Customers | G192: 0.0001 | H192: 0.0003 | I192: 0.0005 | J192: 0.0008 | K192: 0.0011 | L192: 0.0014 | M192: 0.0017 | N192: 0.0021 | O192: 0.0025 | P192: 0.0029 | Q192: 0.0034 | R192: 0.0039 | S192: 0.0044 | T192: 0.005 | U192: 0.005 | V192: 0.005 | W192: 0.005 | X192: 0.005 | Y192: 0.005 | Z192: 0.005 | AA192: 0.005 | AB192: 0.005 | AC192: 0.005 | AD192: 0.005 | AE192: 0.005 | AF192: Same as Residential | AG192: 1
A193: IDExtra Large General ServiceAncillary Battery StorageProgram Dropout Rate (Attrition) | B193: ID | C193: Extra Large General Service | D193: Ancillary Battery Storage | E193: Program Dropout Rate (Attrition) | F193: % | G193: 0 | H193: 0 | I193: 0 | J193: 0 | K193: 0 | L193: 0 | M193: 0 | N193: 0 | O193: 0 | P193: 0 | Q193: 0 | R193: 0 | S193: 0 | T193: 0 | U193: 0 | V193: 0 | W193: 0 | X193: 0 | Y193: 0 | Z193: 0 | AA193: 0 | AB193: 0 | AC193: 0 | AD193: 0 | AE193: 0 | AF193: Same as Residential | AG193: 1
A194: =B194&C194&D194&E194 -> WAResidentialAncillary CoolingMarket Potential | B194: WA | C194: Residential | D194: Ancillary Cooling | E194: Market Potential | F194: % of Eligible Customers | G194: 0.01 | H194: 0.03 | I194: 0.07 | J194: 0.09 | K194: 0.1 | L194: 0.1 | M194: 0.1 | N194: 0.1 | O194: 0.1 | P194: 0.1 | Q194: 0.1 | R194: 0.1 | S194: 0.1 | T194: 0.1 | U194: 0.1 | V194: 0.1 | W194: 0.1 | X194: 0.1 | Y194: 0.1 | Z194: 0.1 | AA194: 0.1 | AB194: 0.1 | AC194: 0.1 | AD194: 0.1 | AE194: 0.1 | AF194: NWPC Smart Thermostat cooling assumption- 5 yr ramp rate | AG194: 1
A195: WAResidentialAncillary CoolingProgram Dropout Rate (Attrition) | B195: WA | C195: Residential | D195: Ancillary Cooling | E195: Program Dropout Rate (Attrition) | F195: % | G195: 0.01 | H195: 0.01 | I195: 0.01 | J195: 0.01 | K195: 0.01 | L195: 0.01 | M195: 0.01 | N195: 0.01 | O195: 0.01 | P195: 0.01 | Q195: 0.01 | R195: 0.01 | S195: 0.01 | T195: 0.01 | U195: 0.01 | V195: 0.01 | W195: 0.01 | X195: 0.01 | Y195: 0.01 | Z195: 0.01 | AA195: 0.01 | AB195: 0.01 | AC195: 0.01 | AD195: 0.01 | AE195: 0.01 | AF195: NWPC Smart Thermostat cooling assumption- 5 yr ramp rate | AG195: 1
A196: WAGeneral ServiceAncillary CoolingMarket Potential | B196: WA | C196: General Service | D196: Ancillary Cooling | E196: Market Potential | F196: % of Eligible Customers | G196: 0.01 | H196: 0.03 | I196: 0.07 | J196: 0.09 | K196: 0.1 | L196: 0.1 | M196: 0.1 | N196: 0.1 | O196: 0.1 | P196: 0.1 | Q196: 0.1 | R196: 0.1 | S196: 0.1 | T196: 0.1 | U196: 0.1 | V196: 0.1 | W196: 0.1 | X196: 0.1 | Y196: 0.1 | Z196: 0.1 | AA196: 0.1 | AB196: 0.1 | AC196: 0.1 | AD196: 0.1 | AE196: 0.1 | AF196: NWPC Smart Thermostat cooling assumption- 5 yr ramp rate | AG196: 1
A197: WAGeneral ServiceAncillary CoolingProgram Dropout Rate (Attrition) | B197: WA | C197: General Service | D197: Ancillary Cooling | E197: Program Dropout Rate (Attrition) | F197: % | G197: 0.01 | H197: 0.01 | I197: 0.01 | J197: 0.01 | K197: 0.01 | L197: 0.01 | M197: 0.01 | N197: 0.01 | O197: 0.01 | P197: 0.01 | Q197: 0.01 | R197: 0.01 | S197: 0.01 | T197: 0.01 | U197: 0.01 | V197: 0.01 | W197: 0.01 | X197: 0.01 | Y197: 0.01 | Z197: 0.01 | AA197: 0.01 | AB197: 0.01 | AC197: 0.01 | AD197: 0.01 | AE197: 0.01 | AF197: NWPC Smart Thermostat cooling assumption- 5 yr ramp rate | AG197: 1
A198: WAResidentialAncillary HeatingMarket Potential | B198: WA | C198: Residential | D198: Ancillary Heating | E198: Market Potential | F198: % of Eligible Customers | G198: 0.0025 | H198: 0.0075 | I198: 0.0175 | J198: 0.0225 | K198: 0.025 | L198: 0.025 | M198: 0.025 | N198: 0.025 | O198: 0.025 | P198: 0.025 | Q198: 0.025 | R198: 0.025 | S198: 0.025 | T198: 0.025 | U198: 0.025 | V198: 0.025 | W198: 0.025 | X198: 0.025 | Y198: 0.025 | Z198: 0.025 | AA198: 0.025 | AB198: 0.025 | AC198: 0.025 | AD198: 0.025 | AE198: 0.025 | AF198: Assuming maximum participation for combined DLC Cooling and Smart Therm is 25%, reduced from 30% to account for those program participants who may have intended to participate but were unable to correctly install their thermostat= half for ancillary | AG198: 1
A199: WAResidentialAncillary HeatingProgram Dropout Rate (Attrition) | B199: WA | C199: Residential | D199: Ancillary Heating | E199: Program Dropout Rate (Attrition) | F199: % | G199: 0.01 | H199: 0.01 | I199: 0.01 | J199: 0.01 | K199: 0.01 | L199: 0.01 | M199: 0.01 | N199: 0.01 | O199: 0.01 | P199: 0.01 | Q199: 0.01 | R199: 0.01 | S199: 0.01 | T199: 0.01 | U199: 0.01 | V199: 0.01 | W199: 0.01 | X199: 0.01 | Y199: 0.01 | Z199: 0.01 | AA199: 0.01 | AB199: 0.01 | AC199: 0.01 | AD199: 0.01 | AE199: 0.01 | AF199: Assuming maximum participation for combined DLC Cooling and Smart Therm is 25%, reduced from 30% to account for those program participants who may have intended to participate but were unable to correctly install their thermostat= half for ancillary | AG199: 1
A200: WAGeneral ServiceAncillary HeatingMarket Potential | B200: WA | C200: General Service | D200: Ancillary Heating | E200: Market Potential | F200: % of Eligible Customers | G200: 0.0015 | H200: 0.0045 | I200: 0.0105 | J200: 0.0135 | K200: 0.015 | L200: 0.015 | M200: 0.015 | N200: 0.015 | O200: 0.015 | P200: 0.015 | Q200: 0.015 | R200: 0.015 | S200: 0.015 | T200: 0.015 | U200: 0.015 | V200: 0.015 | W200: 0.015 | X200: 0.015 | Y200: 0.015 | Z200: 0.015 | AA200: 0.015 | AB200: 0.015 | AC200: 0.015 | AD200: 0.015 | AE200: 0.015 | AF200: Dropping to 3% to compensate for higher space heating saturations- half for ancillary | AG200: 1
... 25 more rows

Sheet ImpactInput
A1: Key | B1: State | C1: Customer Class | D1: Option | E1: Data Element | F1: Unit | G1: Market Potential | H1: Comments from Input Generator
A2: =B2&C2&D2&E2 -> WAResidentialBehavioralEvent Non-Performance Rate | B2: WA | C2: Residential | D2: Behavioral | E2: Event Non-Performance Rate | F2: % | G2: 0 | H2: 0 | I2: 1
A3: =B3&C3&D3&E3 -> WAResidentialBehavioralPer Customer Summer Peak Reduction (kW) | B3: WA | C3: Residential | D3: Behavioral | E3: Per Customer Summer Peak Reduction (kW) | F3: kW @meter | G3: 0 | H3: hi participation case = 0.75% of low to account for lower potential customers | I3: 1
A4: WAResidentialBehavioralPer Customer Summer Peak Reduction (%) | B4: WA | C4: Residential | D4: Behavioral | E4: Per Customer Summer Peak Reduction (%) | F4: % of Peak | G4: 0.02 | H4: Opower documentation for BDR with Consumers and DTE | I4: 1
A5: WAResidentialBehavioralPer Customer Winter Peak Reduction (kW) | B5: WA | C5: Residential | D5: Behavioral | E5: Per Customer Winter Peak Reduction (kW) | F5: kW @meter | G5: 0 | H5: Assume 50% of Summer impacts. | I5: 1
A6: WAResidentialBehavioralPer Customer Winter Peak Reduction (%) | B6: WA | C6: Residential | D6: Behavioral | E6: Per Customer Winter Peak Reduction (%) | F6: % of Peak | G6: 0.02 | H6: 0 | I6: 1
A7: WAResidentialDLC Electric Vehicle ChargingEvent Non-Performance Rate | B7: WA | C7: Residential | D7: DLC Electric Vehicle Charging | E7: Event Non-Performance Rate | F7: % | G7: 0 | H7: 0 | I7: 1
A8: WAResidentialDLC Electric Vehicle ChargingPer Customer Summer Peak Reduction (kW) | B8: WA | C8: Residential | D8: DLC Electric Vehicle Charging | E8: Per Customer Summer Peak Reduction (kW) | F8: kW @meter | G8: 0.5 | H8: Expecting 90% + load shift | I8: 1
A9: WAResidentialDLC Electric Vehicle ChargingPer Customer Summer Peak Reduction (%) | B9: WA | C9: Residential | D9: DLC Electric Vehicle Charging | E9: Per Customer Summer Peak Reduction (%) | F9: % of Peak | G9: 0 | H9: 0 | I9: 1
A10: WAResidentialDLC Electric Vehicle ChargingPer Customer Winter Peak Reduction (kW) | B10: WA | C10: Residential | D10: DLC Electric Vehicle Charging | E10: Per Customer Winter Peak Reduction (kW) | F10: kW @meter | G10: 0.5 | H10: Expecting 90% + load shift | I10: 1
A11: WAResidentialDLC Electric Vehicle ChargingPer Customer Winter Peak Reduction (%) | B11: WA | C11: Residential | D11: DLC Electric Vehicle Charging | E11: Per Customer Winter Peak Reduction (%) | F11: % of Peak | G11: 0 | H11: 0 | I11: 1
A12: WAResidentialDLC Central ACEvent Non-Performance Rate | B12: WA | C12: Residential | D12: DLC Central AC | E12: Event Non-Performance Rate | F12: % | G12: 0 | H12: 0 | I12: 1
A13: WAResidentialDLC Central ACPer Customer Summer Peak Reduction (kW) | B13: WA | C13: Residential | D13: DLC Central AC | E13: Per Customer Summer Peak Reduction (kW) | F13: kW @meter | G13: 0.5 | H13: NWPC DLC Switch cooling assumption (east) | I13: 1
A14: WAResidentialDLC Central ACPer Customer Summer Peak Reduction (%) | B14: WA | C14: Residential | D14: DLC Central AC | E14: Per Customer Summer Peak Reduction (%) | F14: % of Peak | G14: 0 | H14: 0 | I14: 1
A15: WAResidentialDLC Central ACPer Customer Winter Peak Reduction (kW) | B15: WA | C15: Residential | D15: DLC Central AC | E15: Per Customer Winter Peak Reduction (kW) | F15: kW @meter | G15: 0 | H15: 0 | I15: 1
A16: WAResidentialDLC Central ACPer Customer Winter Peak Reduction (%) | B16: WA | C16: Residential | D16: DLC Central AC | E16: Per Customer Winter Peak Reduction (%) | F16: % of Peak | G16: 0 | H16: 0 | I16: 1
A17: WAGeneral ServiceDLC Central ACEvent Non-Performance Rate | B17: WA | C17: General Service | D17: DLC Central AC | E17: Event Non-Performance Rate | F17: % | G17: 0 | H17: 0 | I17: 1
A18: WAGeneral ServiceDLC Central ACPer Customer Summer Peak Reduction (kW) | B18: WA | C18: General Service | D18: DLC Central AC | E18: Per Customer Summer Peak Reduction (kW) | F18: kW @meter | G18: 1.25 | H18: NWPC DLC Switch cooling assumption (east) | I18: 1
A19: WAGeneral ServiceDLC Central ACPer Customer Summer Peak Reduction (%) | B19: WA | C19: General Service | D19: DLC Central AC | E19: Per Customer Summer Peak Reduction (%) | F19: % of Peak | G19: 0 | H19: 0 | I19: 1
A20: WAGeneral ServiceDLC Central ACPer Customer Winter Peak Reduction (kW) | B20: WA | C20: General Service | D20: DLC Central AC | E20: Per Customer Winter Peak Reduction (kW) | F20: kW @meter | G20: 0 | H20: 0 | I20: 1
A21: WAGeneral ServiceDLC Central ACPer Customer Winter Peak Reduction (%) | B21: WA | C21: General Service | D21: DLC Central AC | E21: Per Customer Winter Peak Reduction (%) | F21: % of Peak | G21: 0 | H21: 0 | I21: 1
A22: WAResidentialDLC Water HeatingEvent Non-Performance Rate | B22: WA | C22: Residential | D22: DLC Water Heating | E22: Event Non-Performance Rate | F22: % | G22: 0 | H22: 0 | I22: 1
A23: WAResidentialDLC Water HeatingPer Customer Summer Peak Reduction (kW) | B23: WA | C23: Residential | D23: DLC Water Heating | E23: Per Customer Summer Peak Reduction (kW) | F23: kW @meter | G23: 0 | H23: 7th Plan, pg 25 from Cadmnus Report, Commercial: Res value multiplied by the CAC DLC ratio (small C&I impact /Res impact) | I23: 1
A24: WAResidentialDLC Water HeatingPer Customer Summer Peak Reduction (%) | B24: WA | C24: Residential | D24: DLC Water Heating | E24: Per Customer Summer Peak Reduction (%) | F24: % of Peak | G24: 0 | H24: 0 | I24: 1
A25: WAResidentialDLC Water HeatingPer Customer Winter Peak Reduction (kW) | B25: WA | C25: Residential | D25: DLC Water Heating | E25: Per Customer Winter Peak Reduction (kW) | F25: kW @meter | G25: 0 | H25: 7th Plan, pg 25 from Cadmnus Report, Commercial: Res value multiplied by the CAC DLC ratio (small C&I impact /Res impact) | I25: 1
A26: WAResidentialDLC Water HeatingPer Customer Winter Peak Reduction (%) | B26: WA | C26: Residential | D26: DLC Water Heating | E26: Per Customer Winter Peak Reduction (%) | F26: % of Peak | G26: 0 | H26: 0 | I26: 1
A27: WAGeneral ServiceDLC Water HeatingEvent Non-Performance Rate | B27: WA | C27: General Service | D27: DLC Water Heating | E27: Event Non-Performance Rate | F27: % | G27: 0 | H27: 0 | I27: 1
A28: WAGeneral ServiceDLC Water HeatingPer Customer Summer Peak Reduction (kW) | B28: WA | C28: General Service | D28: DLC Water Heating | E28: Per Customer Summer Peak Reduction (kW) | F28: kW @meter | G28: 0 | H28: 7th Plan, pg 25 from Cadmnus Report, Commercial: Res value multiplied by the CAC DLC ratio (small C&I impact /Res impact) | I28: 1
A29: WAGeneral ServiceDLC Water HeatingPer Customer Summer Peak Reduction (%) | B29: WA | C29: General Service | D29: DLC Water Heating | E29: Per Customer Summer Peak Reduction (%) | F29: % of Peak | G29: 0 | H29: 0 | I29: 1
A30: WAGeneral ServiceDLC Water HeatingPer Customer Winter Peak Reduction (kW) | B30: WA | C30: General Service | D30: DLC Water Heating | E30: Per Customer Winter Peak Reduction (kW) | F30: kW @meter | G30: 0 | H30: 7th Plan, pg 25 from Cadmnus Report, Commercial: Res value multiplied by the CAC DLC ratio (small C&I impact /Res impact) | I30: 1
A31: WAGeneral ServiceDLC Water HeatingPer Customer Winter Peak Reduction (%) | B31: WA | C31: General Service | D31: DLC Water Heating | E31: Per Customer Winter Peak Reduction (%) | F31: % of Peak | G31: 0 | H31: 0 | I31: 1
A32: WAResidentialCTA-2045 WHEvent Non-Performance Rate | B32: WA | C32: Residential | D32: CTA-2045 WH | E32: Event Non-Performance Rate | F32: % | G32: 0.03 | H32: Ability for customers to easily override event- using 3% as placeholder | I32: 1
A33: WAResidentialCTA-2045 WHPer Customer Summer Peak Reduction (kW) | B33: WA | C33: Residential | D33: CTA-2045 WH | E33: Per Customer Summer Peak Reduction (kW) | F33: kW @meter | G33: 0.5 | H33: NWPC Electric Resistance Grid-Ready Summer/Winter Impact | I33: 1
A34: WAResidentialCTA-2045 WHPer Customer Summer Peak Reduction (%) | B34: WA | C34: Residential | D34: CTA-2045 WH | E34: Per Customer Summer Peak Reduction (%) | F34: % of Peak | G34: 0 | H34: 0 | I34: 1
A35: WAResidentialCTA-2045 WHPer Customer Winter Peak Reduction (kW) | B35: WA | C35: Residential | D35: CTA-2045 WH | E35: Per Customer Winter Peak Reduction (kW) | F35: kW @meter | G35: 0.5 | H35: NWPC Electric Resistance Grid-Ready Summer/Winter Impact | I35: 1
A36: WAResidentialCTA-2045 WHPer Customer Winter Peak Reduction (%) | B36: WA | C36: Residential | D36: CTA-2045 WH | E36: Per Customer Winter Peak Reduction (%) | F36: % of Peak | G36: 0 | H36: Duke Energy produced PPT of pilot but no impacts | I36: 1
A37: WAGeneral ServiceCTA-2045 WHEvent Non-Performance Rate | B37: WA | C37: General Service | D37: CTA-2045 WH | E37: Event Non-Performance Rate | F37: % | G37: 0.03 | H37: 0 | I37: 1
A38: WAGeneral ServiceCTA-2045 WHPer Customer Summer Peak Reduction (kW) | B38: WA | C38: General Service | D38: CTA-2045 WH | E38: Per Customer Summer Peak Reduction (kW) | F38: kW @meter | G38: 1.26 | H38: NWPC Electric Resistance Grid-Ready Summer/Winter Impact- General service used 2.56x of res | I38: 1
A39: WAGeneral ServiceCTA-2045 WHPer Customer Summer Peak Reduction (%) | B39: WA | C39: General Service | D39: CTA-2045 WH | E39: Per Customer Summer Peak Reduction (%) | F39: % of Peak | G39: 0 | H39: 0 | I39: 1
A40: WAGeneral ServiceCTA-2045 WHPer Customer Winter Peak Reduction (kW) | B40: WA | C40: General Service | D40: CTA-2045 WH | E40: Per Customer Winter Peak Reduction (kW) | F40: kW @meter | G40: 1.26 | H40: NWPC Electric Resistance Grid-Ready Summer/Winter Impact- General service used 2.56x of res | I40: 1
A41: WAGeneral ServiceCTA-2045 WHPer Customer Winter Peak Reduction (%) | B41: WA | C41: General Service | D41: CTA-2045 WH | E41: Per Customer Winter Peak Reduction (%) | F41: % of Peak | G41: 0 | H41: 0 | I41: 1
A42: WAResidentialDLC Smart Thermostats - CoolingEvent Non-Performance Rate | B42: WA | C42: Residential | D42: DLC Smart Thermostats - Cooling | E42: Event Non-Performance Rate | F42: % | G42: 0 | H42: 0 | I42: 1
A43: WAResidentialDLC Smart Thermostats - CoolingPer Customer Summer Peak Reduction (kW) | B43: WA | C43: Residential | D43: DLC Smart Thermostats - Cooling | E43: Per Customer Summer Peak Reduction (kW) | F43: kW @meter | G43: 0.5 | H43: NWPC DLC Switch cooling assumption (east)- Thermostat impact was 1.27 kW but didn't seem right so we defaulted to DLC Central AC | I43: 1
A44: WAResidentialDLC Smart Thermostats - CoolingPer Customer Summer Peak Reduction (%) | B44: WA | C44: Residential | D44: DLC Smart Thermostats - Cooling | E44: Per Customer Summer Peak Reduction (%) | F44: % of Peak | G44: 0 | H44: 0 | I44: 1
A45: WAResidentialDLC Smart Thermostats - CoolingPer Customer Winter Peak Reduction (kW) | B45: WA | C45: Residential | D45: DLC Smart Thermostats - Cooling | E45: Per Customer Winter Peak Reduction (kW) | F45: kW @meter | G45: 0 | H45: 0 | I45: 1
A46: WAResidentialDLC Smart Thermostats - CoolingPer Customer Winter Peak Reduction (%) | B46: WA | C46: Residential | D46: DLC Smart Thermostats - Cooling | E46: Per Customer Winter Peak Reduction (%) | F46: % of Peak | G46: 0 | H46: 0 | I46: 1
A47: WAGeneral ServiceDLC Smart Thermostats - CoolingEvent Non-Performance Rate | B47: WA | C47: General Service | D47: DLC Smart Thermostats - Cooling | E47: Event Non-Performance Rate | F47: % | G47: 0 | H47: 0 | I47: 1
A48: WAGeneral ServiceDLC Smart Thermostats - CoolingPer Customer Summer Peak Reduction (kW) | B48: WA | C48: General Service | D48: DLC Smart Thermostats - Cooling | E48: Per Customer Summer Peak Reduction (kW) | F48: kW @meter | G48: 1.25 | H48: NWPC DLC Switch cooling assumption (east)- Thermostat impact was 1.27 kW but didn't seem right so we defaulted to DLC Central AC | I48: 1
A49: WAGeneral ServiceDLC Smart Thermostats - CoolingPer Customer Summer Peak Reduction (%) | B49: WA | C49: General Service | D49: DLC Smart Thermostats - Cooling | E49: Per Customer Summer Peak Reduction (%) | F49: % of Peak | G49: 0 | H49: 0 | I49: 1
A50: WAGeneral ServiceDLC Smart Thermostats - CoolingPer Customer Winter Peak Reduction (kW) | B50: WA | C50: General Service | D50: DLC Smart Thermostats - Cooling | E50: Per Customer Winter Peak Reduction (kW) | F50: kW @meter | G50: 0 | H50: 0 | I50: 1
A51: WAGeneral ServiceDLC Smart Thermostats - CoolingPer Customer Winter Peak Reduction (%) | B51: WA | C51: General Service | D51: DLC Smart Thermostats - Cooling | E51: Per Customer Winter Peak Reduction (%) | F51: % of Peak | G51: 0 | H51: 0 | I51: 1
A52: WAResidentialDLC Smart Thermostats - HeatingEvent Non-Performance Rate | B52: WA | C52: Residential | D52: DLC Smart Thermostats - Heating | E52: Event Non-Performance Rate | F52: % | G52: 0 | H52: 0 | I52: 1
A53: WAResidentialDLC Smart Thermostats - HeatingPer Customer Summer Peak Reduction (kW) | B53: WA | C53: Residential | D53: DLC Smart Thermostats - Heating | E53: Per Customer Summer Peak Reduction (kW) | F53: kW @meter | G53: 0 | H53: 0 | I53: 1
A54: WAResidentialDLC Smart Thermostats - HeatingPer Customer Summer Peak Reduction (%) | B54: WA | C54: Residential | D54: DLC Smart Thermostats - Heating | E54: Per Customer Summer Peak Reduction (%) | F54: % of Peak | G54: 0 | H54: 0 | I54: 1
A55: WAResidentialDLC Smart Thermostats - HeatingPer Customer Winter Peak Reduction (kW) | B55: WA | C55: Residential | D55: DLC Smart Thermostats - Heating | E55: Per Customer Winter Peak Reduction (kW) | F55: kW @meter | G55: 1.09 | H55: NWPC Smart thermostat heating assumption- general service uses 0.54 (switch to thermostat impact ratio) of eastern switch impact | I55: 1
A56: WAResidentialDLC Smart Thermostats - HeatingPer Customer Winter Peak Reduction (%) | B56: WA | C56: Residential | D56: DLC Smart Thermostats - Heating | E56: Per Customer Winter Peak Reduction (%) | F56: % of Peak | G56: 0 | H56: 0 | I56: 1
A57: WAGeneral ServiceDLC Smart Thermostats - HeatingEvent Non-Performance Rate | B57: WA | C57: General Service | D57: DLC Smart Thermostats - Heating | E57: Event Non-Performance Rate | F57: % | G57: 0 | H57: 0 | I57: 1
A58: WAGeneral ServiceDLC Smart Thermostats - HeatingPer Customer Summer Peak Reduction (kW) | B58: WA | C58: General Service | D58: DLC Smart Thermostats - Heating | E58: Per Customer Summer Peak Reduction (kW) | F58: kW @meter | G58: 0 | H58: 0 | I58: 1
A59: WAGeneral ServiceDLC Smart Thermostats - HeatingPer Customer Summer Peak Reduction (%) | B59: WA | C59: General Service | D59: DLC Smart Thermostats - Heating | E59: Per Customer Summer Peak Reduction (%) | F59: % of Peak | G59: 0 | H59: 0 | I59: 1
A60: WAGeneral ServiceDLC Smart Thermostats - HeatingPer Customer Winter Peak Reduction (kW) | B60: WA | C60: General Service | D60: DLC Smart Thermostats - Heating | E60: Per Customer Winter Peak Reduction (kW) | F60: kW @meter | G60: 1.35 | H60: NWPC Smart thermostat heating assumption- general service uses 0.54 (switch to thermostat impact ratio) of eastern switch impact | I60: 1
A61: WAGeneral ServiceDLC Smart Thermostats - HeatingPer Customer Winter Peak Reduction (%) | B61: WA | C61: General Service | D61: DLC Smart Thermostats - Heating | E61: Per Customer Winter Peak Reduction (%) | F61: % of Peak | G61: 0 | H61: Pacificorp Assumptions | I61: 1
A62: WAResidentialDLC Smart AppliancesEvent Non-Performance Rate | B62: WA | C62: Residential | D62: DLC Smart Appliances | E62: Event Non-Performance Rate | F62: % | G62: 0 | H62: 0 | I62: 1
A63: WAResidentialDLC Smart AppliancesPer Customer Summer Peak Reduction (kW) | B63: WA | C63: Residential | D63: DLC Smart Appliances | E63: Per Customer Summer Peak Reduction (kW) | F63: kW @meter | G63: 0.14 | H63: Ghatikar, Rish. Demand Response Automation in Appliance and Equipment. Lawrence Berkley National Laboratory, 2015. Web. http://docketpublic.energy.ca.gov/PublicDocuments/15-IEPR-05/TN205072_20150618T110004_Demand_Response_Automation_in_Appliances_and_Equipment.pptx kw @ meter values= 0.14 for summer and winter | I63: 1
A64: WAResidentialDLC Smart AppliancesPer Customer Summer Peak Reduction (%) | B64: WA | C64: Residential | D64: DLC Smart Appliances | E64: Per Customer Summer Peak Reduction (%) | F64: % of Peak | G64: 0 | H64: 0 | I64: 1
A65: WAResidentialDLC Smart AppliancesPer Customer Winter Peak Reduction (kW) | B65: WA | C65: Residential | D65: DLC Smart Appliances | E65: Per Customer Winter Peak Reduction (kW) | F65: kW @meter | G65: 0.14 | H65: Ghatikar, Rish. Demand Response Automation in Appliance and Equipment. Lawrence Berkley National Laboratory, 2015. Web. http://docketpublic.energy.ca.gov/PublicDocuments/15-IEPR-05/TN205072_20150618T110004_Demand_Response_Automation_in_Appliances_and_Equipment.pptx kw @ meter values= 0.14 for summer and winter | I65: 1
A66: WAResidentialDLC Smart AppliancesPer Customer Winter Peak Reduction (%) | B66: WA | C66: Residential | D66: DLC Smart Appliances | E66: Per Customer Winter Peak Reduction (%) | F66: % of Peak | G66: 0 | H66: 0 | I66: 1
A67: =B67&C67&D67&E67 -> WAGeneral ServiceDLC Smart AppliancesEvent Non-Performance Rate | B67: WA | C67: General Service | D67: DLC Smart Appliances | E67: Event Non-Performance Rate | F67: % | G67: 0 | H67: 0 | I67: 1
A68: WAGeneral ServiceDLC Smart AppliancesPer Customer Summer Peak Reduction (kW) | B68: WA | C68: General Service | D68: DLC Smart Appliances | E68: Per Customer Summer Peak Reduction (kW) | F68: kW @meter | G68: 0.14 | H68: Ghatikar, Rish. Demand Response Automation in Appliance and Equipment. Lawrence Berkley National Laboratory, 2015. Web. http://docketpublic.energy.ca.gov/PublicDocuments/15-IEPR-05/TN205072_20150618T110004_Demand_Response_Automation_in_Appliances_and_Equipment.pptx kw @ meter values= 0.14 for summer and winter | I68: 1
A69: WAGeneral ServiceDLC Smart AppliancesPer Customer Summer Peak Reduction (%) | B69: WA | C69: General Service | D69: DLC Smart Appliances | E69: Per Customer Summer Peak Reduction (%) | F69: % of Peak | G69: 0 | H69: 0 | I69: 1
A70: WAGeneral ServiceDLC Smart AppliancesPer Customer Winter Peak Reduction (kW) | B70: WA | C70: General Service | D70: DLC Smart Appliances | E70: Per Customer Winter Peak Reduction (kW) | F70: kW @meter | G70: 0.14 | H70: Ghatikar, Rish. Demand Response Automation in Appliance and Equipment. Lawrence Berkley National Laboratory, 2015. Web. http://docketpublic.energy.ca.gov/PublicDocuments/15-IEPR-05/TN205072_20150618T110004_Demand_Response_Automation_in_Appliances_and_Equipment.pptx kw @ meter values= 0.14 for summer and winter | I70: 1
A71: WAGeneral ServiceDLC Smart AppliancesPer Customer Winter Peak Reduction (%) | B71: WA | C71: General Service | D71: DLC Smart Appliances | E71: Per Customer Winter Peak Reduction (%) | F71: % of Peak | G71: 0 | H71: 0 | I71: 1
A72: WAGeneral ServiceThird Party ContractsEvent Non-Performance Rate | B72: WA | C72: General Service | D72: Third Party Contracts | E72: Event Non-Performance Rate | F72: % | G72: 0 | H72: 0 | I72: 1
A73: WAGeneral ServiceThird Party ContractsPer Customer Summer Peak Reduction (kW) | B73: WA | C73: General Service | D73: Third Party Contracts | E73: Per Customer Summer Peak Reduction (kW) | F73: kW @meter | G73: 0 | H73: 0 | I73: 1
A74: WAGeneral ServiceThird Party ContractsPer Customer Summer Peak Reduction (%) | B74: WA | C74: General Service | D74: Third Party Contracts | E74: Per Customer Summer Peak Reduction (%) | F74: % of Peak | G74: 0.1 | H74: Michigan Demand Response Market Assessment- Capacity Bidding | I74: 1
A75: WAGeneral ServiceThird Party ContractsPer Customer Winter Peak Reduction (kW) | B75: WA | C75: General Service | D75: Third Party Contracts | E75: Per Customer Winter Peak Reduction (kW) | F75: kW @meter | G75: 0 | H75: 0 | I75: 1
A76: WAGeneral ServiceThird Party ContractsPer Customer Winter Peak Reduction (%) | B76: WA | C76: General Service | D76: Third Party Contracts | E76: Per Customer Winter Peak Reduction (%) | F76: % of Peak | G76: 0.1 | H76: Michigan Demand Response Market Assessment- Capacity Bidding | I76: 1
A77: WALarge General ServiceThird Party ContractsEvent Non-Performance Rate | B77: WA | C77: Large General Service | D77: Third Party Contracts | E77: Event Non-Performance Rate | F77: % | G77: 0 | H77: 0 | I77: 1
A78: WALarge General ServiceThird Party ContractsPer Customer Summer Peak Reduction (kW) | B78: WA | C78: Large General Service | D78: Third Party Contracts | E78: Per Customer Summer Peak Reduction (kW) | F78: kW @meter | G78: 0 | H78: 0 | I78: 1
A79: WALarge General ServiceThird Party ContractsPer Customer Summer Peak Reduction (%) | B79: WA | C79: Large General Service | D79: Third Party Contracts | E79: Per Customer Summer Peak Reduction (%) | F79: % of Peak | G79: 0.21 | H79: weighted average from impacts in the following report: Impact Estimates from Aggregator Programs in California (Source: 2012 Statewide Load Impact Evaluation of California Aggregator Demand Response Programs Volume 1: Ex post and Ex ante Load Impacts; Christensen Associates Energy Consulting; April 1, 2013). | I79: 1
A80: WALarge General ServiceThird Party ContractsPer Customer Winter Peak Reduction (kW) | B80: WA | C80: Large General Service | D80: Third Party Contracts | E80: Per Customer Winter Peak Reduction (kW) | F80: kW @meter | G80: 0 | H80: 0 | I80: 1
A81: WALarge General ServiceThird Party ContractsPer Customer Winter Peak Reduction (%) | B81: WA | C81: Large General Service | D81: Third Party Contracts | E81: Per Customer Winter Peak Reduction (%) | F81: % of Peak | G81: 0.21 | H81: weighted average from impacts in the following report: Impact Estimates from Aggregator Programs in California (Source: 2012 Statewide Load Impact Evaluation of California Aggregator Demand Response Programs Volume 1: Ex post and Ex ante Load Impacts; Christensen Associates Energy Consulting; April 1, 2013). | I81: 1
A82: WAExtra Large General ServiceThird Party ContractsEvent Non-Performance Rate | B82: WA | C82: Extra Large General Service | D82: Third Party Contracts | E82: Event Non-Performance Rate | F82: % | G82: 0 | H82: 0 | I82: 1
A83: WAExtra Large General ServiceThird Party ContractsPer Customer Summer Peak Reduction (kW) | B83: WA | C83: Extra Large General Service | D83: Third Party Contracts | E83: Per Customer Summer Peak Reduction (kW) | F83: kW @meter | G83: 0 | H83: 0 | I83: 1
A84: WAExtra Large General ServiceThird Party ContractsPer Customer Summer Peak Reduction (%) | B84: WA | C84: Extra Large General Service | D84: Third Party Contracts | E84: Per Customer Summer Peak Reduction (%) | F84: % of Peak | G84: 0.21 | H84: weighted average from impacts in the following report: Impact Estimates from Aggregator Programs in California (Source: 2012 Statewide Load Impact Evaluation of California Aggregator Demand Response Programs Volume 1: Ex post and Ex ante Load Impacts; Christensen Associates Energy Consulting; April 1, 2013). | I84: 1
A85: WAExtra Large General ServiceThird Party ContractsPer Customer Winter Peak Reduction (kW) | B85: WA | C85: Extra Large General Service | D85: Third Party Contracts | E85: Per Customer Winter Peak Reduction (kW) | F85: kW @meter | G85: 0 | H85: 0 | I85: 1
A86: WAExtra Large General ServiceThird Party ContractsPer Customer Winter Peak Reduction (%) | B86: WA | C86: Extra Large General Service | D86: Third Party Contracts | E86: Per Customer Winter Peak Reduction (%) | F86: % of Peak | G86: 0.21 | H86: weighted average from impacts in the following report: Impact Estimates from Aggregator Programs in California (Source: 2012 Statewide Load Impact Evaluation of California Aggregator Demand Response Programs Volume 1: Ex post and Ex ante Load Impacts; Christensen Associates Energy Consulting; April 1, 2013). | I86: 1
A87: WAResidentialTime-of-Use Opt-inEvent Non-Performance Rate | B87: WA | C87: Residential | D87: Time-of-Use Opt-in | E87: Event Non-Performance Rate | F87: % | G87: 0 | H87: None - should be in eval'd number. | I87: 1
A88: WAResidentialTime-of-Use Opt-inPer Customer Summer Peak Reduction (kW) | B88: WA | C88: Residential | D88: Time-of-Use Opt-in | E88: Per Customer Summer Peak Reduction (kW) | F88: kW @meter | G88: 0 | H88: 0 | I88: 1
A89: WAResidentialTime-of-Use Opt-inPer Customer Summer Peak Reduction (%) | B89: WA | C89: Residential | D89: Time-of-Use Opt-in | E89: Per Customer Summer Peak Reduction (%) | F89: % of Peak | G89: 0.057 | H89: Brattle Analysis and Estimate - Pacificorp 2019 opt-in and opt-out scenarios | I89: 1
A90: WAResidentialTime-of-Use Opt-inPer Customer Winter Peak Reduction (kW) | B90: WA | C90: Residential | D90: Time-of-Use Opt-in | E90: Per Customer Winter Peak Reduction (kW) | F90: kW @meter | G90: 0 | H90: 0 | I90: 1
A91: WAResidentialTime-of-Use Opt-inPer Customer Winter Peak Reduction (%) | B91: WA | C91: Residential | D91: Time-of-Use Opt-in | E91: Per Customer Winter Peak Reduction (%) | F91: % of Peak | G91: 0.0285 | H91: Assume 50% of Summer impacts. Brattle Analysis and Estimate - Negative impacts in Winter set to zero in Eastern states. | I91: 1
A92: WAGeneral ServiceTime-of-Use Opt-inEvent Non-Performance Rate | B92: WA | C92: General Service | D92: Time-of-Use Opt-in | E92: Event Non-Performance Rate | F92: % | G92: 0 | H92: 0 | I92: 1
A93: WAGeneral ServiceTime-of-Use Opt-inPer Customer Summer Peak Reduction (kW) | B93: WA | C93: General Service | D93: Time-of-Use Opt-in | E93: Per Customer Summer Peak Reduction (kW) | F93: kW @meter | G93: 0 | H93: 0 | I93: 1
A94: WAGeneral ServiceTime-of-Use Opt-inPer Customer Summer Peak Reduction (%) | B94: WA | C94: General Service | D94: Time-of-Use Opt-in | E94: Per Customer Summer Peak Reduction (%) | F94: % of Peak | G94: 0.002 | H94: Brattle Analysis and Estimate - Pacificorp 2019 opt-in and opt-out scenarios | I94: 1
A95: WAGeneral ServiceTime-of-Use Opt-inPer Customer Winter Peak Reduction (kW) | B95: WA | C95: General Service | D95: Time-of-Use Opt-in | E95: Per Customer Winter Peak Reduction (kW) | F95: kW @meter | G95: 0 | H95: 0 | I95: 1
A96: WAGeneral ServiceTime-of-Use Opt-inPer Customer Winter Peak Reduction (%) | B96: WA | C96: General Service | D96: Time-of-Use Opt-in | E96: Per Customer Winter Peak Reduction (%) | F96: % of Peak | G96: 0.001 | H96: Assume 50% of Summer impacts. | I96: 1
A97: WALarge General ServiceTime-of-Use Opt-inEvent Non-Performance Rate | B97: WA | C97: Large General Service | D97: Time-of-Use Opt-in | E97: Event Non-Performance Rate | F97: % | G97: 0 | H97: 0 | I97: 1
A98: WALarge General ServiceTime-of-Use Opt-inPer Customer Summer Peak Reduction (kW) | B98: WA | C98: Large General Service | D98: Time-of-Use Opt-in | E98: Per Customer Summer Peak Reduction (kW) | F98: kW @meter | G98: 0 | H98: 0 | I98: 1
A99: WALarge General ServiceTime-of-Use Opt-inPer Customer Summer Peak Reduction (%) | B99: WA | C99: Large General Service | D99: Time-of-Use Opt-in | E99: Per Customer Summer Peak Reduction (%) | F99: % of Peak | G99: 0.026 | H99: Brattle Analysis and Estimate - Pacificorp 2019 opt-in and opt-out scenarios | I99: 1
A100: WALarge General ServiceTime-of-Use Opt-inPer Customer Winter Peak Reduction (kW) | B100: WA | C100: Large General Service | D100: Time-of-Use Opt-in | E100: Per Customer Winter Peak Reduction (kW) | F100: kW @meter | G100: 0 | H100: 0 | I100: 1
A101: WALarge General ServiceTime-of-Use Opt-inPer Customer Winter Peak Reduction (%) | B101: WA | C101: Large General Service | D101: Time-of-Use Opt-in | E101: Per Customer Winter Peak Reduction (%) | F101: % of Peak | G101: 0.013 | H101: Assume 50% of Summer impacts. | I101: 1
A102: WAExtra Large General ServiceTime-of-Use Opt-inEvent Non-Performance Rate | B102: WA | C102: Extra Large General Service | D102: Time-of-Use Opt-in | E102: Event Non-Performance Rate | F102: % | G102: 0 | H102: 0 | I102: 1
A103: WAExtra Large General ServiceTime-of-Use Opt-inPer Customer Summer Peak Reduction (kW) | B103: WA | C103: Extra Large General Service | D103: Time-of-Use Opt-in | E103: Per Customer Summer Peak Reduction (kW) | F103: kW @meter | G103: 0 | H103: 0 | I103: 1
A104: WAExtra Large General ServiceTime-of-Use Opt-inPer Customer Summer Peak Reduction (%) | B104: WA | C104: Extra Large General Service | D104: Time-of-Use Opt-in | E104: Per Customer Summer Peak Reduction (%) | F104: % of Peak | G104: 0.031 | H104: Brattle Analysis and Estimate - Pacificorp 2019 opt-in and opt-out scenarios | I104: 1
A105: WAExtra Large General ServiceTime-of-Use Opt-inPer Customer Winter Peak Reduction (kW) | B105: WA | C105: Extra Large General Service | D105: Time-of-Use Opt-in | E105: Per Customer Winter Peak Reduction (kW) | F105: kW @meter | G105: 0 | H105: 0 | I105: 1
A106: WAExtra Large General ServiceTime-of-Use Opt-inPer Customer Winter Peak Reduction (%) | B106: WA | C106: Extra Large General Service | D106: Time-of-Use Opt-in | E106: Per Customer Winter Peak Reduction (%) | F106: % of Peak | G106: 0.0155 | H106: Assume 50% of Summer impacts. | I106: 1
A107: WAResidentialTime-of-Use Opt-outEvent Non-Performance Rate | B107: WA | C107: Residential | D107: Time-of-Use Opt-out | E107: Event Non-Performance Rate | F107: % | G107: 0 | H107: None - should be in eval'd number. | I107: 1
A108: WAResidentialTime-of-Use Opt-outPer Customer Summer Peak Reduction (kW) | B108: WA | C108: Residential | D108: Time-of-Use Opt-out | E108: Per Customer Summer Peak Reduction (kW) | F108: kW @meter | G108: 0 | H108: 0 | I108: 1
A109: WAResidentialTime-of-Use Opt-outPer Customer Summer Peak Reduction (%) | B109: WA | C109: Residential | D109: Time-of-Use Opt-out | E109: Per Customer Summer Peak Reduction (%) | F109: % of Peak | G109: 0.034 | H109: Brattle Analysis and Estimate - Pacificorp 2019 opt-in and opt-out scenarios | I109: 1
A110: WAResidentialTime-of-Use Opt-outPer Customer Winter Peak Reduction (kW) | B110: WA | C110: Residential | D110: Time-of-Use Opt-out | E110: Per Customer Winter Peak Reduction (kW) | F110: kW @meter | G110: 0 | H110: 0 | I110: 1
A111: WAResidentialTime-of-Use Opt-outPer Customer Winter Peak Reduction (%) | B111: WA | C111: Residential | D111: Time-of-Use Opt-out | E111: Per Customer Winter Peak Reduction (%) | F111: % of Peak | G111: 0.017 | H111: Assume 50% of Summer impacts. Brattle Analysis and Estimate - Negative impacts in Winter set to zero in Eastern states. | I111: 1
A112: WAGeneral ServiceTime-of-Use Opt-outEvent Non-Performance Rate | B112: WA | C112: General Service | D112: Time-of-Use Opt-out | E112: Event Non-Performance Rate | F112: % | G112: 0 | H112: 0 | I112: 1
A113: WAGeneral ServiceTime-of-Use Opt-outPer Customer Summer Peak Reduction (kW) | B113: WA | C113: General Service | D113: Time-of-Use Opt-out | E113: Per Customer Summer Peak Reduction (kW) | F113: kW @meter | G113: 0 | H113: 0 | I113: 1
A114: WAGeneral ServiceTime-of-Use Opt-outPer Customer Summer Peak Reduction (%) | B114: WA | C114: General Service | D114: Time-of-Use Opt-out | E114: Per Customer Summer Peak Reduction (%) | F114: % of Peak | G114: 0.002 | H114: Brattle Analysis and Estimate - Pacificorp 2019 opt-in and opt-out scenarios | I114: 1
A115: WAGeneral ServiceTime-of-Use Opt-outPer Customer Winter Peak Reduction (kW) | B115: WA | C115: General Service | D115: Time-of-Use Opt-out | E115: Per Customer Winter Peak Reduction (kW) | F115: kW @meter | G115: 0 | H115: 0 | I115: 1
A116: WAGeneral ServiceTime-of-Use Opt-outPer Customer Winter Peak Reduction (%) | B116: WA | C116: General Service | D116: Time-of-Use Opt-out | E116: Per Customer Winter Peak Reduction (%) | F116: % of Peak | G116: 0.001 | H116: Assume 50% of Summer impacts. | I116: 1
A117: WALarge General ServiceTime-of-Use Opt-outEvent Non-Performance Rate | B117: WA | C117: Large General Service | D117: Time-of-Use Opt-out | E117: Event Non-Performance Rate | F117: % | G117: 0 | H117: 0 | I117: 1
A118: WALarge General ServiceTime-of-Use Opt-outPer Customer Summer Peak Reduction (kW) | B118: WA | C118: Large General Service | D118: Time-of-Use Opt-out | E118: Per Customer Summer Peak Reduction (kW) | F118: kW @meter | G118: 0 | H118: 0 | I118: 1
A119: WALarge General ServiceTime-of-Use Opt-outPer Customer Summer Peak Reduction (%) | B119: WA | C119: Large General Service | D119: Time-of-Use Opt-out | E119: Per Customer Summer Peak Reduction (%) | F119: % of Peak | G119: 0.026 | H119: Brattle Analysis and Estimate - Pacificorp 2019 opt-in and opt-out scenarios | I119: 1
A120: WALarge General ServiceTime-of-Use Opt-outPer Customer Winter Peak Reduction (kW) | B120: WA | C120: Large General Service | D120: Time-of-Use Opt-out | E120: Per Customer Winter Peak Reduction (kW) | F120: kW @meter | G120: 0 | H120: 0 | I120: 1
A121: WALarge General ServiceTime-of-Use Opt-outPer Customer Winter Peak Reduction (%) | B121: WA | C121: Large General Service | D121: Time-of-Use Opt-out | E121: Per Customer Winter Peak Reduction (%) | F121: % of Peak | G121: 0.013 | H121: Assume 50% of Summer impacts. | I121: 1
A122: WAExtra Large General ServiceTime-of-Use Opt-outEvent Non-Performance Rate | B122: WA | C122: Extra Large General Service | D122: Time-of-Use Opt-out | E122: Event Non-Performance Rate | F122: % | G122: 0 | H122: 0 | I122: 1
A123: WAExtra Large General ServiceTime-of-Use Opt-outPer Customer Summer Peak Reduction (kW) | B123: WA | C123: Extra Large General Service | D123: Time-of-Use Opt-out | E123: Per Customer Summer Peak Reduction (kW) | F123: kW @meter | G123: 0 | H123: 0 | I123: 1
A124: WAExtra Large General ServiceTime-of-Use Opt-outPer Customer Summer Peak Reduction (%) | B124: WA | C124: Extra Large General Service | D124: Time-of-Use Opt-out | E124: Per Customer Summer Peak Reduction (%) | F124: % of Peak | G124: 0.031 | H124: Brattle Analysis and Estimate - Pacificorp 2019 opt-in and opt-out scenarios | I124: 1
A125: WAExtra Large General ServiceTime-of-Use Opt-outPer Customer Winter Peak Reduction (kW) | B125: WA | C125: Extra Large General Service | D125: Time-of-Use Opt-out | E125: Per Customer Winter Peak Reduction (kW) | F125: kW @meter | G125: 0 | H125: 0 | I125: 1
A126: WAExtra Large General ServiceTime-of-Use Opt-outPer Customer Winter Peak Reduction (%) | B126: WA | C126: Extra Large General Service | D126: Time-of-Use Opt-out | E126: Per Customer Winter Peak Reduction (%) | F126: % of Peak | G126: 0.0155 | H126: Assume 50% of Summer impacts. | I126: 1
A127: WAResidentialVariable Peak Pricing RatesEvent Non-Performance Rate | B127: WA | C127: Residential | D127: Variable Peak Pricing Rates | E127: Event Non-Performance Rate | F127: % | G127: 0 | H127: 0 | I127: 1
A128: WAResidentialVariable Peak Pricing RatesPer Customer Summer Peak Reduction (kW) | B128: WA | C128: Residential | D128: Variable Peak Pricing Rates | E128: Per Customer Summer Peak Reduction (kW) | F128: kW @meter | G128: 0 | H128: 0 | I128: 1
A129: WAResidentialVariable Peak Pricing RatesPer Customer Summer Peak Reduction (%) | B129: WA | C129: Residential | D129: Variable Peak Pricing Rates | E129: Per Customer Summer Peak Reduction (%) | F129: % of Peak | G129: 0.1 | H129: OG&E 2017 Smart Hours Study - Res 10% impacts for VPP only | I129: 1
A130: WAResidentialVariable Peak Pricing RatesPer Customer Winter Peak Reduction (kW) | B130: WA | C130: Residential | D130: Variable Peak Pricing Rates | E130: Per Customer Winter Peak Reduction (kW) | F130: kW @meter | G130: 0 | H130: 0 | I130: 1
A131: =B131&C131&D131&E131 -> WAResidentialVariable Peak Pricing RatesPer Customer Winter Peak Reduction (%) | B131: WA | C131: Residential | D131: Variable Peak Pricing Rates | E131: Per Customer Winter Peak Reduction (%) | F131: % of Peak | G131: 0.075 | H131: 0 | I131: 1
A132: WAGeneral ServiceVariable Peak Pricing RatesEvent Non-Performance Rate | B132: WA | C132: General Service | D132: Variable Peak Pricing Rates | E132: Event Non-Performance Rate | F132: % | G132: 0 | H132: 0 | I132: 1
A133: WAGeneral ServiceVariable Peak Pricing RatesPer Customer Summer Peak Reduction (kW) | B133: WA | C133: General Service | D133: Variable Peak Pricing Rates | E133: Per Customer Summer Peak Reduction (kW) | F133: kW @meter | G133: 0 | H133: 0 | I133: 1
A134: WAGeneral ServiceVariable Peak Pricing RatesPer Customer Summer Peak Reduction (%) | B134: WA | C134: General Service | D134: Variable Peak Pricing Rates | E134: Per Customer Summer Peak Reduction (%) | F134: % of Peak | G134: 0.04 | H134: OG&E 2017 Smart Hours Study - 4% for an average CPE day for VPP only customers without a smart thermostat | I134: 1
A135: WAGeneral ServiceVariable Peak Pricing RatesPer Customer Winter Peak Reduction (kW) | B135: WA | C135: General Service | D135: Variable Peak Pricing Rates | E135: Per Customer Winter Peak Reduction (kW) | F135: kW @meter | G135: 0 | H135: 0 | I135: 1
A136: WAGeneral ServiceVariable Peak Pricing RatesPer Customer Winter Peak Reduction (%) | B136: WA | C136: General Service | D136: Variable Peak Pricing Rates | E136: Per Customer Winter Peak Reduction (%) | F136: % of Peak | G136: 0.03 | H136: 0 | I136: 1
A137: WALarge General ServiceVariable Peak Pricing RatesEvent Non-Performance Rate | B137: WA | C137: Large General Service | D137: Variable Peak Pricing Rates | E137: Event Non-Performance Rate | F137: % | G137: 0 | H137: 0 | I137: 1
A138: WALarge General ServiceVariable Peak Pricing RatesPer Customer Summer Peak Reduction (kW) | B138: WA | C138: Large General Service | D138: Variable Peak Pricing Rates | E138: Per Customer Summer Peak Reduction (kW) | F138: kW @meter | G138: 0 | H138: 0 | I138: 1
A139: WALarge General ServiceVariable Peak Pricing RatesPer Customer Summer Peak Reduction (%) | B139: WA | C139: Large General Service | D139: Variable Peak Pricing Rates | E139: Per Customer Summer Peak Reduction (%) | F139: % of Peak | G139: 0.04 | H139: OG&E 2017 Smart Hours Study - 4% for an average CPE day for VPP only customers without a smart thermostat | I139: 1
A140: WALarge General ServiceVariable Peak Pricing RatesPer Customer Winter Peak Reduction (kW) | B140: WA | C140: Large General Service | D140: Variable Peak Pricing Rates | E140: Per Customer Winter Peak Reduction (kW) | F140: kW @meter | G140: 0 | H140: 0 | I140: 1
A141: WALarge General ServiceVariable Peak Pricing RatesPer Customer Winter Peak Reduction (%) | B141: WA | C141: Large General Service | D141: Variable Peak Pricing Rates | E141: Per Customer Winter Peak Reduction (%) | F141: % of Peak | G141: 0.03 | H141: 0 | I141: 1
A142: WAExtra Large General ServiceVariable Peak Pricing RatesEvent Non-Performance Rate | B142: WA | C142: Extra Large General Service | D142: Variable Peak Pricing Rates | E142: Event Non-Performance Rate | F142: % | G142: 0 | H142: 0 | I142: 1
A143: WAExtra Large General ServiceVariable Peak Pricing RatesPer Customer Summer Peak Reduction (kW) | B143: WA | C143: Extra Large General Service | D143: Variable Peak Pricing Rates | E143: Per Customer Summer Peak Reduction (kW) | F143: kW @meter | G143: 0 | H143: 0 | I143: 1
A144: WAExtra Large General ServiceVariable Peak Pricing RatesPer Customer Summer Peak Reduction (%) | B144: WA | C144: Extra Large General Service | D144: Variable Peak Pricing Rates | E144: Per Customer Summer Peak Reduction (%) | F144: % of Peak | G144: 0.04 | H144: OG&E 2017 Smart Hours Study - 4% for an average CPE day for VPP only customers without a smart thermostat | I144: 1
A145: WAExtra Large General ServiceVariable Peak Pricing RatesPer Customer Winter Peak Reduction (kW) | B145: WA | C145: Extra Large General Service | D145: Variable Peak Pricing Rates | E145: Per Customer Winter Peak Reduction (kW) | F145: kW @meter | G145: 0 | H145: 0 | I145: 1
A146: WAExtra Large General ServiceVariable Peak Pricing RatesPer Customer Winter Peak Reduction (%) | B146: WA | C146: Extra Large General Service | D146: Variable Peak Pricing Rates | E146: Per Customer Winter Peak Reduction (%) | F146: % of Peak | G146: 0.03 | H146: 0 | I146: 1
A147: WALarge General ServiceReal Time PricingEvent Non-Performance Rate | B147: WA | C147: Large General Service | D147: Real Time Pricing | E147: Event Non-Performance Rate | F147: % | I147: 1
A148: WALarge General ServiceReal Time PricingPer Customer Summer Peak Reduction (kW) | B148: WA | C148: Large General Service | D148: Real Time Pricing | E148: Per Customer Summer Peak Reduction (kW) | F148: kW @meter | I148: 1
A149: WALarge General ServiceReal Time PricingPer Customer Summer Peak Reduction (%) | B149: WA | C149: Large General Service | D149: Real Time Pricing | E149: Per Customer Summer Peak Reduction (%) | F149: % of Peak | I149: 1
A150: WALarge General ServiceReal Time PricingPer Customer Winter Peak Reduction (kW) | B150: WA | C150: Large General Service | D150: Real Time Pricing | E150: Per Customer Winter Peak Reduction (kW) | F150: kW @meter | I150: 1
A151: WALarge General ServiceReal Time PricingPer Customer Winter Peak Reduction (%) | B151: WA | C151: Large General Service | D151: Real Time Pricing | E151: Per Customer Winter Peak Reduction (%) | F151: % of Peak | I151: 1
A152: WAExtra Large General ServiceReal Time PricingEvent Non-Performance Rate | B152: WA | C152: Extra Large General Service | D152: Real Time Pricing | E152: Event Non-Performance Rate | F152: % | I152: 1
A153: WAExtra Large General ServiceReal Time PricingPer Customer Summer Peak Reduction (kW) | B153: WA | C153: Extra Large General Service | D153: Real Time Pricing | E153: Per Customer Summer Peak Reduction (kW) | F153: kW @meter | I153: 1
A154: WAExtra Large General ServiceReal Time PricingPer Customer Summer Peak Reduction (%) | B154: WA | C154: Extra Large General Service | D154: Real Time Pricing | E154: Per Customer Summer Peak Reduction (%) | F154: % of Peak | I154: 1
A155: WAExtra Large General ServiceReal Time PricingPer Customer Winter Peak Reduction (kW) | B155: WA | C155: Extra Large General Service | D155: Real Time Pricing | E155: Per Customer Winter Peak Reduction (kW) | F155: kW @meter | I155: 1
A156: WAExtra Large General ServiceReal Time PricingPer Customer Winter Peak Reduction (%) | B156: WA | C156: Extra Large General Service | D156: Real Time Pricing | E156: Per Customer Winter Peak Reduction (%) | F156: % of Peak | I156: 1
A157: WAGeneral ServiceThermal Energy StorageEvent Non-Performance Rate | B157: WA | C157: General Service | D157: Thermal Energy Storage | E157: Event Non-Performance Rate | F157: % | G157: 0 | H157: 0 | I157: 1
A158: WAGeneral ServiceThermal Energy StoragePer Customer Summer Peak Reduction (kW) | B158: WA | C158: General Service | D158: Thermal Energy Storage | E158: Per Customer Summer Peak Reduction (kW) | F158: kW @meter | G158: 1.68 | H158: Ice Energy - Ice Bear Tech Specifications, https://www.ice-energy.com/wp-content/uploads/2016/03/ICE-BEAR-30-Product-Sheet.pdf | I158: 1
A159: WAGeneral ServiceThermal Energy StoragePer Customer Summer Peak Reduction (%) | B159: WA | C159: General Service | D159: Thermal Energy Storage | E159: Per Customer Summer Peak Reduction (%) | F159: % of Peak | G159: 0 | H159: 0 | I159: 1
A160: WAGeneral ServiceThermal Energy StoragePer Customer Winter Peak Reduction (kW) | B160: WA | C160: General Service | D160: Thermal Energy Storage | E160: Per Customer Winter Peak Reduction (kW) | F160: kW @meter | G160: 0 | H160: Removed Winter Impacts | I160: 1
A161: WAGeneral ServiceThermal Energy StoragePer Customer Winter Peak Reduction (%) | B161: WA | C161: General Service | D161: Thermal Energy Storage | E161: Per Customer Winter Peak Reduction (%) | F161: % of Peak | G161: 0 | H161: 0 | I161: 1
A162: WALarge General ServiceThermal Energy StorageEvent Non-Performance Rate | B162: WA | C162: Large General Service | D162: Thermal Energy Storage | E162: Event Non-Performance Rate | F162: % | G162: 0 | H162: 0 | I162: 1
A163: WALarge General ServiceThermal Energy StoragePer Customer Summer Peak Reduction (kW) | B163: WA | C163: Large General Service | D163: Thermal Energy Storage | E163: Per Customer Summer Peak Reduction (kW) | F163: kW @meter | G163: 8.4 | H163: Ice Energy - Ice Bear Tech Specifications, https://www.ice-energy.com/wp-content/uploads/2016/03/ICE-BEAR-30-Product-Sheet.pdf | I163: 1
A164: WALarge General ServiceThermal Energy StoragePer Customer Summer Peak Reduction (%) | B164: WA | C164: Large General Service | D164: Thermal Energy Storage | E164: Per Customer Summer Peak Reduction (%) | F164: % of Peak | G164: 0 | H164: 0 | I164: 1
A165: WALarge General ServiceThermal Energy StoragePer Customer Winter Peak Reduction (kW) | B165: WA | C165: Large General Service | D165: Thermal Energy Storage | E165: Per Customer Winter Peak Reduction (kW) | F165: kW @meter | G165: 0 | H165: Ice Energy - Ice Bear Tech Specifications, https://www.ice-energy.com/wp-content/uploads/2016/03/ICE-BEAR-30-Product-Sheet.pdf | I165: 1
A166: WALarge General ServiceThermal Energy StoragePer Customer Winter Peak Reduction (%) | B166: WA | C166: Large General Service | D166: Thermal Energy Storage | E166: Per Customer Winter Peak Reduction (%) | F166: % of Peak | G166: 0 | H166: 0 | I166: 1
A167: WAExtra Large General ServiceThermal Energy StorageEvent Non-Performance Rate | B167: WA | C167: Extra Large General Service | D167: Thermal Energy Storage | E167: Event Non-Performance Rate | F167: % | G167: 0 | H167: 0 | I167: 1
A168: WAExtra Large General ServiceThermal Energy StoragePer Customer Summer Peak Reduction (kW) | B168: WA | C168: Extra Large General Service | D168: Thermal Energy Storage | E168: Per Customer Summer Peak Reduction (kW) | F168: kW @meter | G168: 8.4 | H168: Ice Energy - Ice Bear Tech Specifications, https://www.ice-energy.com/wp-content/uploads/2016/03/ICE-BEAR-30-Product-Sheet.pdf | I168: 1
A169: WAExtra Large General ServiceThermal Energy StoragePer Customer Summer Peak Reduction (%) | B169: WA | C169: Extra Large General Service | D169: Thermal Energy Storage | E169: Per Customer Summer Peak Reduction (%) | F169: % of Peak | G169: 0 | H169: 0 | I169: 1
A170: WAExtra Large General ServiceThermal Energy StoragePer Customer Winter Peak Reduction (kW) | B170: WA | C170: Extra Large General Service | D170: Thermal Energy Storage | E170: Per Customer Winter Peak Reduction (kW) | F170: kW @meter | G170: 0 | H170: Ice Energy - Ice Bear Tech Specifications, https://www.ice-energy.com/wp-content/uploads/2016/03/ICE-BEAR-30-Product-Sheet.pdf | I170: 1
A171: WAExtra Large General ServiceThermal Energy StoragePer Customer Winter Peak Reduction (%) | B171: WA | C171: Extra Large General Service | D171: Thermal Energy Storage | E171: Per Customer Winter Peak Reduction (%) | F171: % of Peak | G171: 0 | H171: 0 | I171: 1
A172: WAResidentialBattery Energy StorageEvent Non-Performance Rate | B172: WA | C172: Residential | D172: Battery Energy Storage | E172: Event Non-Performance Rate | F172: % | G172: 0 | H172: 0 | I172: 1
A173: WAResidentialBattery Energy StoragePer Customer Summer Peak Reduction (kW) | B173: WA | C173: Residential | D173: Battery Energy Storage | E173: Per Customer Summer Peak Reduction (kW) | F173: kW @meter | G173: 2 | H173: Typical battery size for segment | I173: 1
A174: WAResidentialBattery Energy StoragePer Customer Summer Peak Reduction (%) | B174: WA | C174: Residential | D174: Battery Energy Storage | E174: Per Customer Summer Peak Reduction (%) | F174: % of Peak | G174: 0 | H174: 0 | I174: 1
A175: WAResidentialBattery Energy StoragePer Customer Winter Peak Reduction (kW) | B175: WA | C175: Residential | D175: Battery Energy Storage | E175: Per Customer Winter Peak Reduction (kW) | F175: kW @meter | G175: 2 | H175: Typical battery size for segment | I175: 1
A176: WAResidentialBattery Energy StoragePer Customer Winter Peak Reduction (%) | B176: WA | C176: Residential | D176: Battery Energy Storage | E176: Per Customer Winter Peak Reduction (%) | F176: % of Peak | G176: 0 | H176: 0 | I176: 1
A177: WAGeneral ServiceBattery Energy StorageEvent Non-Performance Rate | B177: WA | C177: General Service | D177: Battery Energy Storage | E177: Event Non-Performance Rate | F177: % | G177: 0 | H177: 0 | I177: 1
A178: WAGeneral ServiceBattery Energy StoragePer Customer Summer Peak Reduction (kW) | B178: WA | C178: General Service | D178: Battery Energy Storage | E178: Per Customer Summer Peak Reduction (kW) | F178: kW @meter | G178: 2 | H178: Typical battery size for segment | I178: 1
A179: WAGeneral ServiceBattery Energy StoragePer Customer Summer Peak Reduction (%) | B179: WA | C179: General Service | D179: Battery Energy Storage | E179: Per Customer Summer Peak Reduction (%) | F179: % of Peak | G179: 0 | H179: 0 | I179: 1
A180: WAGeneral ServiceBattery Energy StoragePer Customer Winter Peak Reduction (kW) | B180: WA | C180: General Service | D180: Battery Energy Storage | E180: Per Customer Winter Peak Reduction (kW) | F180: kW @meter | G180: 2 | H180: Typical battery size for segment | I180: 1
A181: WAGeneral ServiceBattery Energy StoragePer Customer Winter Peak Reduction (%) | B181: WA | C181: General Service | D181: Battery Energy Storage | E181: Per Customer Winter Peak Reduction (%) | F181: % of Peak | G181: 0 | H181: 0 | I181: 1
A182: WALarge General ServiceBattery Energy StorageEvent Non-Performance Rate | B182: WA | C182: Large General Service | D182: Battery Energy Storage | E182: Event Non-Performance Rate | F182: % | G182: 0 | H182: 0 | I182: 1
A183: WALarge General ServiceBattery Energy StoragePer Customer Summer Peak Reduction (kW) | B183: WA | C183: Large General Service | D183: Battery Energy Storage | E183: Per Customer Summer Peak Reduction (kW) | F183: kW @meter | G183: 15 | H183: Typical battery size for segment | I183: 1
A184: WALarge General ServiceBattery Energy StoragePer Customer Summer Peak Reduction (%) | B184: WA | C184: Large General Service | D184: Battery Energy Storage | E184: Per Customer Summer Peak Reduction (%) | F184: % of Peak | G184: 0 | H184: 0 | I184: 1
A185: WALarge General ServiceBattery Energy StoragePer Customer Winter Peak Reduction (kW) | B185: WA | C185: Large General Service | D185: Battery Energy Storage | E185: Per Customer Winter Peak Reduction (kW) | F185: kW @meter | G185: 15 | H185: Typical battery size for segment | I185: 1
A186: WALarge General ServiceBattery Energy StoragePer Customer Winter Peak Reduction (%) | B186: WA | C186: Large General Service | D186: Battery Energy Storage | E186: Per Customer Winter Peak Reduction (%) | F186: % of Peak | G186: 0 | H186: 0 | I186: 1
A187: WAExtra Large General ServiceBattery Energy StorageEvent Non-Performance Rate | B187: WA | C187: Extra Large General Service | D187: Battery Energy Storage | E187: Event Non-Performance Rate | F187: % | G187: 0 | H187: Pacificorp: | I187: 1
A188: WAExtra Large General ServiceBattery Energy StoragePer Customer Summer Peak Reduction (kW) | B188: WA | C188: Extra Large General Service | D188: Battery Energy Storage | E188: Per Customer Summer Peak Reduction (kW) | F188: kW @meter | G188: 15 | H188: Calculated | I188: 1
A189: WAExtra Large General ServiceBattery Energy StoragePer Customer Summer Peak Reduction (%) | B189: WA | C189: Extra Large General Service | D189: Battery Energy Storage | E189: Per Customer Summer Peak Reduction (%) | F189: % of Peak | G189: 0 | H189: MISO Res LoadMAP DSM Programs.xlsx (LRZ7) | I189: 1
A190: WAExtra Large General ServiceBattery Energy StoragePer Customer Winter Peak Reduction (kW) | B190: WA | C190: Extra Large General Service | D190: Battery Energy Storage | E190: Per Customer Winter Peak Reduction (kW) | F190: kW @meter | G190: 15 | H190: None | I190: 1
A191: WAExtra Large General ServiceBattery Energy StoragePer Customer Winter Peak Reduction (%) | B191: WA | C191: Extra Large General Service | D191: Battery Energy Storage | E191: Per Customer Winter Peak Reduction (%) | F191: % of Peak | G191: 0 | H191: None | I191: 1
A192: WAResidentialAncillary ServicesEvent Non-Performance Rate | B192: WA | C192: Residential | D192: Ancillary Services | E192: Event Non-Performance Rate | F192: % | I192: 1
A193: WAResidentialAncillary ServicesPer Customer Summer Peak Reduction (kW) | B193: WA | C193: Residential | D193: Ancillary Services | E193: Per Customer Summer Peak Reduction (kW) | F193: kW @meter | I193: 1
A194: WAResidentialAncillary ServicesPer Customer Summer Peak Reduction (%) | B194: WA | C194: Residential | D194: Ancillary Services | E194: Per Customer Summer Peak Reduction (%) | F194: % of Peak | I194: 1
A195: =B195&C195&D195&E195 -> WAResidentialAncillary ServicesPer Customer Winter Peak Reduction (kW) | B195: WA | C195: Residential | D195: Ancillary Services | E195: Per Customer Winter Peak Reduction (kW) | F195: kW @meter | I195: 1
A196: WAResidentialAncillary ServicesPer Customer Winter Peak Reduction (%) | B196: WA | C196: Residential | D196: Ancillary Services | E196: Per Customer Winter Peak Reduction (%) | F196: % of Peak | I196: 1
A197: WAGeneral ServiceAncillary ServicesEvent Non-Performance Rate | B197: WA | C197: General Service | D197: Ancillary Services | E197: Event Non-Performance Rate | F197: % | I197: 1
A198: WAGeneral ServiceAncillary ServicesPer Customer Summer Peak Reduction (kW) | B198: WA | C198: General Service | D198: Ancillary Services | E198: Per Customer Summer Peak Reduction (kW) | F198: kW @meter | I198: 1
A199: WAGeneral ServiceAncillary ServicesPer Customer Summer Peak Reduction (%) | B199: WA | C199: General Service | D199: Ancillary Services | E199: Per Customer Summer Peak Reduction (%) | F199: % of Peak | I199: 1
A200: WAGeneral ServiceAncillary ServicesPer Customer Winter Peak Reduction (kW) | B200: WA | C200: General Service | D200: Ancillary Services | E200: Per Customer Winter Peak Reduction (kW) | F200: kW @meter | I200: 1
... 361 more rows

Sheet CEInput
A1: Key | B1: State | C1: Customer Class | D1: Option | E1: Data Element | F1: Unit | G1: Market Potential | H1: Comments from Input Generator
A2: =B2&C2&D2&E2 -> WAResidentialBehavioralSummer DR Event Hours | B2: WA | C2: Residential | D2: Behavioral | E2: Summer DR Event Hours | F2: hours/year | G2: 40 | H2: 8 hour event window x 5 events, Consumers Energy 7am-8pm 8 hr window | I2: 1
A3: WAResidentialBehavioralWinter DR Event Hours | B3: WA | C3: Residential | D3: Behavioral | E3: Winter DR Event Hours | F3: hours/year | G3: 40 | H3: 8 hour event window x 5 events, Consumers Energy 7am-8pm 8 hr window | I3: 1
A4: WAResidentialBehavioralAnnual O&M Cost | B4: WA | C4: Residential | D4: Behavioral | E4: Annual O&M Cost | F4: $/participant/year | G4: 3.25 | H4: Oracle interview on 8/30, estimation of admin cost per household - KM heard 3 - 3.5 all inclusive- Implementation Cost | I4: 1
A5: WAResidentialBehavioralAnnual Program Administration Cost | B5: WA | C5: Residential | D5: Behavioral | E5: Annual Program Administration Cost | F5: $/yr | G5: 39633.40994 | H5: 0 | I5: 1
A6: WAResidentialBehavioralCost of Equip + Install | B6: WA | C6: Residential | D6: Behavioral | E6: Cost of Equip + Install | F6: $/tech | G6: 0 | H6: 0 | I6: 1
A7: WAResidentialBehavioralCost of Equip + Install (per kW basis) | B7: WA | C7: Residential | D7: Behavioral | E7: Cost of Equip + Install (per kW basis) | F7: $/kW @meter | G7: 0 | H7: 0 | I7: 1
A8: WAResidentialBehavioralDe-rate | B8: WA | C8: Residential | D8: Behavioral | E8: De-rate | F8: capacity equivalence factor | G8: 1 | H8: Impact Reduced to reflect diminished savings program pulls in participants who are not "high" users | I8: 1
A9: WAResidentialBehavioralNet to Gross Ratio (free ridership) | B9: WA | C9: Residential | D9: Behavioral | E9: Net to Gross Ratio (free ridership) | F9: ratio | G9: 1 | H9: 0 | I9: 1
A10: WAResidentialBehavioralPer Customer Annual Marketing/Recruitment Cost | B10: WA | C10: Residential | D10: Behavioral | E10: Per Customer Annual Marketing/Recruitment Cost | F10: $/new participant/year | G10: 0 | H10: 0 | I10: 1
A11: WAResidentialBehavioralPer Participant Annual Incentive | B11: WA | C11: Residential | D11: Behavioral | E11: Per Participant Annual Incentive | F11: $/participant/year | G11: 0 | H11: No Incentive for Behavioral DR - Brattle PGE Potential Study 2016 - | I11: 1
A12: WAResidentialBehavioralPer kW Annual Incentive | B12: WA | C12: Residential | D12: Behavioral | E12: Per kW Annual Incentive | F12: $/kW @meter/year | G12: 0 | H12: 0 | I12: 1
A13: WAResidentialBehavioralProgram Development Cost | B13: WA | C13: Residential | D13: Behavioral | E13: Program Development Cost | F13: $/program | G13: 66055.68323 | H13: 0 | I13: 1
A14: WAResidentialBehavioralProgram Life | B14: WA | C14: Residential | D14: Behavioral | E14: Program Life | F14: years | G14: 1 | H14: MISO Res LoadMAP DSM Programs.xlsx (LRZ7) - Lifetime | I14: 1
A15: WAResidentialBehavioralProgram Start Year | B15: WA | C15: Residential | D15: Behavioral | E15: Program Start Year | F15: year | G15: 2022 | H15: 0 | I15: 1
A16: WAResidentialDLC Electric Vehicle ChargingSummer DR Event Hours | B16: WA | C16: Residential | D16: DLC Electric Vehicle Charging | E16: Summer DR Event Hours | F16: hours/year | G16: 528 | H16: Pacificorp: Six hours on-peak period each summer weekday | I16: 1
A17: WAResidentialDLC Electric Vehicle ChargingWinter DR Event Hours | B17: WA | C17: Residential | D17: DLC Electric Vehicle Charging | E17: Winter DR Event Hours | F17: hours/year | G17: 528 | H17: Pacificorp: Six hours on-peak period each winter weekday | I17: 1
A18: WAResidentialDLC Electric Vehicle ChargingAnnual O&M Cost | B18: WA | C18: Residential | D18: DLC Electric Vehicle Charging | E18: Annual O&M Cost | F18: $/participant/year | G18: 5 | H18: Average subscription fees for EE and DR program management | I18: 1
A19: WAResidentialDLC Electric Vehicle ChargingAnnual Program Administration Cost | B19: WA | C19: Residential | D19: DLC Electric Vehicle Charging | E19: Annual Program Administration Cost | F19: $/yr | G19: 58962.72113 | H19: Share of Cost as noted in table at right | I19: 1
A20: WAResidentialDLC Electric Vehicle ChargingCost of Equip + Install | B20: WA | C20: Residential | D20: DLC Electric Vehicle Charging | E20: Cost of Equip + Install | F20: $/tech | G20: 700 | H20: ppt from Kurtis email 2-5 indicates utility incentives are ~$1200 for charging equipment. Research indicates this is approx cost of equipment. (see Dave email to VN 3-15) | I20: 1
A21: WAResidentialDLC Electric Vehicle ChargingCost of Equip + Install (per kW basis) | B21: WA | C21: Residential | D21: DLC Electric Vehicle Charging | E21: Cost of Equip + Install (per kW basis) | F21: $/kW @meter | G21: 0 | H21: 0 | I21: 1
A22: WAResidentialDLC Electric Vehicle ChargingDe-rate | B22: WA | C22: Residential | D22: DLC Electric Vehicle Charging | E22: De-rate | F22: capacity equivalence factor | G22: 1 | H22: 0 | I22: 1
A23: WAResidentialDLC Electric Vehicle ChargingNet to Gross Ratio (free ridership) | B23: WA | C23: Residential | D23: DLC Electric Vehicle Charging | E23: Net to Gross Ratio (free ridership) | F23: ratio | G23: 1 | H23: 0 | I23: 1
A24: WAResidentialDLC Electric Vehicle ChargingPer Customer Annual Marketing/Recruitment Cost | B24: WA | C24: Residential | D24: DLC Electric Vehicle Charging | E24: Per Customer Annual Marketing/Recruitment Cost | F24: $/new participant/year | G24: 50 | H24: Assumption $50 for RAP C&I, MAP = RAPx1.2 | I24: 1
A25: WAResidentialDLC Electric Vehicle ChargingPer Participant Annual Incentive | B25: WA | C25: Residential | D25: DLC Electric Vehicle Charging | E25: Per Participant Annual Incentive | F25: $/participant/year | G25: 0 | H25: Avista would provide a rate based charger or give a rebate on it, with no further incentives | I25: 1
A26: WAResidentialDLC Electric Vehicle ChargingPer kW Annual Incentive | B26: WA | C26: Residential | D26: DLC Electric Vehicle Charging | E26: Per kW Annual Incentive | F26: $/kW @meter/year | G26: 0 | H26: 0 | I26: 1
A27: WAResidentialDLC Electric Vehicle ChargingProgram Development Cost | B27: WA | C27: Residential | D27: DLC Electric Vehicle Charging | E27: Program Development Cost | F27: $/program | G27: 49135.60094 | H27: Share of Cost as noted in table at right | I27: 1
A28: WAResidentialDLC Electric Vehicle ChargingProgram Life | B28: WA | C28: Residential | D28: DLC Electric Vehicle Charging | E28: Program Life | F28: years | G28: 8 | H28: 0 | I28: 1
A29: WAResidentialDLC Electric Vehicle ChargingProgram Start Year | B29: WA | C29: Residential | D29: DLC Electric Vehicle Charging | E29: Program Start Year | F29: year | G29: 2024 | H29: Technology won’t be available for mass market till 2024 | I29: 1
A30: WAResidentialDLC Central ACSummer DR Event Hours | B30: WA | C30: Residential | D30: DLC Central AC | E30: Summer DR Event Hours | F30: hours/year | G30: 50 | H30: Current PC Cool Keeper program allows for max 100 hours of curtailment. | I30: 1
A31: WAResidentialDLC Central ACWinter DR Event Hours | B31: WA | C31: Residential | D31: DLC Central AC | E31: Winter DR Event Hours | F31: hours/year | G31: 0 | H31: 0 | I31: 1
A32: WAResidentialDLC Central ACAnnual O&M Cost | B32: WA | C32: Residential | D32: DLC Central AC | E32: Annual O&M Cost | F32: $/participant/year | G32: 13 | H32: Assume 5% of equipment + install costs. | I32: 1
A33: WAResidentialDLC Central ACAnnual Program Administration Cost | B33: WA | C33: Residential | D33: DLC Central AC | E33: Annual Program Administration Cost | F33: $/yr | G33: 47453.0151 | H33: Share of Cost as noted in table at right | I33: 1
A34: WAResidentialDLC Central ACCost of Equip + Install | B34: WA | C34: Residential | D34: DLC Central AC | E34: Cost of Equip + Install | F34: $/tech | G34: 260 | H34: $100 installation cost. Idaho Power at 10,000 quantity pays $160 per switch. I believe Avista volumes would be the same or less per order, making the cost $160 or greater. | I34: 1
A35: WAResidentialDLC Central ACCost of Equip + Install (per kW basis) | B35: WA | C35: Residential | D35: DLC Central AC | E35: Cost of Equip + Install (per kW basis) | F35: $/kW @meter | G35: 0 | H35: 0 | I35: 1
A36: WAResidentialDLC Central ACDe-rate | B36: WA | C36: Residential | D36: DLC Central AC | E36: De-rate | F36: capacity equivalence factor | G36: 1 | H36: 0 | I36: 1
A37: WAResidentialDLC Central ACNet to Gross Ratio (free ridership) | B37: WA | C37: Residential | D37: DLC Central AC | E37: Net to Gross Ratio (free ridership) | F37: ratio | G37: 1 | H37: 0 | I37: 1
A38: WAResidentialDLC Central ACPer Customer Annual Marketing/Recruitment Cost | B38: WA | C38: Residential | D38: DLC Central AC | E38: Per Customer Annual Marketing/Recruitment Cost | F38: $/new participant/year | G38: 60 | H38: Utah $50, All others $60 (20% higher) | I38: 1
A39: WAResidentialDLC Central ACPer Participant Annual Incentive | B39: WA | C39: Residential | D39: DLC Central AC | E39: Per Participant Annual Incentive | F39: $/participant/year | G39: 20 | H39: $20 is the incentive level per participating unit. No. of units per average participant is 1.059 | I39: 1
A40: WAResidentialDLC Central ACPer kW Annual Incentive | B40: WA | C40: Residential | D40: DLC Central AC | E40: Per kW Annual Incentive | F40: $/kW @meter/year | G40: 0 | H40: 0 | I40: 1
A41: WAResidentialDLC Central ACProgram Development Cost | B41: WA | C41: Residential | D41: DLC Central AC | E41: Program Development Cost | F41: $/program | G41: 39544.17925 | H41: 0 | I41: 1
A42: WAResidentialDLC Central ACProgram Life | B42: WA | C42: Residential | D42: DLC Central AC | E42: Program Life | F42: years | G42: 8 | H42: 0 | I42: 1
A43: WAResidentialDLC Central ACProgram Start Year | B43: WA | C43: Residential | D43: DLC Central AC | E43: Program Start Year | F43: year | G43: 2022 | H43: 0 | I43: 1
A44: WAGeneral ServiceDLC Central ACSummer DR Event Hours | B44: WA | C44: General Service | D44: DLC Central AC | E44: Summer DR Event Hours | F44: hours/year | G44: 50 | H44: Current PC Cool Keeper program allows for max 100 hours of curtailment. | I44: 1
A45: WAGeneral ServiceDLC Central ACWinter DR Event Hours | B45: WA | C45: General Service | D45: DLC Central AC | E45: Winter DR Event Hours | F45: hours/year | G45: 0 | H45: 0 | I45: 1
A46: WAGeneral ServiceDLC Central ACAnnual O&M Cost | B46: WA | C46: General Service | D46: DLC Central AC | E46: Annual O&M Cost | F46: $/participant/year | G46: 13 | H46: Assume 5% of equipment + install costs. | I46: 1
A47: WAGeneral ServiceDLC Central ACAnnual Program Administration Cost | B47: WA | C47: General Service | D47: DLC Central AC | E47: Annual Program Administration Cost | F47: $/yr | G47: 9818.953278 | H47: Share of Cost as noted in table at right | I47: 1
A48: WAGeneral ServiceDLC Central ACCost of Equip + Install | B48: WA | C48: General Service | D48: DLC Central AC | E48: Cost of Equip + Install | F48: $/tech | G48: 260 | H48: $100 installation cost. Idaho Power at 10,000 quantity pays $160 per switch. I believe Avista volumes would be the same or less per order, making the cost $160 or greater. | I48: 1
A49: WAGeneral ServiceDLC Central ACCost of Equip + Install (per kW basis) | B49: WA | C49: General Service | D49: DLC Central AC | E49: Cost of Equip + Install (per kW basis) | F49: $/kW @meter | G49: 0 | H49: 0 | I49: 1
A50: WAGeneral ServiceDLC Central ACDe-rate | B50: WA | C50: General Service | D50: DLC Central AC | E50: De-rate | F50: capacity equivalence factor | G50: 1 | H50: 0 | I50: 1
A51: WAGeneral ServiceDLC Central ACNet to Gross Ratio (free ridership) | B51: WA | C51: General Service | D51: DLC Central AC | E51: Net to Gross Ratio (free ridership) | F51: ratio | G51: 1 | H51: 0 | I51: 1
A52: WAGeneral ServiceDLC Central ACPer Customer Annual Marketing/Recruitment Cost | B52: WA | C52: General Service | D52: DLC Central AC | E52: Per Customer Annual Marketing/Recruitment Cost | F52: $/new participant/year | G52: 75 | H52: 25% Higher than Residential | I52: 1
A53: WAGeneral ServiceDLC Central ACPer Participant Annual Incentive | B53: WA | C53: General Service | D53: DLC Central AC | E53: Per Participant Annual Incentive | F53: $/participant/year | G53: 38 | H53: Assumed participants have less than 5.5 tons of AC unit. Incentive level provided by PacifiCorp. | I53: 1
A54: WAGeneral ServiceDLC Central ACPer kW Annual Incentive | B54: WA | C54: General Service | D54: DLC Central AC | E54: Per kW Annual Incentive | F54: $/kW @meter/year | G54: 0 | H54: 0 | I54: 1
A55: WAGeneral ServiceDLC Central ACProgram Development Cost | B55: WA | C55: General Service | D55: DLC Central AC | E55: Program Development Cost | F55: $/program | G55: 8182.461065 | H55: 0 | I55: 1
A56: WAGeneral ServiceDLC Central ACProgram Life | B56: WA | C56: General Service | D56: DLC Central AC | E56: Program Life | F56: years | G56: 8 | H56: 0 | I56: 1
A57: WAGeneral ServiceDLC Central ACProgram Start Year | B57: WA | C57: General Service | D57: DLC Central AC | E57: Program Start Year | F57: year | G57: 2022 | H57: 0 | I57: 1
A58: WAResidentialDLC Water HeatingSummer DR Event Hours | B58: WA | C58: Residential | D58: DLC Water Heating | E58: Summer DR Event Hours | F58: hours/year | G58: 0 | H58: Current PC Cool Keeper CAC DLC program allows for max 100 hours of curtailment. | I58: 1
A59: WAResidentialDLC Water HeatingWinter DR Event Hours | B59: WA | C59: Residential | D59: DLC Water Heating | E59: Winter DR Event Hours | F59: hours/year | G59: 0 | H59: Split 50 hrs summer, and 50 hrs winter | I59: 1
A60: WAResidentialDLC Water HeatingAnnual O&M Cost | B60: WA | C60: Residential | D60: DLC Water Heating | E60: Annual O&M Cost | F60: $/participant/year | G60: 0 | H60: Assume 5% of equipment + install costs. | I60: 1
A61: WAResidentialDLC Water HeatingAnnual Program Administration Cost | B61: WA | C61: Residential | D61: DLC Water Heating | E61: Annual Program Administration Cost | F61: $/yr | G61: 0 | H61: Share of Cost as noted in table at right | I61: 1
A62: WAResidentialDLC Water HeatingCost of Equip + Install | B62: WA | C62: Residential | D62: DLC Water Heating | E62: Cost of Equip + Install | F62: $/tech | G62: 0 | H62: Assumed $160 cost for water heater switch (same as cooling switch cost), plus $200 installation cost. Cost of Permit and License is $100 for res and $125 for C&I | I62: 1
A63: WAResidentialDLC Water HeatingCost of Equip + Install (per kW basis) | B63: WA | C63: Residential | D63: DLC Water Heating | E63: Cost of Equip + Install (per kW basis) | F63: $/kW @meter | G63: 0 | H63: 0 | I63: 1
A64: WAResidentialDLC Water HeatingDe-rate | B64: WA | C64: Residential | D64: DLC Water Heating | E64: De-rate | F64: capacity equivalence factor | G64: 0 | H64: 0 | I64: 1
A65: WAResidentialDLC Water HeatingNet to Gross Ratio (free ridership) | B65: WA | C65: Residential | D65: DLC Water Heating | E65: Net to Gross Ratio (free ridership) | F65: ratio | G65: 0 | H65: 0 | I65: 1
A66: =B66&C66&D66&E66 -> WAResidentialDLC Water HeatingPer Customer Annual Marketing/Recruitment Cost | B66: WA | C66: Residential | D66: DLC Water Heating | E66: Per Customer Annual Marketing/Recruitment Cost | F66: $/new participant/year | G66: 0 | H66: Same as DLC CAC | I66: 1
A67: WAResidentialDLC Water HeatingPer Participant Annual Incentive | B67: WA | C67: Residential | D67: DLC Water Heating | E67: Per Participant Annual Incentive | F67: $/participant/year | G67: 0 | H67: Assume $2/month year round | I67: 1
A68: WAResidentialDLC Water HeatingPer kW Annual Incentive | B68: WA | C68: Residential | D68: DLC Water Heating | E68: Per kW Annual Incentive | F68: $/kW @meter/year | G68: 0 | H68: 0 | I68: 1
A69: WAResidentialDLC Water HeatingProgram Development Cost | B69: WA | C69: Residential | D69: DLC Water Heating | E69: Program Development Cost | F69: $/program | G69: 0 | H69: 0 | I69: 1
A70: WAResidentialDLC Water HeatingProgram Life | B70: WA | C70: Residential | D70: DLC Water Heating | E70: Program Life | F70: years | G70: 0 | H70: 0 | I70: 1
A71: WAResidentialDLC Water HeatingProgram Start Year | B71: WA | C71: Residential | D71: DLC Water Heating | E71: Program Start Year | F71: year | G71: 0 | H71: Existing programs in UT. Other states need 2 years to ramp up. | I71: 1
A72: WAGeneral ServiceDLC Water HeatingSummer DR Event Hours | B72: WA | C72: General Service | D72: DLC Water Heating | E72: Summer DR Event Hours | F72: hours/year | G72: 0 | H72: Current PC Cool Keeper CAC DLC program allows for max 100 hours of curtailment. | I72: 1
A73: WAGeneral ServiceDLC Water HeatingWinter DR Event Hours | B73: WA | C73: General Service | D73: DLC Water Heating | E73: Winter DR Event Hours | F73: hours/year | G73: 0 | H73: Split 50 hrs summer, and 50 hrs winter | I73: 1
A74: WAGeneral ServiceDLC Water HeatingAnnual O&M Cost | B74: WA | C74: General Service | D74: DLC Water Heating | E74: Annual O&M Cost | F74: $/participant/year | G74: 0 | H74: Assume 5% of equipment + install costs. | I74: 1
A75: WAGeneral ServiceDLC Water HeatingAnnual Program Administration Cost | B75: WA | C75: General Service | D75: DLC Water Heating | E75: Annual Program Administration Cost | F75: $/yr | G75: 0 | H75: Share of Cost as noted in table at right | I75: 1
A76: WAGeneral ServiceDLC Water HeatingCost of Equip + Install | B76: WA | C76: General Service | D76: DLC Water Heating | E76: Cost of Equip + Install | F76: $/tech | G76: 0 | H76: Assumed $160 cost for water heater switch (same as cooling switch cost), plus $200 installation cost. Cost of Permit and License is $100 for res and $125 for C&I | I76: 1
A77: WAGeneral ServiceDLC Water HeatingCost of Equip + Install (per kW basis) | B77: WA | C77: General Service | D77: DLC Water Heating | E77: Cost of Equip + Install (per kW basis) | F77: $/kW @meter | G77: 0 | H77: 0 | I77: 1
A78: WAGeneral ServiceDLC Water HeatingDe-rate | B78: WA | C78: General Service | D78: DLC Water Heating | E78: De-rate | F78: capacity equivalence factor | G78: 0 | H78: 0 | I78: 1
A79: WAGeneral ServiceDLC Water HeatingNet to Gross Ratio (free ridership) | B79: WA | C79: General Service | D79: DLC Water Heating | E79: Net to Gross Ratio (free ridership) | F79: ratio | G79: 0 | H79: 0 | I79: 1
A80: WAGeneral ServiceDLC Water HeatingPer Customer Annual Marketing/Recruitment Cost | B80: WA | C80: General Service | D80: DLC Water Heating | E80: Per Customer Annual Marketing/Recruitment Cost | F80: $/new participant/year | G80: 0 | H80: Same as DLC CAC | I80: 1
A81: WAGeneral ServiceDLC Water HeatingPer Participant Annual Incentive | B81: WA | C81: General Service | D81: DLC Water Heating | E81: Per Participant Annual Incentive | F81: $/participant/year | G81: 0 | H81: Assume $2/month year round | I81: 1
A82: WAGeneral ServiceDLC Water HeatingPer kW Annual Incentive | B82: WA | C82: General Service | D82: DLC Water Heating | E82: Per kW Annual Incentive | F82: $/kW @meter/year | G82: 0 | H82: 0 | I82: 1
A83: WAGeneral ServiceDLC Water HeatingProgram Development Cost | B83: WA | C83: General Service | D83: DLC Water Heating | E83: Program Development Cost | F83: $/program | G83: 0 | H83: No startup costs; Framework already exists for current programs | I83: 1
A84: WAGeneral ServiceDLC Water HeatingProgram Life | B84: WA | C84: General Service | D84: DLC Water Heating | E84: Program Life | F84: years | G84: 0 | H84: 0 | I84: 1
A85: WAGeneral ServiceDLC Water HeatingProgram Start Year | B85: WA | C85: General Service | D85: DLC Water Heating | E85: Program Start Year | F85: year | G85: 0 | H85: Existing programs in UT. Other states need 2 years to ramp up. | I85: 1
A86: WAResidentialCTA-2045 WHSummer DR Event Hours | B86: WA | C86: Residential | D86: CTA-2045 WH | E86: Summer DR Event Hours | F86: hours/year | G86: 75 | H86: 25 total events around 3 hrs ea. | I86: 1
A87: WAResidentialCTA-2045 WHWinter DR Event Hours | B87: WA | C87: Residential | D87: CTA-2045 WH | E87: Winter DR Event Hours | F87: hours/year | G87: 75 | H87: 25 total events around 3 hrs ea. | I87: 1
A88: WAResidentialCTA-2045 WHAnnual O&M Cost | B88: WA | C88: Residential | D88: CTA-2045 WH | E88: Annual O&M Cost | F88: $/participant/year | G88: 0 | H88: 0 | I88: 1
A89: WAResidentialCTA-2045 WHAnnual Program Administration Cost | B89: WA | C89: Residential | D89: CTA-2045 WH | E89: Annual Program Administration Cost | F89: $/yr | G89: 81900 | H89: Share of Cost as noted in table at right | I89: 1
A90: WAResidentialCTA-2045 WHCost of Equip + Install | B90: WA | C90: Residential | D90: CTA-2045 WH | E90: Cost of Equip + Install | F90: $/tech | G90: 170 | H90: $150 for module and comms, 20% of customers will need help provisioning these (an additional $100 for these customers)- average customer will be $170 | I90: 1
A91: WAResidentialCTA-2045 WHCost of Equip + Install (per kW basis) | B91: WA | C91: Residential | D91: CTA-2045 WH | E91: Cost of Equip + Install (per kW basis) | F91: $/kW @meter | G91: 0 | H91: 0 | I91: 1
A92: WAResidentialCTA-2045 WHDe-rate | B92: WA | C92: Residential | D92: CTA-2045 WH | E92: De-rate | F92: capacity equivalence factor | G92: 1 | H92: 0 | I92: 1
A93: WAResidentialCTA-2045 WHNet to Gross Ratio (free ridership) | B93: WA | C93: Residential | D93: CTA-2045 WH | E93: Net to Gross Ratio (free ridership) | F93: ratio | G93: 1 | H93: 0 | I93: 1
A94: WAResidentialCTA-2045 WHPer Customer Annual Marketing/Recruitment Cost | B94: WA | C94: Residential | D94: CTA-2045 WH | E94: Per Customer Annual Marketing/Recruitment Cost | F94: $/new participant/year | G94: 60 | H94: Same as Smart Thermostats | I94: 1
A95: WAResidentialCTA-2045 WHPer Participant Annual Incentive | B95: WA | C95: Residential | D95: CTA-2045 WH | E95: Per Participant Annual Incentive | F95: $/participant/year | G95: 24 | H95: Assume $2/month year round | I95: 1
A96: WAResidentialCTA-2045 WHPer kW Annual Incentive | B96: WA | C96: Residential | D96: CTA-2045 WH | E96: Per kW Annual Incentive | F96: $/kW @meter/year | G96: 0 | H96: 0 | I96: 1
A97: WAResidentialCTA-2045 WHProgram Development Cost | B97: WA | C97: Residential | D97: CTA-2045 WH | E97: Program Development Cost | F97: $/program | G97: 68250 | H97: 0 | I97: 1
A98: WAResidentialCTA-2045 WHProgram Life | B98: WA | C98: Residential | D98: CTA-2045 WH | E98: Program Life | F98: years | G98: 8 | H98: 0 | I98: 1
A99: WAResidentialCTA-2045 WHProgram Start Year | B99: WA | C99: Residential | D99: CTA-2045 WH | E99: Program Start Year | F99: year | G99: 2022 | H99: 0 | I99: 1
A100: WAGeneral ServiceCTA-2045 WHSummer DR Event Hours | B100: WA | C100: General Service | D100: CTA-2045 WH | E100: Summer DR Event Hours | F100: hours/year | G100: 75 | H100: 25 total events around 3 hrs ea. | I100: 1
A101: WAGeneral ServiceCTA-2045 WHWinter DR Event Hours | B101: WA | C101: General Service | D101: CTA-2045 WH | E101: Winter DR Event Hours | F101: hours/year | G101: 75 | H101: 25 total events around 3 hrs ea. | I101: 1
A102: WAGeneral ServiceCTA-2045 WHAnnual O&M Cost | B102: WA | C102: General Service | D102: CTA-2045 WH | E102: Annual O&M Cost | F102: $/participant/year | G102: 0 | H102: 0 | I102: 1
A103: WAGeneral ServiceCTA-2045 WHAnnual Program Administration Cost | B103: WA | C103: General Service | D103: CTA-2045 WH | E103: Annual Program Administration Cost | F103: $/yr | G103: 8100 | H103: Share of Cost as noted in table at right | I103: 1
A104: WAGeneral ServiceCTA-2045 WHCost of Equip + Install | B104: WA | C104: General Service | D104: CTA-2045 WH | E104: Cost of Equip + Install | F104: $/tech | G104: 170 | H104: $150 for module and comms, 20% of customers will need help provisioning these (an additional $100 install cost for these customers)- average customer will be $170 | I104: 1
A105: WAGeneral ServiceCTA-2045 WHCost of Equip + Install (per kW basis) | B105: WA | C105: General Service | D105: CTA-2045 WH | E105: Cost of Equip + Install (per kW basis) | F105: $/kW @meter | G105: 0 | H105: 0 | I105: 1
A106: WAGeneral ServiceCTA-2045 WHDe-rate | B106: WA | C106: General Service | D106: CTA-2045 WH | E106: De-rate | F106: capacity equivalence factor | G106: 1 | H106: 0 | I106: 1
A107: WAGeneral ServiceCTA-2045 WHNet to Gross Ratio (free ridership) | B107: WA | C107: General Service | D107: CTA-2045 WH | E107: Net to Gross Ratio (free ridership) | F107: ratio | G107: 1 | H107: 0 | I107: 1
A108: WAGeneral ServiceCTA-2045 WHPer Customer Annual Marketing/Recruitment Cost | B108: WA | C108: General Service | D108: CTA-2045 WH | E108: Per Customer Annual Marketing/Recruitment Cost | F108: $/new participant/year | G108: 75 | H108: Same as Smart Thermostats | I108: 1
A109: WAGeneral ServiceCTA-2045 WHPer Participant Annual Incentive | B109: WA | C109: General Service | D109: CTA-2045 WH | E109: Per Participant Annual Incentive | F109: $/participant/year | G109: 24 | H109: Assume $2/month year round | I109: 1
A110: WAGeneral ServiceCTA-2045 WHPer kW Annual Incentive | B110: WA | C110: General Service | D110: CTA-2045 WH | E110: Per kW Annual Incentive | F110: $/kW @meter/year | G110: 0 | H110: 0 | I110: 1
A111: WAGeneral ServiceCTA-2045 WHProgram Development Cost | B111: WA | C111: General Service | D111: CTA-2045 WH | E111: Program Development Cost | F111: $/program | G111: 6750 | H111: No startup costs; Framework already exists for current programs | I111: 1
A112: WAGeneral ServiceCTA-2045 WHProgram Life | B112: WA | C112: General Service | D112: CTA-2045 WH | E112: Program Life | F112: years | G112: 8 | H112: 0 | I112: 1
A113: WAGeneral ServiceCTA-2045 WHProgram Start Year | B113: WA | C113: General Service | D113: CTA-2045 WH | E113: Program Start Year | F113: year | G113: 2022 | H113: 0 | I113: 1
A114: WAResidentialDLC Smart Thermostats - CoolingSummer DR Event Hours | B114: WA | C114: Residential | D114: DLC Smart Thermostats - Cooling | E114: Summer DR Event Hours | F114: hours/year | G114: 36 | H114: 2016 M&V Report Event Hours | I114: 1
A115: WAResidentialDLC Smart Thermostats - CoolingWinter DR Event Hours | B115: WA | C115: Residential | D115: DLC Smart Thermostats - Cooling | E115: Winter DR Event Hours | F115: hours/year | G115: 0 | H115: 0 | I115: 1
A116: WAResidentialDLC Smart Thermostats - CoolingAnnual O&M Cost | B116: WA | C116: Residential | D116: DLC Smart Thermostats - Cooling | E116: Annual O&M Cost | F116: $/participant/year | G116: 44 | H116: Pacificorp:Assume 5% of equipment+install costs | I116: 1
A117: WAResidentialDLC Smart Thermostats - CoolingAnnual Program Administration Cost | B117: WA | C117: Residential | D117: DLC Smart Thermostats - Cooling | E117: Annual Program Administration Cost | F117: $/yr | G117: 47453.0151 | H117: 0 | I117: 1
A118: WAResidentialDLC Smart Thermostats - CoolingCost of Equip + Install | B118: WA | C118: Residential | D118: DLC Smart Thermostats - Cooling | E118: Cost of Equip + Install | F118: $/tech | G118: 0 | H118: BYOT | I118: 1
A119: WAResidentialDLC Smart Thermostats - CoolingCost of Equip + Install (per kW basis) | B119: WA | C119: Residential | D119: DLC Smart Thermostats - Cooling | E119: Cost of Equip + Install (per kW basis) | F119: $/kW @meter | G119: 0 | H119: 0 | I119: 1
A120: WAResidentialDLC Smart Thermostats - CoolingDe-rate | B120: WA | C120: Residential | D120: DLC Smart Thermostats - Cooling | E120: De-rate | F120: capacity equivalence factor | G120: 1 | H120: 0 | I120: 1
A121: WAResidentialDLC Smart Thermostats - CoolingNet to Gross Ratio (free ridership) | B121: WA | C121: Residential | D121: DLC Smart Thermostats - Cooling | E121: Net to Gross Ratio (free ridership) | F121: ratio | G121: 1 | H121: 0 | I121: 1
A122: WAResidentialDLC Smart Thermostats - CoolingPer Customer Annual Marketing/Recruitment Cost | B122: WA | C122: Residential | D122: DLC Smart Thermostats - Cooling | E122: Per Customer Annual Marketing/Recruitment Cost | F122: $/new participant/year | G122: 60 | H122: Utah $50, All others $60 (20% higher) | I122: 1
A123: WAResidentialDLC Smart Thermostats - CoolingPer Participant Annual Incentive | B123: WA | C123: Residential | D123: DLC Smart Thermostats - Cooling | E123: Per Participant Annual Incentive | F123: $/participant/year | G123: 20 | H123: Assume $20 per year per system, same as CAC DLC. | I123: 1
A124: WAResidentialDLC Smart Thermostats - CoolingPer kW Annual Incentive | B124: WA | C124: Residential | D124: DLC Smart Thermostats - Cooling | E124: Per kW Annual Incentive | F124: $/kW @meter/year | G124: 0 | H124: 0 | I124: 1
A125: WAResidentialDLC Smart Thermostats - CoolingProgram Development Cost | B125: WA | C125: Residential | D125: DLC Smart Thermostats - Cooling | E125: Program Development Cost | F125: $/program | G125: 39544.17925 | H125: Share of Cost as noted in table at right | I125: 1
A126: WAResidentialDLC Smart Thermostats - CoolingProgram Life | B126: WA | C126: Residential | D126: DLC Smart Thermostats - Cooling | E126: Program Life | F126: years | G126: 10 | H126: 0 | I126: 1
A127: WAResidentialDLC Smart Thermostats - CoolingProgram Start Year | B127: WA | C127: Residential | D127: DLC Smart Thermostats - Cooling | E127: Program Start Year | F127: year | G127: 2022 | H127: 0 | I127: 1
A128: WAGeneral ServiceDLC Smart Thermostats - CoolingSummer DR Event Hours | B128: WA | C128: General Service | D128: DLC Smart Thermostats - Cooling | E128: Summer DR Event Hours | F128: hours/year | G128: 36 | H128: 2016 M&V Report Event Hours | I128: 1
A129: WAGeneral ServiceDLC Smart Thermostats - CoolingWinter DR Event Hours | B129: WA | C129: General Service | D129: DLC Smart Thermostats - Cooling | E129: Winter DR Event Hours | F129: hours/year | G129: 0 | H129: 0 | I129: 1
A130: =B130&C130&D130&E130 -> WAGeneral ServiceDLC Smart Thermostats - CoolingAnnual O&M Cost | B130: WA | C130: General Service | D130: DLC Smart Thermostats - Cooling | E130: Annual O&M Cost | F130: $/participant/year | G130: 44 | H130: Average subscription fees for EE and DR program management | I130: 1
